Workbook

Sheet MENU
B1: PPM - Project Progress Monitoring Tool
B2: Version 2 /17-12-2019 | G2: Comments
B4: Current Month: | D4: =TEXT(VLOOKUP(COUNTIF('ACTUAL vs.PLANNED'!$J6:$J89,">0"),'ACTUAL vs.PLANNED'!$C6:$D89,2,FALSE),"mmmm yyyy") -> June 2020 | G4: current month is calculated automaticaly. It is the last month with quantities executed (see Sheet "Actual vs. Planned")
D5: =TEXT(D4,"[$-401] mmmm yyyy") -> يونيو 2020
B6: Input | D6: General information about the project and project details to be entered.
D7: Quantities and Unit Prices of all activities of initial contract and V.O. to be entered. The initial contract value, as also the contract values of the V.O.s and the current total contract value (without contingencies) is calculated.
D8: Quantities executed every month to be entered.
D9: Value of activities planned per month to be entered. The actual progress vs. the planned project is calculated, as also the SPI (Shedule Performance Index)
D10: In case of truck roads, the equipment used every month to be entered.
B11: Output | D11: The monthly progress of our project is presented, as per the annual budget distributes, as also the progress from the start till current month.
D12: It presents statsitics regarding (A) General Statistics, (B) Project Duration, (C) Contract Value and (D) Project Performance.
D13: It presents a text report about current progress.
D14: It presents graphs covering the whole project (all years) as also the annual performance.
D15: It produces the monthly payment certificates (some datails e.g. advance payment, retention, penalties need to be manual inserted).
D17: It prints a full report (English or Arabic), including graphs
D18: it prints the Statistics and the Progress Monitring Sheet (English)
B20: The tool can manage up to 500 activities

Sheet PROJECT DETAILS
A1: Project Details
B3: PROJECT (english): | D3: Maintenance of Road between X and Y
B5: PROJECT (arabic): | D5: صيانة الطريق بين X و Y
B7: Is project related to truck (unpaved) road? | F7: 0 | G7: =IF(F7=1,"Project is for a truck (unpaved) road","Project is for a paved road") -> Project is for a paved road
F8: (YES = 1 / NO = 0)
B10: Started on: | C10: 2016-03-02
B12: (Initial) Contract Duration: | C12: 60 | D12: months
B14: Contractor: | C14: Road Contractor S.A
B16: Contract Nr.: | C16: 117/2019
B18: Finance Code: | C18: 108902300
B21: Consultant: | C21: Road Consultant Ltd
B24: Currency: | C24: USD
G25: ="Contigencies (% and amount) ["&C24&"]" -> Contigencies (% and amount) [USD]
B26: Initial Contract Value (without contigencies): | C26: ='QUANTITIES-BUDGET'!N7 -> 16381565 | E26: =C24 -> USD | G26: 0.1 | H26: =G26*C26 -> 1638156.5
B28: Variation Orders (V.O.) (see Sheet "Quantities-Budget" for new quantities - in next table enter only date of issue and extension of time):
C29: Date of issue | D29: Time Extension till | E29: Year Nr. | F29: Amount | G29: Contigencies (% and amount)
B30: V.O. Nr. 1 | C30: 2018-05-15 | D30: 2020-08-15 | E30: =_xlfn.IFS(D30=0,"",TEXT(D30,"mm-yyyy")-$C$44<0,$C$41,TEXT(D30,"mm-yyyy")-$D$44<0,$D$41,TEXT(D30,"mm-yyyy")-$E$44<0,$E$41,TEXT(D30,"mm-yyyy")-$F$44<0,$F$41,TEXT(D30,"mm-yyyy")-$G$44<0,$G$41,TEXT(D30,"mm-yyyy")-$H$44<0,$H$41,TEXT(D30,"mm-yyyy")-$I$44<0,$I$41,TEXT(D30,"mm-yyyy")-$I$44>0,"") -> YEAR 5 | F30: ='QUANTITIES-BUDGET'!O7 -> 1642520 | G30: 0.06 | H30: =G30*F30 -> 98551.2
B31: V.O. Nr. 2 | C31: 2019-01-01 | D31: 2021-05-20 | E31: =_xlfn.IFS(D31=0,"",TEXT(D31,"mm-yyyy")-$C$44<0,$C$41,TEXT(D31,"mm-yyyy")-$D$44<0,$D$41,TEXT(D31,"mm-yyyy")-$E$44<0,$E$41,TEXT(D31,"mm-yyyy")-$F$44<0,$F$41,TEXT(D31,"mm-yyyy")-$G$44<0,$G$41,TEXT(D31,"mm-yyyy")-$H$44<0,$H$41,TEXT(D31,"mm-yyyy")-$I$44<0,$I$41,TEXT(D31,"mm-yyyy")-$I$44>0,"") -> YEAR 6 | F31: ='QUANTITIES-BUDGET'!P7 -> 717008 | G31: 0.03 | H31: =G31*F31 -> 21510.24
B32: V.O. Nr. 3 | E32: =_xlfn.IFS(D32=0,"",TEXT(D32,"mm-yyyy")-$C$44<0,$C$41,TEXT(D32,"mm-yyyy")-$D$44<0,$D$41,TEXT(D32,"mm-yyyy")-$E$44<0,$E$41,TEXT(D32,"mm-yyyy")-$F$44<0,$F$41,TEXT(D32,"mm-yyyy")-$G$44<0,$G$41,TEXT(D32,"mm-yyyy")-$H$44<0,$H$41,TEXT(D32,"mm-yyyy")-$I$44<0,$I$41,TEXT(D32,"mm-yyyy")-$I$44>0,"") ->  | F32: ='QUANTITIES-BUDGET'!Q7 -> 401907.3 | G32: 0.05 | H32: =G32*F32 -> 20095.365
B33: V.O. Nr. 4 | E33: =_xlfn.IFS(D33=0,"",TEXT(D33,"mm-yyyy")-$C$44<0,$C$41,TEXT(D33,"mm-yyyy")-$D$44<0,$D$41,TEXT(D33,"mm-yyyy")-$E$44<0,$E$41,TEXT(D33,"mm-yyyy")-$F$44<0,$F$41,TEXT(D33,"mm-yyyy")-$G$44<0,$G$41,TEXT(D33,"mm-yyyy")-$H$44<0,$H$41,TEXT(D33,"mm-yyyy")-$I$44<0,$I$41,TEXT(D33,"mm-yyyy")-$I$44>0,"") ->  | F33: ='QUANTITIES-BUDGET'!R7 -> 736860.95 | G33: 0.1 | H33: =G33*F33 -> 73686.095
D34: Total amount of V.O.s: | F34: =SUM(F30:F33) -> 3498296.25
H35: Contigencies:
B36: Total Contract Value (without contigencies): | E36: =C26+F34 -> 19879861.25 | H36: =SUM(H26:I33) -> 1851999.4
B38: Total Contract Value (with contigencies): | E38: =E36+H36 -> 21731860.65
B40: Total Contract Value distribution (incl. V.O.s):
C41: YEAR 1 | D41: YEAR 2 | E41: YEAR 3 | F41: YEAR 4 | G41: YEAR 5 | H41: YEAR 6 | I41: YEAR 7
C42: =EOMONTH($C10,0) -> 2016-03-31 | D42: =EOMONTH($C10,12) -> 2017-03-31 | E42: =EOMONTH($C10,24) -> 2018-03-31 | F42: =EOMONTH($C10,36) -> 2019-03-31 | G42: =EOMONTH($C10,48) -> 2020-03-31 | H42: =EOMONTH($C10,60) -> 2021-03-31 | I42: =EOMONTH($C10,72) -> 2022-03-31
C43: till | D43: till | E43: till | F43: till | G43: till | H43: till | I43: till
C44: =EOMONTH($C10,11) -> 2017-02-28 | D44: =EOMONTH($C10,23) -> 2018-02-28 | E44: =EOMONTH($C10,35) -> 2019-02-28 | F44: =EOMONTH($C10,47) -> 2020-02-29 | G44: =EOMONTH($C10,59) -> 2021-02-28 | H44: =EOMONTH($C10,71) -> 2022-02-28 | I44: =EOMONTH($C10,83) -> 2023-02-28
B45: Annual distibution % of initial Contract Value: | C45: 0.1 | D45: 0.15 | E45: 0.25 | F45: 0.3 | G45: 0.2 | J45: =SUM(C45:I45) -> 1
B46: Cummulative: | C46: =C45 -> 0.1 | D46: =C46+D45 -> 0.25 | E46: 0.5 | F46: 0.8 | G46: 1 | H46: 1 | I46: 1
B47: Annual distibution amount of initial Contract Value: | C47: =C45*$C26 -> 1638156.5 | D47: 2457234.75 | E47: 4095391.25 | F47: 4914469.5 | G47: 3276313 | H47: 0 | I47: 0
B48: Contingencies % of annual distribution: | C48: 0.1 | D48: 0.15 | E48: 0.25 | F48: 0.2 | G48: 0.15 | J48: =SUM(C48:I48) -> 0.85
B49: Cummulative: | C49: =C48 -> 0.1 | D49: =C49+D48 -> 0.25 | E49: =D49+E48 -> 0.5 | F49: =E49+F48 -> 0.7 | G49: =F49+G48 -> 0.85 | H49: =G49+H48 -> 0.85 | I49: =H49+I48 -> 0.85
B50: Contingencies amount of annual distribution: | C50: =C48*$H36 -> 185199.94 | D50: 277799.91 | E50: 462999.85 | F50: 370399.88 | G50: 277799.91 | H50: 0 | I50: 0
B51: Variation Orders (V.O.) | C51: =_xlfn.IFNA(VLOOKUP(C41,$E30:$F33,2,FALSE),0) -> 0 | D51: 0 | E51: 0 | F51: 0 | G51: 1642520 | H51: 717008 | I51: 0
B52: Total Contract Value with contigencies: | C52: =C47+C50+C51 -> 1823356.44 | D52: =D47+D50+D51 -> 2735034.66 | E52: 4558391.1 | F52: 5284869.38 | G52: 5196632.91 | H52: 717008 | I52: 0
B53: Cummulative: | C53: =C52 -> 1823356.44 | D53: =C53+D52 -> 4558391.1 | E53: =D53+E52 -> 9116782.2 | F53: 14401651.58 | G53: 19598284.49 | H53: =G53+H52 -> 20315292.49 | I53: =H53+I52 -> 20315292.49
I54: Remaining (not allocated) contigencies:
I55: =E38-I53 -> 1416568.16
B57: Savings from year X to be transferred to year X+1 | G57: 0.55 | H57: Choose a value between 0% and 100%
B58: Overspending from year X to be deducted from budget of year X+1 | G58: 0.3
B60: (Initial) Completion at: | C60: =C10+30*C12 -> 2021-02-04
B62: Extension of Time: | D62: Extension till: | E62: New duration as per V.O. | F62: Time extended as per current V.O.
C63: V.O. 1 | D63: =IF(D30=0,"",D30) -> 2020-08-15 | E63: =IF(D30=0,"",ROUND((D63-$C$10)/30,1)) -> 54.2 | F63: =IF(D30=0,"",E63-$C$12) -> -5.8
C64: V.O. 2 | D64: =IF(D31=0,"",D31) -> 2021-05-20 | E64: =IF(D31=0,"",ROUND((D64-$C$10)/30,1)) -> 63.5 | F64: =IF(D31=0,"",E64-$C$12) -> 3.5
C65: V.O. 3 | D65: =IF(D32=0,"",D32) ->  | E65: =IF(D32=0,"",ROUND((D65-$C$10)/30,1)) ->  | F65: =IF(D32=0,"",E65-$C$12) -> 
C66: V.O. 4 | D66: =IF(D33=0,"",D33) ->  | E66: =IF(D33=0,"",ROUND((D66-$C$10)/30,1)) ->  | F66: =IF(D33=0,"",E66-$C$12) -> 
B68: Revised Completion: | D68: =MAX(D63:D66) -> 2021-05-20
B69: Revised Contract Duration: | D69: =MAX(E63:E66) -> 63.5 | E69: months | F69: ="=("&ROUND(D69/12,1)&" years)" -> =(5.3 years)
B71: Progress alerts (cells in sheet "Progress Monitoring" will be coloured as following):
H72: example:
D73: If an activity exceeds | E73: 0.8 | F73: of budget for activity | H73: =E73*1.05 -> 0.84
D75: If an activity exceeds | E75: 1 | F75: of budget for activity | H75: =E75*1.1 -> 1.1
B77: The alerts are on 2 levels: 1. On the whole project basis, shown in the heading of the Table "PROGRESS". If expenses for all activities exceed the value given above, than the cell becomes coloured as indicated above. 2. On each activity basis: for each activity a budget as shown in the annual budget distribution (above) is allocated. If this budget is exceeding the value given above, than the cell becomes coloured as indicated above.

Sheet QUANTITIES-BUDGET
A1: Quantities / Contract Value as per current contract status
A3: Item No | B3: Reference | C3: Description | D3: Unit | F3: Initial Quantity | G3: Additional Quantities (V.O.) | K3: Current Contract Quantity | L3: Unit Rate (R.O) | M3: Current Contract Value split
G4: V.O. 1 | H4: V.O. 2 | I4: V.O. 3 | J4: V.O. 4 | M4: Current Contract Value without contigencies | N4: Initial Contract without contigencies | O4: =G4 -> V.O. 1 | P4: =H4 -> V.O. 2 | Q4: =I4 -> V.O. 3 | R4: =J4 -> V.O. 4
G6: date of issue | M6: قيمة العقد الحالية بدون طوارئ | N6: عقد مبدئي بدون حالات طوارئ | O6: =O4 -> V.O. 1 | P6: V.O. 2 | Q6: V.O. 3 | R6: =R4 -> V.O. 4
G7: =IF('PROJECT DETAILS'!C30=0,"",'PROJECT DETAILS'!C30) -> 2018-05-15 | H7: =IF('PROJECT DETAILS'!C31=0,"",'PROJECT DETAILS'!C31) -> 2019-01-01 | I7: =IF('PROJECT DETAILS'!C32=0,"",'PROJECT DETAILS'!C32) ->  | J7: =IF('PROJECT DETAILS'!C33=0,"",'PROJECT DETAILS'!C33) ->  | M7: =SUM(M10:M510) -> 19879861.25 | N7: 16381565 | O7: 1642520 | P7: 717008 | Q7: 401907.3 | R7: 736860.95
N8: =N7 -> 16381565 | O8: =O7+N8 -> 18024085 | P8: =P7+O8 -> 18741093 | Q8: 19143000.3 | R8: 19879861.25
A10: A100 | C10: Description of item A100 | D10: m | F10: 20000 | I10: 400 | J10: 600 | K10: =SUM(F10:J10) -> 21000 | L10: 12.3 | M10: =K10*L10 -> 258300 | N10: ='QUANTITIES-BUDGET'!$F10*'QUANTITIES-BUDGET'!$L10 -> 246000 | O10: ='QUANTITIES-BUDGET'!$G10*'QUANTITIES-BUDGET'!$L10 -> 0 | P10: ='QUANTITIES-BUDGET'!$H10*'QUANTITIES-BUDGET'!$L10 -> 0 | Q10: ='QUANTITIES-BUDGET'!$I10*'QUANTITIES-BUDGET'!$L10 -> 4920 | R10: ='QUANTITIES-BUDGET'!$J10*'QUANTITIES-BUDGET'!$L10 -> 7380
A11: A102 | C11: Description of item A102 | D11: m2 | F11: 2000 | I11: 40 | J11: 60 | K11: =SUM(F11:J11) -> 2100 | L11: 2.345 | M11: =K11*L11 -> 4924.5 | N11: ='QUANTITIES-BUDGET'!$F11*'QUANTITIES-BUDGET'!$L11 -> 4690 | O11: ='QUANTITIES-BUDGET'!$G11*'QUANTITIES-BUDGET'!$L11 -> 0 | P11: ='QUANTITIES-BUDGET'!$H11*'QUANTITIES-BUDGET'!$L11 -> 0 | Q11: ='QUANTITIES-BUDGET'!$I11*'QUANTITIES-BUDGET'!$L11 -> 93.8 | R11: ='QUANTITIES-BUDGET'!$J11*'QUANTITIES-BUDGET'!$L11 -> 140.7
A12: A104 | C12: Description of item A104 | D12: m | F12: 2500 | I12: 50 | J12: 75 | K12: 2625 | L12: 5.67 | M12: 14883.75 | N12: ='QUANTITIES-BUDGET'!$F12*'QUANTITIES-BUDGET'!$L12 -> 14175 | O12: ='QUANTITIES-BUDGET'!$G12*'QUANTITIES-BUDGET'!$L12 -> 0 | P12: ='QUANTITIES-BUDGET'!$H12*'QUANTITIES-BUDGET'!$L12 -> 0 | Q12: ='QUANTITIES-BUDGET'!$I12*'QUANTITIES-BUDGET'!$L12 -> 283.5 | R12: ='QUANTITIES-BUDGET'!$J12*'QUANTITIES-BUDGET'!$L12 -> 425.25
A13: A106 | C13: Description of item A106 | D13: m | F13: 2100 | I13: 42 | J13: 63 | K13: 2205 | L13: 65 | M13: 143325 | N13: ='QUANTITIES-BUDGET'!$F13*'QUANTITIES-BUDGET'!$L13 -> 136500 | O13: ='QUANTITIES-BUDGET'!$G13*'QUANTITIES-BUDGET'!$L13 -> 0 | P13: ='QUANTITIES-BUDGET'!$H13*'QUANTITIES-BUDGET'!$L13 -> 0 | Q13: ='QUANTITIES-BUDGET'!$I13*'QUANTITIES-BUDGET'!$L13 -> 2730 | R13: ='QUANTITIES-BUDGET'!$J13*'QUANTITIES-BUDGET'!$L13 -> 4095
A14: A108 | C14: Description of item A108 | D14: m | F14: 3000 | G14: 300 | H14: 120 | K14: 3420 | L14: 12.76 | M14: 43639.2 | N14: ='QUANTITIES-BUDGET'!$F14*'QUANTITIES-BUDGET'!$L14 -> 38280 | O14: ='QUANTITIES-BUDGET'!$G14*'QUANTITIES-BUDGET'!$L14 -> 3828 | P14: ='QUANTITIES-BUDGET'!$H14*'QUANTITIES-BUDGET'!$L14 -> 1531.2 | Q14: ='QUANTITIES-BUDGET'!$I14*'QUANTITIES-BUDGET'!$L14 -> 0 | R14: ='QUANTITIES-BUDGET'!$J14*'QUANTITIES-BUDGET'!$L14 -> 0
A15: A110 | C15: Description of item A110 | D15: m2 | F15: 4500 | G15: 450 | H15: 180 | K15: 5130 | L15: 11.76 | M15: 60328.8 | N15: ='QUANTITIES-BUDGET'!$F15*'QUANTITIES-BUDGET'!$L15 -> 52920 | O15: ='QUANTITIES-BUDGET'!$G15*'QUANTITIES-BUDGET'!$L15 -> 5292 | P15: ='QUANTITIES-BUDGET'!$H15*'QUANTITIES-BUDGET'!$L15 -> 2116.8 | Q15: ='QUANTITIES-BUDGET'!$I15*'QUANTITIES-BUDGET'!$L15 -> 0 | R15: ='QUANTITIES-BUDGET'!$J15*'QUANTITIES-BUDGET'!$L15 -> 0
A16: A112 | C16: Description of item A112 | D16: m2 | F16: 1400 | G16: 140 | H16: 56 | K16: 1596 | L16: 200 | M16: 319200 | N16: ='QUANTITIES-BUDGET'!$F16*'QUANTITIES-BUDGET'!$L16 -> 280000 | O16: ='QUANTITIES-BUDGET'!$G16*'QUANTITIES-BUDGET'!$L16 -> 28000 | P16: ='QUANTITIES-BUDGET'!$H16*'QUANTITIES-BUDGET'!$L16 -> 11200 | Q16: ='QUANTITIES-BUDGET'!$I16*'QUANTITIES-BUDGET'!$L16 -> 0 | R16: ='QUANTITIES-BUDGET'!$J16*'QUANTITIES-BUDGET'!$L16 -> 0
A17: A114 | C17: Description of item A114 | D17: m | F17: 2500 | G17: 300 | H17: 120 | K17: 2920 | L17: 160 | M17: 467200 | N17: ='QUANTITIES-BUDGET'!$F17*'QUANTITIES-BUDGET'!$L17 -> 400000 | O17: ='QUANTITIES-BUDGET'!$G17*'QUANTITIES-BUDGET'!$L17 -> 48000 | P17: ='QUANTITIES-BUDGET'!$H17*'QUANTITIES-BUDGET'!$L17 -> 19200 | Q17: ='QUANTITIES-BUDGET'!$I17*'QUANTITIES-BUDGET'!$L17 -> 0 | R17: ='QUANTITIES-BUDGET'!$J17*'QUANTITIES-BUDGET'!$L17 -> 0
A18: B100 | C18: Description of item B100 | D18: m | F18: 1600 | G18: 160 | H18: 64 | K18: 1824 | L18: 800 | M18: 1459200 | N18: ='QUANTITIES-BUDGET'!$F18*'QUANTITIES-BUDGET'!$L18 -> 1280000 | O18: ='QUANTITIES-BUDGET'!$G18*'QUANTITIES-BUDGET'!$L18 -> 128000 | P18: ='QUANTITIES-BUDGET'!$H18*'QUANTITIES-BUDGET'!$L18 -> 51200 | Q18: ='QUANTITIES-BUDGET'!$I18*'QUANTITIES-BUDGET'!$L18 -> 0 | R18: ='QUANTITIES-BUDGET'!$J18*'QUANTITIES-BUDGET'!$L18 -> 0
A19: B102 | C19: Description of item B102 | D19: set | F19: 170 | G19: 17 | H19: 6.8 | I19: 3.4 | J19: 5.1 | K19: 202.3 | L19: 700 | M19: 141610 | N19: ='QUANTITIES-BUDGET'!$F19*'QUANTITIES-BUDGET'!$L19 -> 119000 | O19: ='QUANTITIES-BUDGET'!$G19*'QUANTITIES-BUDGET'!$L19 -> 11900 | P19: ='QUANTITIES-BUDGET'!$H19*'QUANTITIES-BUDGET'!$L19 -> 4760 | Q19: ='QUANTITIES-BUDGET'!$I19*'QUANTITIES-BUDGET'!$L19 -> 2380 | R19: ='QUANTITIES-BUDGET'!$J19*'QUANTITIES-BUDGET'!$L19 -> 3570
A20: B104 | C20: Description of item B104 | D20: set | F20: 600 | G20: 60 | H20: 24 | I20: 12 | J20: 18 | K20: 714 | L20: 3200 | M20: 2284800 | N20: ='QUANTITIES-BUDGET'!$F20*'QUANTITIES-BUDGET'!$L20 -> 1920000 | O20: ='QUANTITIES-BUDGET'!$G20*'QUANTITIES-BUDGET'!$L20 -> 192000 | P20: ='QUANTITIES-BUDGET'!$H20*'QUANTITIES-BUDGET'!$L20 -> 76800 | Q20: ='QUANTITIES-BUDGET'!$I20*'QUANTITIES-BUDGET'!$L20 -> 38400 | R20: ='QUANTITIES-BUDGET'!$J20*'QUANTITIES-BUDGET'!$L20 -> 57600
A21: B106 | C21: Description of item B106 | F21: 420 | G21: 42 | H21: 16.8 | I21: 8.4 | J21: 12.6 | K21: 499.8 | L21: 1850 | M21: 924630 | N21: ='QUANTITIES-BUDGET'!$F21*'QUANTITIES-BUDGET'!$L21 -> 777000 | O21: ='QUANTITIES-BUDGET'!$G21*'QUANTITIES-BUDGET'!$L21 -> 77700 | P21: ='QUANTITIES-BUDGET'!$H21*'QUANTITIES-BUDGET'!$L21 -> 31080 | Q21: ='QUANTITIES-BUDGET'!$I21*'QUANTITIES-BUDGET'!$L21 -> 15540 | R21: ='QUANTITIES-BUDGET'!$J21*'QUANTITIES-BUDGET'!$L21 -> 23310
A22: B108 | C22: Description of item B108 | F22: 160 | G22: 16 | H22: 6.4 | I22: 3.2 | J22: 4.8 | K22: 190.4 | L22: 2800 | M22: 533120 | N22: ='QUANTITIES-BUDGET'!$F22*'QUANTITIES-BUDGET'!$L22 -> 448000 | O22: ='QUANTITIES-BUDGET'!$G22*'QUANTITIES-BUDGET'!$L22 -> 44800 | P22: ='QUANTITIES-BUDGET'!$H22*'QUANTITIES-BUDGET'!$L22 -> 17920 | Q22: ='QUANTITIES-BUDGET'!$I22*'QUANTITIES-BUDGET'!$L22 -> 8960 | R22: ='QUANTITIES-BUDGET'!$J22*'QUANTITIES-BUDGET'!$L22 -> 13440
A23: B110 | C23: Description of item B110 | F23: 800 | G23: 80 | H23: 32 | I23: 16 | J23: 24 | K23: 952 | L23: 3000 | M23: 2856000 | N23: ='QUANTITIES-BUDGET'!$F23*'QUANTITIES-BUDGET'!$L23 -> 2400000 | O23: ='QUANTITIES-BUDGET'!$G23*'QUANTITIES-BUDGET'!$L23 -> 240000 | P23: ='QUANTITIES-BUDGET'!$H23*'QUANTITIES-BUDGET'!$L23 -> 96000 | Q23: ='QUANTITIES-BUDGET'!$I23*'QUANTITIES-BUDGET'!$L23 -> 48000 | R23: ='QUANTITIES-BUDGET'!$J23*'QUANTITIES-BUDGET'!$L23 -> 72000
A24: B112 | C24: Description of item B112 | F24: 4000 | G24: 400 | H24: 160 | I24: 80 | J24: 120 | K24: 4760 | L24: 600 | M24: 2856000 | N24: ='QUANTITIES-BUDGET'!$F24*'QUANTITIES-BUDGET'!$L24 -> 2400000 | O24: ='QUANTITIES-BUDGET'!$G24*'QUANTITIES-BUDGET'!$L24 -> 240000 | P24: ='QUANTITIES-BUDGET'!$H24*'QUANTITIES-BUDGET'!$L24 -> 96000 | Q24: ='QUANTITIES-BUDGET'!$I24*'QUANTITIES-BUDGET'!$L24 -> 48000 | R24: ='QUANTITIES-BUDGET'!$J24*'QUANTITIES-BUDGET'!$L24 -> 72000
A25: B114 | C25: Description of item B114 | F25: 200 | G25: 20 | H25: 8 | I25: 4 | J25: 6 | K25: 238 | L25: 950 | M25: 226100 | N25: ='QUANTITIES-BUDGET'!$F25*'QUANTITIES-BUDGET'!$L25 -> 190000 | O25: ='QUANTITIES-BUDGET'!$G25*'QUANTITIES-BUDGET'!$L25 -> 19000 | P25: ='QUANTITIES-BUDGET'!$H25*'QUANTITIES-BUDGET'!$L25 -> 7600 | Q25: ='QUANTITIES-BUDGET'!$I25*'QUANTITIES-BUDGET'!$L25 -> 3800 | R25: ='QUANTITIES-BUDGET'!$J25*'QUANTITIES-BUDGET'!$L25 -> 5700
A26: B116 | C26: Description of item B116 | F26: 500 | G26: 50 | H26: 20 | I26: 10 | J26: 15 | K26: 595 | L26: 600 | M26: 357000 | N26: ='QUANTITIES-BUDGET'!$F26*'QUANTITIES-BUDGET'!$L26 -> 300000 | O26: ='QUANTITIES-BUDGET'!$G26*'QUANTITIES-BUDGET'!$L26 -> 30000 | P26: ='QUANTITIES-BUDGET'!$H26*'QUANTITIES-BUDGET'!$L26 -> 12000 | Q26: ='QUANTITIES-BUDGET'!$I26*'QUANTITIES-BUDGET'!$L26 -> 6000 | R26: ='QUANTITIES-BUDGET'!$J26*'QUANTITIES-BUDGET'!$L26 -> 9000
A27: B118 | C27: Description of item B118 | F27: 250 | G27: 25 | H27: 10 | I27: 5 | J27: 7.5 | K27: 297.5 | L27: 2300 | M27: 684250 | N27: ='QUANTITIES-BUDGET'!$F27*'QUANTITIES-BUDGET'!$L27 -> 575000 | O27: ='QUANTITIES-BUDGET'!$G27*'QUANTITIES-BUDGET'!$L27 -> 57500 | P27: ='QUANTITIES-BUDGET'!$H27*'QUANTITIES-BUDGET'!$L27 -> 23000 | Q27: ='QUANTITIES-BUDGET'!$I27*'QUANTITIES-BUDGET'!$L27 -> 11500 | R27: ='QUANTITIES-BUDGET'!$J27*'QUANTITIES-BUDGET'!$L27 -> 17250
A28: B120 | C28: Description of item B120 | F28: 120 | G28: 12 | H28: 4.8 | I28: 2.4 | J28: 3.6 | K28: 142.8 | L28: 40000 | M28: 5712000 | N28: ='QUANTITIES-BUDGET'!$F28*'QUANTITIES-BUDGET'!$L28 -> 4800000 | O28: ='QUANTITIES-BUDGET'!$G28*'QUANTITIES-BUDGET'!$L28 -> 480000 | P28: ='QUANTITIES-BUDGET'!$H28*'QUANTITIES-BUDGET'!$L28 -> 192000 | Q28: ='QUANTITIES-BUDGET'!$I28*'QUANTITIES-BUDGET'!$L28 -> 96000 | R28: ='QUANTITIES-BUDGET'!$J28*'QUANTITIES-BUDGET'!$L28 -> 144000
A29: C100 | C29: Description of item C100 | G29: 30 | H29: 12 | I29: 6 | J29: 9 | K29: 57 | L29: 1000 | M29: 57000 | N29: ='QUANTITIES-BUDGET'!$F29*'QUANTITIES-BUDGET'!$L29 -> 0 | O29: ='QUANTITIES-BUDGET'!$G29*'QUANTITIES-BUDGET'!$L29 -> 30000 | P29: ='QUANTITIES-BUDGET'!$H29*'QUANTITIES-BUDGET'!$L29 -> 12000 | Q29: ='QUANTITIES-BUDGET'!$I29*'QUANTITIES-BUDGET'!$L29 -> 6000 | R29: ='QUANTITIES-BUDGET'!$J29*'QUANTITIES-BUDGET'!$L29 -> 9000
A30: C200 | C30: Description of item C200 | G30: 1300 | H30: 520 | I30: 260 | J30: 390 | K30: 2470 | L30: 5 | M30: 12350 | N30: ='QUANTITIES-BUDGET'!$F30*'QUANTITIES-BUDGET'!$L30 -> 0 | O30: ='QUANTITIES-BUDGET'!$G30*'QUANTITIES-BUDGET'!$L30 -> 6500 | P30: ='QUANTITIES-BUDGET'!$H30*'QUANTITIES-BUDGET'!$L30 -> 2600 | Q30: ='QUANTITIES-BUDGET'!$I30*'QUANTITIES-BUDGET'!$L30 -> 1300 | R30: ='QUANTITIES-BUDGET'!$J30*'QUANTITIES-BUDGET'!$L30 -> 1950
A31: C300 | C31: Description of item C300 | G31: 0 | H31: 5000 | I31: 0 | J31: 0 | K31: 5000 | L31: 12 | M31: 60000 | N31: ='QUANTITIES-BUDGET'!$F31*'QUANTITIES-BUDGET'!$L31 -> 0 | O31: ='QUANTITIES-BUDGET'!$G31*'QUANTITIES-BUDGET'!$L31 -> 0 | P31: ='QUANTITIES-BUDGET'!$H31*'QUANTITIES-BUDGET'!$L31 -> 60000 | Q31: ='QUANTITIES-BUDGET'!$I31*'QUANTITIES-BUDGET'!$L31 -> 0 | R31: ='QUANTITIES-BUDGET'!$J31*'QUANTITIES-BUDGET'!$L31 -> 0
A32: C400 | C32: Description of item C400 | G32: 0 | H32: 0 | I32: 1200 | J32: 0 | K32: 1200 | L32: 90 | M32: 108000 | N32: ='QUANTITIES-BUDGET'!$F32*'QUANTITIES-BUDGET'!$L32 -> 0 | O32: ='QUANTITIES-BUDGET'!$G32*'QUANTITIES-BUDGET'!$L32 -> 0 | P32: ='QUANTITIES-BUDGET'!$H32*'QUANTITIES-BUDGET'!$L32 -> 0 | Q32: ='QUANTITIES-BUDGET'!$I32*'QUANTITIES-BUDGET'!$L32 -> 108000 | R32: ='QUANTITIES-BUDGET'!$J32*'QUANTITIES-BUDGET'!$L32 -> 0
A33: C500 | C33: Description of item C500 | G33: 0 | H33: 0 | I33: 0 | J33: 1600 | K33: 1600 | L33: 185 | M33: 296000 | N33: ='QUANTITIES-BUDGET'!$F33*'QUANTITIES-BUDGET'!$L33 -> 0 | O33: ='QUANTITIES-BUDGET'!$G33*'QUANTITIES-BUDGET'!$L33 -> 0 | P33: ='QUANTITIES-BUDGET'!$H33*'QUANTITIES-BUDGET'!$L33 -> 0 | Q33: ='QUANTITIES-BUDGET'!$I33*'QUANTITIES-BUDGET'!$L33 -> 0 | R33: ='QUANTITIES-BUDGET'!$J33*'QUANTITIES-BUDGET'!$L33 -> 296000
K34: 0 | M34: =K34*L34 -> 0 | N34: ='QUANTITIES-BUDGET'!$F34*'QUANTITIES-BUDGET'!$L34 -> 0 | O34: ='QUANTITIES-BUDGET'!$G34*'QUANTITIES-BUDGET'!$L34 -> 0 | P34: ='QUANTITIES-BUDGET'!$H34*'QUANTITIES-BUDGET'!$L34 -> 0 | Q34: ='QUANTITIES-BUDGET'!$I34*'QUANTITIES-BUDGET'!$L34 -> 0 | R34: ='QUANTITIES-BUDGET'!$J34*'QUANTITIES-BUDGET'!$L34 -> 0
K35: 0 | M35: =K35*L35 -> 0 | N35: ='QUANTITIES-BUDGET'!$F35*'QUANTITIES-BUDGET'!$L35 -> 0 | O35: ='QUANTITIES-BUDGET'!$G35*'QUANTITIES-BUDGET'!$L35 -> 0 | P35: ='QUANTITIES-BUDGET'!$H35*'QUANTITIES-BUDGET'!$L35 -> 0 | Q35: ='QUANTITIES-BUDGET'!$I35*'QUANTITIES-BUDGET'!$L35 -> 0 | R35: ='QUANTITIES-BUDGET'!$J35*'QUANTITIES-BUDGET'!$L35 -> 0
K36: 0 | M36: 0 | N36: ='QUANTITIES-BUDGET'!$F36*'QUANTITIES-BUDGET'!$L36 -> 0 | O36: ='QUANTITIES-BUDGET'!$G36*'QUANTITIES-BUDGET'!$L36 -> 0 | P36: ='QUANTITIES-BUDGET'!$H36*'QUANTITIES-BUDGET'!$L36 -> 0 | Q36: ='QUANTITIES-BUDGET'!$I36*'QUANTITIES-BUDGET'!$L36 -> 0 | R36: ='QUANTITIES-BUDGET'!$J36*'QUANTITIES-BUDGET'!$L36 -> 0
K37: 0 | M37: 0 | N37: ='QUANTITIES-BUDGET'!$F37*'QUANTITIES-BUDGET'!$L37 -> 0 | O37: ='QUANTITIES-BUDGET'!$G37*'QUANTITIES-BUDGET'!$L37 -> 0 | P37: ='QUANTITIES-BUDGET'!$H37*'QUANTITIES-BUDGET'!$L37 -> 0 | Q37: ='QUANTITIES-BUDGET'!$I37*'QUANTITIES-BUDGET'!$L37 -> 0 | R37: ='QUANTITIES-BUDGET'!$J37*'QUANTITIES-BUDGET'!$L37 -> 0
K38: 0 | M38: 0 | N38: ='QUANTITIES-BUDGET'!$F38*'QUANTITIES-BUDGET'!$L38 -> 0 | O38: ='QUANTITIES-BUDGET'!$G38*'QUANTITIES-BUDGET'!$L38 -> 0 | P38: ='QUANTITIES-BUDGET'!$H38*'QUANTITIES-BUDGET'!$L38 -> 0 | Q38: ='QUANTITIES-BUDGET'!$I38*'QUANTITIES-BUDGET'!$L38 -> 0 | R38: ='QUANTITIES-BUDGET'!$J38*'QUANTITIES-BUDGET'!$L38 -> 0
K39: 0 | M39: 0 | N39: ='QUANTITIES-BUDGET'!$F39*'QUANTITIES-BUDGET'!$L39 -> 0 | O39: ='QUANTITIES-BUDGET'!$G39*'QUANTITIES-BUDGET'!$L39 -> 0 | P39: ='QUANTITIES-BUDGET'!$H39*'QUANTITIES-BUDGET'!$L39 -> 0 | Q39: ='QUANTITIES-BUDGET'!$I39*'QUANTITIES-BUDGET'!$L39 -> 0 | R39: ='QUANTITIES-BUDGET'!$J39*'QUANTITIES-BUDGET'!$L39 -> 0
K40: 0 | M40: 0 | N40: ='QUANTITIES-BUDGET'!$F40*'QUANTITIES-BUDGET'!$L40 -> 0 | O40: ='QUANTITIES-BUDGET'!$G40*'QUANTITIES-BUDGET'!$L40 -> 0 | P40: ='QUANTITIES-BUDGET'!$H40*'QUANTITIES-BUDGET'!$L40 -> 0 | Q40: ='QUANTITIES-BUDGET'!$I40*'QUANTITIES-BUDGET'!$L40 -> 0 | R40: ='QUANTITIES-BUDGET'!$J40*'QUANTITIES-BUDGET'!$L40 -> 0
K41: 0 | M41: 0 | N41: ='QUANTITIES-BUDGET'!$F41*'QUANTITIES-BUDGET'!$L41 -> 0 | O41: ='QUANTITIES-BUDGET'!$G41*'QUANTITIES-BUDGET'!$L41 -> 0 | P41: ='QUANTITIES-BUDGET'!$H41*'QUANTITIES-BUDGET'!$L41 -> 0 | Q41: ='QUANTITIES-BUDGET'!$I41*'QUANTITIES-BUDGET'!$L41 -> 0 | R41: ='QUANTITIES-BUDGET'!$J41*'QUANTITIES-BUDGET'!$L41 -> 0
K42: 0 | M42: 0 | N42: ='QUANTITIES-BUDGET'!$F42*'QUANTITIES-BUDGET'!$L42 -> 0 | O42: ='QUANTITIES-BUDGET'!$G42*'QUANTITIES-BUDGET'!$L42 -> 0 | P42: ='QUANTITIES-BUDGET'!$H42*'QUANTITIES-BUDGET'!$L42 -> 0 | Q42: ='QUANTITIES-BUDGET'!$I42*'QUANTITIES-BUDGET'!$L42 -> 0 | R42: ='QUANTITIES-BUDGET'!$J42*'QUANTITIES-BUDGET'!$L42 -> 0
K43: 0 | M43: 0 | N43: ='QUANTITIES-BUDGET'!$F43*'QUANTITIES-BUDGET'!$L43 -> 0 | O43: ='QUANTITIES-BUDGET'!$G43*'QUANTITIES-BUDGET'!$L43 -> 0 | P43: ='QUANTITIES-BUDGET'!$H43*'QUANTITIES-BUDGET'!$L43 -> 0 | Q43: ='QUANTITIES-BUDGET'!$I43*'QUANTITIES-BUDGET'!$L43 -> 0 | R43: ='QUANTITIES-BUDGET'!$J43*'QUANTITIES-BUDGET'!$L43 -> 0
K44: 0 | M44: 0 | N44: ='QUANTITIES-BUDGET'!$F44*'QUANTITIES-BUDGET'!$L44 -> 0 | O44: ='QUANTITIES-BUDGET'!$G44*'QUANTITIES-BUDGET'!$L44 -> 0 | P44: ='QUANTITIES-BUDGET'!$H44*'QUANTITIES-BUDGET'!$L44 -> 0 | Q44: ='QUANTITIES-BUDGET'!$I44*'QUANTITIES-BUDGET'!$L44 -> 0 | R44: ='QUANTITIES-BUDGET'!$J44*'QUANTITIES-BUDGET'!$L44 -> 0
K45: 0 | M45: 0 | N45: ='QUANTITIES-BUDGET'!$F45*'QUANTITIES-BUDGET'!$L45 -> 0 | O45: ='QUANTITIES-BUDGET'!$G45*'QUANTITIES-BUDGET'!$L45 -> 0 | P45: ='QUANTITIES-BUDGET'!$H45*'QUANTITIES-BUDGET'!$L45 -> 0 | Q45: ='QUANTITIES-BUDGET'!$I45*'QUANTITIES-BUDGET'!$L45 -> 0 | R45: ='QUANTITIES-BUDGET'!$J45*'QUANTITIES-BUDGET'!$L45 -> 0
K46: 0 | M46: 0 | N46: ='QUANTITIES-BUDGET'!$F46*'QUANTITIES-BUDGET'!$L46 -> 0 | O46: ='QUANTITIES-BUDGET'!$G46*'QUANTITIES-BUDGET'!$L46 -> 0 | P46: ='QUANTITIES-BUDGET'!$H46*'QUANTITIES-BUDGET'!$L46 -> 0 | Q46: ='QUANTITIES-BUDGET'!$I46*'QUANTITIES-BUDGET'!$L46 -> 0 | R46: ='QUANTITIES-BUDGET'!$J46*'QUANTITIES-BUDGET'!$L46 -> 0
K47: 0 | M47: 0 | N47: ='QUANTITIES-BUDGET'!$F47*'QUANTITIES-BUDGET'!$L47 -> 0 | O47: ='QUANTITIES-BUDGET'!$G47*'QUANTITIES-BUDGET'!$L47 -> 0 | P47: ='QUANTITIES-BUDGET'!$H47*'QUANTITIES-BUDGET'!$L47 -> 0 | Q47: ='QUANTITIES-BUDGET'!$I47*'QUANTITIES-BUDGET'!$L47 -> 0 | R47: ='QUANTITIES-BUDGET'!$J47*'QUANTITIES-BUDGET'!$L47 -> 0
K48: 0 | M48: 0 | N48: ='QUANTITIES-BUDGET'!$F48*'QUANTITIES-BUDGET'!$L48 -> 0 | O48: ='QUANTITIES-BUDGET'!$G48*'QUANTITIES-BUDGET'!$L48 -> 0 | P48: ='QUANTITIES-BUDGET'!$H48*'QUANTITIES-BUDGET'!$L48 -> 0 | Q48: ='QUANTITIES-BUDGET'!$I48*'QUANTITIES-BUDGET'!$L48 -> 0 | R48: ='QUANTITIES-BUDGET'!$J48*'QUANTITIES-BUDGET'!$L48 -> 0
K49: 0 | M49: 0 | N49: ='QUANTITIES-BUDGET'!$F49*'QUANTITIES-BUDGET'!$L49 -> 0 | O49: ='QUANTITIES-BUDGET'!$G49*'QUANTITIES-BUDGET'!$L49 -> 0 | P49: ='QUANTITIES-BUDGET'!$H49*'QUANTITIES-BUDGET'!$L49 -> 0 | Q49: ='QUANTITIES-BUDGET'!$I49*'QUANTITIES-BUDGET'!$L49 -> 0 | R49: ='QUANTITIES-BUDGET'!$J49*'QUANTITIES-BUDGET'!$L49 -> 0
K50: 0 | M50: 0 | N50: ='QUANTITIES-BUDGET'!$F50*'QUANTITIES-BUDGET'!$L50 -> 0 | O50: ='QUANTITIES-BUDGET'!$G50*'QUANTITIES-BUDGET'!$L50 -> 0 | P50: ='QUANTITIES-BUDGET'!$H50*'QUANTITIES-BUDGET'!$L50 -> 0 | Q50: ='QUANTITIES-BUDGET'!$I50*'QUANTITIES-BUDGET'!$L50 -> 0 | R50: ='QUANTITIES-BUDGET'!$J50*'QUANTITIES-BUDGET'!$L50 -> 0
K51: 0 | M51: 0 | N51: ='QUANTITIES-BUDGET'!$F51*'QUANTITIES-BUDGET'!$L51 -> 0 | O51: ='QUANTITIES-BUDGET'!$G51*'QUANTITIES-BUDGET'!$L51 -> 0 | P51: ='QUANTITIES-BUDGET'!$H51*'QUANTITIES-BUDGET'!$L51 -> 0 | Q51: ='QUANTITIES-BUDGET'!$I51*'QUANTITIES-BUDGET'!$L51 -> 0 | R51: ='QUANTITIES-BUDGET'!$J51*'QUANTITIES-BUDGET'!$L51 -> 0
K52: 0 | M52: 0 | N52: ='QUANTITIES-BUDGET'!$F52*'QUANTITIES-BUDGET'!$L52 -> 0 | O52: ='QUANTITIES-BUDGET'!$G52*'QUANTITIES-BUDGET'!$L52 -> 0 | P52: ='QUANTITIES-BUDGET'!$H52*'QUANTITIES-BUDGET'!$L52 -> 0 | Q52: ='QUANTITIES-BUDGET'!$I52*'QUANTITIES-BUDGET'!$L52 -> 0 | R52: ='QUANTITIES-BUDGET'!$J52*'QUANTITIES-BUDGET'!$L52 -> 0
K53: 0 | M53: 0 | N53: ='QUANTITIES-BUDGET'!$F53*'QUANTITIES-BUDGET'!$L53 -> 0 | O53: ='QUANTITIES-BUDGET'!$G53*'QUANTITIES-BUDGET'!$L53 -> 0 | P53: ='QUANTITIES-BUDGET'!$H53*'QUANTITIES-BUDGET'!$L53 -> 0 | Q53: ='QUANTITIES-BUDGET'!$I53*'QUANTITIES-BUDGET'!$L53 -> 0 | R53: ='QUANTITIES-BUDGET'!$J53*'QUANTITIES-BUDGET'!$L53 -> 0
K54: 0 | M54: 0 | N54: ='QUANTITIES-BUDGET'!$F54*'QUANTITIES-BUDGET'!$L54 -> 0 | O54: ='QUANTITIES-BUDGET'!$G54*'QUANTITIES-BUDGET'!$L54 -> 0 | P54: ='QUANTITIES-BUDGET'!$H54*'QUANTITIES-BUDGET'!$L54 -> 0 | Q54: ='QUANTITIES-BUDGET'!$I54*'QUANTITIES-BUDGET'!$L54 -> 0 | R54: ='QUANTITIES-BUDGET'!$J54*'QUANTITIES-BUDGET'!$L54 -> 0
K55: 0 | M55: 0 | N55: ='QUANTITIES-BUDGET'!$F55*'QUANTITIES-BUDGET'!$L55 -> 0 | O55: ='QUANTITIES-BUDGET'!$G55*'QUANTITIES-BUDGET'!$L55 -> 0 | P55: ='QUANTITIES-BUDGET'!$H55*'QUANTITIES-BUDGET'!$L55 -> 0 | Q55: ='QUANTITIES-BUDGET'!$I55*'QUANTITIES-BUDGET'!$L55 -> 0 | R55: ='QUANTITIES-BUDGET'!$J55*'QUANTITIES-BUDGET'!$L55 -> 0
K56: 0 | M56: 0 | N56: ='QUANTITIES-BUDGET'!$F56*'QUANTITIES-BUDGET'!$L56 -> 0 | O56: ='QUANTITIES-BUDGET'!$G56*'QUANTITIES-BUDGET'!$L56 -> 0 | P56: ='QUANTITIES-BUDGET'!$H56*'QUANTITIES-BUDGET'!$L56 -> 0 | Q56: ='QUANTITIES-BUDGET'!$I56*'QUANTITIES-BUDGET'!$L56 -> 0 | R56: ='QUANTITIES-BUDGET'!$J56*'QUANTITIES-BUDGET'!$L56 -> 0
K57: 0 | M57: 0 | N57: ='QUANTITIES-BUDGET'!$F57*'QUANTITIES-BUDGET'!$L57 -> 0 | O57: ='QUANTITIES-BUDGET'!$G57*'QUANTITIES-BUDGET'!$L57 -> 0 | P57: ='QUANTITIES-BUDGET'!$H57*'QUANTITIES-BUDGET'!$L57 -> 0 | Q57: ='QUANTITIES-BUDGET'!$I57*'QUANTITIES-BUDGET'!$L57 -> 0 | R57: ='QUANTITIES-BUDGET'!$J57*'QUANTITIES-BUDGET'!$L57 -> 0
K58: 0 | M58: 0 | N58: ='QUANTITIES-BUDGET'!$F58*'QUANTITIES-BUDGET'!$L58 -> 0 | O58: ='QUANTITIES-BUDGET'!$G58*'QUANTITIES-BUDGET'!$L58 -> 0 | P58: ='QUANTITIES-BUDGET'!$H58*'QUANTITIES-BUDGET'!$L58 -> 0 | Q58: ='QUANTITIES-BUDGET'!$I58*'QUANTITIES-BUDGET'!$L58 -> 0 | R58: ='QUANTITIES-BUDGET'!$J58*'QUANTITIES-BUDGET'!$L58 -> 0
K59: 0 | M59: 0 | N59: ='QUANTITIES-BUDGET'!$F59*'QUANTITIES-BUDGET'!$L59 -> 0 | O59: ='QUANTITIES-BUDGET'!$G59*'QUANTITIES-BUDGET'!$L59 -> 0 | P59: ='QUANTITIES-BUDGET'!$H59*'QUANTITIES-BUDGET'!$L59 -> 0 | Q59: ='QUANTITIES-BUDGET'!$I59*'QUANTITIES-BUDGET'!$L59 -> 0 | R59: ='QUANTITIES-BUDGET'!$J59*'QUANTITIES-BUDGET'!$L59 -> 0
K60: 0 | M60: 0 | N60: ='QUANTITIES-BUDGET'!$F60*'QUANTITIES-BUDGET'!$L60 -> 0 | O60: ='QUANTITIES-BUDGET'!$G60*'QUANTITIES-BUDGET'!$L60 -> 0 | P60: ='QUANTITIES-BUDGET'!$H60*'QUANTITIES-BUDGET'!$L60 -> 0 | Q60: ='QUANTITIES-BUDGET'!$I60*'QUANTITIES-BUDGET'!$L60 -> 0 | R60: ='QUANTITIES-BUDGET'!$J60*'QUANTITIES-BUDGET'!$L60 -> 0
K61: 0 | M61: 0 | N61: ='QUANTITIES-BUDGET'!$F61*'QUANTITIES-BUDGET'!$L61 -> 0 | O61: ='QUANTITIES-BUDGET'!$G61*'QUANTITIES-BUDGET'!$L61 -> 0 | P61: ='QUANTITIES-BUDGET'!$H61*'QUANTITIES-BUDGET'!$L61 -> 0 | Q61: ='QUANTITIES-BUDGET'!$I61*'QUANTITIES-BUDGET'!$L61 -> 0 | R61: ='QUANTITIES-BUDGET'!$J61*'QUANTITIES-BUDGET'!$L61 -> 0
K62: 0 | M62: 0 | N62: ='QUANTITIES-BUDGET'!$F62*'QUANTITIES-BUDGET'!$L62 -> 0 | O62: ='QUANTITIES-BUDGET'!$G62*'QUANTITIES-BUDGET'!$L62 -> 0 | P62: ='QUANTITIES-BUDGET'!$H62*'QUANTITIES-BUDGET'!$L62 -> 0 | Q62: ='QUANTITIES-BUDGET'!$I62*'QUANTITIES-BUDGET'!$L62 -> 0 | R62: ='QUANTITIES-BUDGET'!$J62*'QUANTITIES-BUDGET'!$L62 -> 0
K63: 0 | M63: 0 | N63: ='QUANTITIES-BUDGET'!$F63*'QUANTITIES-BUDGET'!$L63 -> 0 | O63: ='QUANTITIES-BUDGET'!$G63*'QUANTITIES-BUDGET'!$L63 -> 0 | P63: ='QUANTITIES-BUDGET'!$H63*'QUANTITIES-BUDGET'!$L63 -> 0 | Q63: ='QUANTITIES-BUDGET'!$I63*'QUANTITIES-BUDGET'!$L63 -> 0 | R63: ='QUANTITIES-BUDGET'!$J63*'QUANTITIES-BUDGET'!$L63 -> 0
K64: 0 | M64: 0 | N64: ='QUANTITIES-BUDGET'!$F64*'QUANTITIES-BUDGET'!$L64 -> 0 | O64: ='QUANTITIES-BUDGET'!$G64*'QUANTITIES-BUDGET'!$L64 -> 0 | P64: ='QUANTITIES-BUDGET'!$H64*'QUANTITIES-BUDGET'!$L64 -> 0 | Q64: ='QUANTITIES-BUDGET'!$I64*'QUANTITIES-BUDGET'!$L64 -> 0 | R64: ='QUANTITIES-BUDGET'!$J64*'QUANTITIES-BUDGET'!$L64 -> 0
K65: 0 | M65: 0 | N65: ='QUANTITIES-BUDGET'!$F65*'QUANTITIES-BUDGET'!$L65 -> 0 | O65: ='QUANTITIES-BUDGET'!$G65*'QUANTITIES-BUDGET'!$L65 -> 0 | P65: ='QUANTITIES-BUDGET'!$H65*'QUANTITIES-BUDGET'!$L65 -> 0 | Q65: ='QUANTITIES-BUDGET'!$I65*'QUANTITIES-BUDGET'!$L65 -> 0 | R65: ='QUANTITIES-BUDGET'!$J65*'QUANTITIES-BUDGET'!$L65 -> 0
K66: 0 | M66: 0 | N66: ='QUANTITIES-BUDGET'!$F66*'QUANTITIES-BUDGET'!$L66 -> 0 | O66: ='QUANTITIES-BUDGET'!$G66*'QUANTITIES-BUDGET'!$L66 -> 0 | P66: ='QUANTITIES-BUDGET'!$H66*'QUANTITIES-BUDGET'!$L66 -> 0 | Q66: ='QUANTITIES-BUDGET'!$I66*'QUANTITIES-BUDGET'!$L66 -> 0 | R66: ='QUANTITIES-BUDGET'!$J66*'QUANTITIES-BUDGET'!$L66 -> 0
K67: 0 | M67: 0 | N67: ='QUANTITIES-BUDGET'!$F67*'QUANTITIES-BUDGET'!$L67 -> 0 | O67: ='QUANTITIES-BUDGET'!$G67*'QUANTITIES-BUDGET'!$L67 -> 0 | P67: ='QUANTITIES-BUDGET'!$H67*'QUANTITIES-BUDGET'!$L67 -> 0 | Q67: ='QUANTITIES-BUDGET'!$I67*'QUANTITIES-BUDGET'!$L67 -> 0 | R67: ='QUANTITIES-BUDGET'!$J67*'QUANTITIES-BUDGET'!$L67 -> 0
K68: 0 | M68: 0 | N68: ='QUANTITIES-BUDGET'!$F68*'QUANTITIES-BUDGET'!$L68 -> 0 | O68: ='QUANTITIES-BUDGET'!$G68*'QUANTITIES-BUDGET'!$L68 -> 0 | P68: ='QUANTITIES-BUDGET'!$H68*'QUANTITIES-BUDGET'!$L68 -> 0 | Q68: ='QUANTITIES-BUDGET'!$I68*'QUANTITIES-BUDGET'!$L68 -> 0 | R68: ='QUANTITIES-BUDGET'!$J68*'QUANTITIES-BUDGET'!$L68 -> 0
K69: 0 | M69: 0 | N69: ='QUANTITIES-BUDGET'!$F69*'QUANTITIES-BUDGET'!$L69 -> 0 | O69: ='QUANTITIES-BUDGET'!$G69*'QUANTITIES-BUDGET'!$L69 -> 0 | P69: ='QUANTITIES-BUDGET'!$H69*'QUANTITIES-BUDGET'!$L69 -> 0 | Q69: ='QUANTITIES-BUDGET'!$I69*'QUANTITIES-BUDGET'!$L69 -> 0 | R69: ='QUANTITIES-BUDGET'!$J69*'QUANTITIES-BUDGET'!$L69 -> 0
K70: 0 | M70: 0 | N70: ='QUANTITIES-BUDGET'!$F70*'QUANTITIES-BUDGET'!$L70 -> 0 | O70: ='QUANTITIES-BUDGET'!$G70*'QUANTITIES-BUDGET'!$L70 -> 0 | P70: ='QUANTITIES-BUDGET'!$H70*'QUANTITIES-BUDGET'!$L70 -> 0 | Q70: ='QUANTITIES-BUDGET'!$I70*'QUANTITIES-BUDGET'!$L70 -> 0 | R70: ='QUANTITIES-BUDGET'!$J70*'QUANTITIES-BUDGET'!$L70 -> 0
K71: 0 | M71: 0 | N71: ='QUANTITIES-BUDGET'!$F71*'QUANTITIES-BUDGET'!$L71 -> 0 | O71: ='QUANTITIES-BUDGET'!$G71*'QUANTITIES-BUDGET'!$L71 -> 0 | P71: ='QUANTITIES-BUDGET'!$H71*'QUANTITIES-BUDGET'!$L71 -> 0 | Q71: ='QUANTITIES-BUDGET'!$I71*'QUANTITIES-BUDGET'!$L71 -> 0 | R71: ='QUANTITIES-BUDGET'!$J71*'QUANTITIES-BUDGET'!$L71 -> 0
K72: 0 | M72: 0 | N72: ='QUANTITIES-BUDGET'!$F72*'QUANTITIES-BUDGET'!$L72 -> 0 | O72: ='QUANTITIES-BUDGET'!$G72*'QUANTITIES-BUDGET'!$L72 -> 0 | P72: ='QUANTITIES-BUDGET'!$H72*'QUANTITIES-BUDGET'!$L72 -> 0 | Q72: ='QUANTITIES-BUDGET'!$I72*'QUANTITIES-BUDGET'!$L72 -> 0 | R72: ='QUANTITIES-BUDGET'!$J72*'QUANTITIES-BUDGET'!$L72 -> 0
K73: 0 | M73: 0 | N73: ='QUANTITIES-BUDGET'!$F73*'QUANTITIES-BUDGET'!$L73 -> 0 | O73: ='QUANTITIES-BUDGET'!$G73*'QUANTITIES-BUDGET'!$L73 -> 0 | P73: ='QUANTITIES-BUDGET'!$H73*'QUANTITIES-BUDGET'!$L73 -> 0 | Q73: ='QUANTITIES-BUDGET'!$I73*'QUANTITIES-BUDGET'!$L73 -> 0 | R73: ='QUANTITIES-BUDGET'!$J73*'QUANTITIES-BUDGET'!$L73 -> 0
K74: 0 | M74: 0 | N74: ='QUANTITIES-BUDGET'!$F74*'QUANTITIES-BUDGET'!$L74 -> 0 | O74: ='QUANTITIES-BUDGET'!$G74*'QUANTITIES-BUDGET'!$L74 -> 0 | P74: ='QUANTITIES-BUDGET'!$H74*'QUANTITIES-BUDGET'!$L74 -> 0 | Q74: ='QUANTITIES-BUDGET'!$I74*'QUANTITIES-BUDGET'!$L74 -> 0 | R74: ='QUANTITIES-BUDGET'!$J74*'QUANTITIES-BUDGET'!$L74 -> 0
K75: =SUM(F75:J75) -> 0 | M75: 0 | N75: ='QUANTITIES-BUDGET'!$F75*'QUANTITIES-BUDGET'!$L75 -> 0 | O75: ='QUANTITIES-BUDGET'!$G75*'QUANTITIES-BUDGET'!$L75 -> 0 | P75: ='QUANTITIES-BUDGET'!$H75*'QUANTITIES-BUDGET'!$L75 -> 0 | Q75: ='QUANTITIES-BUDGET'!$I75*'QUANTITIES-BUDGET'!$L75 -> 0 | R75: ='QUANTITIES-BUDGET'!$J75*'QUANTITIES-BUDGET'!$L75 -> 0
K76: 0 | M76: 0 | N76: ='QUANTITIES-BUDGET'!$F76*'QUANTITIES-BUDGET'!$L76 -> 0 | O76: ='QUANTITIES-BUDGET'!$G76*'QUANTITIES-BUDGET'!$L76 -> 0 | P76: ='QUANTITIES-BUDGET'!$H76*'QUANTITIES-BUDGET'!$L76 -> 0 | Q76: ='QUANTITIES-BUDGET'!$I76*'QUANTITIES-BUDGET'!$L76 -> 0 | R76: ='QUANTITIES-BUDGET'!$J76*'QUANTITIES-BUDGET'!$L76 -> 0
K77: 0 | M77: 0 | N77: ='QUANTITIES-BUDGET'!$F77*'QUANTITIES-BUDGET'!$L77 -> 0 | O77: ='QUANTITIES-BUDGET'!$G77*'QUANTITIES-BUDGET'!$L77 -> 0 | P77: ='QUANTITIES-BUDGET'!$H77*'QUANTITIES-BUDGET'!$L77 -> 0 | Q77: ='QUANTITIES-BUDGET'!$I77*'QUANTITIES-BUDGET'!$L77 -> 0 | R77: ='QUANTITIES-BUDGET'!$J77*'QUANTITIES-BUDGET'!$L77 -> 0
K78: 0 | M78: 0 | N78: ='QUANTITIES-BUDGET'!$F78*'QUANTITIES-BUDGET'!$L78 -> 0 | O78: ='QUANTITIES-BUDGET'!$G78*'QUANTITIES-BUDGET'!$L78 -> 0 | P78: ='QUANTITIES-BUDGET'!$H78*'QUANTITIES-BUDGET'!$L78 -> 0 | Q78: ='QUANTITIES-BUDGET'!$I78*'QUANTITIES-BUDGET'!$L78 -> 0 | R78: ='QUANTITIES-BUDGET'!$J78*'QUANTITIES-BUDGET'!$L78 -> 0
K79: 0 | M79: 0 | N79: ='QUANTITIES-BUDGET'!$F79*'QUANTITIES-BUDGET'!$L79 -> 0 | O79: ='QUANTITIES-BUDGET'!$G79*'QUANTITIES-BUDGET'!$L79 -> 0 | P79: ='QUANTITIES-BUDGET'!$H79*'QUANTITIES-BUDGET'!$L79 -> 0 | Q79: ='QUANTITIES-BUDGET'!$I79*'QUANTITIES-BUDGET'!$L79 -> 0 | R79: ='QUANTITIES-BUDGET'!$J79*'QUANTITIES-BUDGET'!$L79 -> 0
K80: 0 | M80: 0 | N80: ='QUANTITIES-BUDGET'!$F80*'QUANTITIES-BUDGET'!$L80 -> 0 | O80: ='QUANTITIES-BUDGET'!$G80*'QUANTITIES-BUDGET'!$L80 -> 0 | P80: ='QUANTITIES-BUDGET'!$H80*'QUANTITIES-BUDGET'!$L80 -> 0 | Q80: ='QUANTITIES-BUDGET'!$I80*'QUANTITIES-BUDGET'!$L80 -> 0 | R80: ='QUANTITIES-BUDGET'!$J80*'QUANTITIES-BUDGET'!$L80 -> 0
K81: 0 | M81: 0 | N81: ='QUANTITIES-BUDGET'!$F81*'QUANTITIES-BUDGET'!$L81 -> 0 | O81: ='QUANTITIES-BUDGET'!$G81*'QUANTITIES-BUDGET'!$L81 -> 0 | P81: ='QUANTITIES-BUDGET'!$H81*'QUANTITIES-BUDGET'!$L81 -> 0 | Q81: ='QUANTITIES-BUDGET'!$I81*'QUANTITIES-BUDGET'!$L81 -> 0 | R81: ='QUANTITIES-BUDGET'!$J81*'QUANTITIES-BUDGET'!$L81 -> 0
K82: 0 | M82: 0 | N82: ='QUANTITIES-BUDGET'!$F82*'QUANTITIES-BUDGET'!$L82 -> 0 | O82: ='QUANTITIES-BUDGET'!$G82*'QUANTITIES-BUDGET'!$L82 -> 0 | P82: ='QUANTITIES-BUDGET'!$H82*'QUANTITIES-BUDGET'!$L82 -> 0 | Q82: ='QUANTITIES-BUDGET'!$I82*'QUANTITIES-BUDGET'!$L82 -> 0 | R82: ='QUANTITIES-BUDGET'!$J82*'QUANTITIES-BUDGET'!$L82 -> 0
K83: 0 | M83: 0 | N83: ='QUANTITIES-BUDGET'!$F83*'QUANTITIES-BUDGET'!$L83 -> 0 | O83: ='QUANTITIES-BUDGET'!$G83*'QUANTITIES-BUDGET'!$L83 -> 0 | P83: ='QUANTITIES-BUDGET'!$H83*'QUANTITIES-BUDGET'!$L83 -> 0 | Q83: ='QUANTITIES-BUDGET'!$I83*'QUANTITIES-BUDGET'!$L83 -> 0 | R83: ='QUANTITIES-BUDGET'!$J83*'QUANTITIES-BUDGET'!$L83 -> 0
K84: 0 | M84: 0 | N84: ='QUANTITIES-BUDGET'!$F84*'QUANTITIES-BUDGET'!$L84 -> 0 | O84: ='QUANTITIES-BUDGET'!$G84*'QUANTITIES-BUDGET'!$L84 -> 0 | P84: ='QUANTITIES-BUDGET'!$H84*'QUANTITIES-BUDGET'!$L84 -> 0 | Q84: ='QUANTITIES-BUDGET'!$I84*'QUANTITIES-BUDGET'!$L84 -> 0 | R84: ='QUANTITIES-BUDGET'!$J84*'QUANTITIES-BUDGET'!$L84 -> 0
K85: 0 | M85: 0 | N85: ='QUANTITIES-BUDGET'!$F85*'QUANTITIES-BUDGET'!$L85 -> 0 | O85: ='QUANTITIES-BUDGET'!$G85*'QUANTITIES-BUDGET'!$L85 -> 0 | P85: ='QUANTITIES-BUDGET'!$H85*'QUANTITIES-BUDGET'!$L85 -> 0 | Q85: ='QUANTITIES-BUDGET'!$I85*'QUANTITIES-BUDGET'!$L85 -> 0 | R85: ='QUANTITIES-BUDGET'!$J85*'QUANTITIES-BUDGET'!$L85 -> 0
K86: 0 | M86: 0 | N86: ='QUANTITIES-BUDGET'!$F86*'QUANTITIES-BUDGET'!$L86 -> 0 | O86: ='QUANTITIES-BUDGET'!$G86*'QUANTITIES-BUDGET'!$L86 -> 0 | P86: ='QUANTITIES-BUDGET'!$H86*'QUANTITIES-BUDGET'!$L86 -> 0 | Q86: ='QUANTITIES-BUDGET'!$I86*'QUANTITIES-BUDGET'!$L86 -> 0 | R86: ='QUANTITIES-BUDGET'!$J86*'QUANTITIES-BUDGET'!$L86 -> 0
K87: 0 | M87: 0 | N87: ='QUANTITIES-BUDGET'!$F87*'QUANTITIES-BUDGET'!$L87 -> 0 | O87: ='QUANTITIES-BUDGET'!$G87*'QUANTITIES-BUDGET'!$L87 -> 0 | P87: ='QUANTITIES-BUDGET'!$H87*'QUANTITIES-BUDGET'!$L87 -> 0 | Q87: ='QUANTITIES-BUDGET'!$I87*'QUANTITIES-BUDGET'!$L87 -> 0 | R87: ='QUANTITIES-BUDGET'!$J87*'QUANTITIES-BUDGET'!$L87 -> 0
K88: 0 | M88: 0 | N88: ='QUANTITIES-BUDGET'!$F88*'QUANTITIES-BUDGET'!$L88 -> 0 | O88: ='QUANTITIES-BUDGET'!$G88*'QUANTITIES-BUDGET'!$L88 -> 0 | P88: ='QUANTITIES-BUDGET'!$H88*'QUANTITIES-BUDGET'!$L88 -> 0 | Q88: ='QUANTITIES-BUDGET'!$I88*'QUANTITIES-BUDGET'!$L88 -> 0 | R88: ='QUANTITIES-BUDGET'!$J88*'QUANTITIES-BUDGET'!$L88 -> 0
K89: 0 | M89: 0 | N89: ='QUANTITIES-BUDGET'!$F89*'QUANTITIES-BUDGET'!$L89 -> 0 | O89: ='QUANTITIES-BUDGET'!$G89*'QUANTITIES-BUDGET'!$L89 -> 0 | P89: ='QUANTITIES-BUDGET'!$H89*'QUANTITIES-BUDGET'!$L89 -> 0 | Q89: ='QUANTITIES-BUDGET'!$I89*'QUANTITIES-BUDGET'!$L89 -> 0 | R89: ='QUANTITIES-BUDGET'!$J89*'QUANTITIES-BUDGET'!$L89 -> 0
K90: 0 | M90: 0 | N90: ='QUANTITIES-BUDGET'!$F90*'QUANTITIES-BUDGET'!$L90 -> 0 | O90: ='QUANTITIES-BUDGET'!$G90*'QUANTITIES-BUDGET'!$L90 -> 0 | P90: ='QUANTITIES-BUDGET'!$H90*'QUANTITIES-BUDGET'!$L90 -> 0 | Q90: ='QUANTITIES-BUDGET'!$I90*'QUANTITIES-BUDGET'!$L90 -> 0 | R90: ='QUANTITIES-BUDGET'!$J90*'QUANTITIES-BUDGET'!$L90 -> 0
K91: 0 | M91: 0 | N91: ='QUANTITIES-BUDGET'!$F91*'QUANTITIES-BUDGET'!$L91 -> 0 | O91: ='QUANTITIES-BUDGET'!$G91*'QUANTITIES-BUDGET'!$L91 -> 0 | P91: ='QUANTITIES-BUDGET'!$H91*'QUANTITIES-BUDGET'!$L91 -> 0 | Q91: ='QUANTITIES-BUDGET'!$I91*'QUANTITIES-BUDGET'!$L91 -> 0 | R91: ='QUANTITIES-BUDGET'!$J91*'QUANTITIES-BUDGET'!$L91 -> 0
K92: 0 | M92: 0 | N92: ='QUANTITIES-BUDGET'!$F92*'QUANTITIES-BUDGET'!$L92 -> 0 | O92: ='QUANTITIES-BUDGET'!$G92*'QUANTITIES-BUDGET'!$L92 -> 0 | P92: ='QUANTITIES-BUDGET'!$H92*'QUANTITIES-BUDGET'!$L92 -> 0 | Q92: ='QUANTITIES-BUDGET'!$I92*'QUANTITIES-BUDGET'!$L92 -> 0 | R92: ='QUANTITIES-BUDGET'!$J92*'QUANTITIES-BUDGET'!$L92 -> 0
K93: 0 | M93: 0 | N93: ='QUANTITIES-BUDGET'!$F93*'QUANTITIES-BUDGET'!$L93 -> 0 | O93: ='QUANTITIES-BUDGET'!$G93*'QUANTITIES-BUDGET'!$L93 -> 0 | P93: ='QUANTITIES-BUDGET'!$H93*'QUANTITIES-BUDGET'!$L93 -> 0 | Q93: ='QUANTITIES-BUDGET'!$I93*'QUANTITIES-BUDGET'!$L93 -> 0 | R93: ='QUANTITIES-BUDGET'!$J93*'QUANTITIES-BUDGET'!$L93 -> 0
K94: 0 | M94: 0 | N94: ='QUANTITIES-BUDGET'!$F94*'QUANTITIES-BUDGET'!$L94 -> 0 | O94: ='QUANTITIES-BUDGET'!$G94*'QUANTITIES-BUDGET'!$L94 -> 0 | P94: ='QUANTITIES-BUDGET'!$H94*'QUANTITIES-BUDGET'!$L94 -> 0 | Q94: ='QUANTITIES-BUDGET'!$I94*'QUANTITIES-BUDGET'!$L94 -> 0 | R94: ='QUANTITIES-BUDGET'!$J94*'QUANTITIES-BUDGET'!$L94 -> 0
K95: 0 | M95: 0 | N95: ='QUANTITIES-BUDGET'!$F95*'QUANTITIES-BUDGET'!$L95 -> 0 | O95: ='QUANTITIES-BUDGET'!$G95*'QUANTITIES-BUDGET'!$L95 -> 0 | P95: ='QUANTITIES-BUDGET'!$H95*'QUANTITIES-BUDGET'!$L95 -> 0 | Q95: ='QUANTITIES-BUDGET'!$I95*'QUANTITIES-BUDGET'!$L95 -> 0 | R95: ='QUANTITIES-BUDGET'!$J95*'QUANTITIES-BUDGET'!$L95 -> 0
K96: 0 | M96: 0 | N96: ='QUANTITIES-BUDGET'!$F96*'QUANTITIES-BUDGET'!$L96 -> 0 | O96: ='QUANTITIES-BUDGET'!$G96*'QUANTITIES-BUDGET'!$L96 -> 0 | P96: ='QUANTITIES-BUDGET'!$H96*'QUANTITIES-BUDGET'!$L96 -> 0 | Q96: ='QUANTITIES-BUDGET'!$I96*'QUANTITIES-BUDGET'!$L96 -> 0 | R96: ='QUANTITIES-BUDGET'!$J96*'QUANTITIES-BUDGET'!$L96 -> 0
K97: 0 | M97: 0 | N97: ='QUANTITIES-BUDGET'!$F97*'QUANTITIES-BUDGET'!$L97 -> 0 | O97: ='QUANTITIES-BUDGET'!$G97*'QUANTITIES-BUDGET'!$L97 -> 0 | P97: ='QUANTITIES-BUDGET'!$H97*'QUANTITIES-BUDGET'!$L97 -> 0 | Q97: ='QUANTITIES-BUDGET'!$I97*'QUANTITIES-BUDGET'!$L97 -> 0 | R97: ='QUANTITIES-BUDGET'!$J97*'QUANTITIES-BUDGET'!$L97 -> 0
K98: 0 | M98: 0 | N98: ='QUANTITIES-BUDGET'!$F98*'QUANTITIES-BUDGET'!$L98 -> 0 | O98: ='QUANTITIES-BUDGET'!$G98*'QUANTITIES-BUDGET'!$L98 -> 0 | P98: ='QUANTITIES-BUDGET'!$H98*'QUANTITIES-BUDGET'!$L98 -> 0 | Q98: ='QUANTITIES-BUDGET'!$I98*'QUANTITIES-BUDGET'!$L98 -> 0 | R98: ='QUANTITIES-BUDGET'!$J98*'QUANTITIES-BUDGET'!$L98 -> 0
K99: 0 | M99: =K99*L99 -> 0 | N99: ='QUANTITIES-BUDGET'!$F99*'QUANTITIES-BUDGET'!$L99 -> 0 | O99: ='QUANTITIES-BUDGET'!$G99*'QUANTITIES-BUDGET'!$L99 -> 0 | P99: ='QUANTITIES-BUDGET'!$H99*'QUANTITIES-BUDGET'!$L99 -> 0 | Q99: ='QUANTITIES-BUDGET'!$I99*'QUANTITIES-BUDGET'!$L99 -> 0 | R99: ='QUANTITIES-BUDGET'!$J99*'QUANTITIES-BUDGET'!$L99 -> 0
K100: 0 | M100: 0 | N100: ='QUANTITIES-BUDGET'!$F100*'QUANTITIES-BUDGET'!$L100 -> 0 | O100: ='QUANTITIES-BUDGET'!$G100*'QUANTITIES-BUDGET'!$L100 -> 0 | P100: ='QUANTITIES-BUDGET'!$H100*'QUANTITIES-BUDGET'!$L100 -> 0 | Q100: ='QUANTITIES-BUDGET'!$I100*'QUANTITIES-BUDGET'!$L100 -> 0 | R100: ='QUANTITIES-BUDGET'!$J100*'QUANTITIES-BUDGET'!$L100 -> 0
K101: 0 | M101: 0 | N101: ='QUANTITIES-BUDGET'!$F101*'QUANTITIES-BUDGET'!$L101 -> 0 | O101: ='QUANTITIES-BUDGET'!$G101*'QUANTITIES-BUDGET'!$L101 -> 0 | P101: ='QUANTITIES-BUDGET'!$H101*'QUANTITIES-BUDGET'!$L101 -> 0 | Q101: ='QUANTITIES-BUDGET'!$I101*'QUANTITIES-BUDGET'!$L101 -> 0 | R101: ='QUANTITIES-BUDGET'!$J101*'QUANTITIES-BUDGET'!$L101 -> 0
K102: 0 | M102: 0 | N102: ='QUANTITIES-BUDGET'!$F102*'QUANTITIES-BUDGET'!$L102 -> 0 | O102: ='QUANTITIES-BUDGET'!$G102*'QUANTITIES-BUDGET'!$L102 -> 0 | P102: ='QUANTITIES-BUDGET'!$H102*'QUANTITIES-BUDGET'!$L102 -> 0 | Q102: ='QUANTITIES-BUDGET'!$I102*'QUANTITIES-BUDGET'!$L102 -> 0 | R102: ='QUANTITIES-BUDGET'!$J102*'QUANTITIES-BUDGET'!$L102 -> 0
K103: 0 | M103: 0 | N103: ='QUANTITIES-BUDGET'!$F103*'QUANTITIES-BUDGET'!$L103 -> 0 | O103: ='QUANTITIES-BUDGET'!$G103*'QUANTITIES-BUDGET'!$L103 -> 0 | P103: ='QUANTITIES-BUDGET'!$H103*'QUANTITIES-BUDGET'!$L103 -> 0 | Q103: ='QUANTITIES-BUDGET'!$I103*'QUANTITIES-BUDGET'!$L103 -> 0 | R103: ='QUANTITIES-BUDGET'!$J103*'QUANTITIES-BUDGET'!$L103 -> 0
K104: 0 | M104: 0 | N104: ='QUANTITIES-BUDGET'!$F104*'QUANTITIES-BUDGET'!$L104 -> 0 | O104: ='QUANTITIES-BUDGET'!$G104*'QUANTITIES-BUDGET'!$L104 -> 0 | P104: ='QUANTITIES-BUDGET'!$H104*'QUANTITIES-BUDGET'!$L104 -> 0 | Q104: ='QUANTITIES-BUDGET'!$I104*'QUANTITIES-BUDGET'!$L104 -> 0 | R104: ='QUANTITIES-BUDGET'!$J104*'QUANTITIES-BUDGET'!$L104 -> 0
K105: 0 | M105: 0 | N105: ='QUANTITIES-BUDGET'!$F105*'QUANTITIES-BUDGET'!$L105 -> 0 | O105: ='QUANTITIES-BUDGET'!$G105*'QUANTITIES-BUDGET'!$L105 -> 0 | P105: ='QUANTITIES-BUDGET'!$H105*'QUANTITIES-BUDGET'!$L105 -> 0 | Q105: ='QUANTITIES-BUDGET'!$I105*'QUANTITIES-BUDGET'!$L105 -> 0 | R105: ='QUANTITIES-BUDGET'!$J105*'QUANTITIES-BUDGET'!$L105 -> 0
K106: 0 | M106: 0 | N106: ='QUANTITIES-BUDGET'!$F106*'QUANTITIES-BUDGET'!$L106 -> 0 | O106: ='QUANTITIES-BUDGET'!$G106*'QUANTITIES-BUDGET'!$L106 -> 0 | P106: ='QUANTITIES-BUDGET'!$H106*'QUANTITIES-BUDGET'!$L106 -> 0 | Q106: ='QUANTITIES-BUDGET'!$I106*'QUANTITIES-BUDGET'!$L106 -> 0 | R106: ='QUANTITIES-BUDGET'!$J106*'QUANTITIES-BUDGET'!$L106 -> 0
K107: 0 | M107: 0 | N107: ='QUANTITIES-BUDGET'!$F107*'QUANTITIES-BUDGET'!$L107 -> 0 | O107: ='QUANTITIES-BUDGET'!$G107*'QUANTITIES-BUDGET'!$L107 -> 0 | P107: ='QUANTITIES-BUDGET'!$H107*'QUANTITIES-BUDGET'!$L107 -> 0 | Q107: ='QUANTITIES-BUDGET'!$I107*'QUANTITIES-BUDGET'!$L107 -> 0 | R107: ='QUANTITIES-BUDGET'!$J107*'QUANTITIES-BUDGET'!$L107 -> 0
K108: 0 | M108: 0 | N108: ='QUANTITIES-BUDGET'!$F108*'QUANTITIES-BUDGET'!$L108 -> 0 | O108: ='QUANTITIES-BUDGET'!$G108*'QUANTITIES-BUDGET'!$L108 -> 0 | P108: ='QUANTITIES-BUDGET'!$H108*'QUANTITIES-BUDGET'!$L108 -> 0 | Q108: ='QUANTITIES-BUDGET'!$I108*'QUANTITIES-BUDGET'!$L108 -> 0 | R108: ='QUANTITIES-BUDGET'!$J108*'QUANTITIES-BUDGET'!$L108 -> 0
K109: 0 | M109: 0 | N109: ='QUANTITIES-BUDGET'!$F109*'QUANTITIES-BUDGET'!$L109 -> 0 | O109: ='QUANTITIES-BUDGET'!$G109*'QUANTITIES-BUDGET'!$L109 -> 0 | P109: ='QUANTITIES-BUDGET'!$H109*'QUANTITIES-BUDGET'!$L109 -> 0 | Q109: ='QUANTITIES-BUDGET'!$I109*'QUANTITIES-BUDGET'!$L109 -> 0 | R109: ='QUANTITIES-BUDGET'!$J109*'QUANTITIES-BUDGET'!$L109 -> 0
K110: 0 | M110: 0 | N110: ='QUANTITIES-BUDGET'!$F110*'QUANTITIES-BUDGET'!$L110 -> 0 | O110: ='QUANTITIES-BUDGET'!$G110*'QUANTITIES-BUDGET'!$L110 -> 0 | P110: ='QUANTITIES-BUDGET'!$H110*'QUANTITIES-BUDGET'!$L110 -> 0 | Q110: ='QUANTITIES-BUDGET'!$I110*'QUANTITIES-BUDGET'!$L110 -> 0 | R110: ='QUANTITIES-BUDGET'!$J110*'QUANTITIES-BUDGET'!$L110 -> 0
K111: 0 | M111: 0 | N111: ='QUANTITIES-BUDGET'!$F111*'QUANTITIES-BUDGET'!$L111 -> 0 | O111: ='QUANTITIES-BUDGET'!$G111*'QUANTITIES-BUDGET'!$L111 -> 0 | P111: ='QUANTITIES-BUDGET'!$H111*'QUANTITIES-BUDGET'!$L111 -> 0 | Q111: ='QUANTITIES-BUDGET'!$I111*'QUANTITIES-BUDGET'!$L111 -> 0 | R111: ='QUANTITIES-BUDGET'!$J111*'QUANTITIES-BUDGET'!$L111 -> 0
K112: 0 | M112: 0 | N112: ='QUANTITIES-BUDGET'!$F112*'QUANTITIES-BUDGET'!$L112 -> 0 | O112: ='QUANTITIES-BUDGET'!$G112*'QUANTITIES-BUDGET'!$L112 -> 0 | P112: ='QUANTITIES-BUDGET'!$H112*'QUANTITIES-BUDGET'!$L112 -> 0 | Q112: ='QUANTITIES-BUDGET'!$I112*'QUANTITIES-BUDGET'!$L112 -> 0 | R112: ='QUANTITIES-BUDGET'!$J112*'QUANTITIES-BUDGET'!$L112 -> 0
K113: 0 | M113: 0 | N113: ='QUANTITIES-BUDGET'!$F113*'QUANTITIES-BUDGET'!$L113 -> 0 | O113: ='QUANTITIES-BUDGET'!$G113*'QUANTITIES-BUDGET'!$L113 -> 0 | P113: ='QUANTITIES-BUDGET'!$H113*'QUANTITIES-BUDGET'!$L113 -> 0 | Q113: ='QUANTITIES-BUDGET'!$I113*'QUANTITIES-BUDGET'!$L113 -> 0 | R113: ='QUANTITIES-BUDGET'!$J113*'QUANTITIES-BUDGET'!$L113 -> 0
K114: 0 | M114: 0 | N114: ='QUANTITIES-BUDGET'!$F114*'QUANTITIES-BUDGET'!$L114 -> 0 | O114: ='QUANTITIES-BUDGET'!$G114*'QUANTITIES-BUDGET'!$L114 -> 0 | P114: ='QUANTITIES-BUDGET'!$H114*'QUANTITIES-BUDGET'!$L114 -> 0 | Q114: ='QUANTITIES-BUDGET'!$I114*'QUANTITIES-BUDGET'!$L114 -> 0 | R114: ='QUANTITIES-BUDGET'!$J114*'QUANTITIES-BUDGET'!$L114 -> 0
K115: 0 | M115: 0 | N115: ='QUANTITIES-BUDGET'!$F115*'QUANTITIES-BUDGET'!$L115 -> 0 | O115: ='QUANTITIES-BUDGET'!$G115*'QUANTITIES-BUDGET'!$L115 -> 0 | P115: ='QUANTITIES-BUDGET'!$H115*'QUANTITIES-BUDGET'!$L115 -> 0 | Q115: ='QUANTITIES-BUDGET'!$I115*'QUANTITIES-BUDGET'!$L115 -> 0 | R115: ='QUANTITIES-BUDGET'!$J115*'QUANTITIES-BUDGET'!$L115 -> 0
K116: 0 | M116: 0 | N116: ='QUANTITIES-BUDGET'!$F116*'QUANTITIES-BUDGET'!$L116 -> 0 | O116: ='QUANTITIES-BUDGET'!$G116*'QUANTITIES-BUDGET'!$L116 -> 0 | P116: ='QUANTITIES-BUDGET'!$H116*'QUANTITIES-BUDGET'!$L116 -> 0 | Q116: ='QUANTITIES-BUDGET'!$I116*'QUANTITIES-BUDGET'!$L116 -> 0 | R116: ='QUANTITIES-BUDGET'!$J116*'QUANTITIES-BUDGET'!$L116 -> 0
K117: 0 | M117: 0 | N117: ='QUANTITIES-BUDGET'!$F117*'QUANTITIES-BUDGET'!$L117 -> 0 | O117: ='QUANTITIES-BUDGET'!$G117*'QUANTITIES-BUDGET'!$L117 -> 0 | P117: ='QUANTITIES-BUDGET'!$H117*'QUANTITIES-BUDGET'!$L117 -> 0 | Q117: ='QUANTITIES-BUDGET'!$I117*'QUANTITIES-BUDGET'!$L117 -> 0 | R117: ='QUANTITIES-BUDGET'!$J117*'QUANTITIES-BUDGET'!$L117 -> 0
K118: 0 | M118: 0 | N118: ='QUANTITIES-BUDGET'!$F118*'QUANTITIES-BUDGET'!$L118 -> 0 | O118: ='QUANTITIES-BUDGET'!$G118*'QUANTITIES-BUDGET'!$L118 -> 0 | P118: ='QUANTITIES-BUDGET'!$H118*'QUANTITIES-BUDGET'!$L118 -> 0 | Q118: ='QUANTITIES-BUDGET'!$I118*'QUANTITIES-BUDGET'!$L118 -> 0 | R118: ='QUANTITIES-BUDGET'!$J118*'QUANTITIES-BUDGET'!$L118 -> 0
K119: 0 | M119: 0 | N119: ='QUANTITIES-BUDGET'!$F119*'QUANTITIES-BUDGET'!$L119 -> 0 | O119: ='QUANTITIES-BUDGET'!$G119*'QUANTITIES-BUDGET'!$L119 -> 0 | P119: ='QUANTITIES-BUDGET'!$H119*'QUANTITIES-BUDGET'!$L119 -> 0 | Q119: ='QUANTITIES-BUDGET'!$I119*'QUANTITIES-BUDGET'!$L119 -> 0 | R119: ='QUANTITIES-BUDGET'!$J119*'QUANTITIES-BUDGET'!$L119 -> 0
K120: 0 | M120: 0 | N120: ='QUANTITIES-BUDGET'!$F120*'QUANTITIES-BUDGET'!$L120 -> 0 | O120: ='QUANTITIES-BUDGET'!$G120*'QUANTITIES-BUDGET'!$L120 -> 0 | P120: ='QUANTITIES-BUDGET'!$H120*'QUANTITIES-BUDGET'!$L120 -> 0 | Q120: ='QUANTITIES-BUDGET'!$I120*'QUANTITIES-BUDGET'!$L120 -> 0 | R120: ='QUANTITIES-BUDGET'!$J120*'QUANTITIES-BUDGET'!$L120 -> 0
K121: 0 | M121: 0 | N121: ='QUANTITIES-BUDGET'!$F121*'QUANTITIES-BUDGET'!$L121 -> 0 | O121: ='QUANTITIES-BUDGET'!$G121*'QUANTITIES-BUDGET'!$L121 -> 0 | P121: ='QUANTITIES-BUDGET'!$H121*'QUANTITIES-BUDGET'!$L121 -> 0 | Q121: ='QUANTITIES-BUDGET'!$I121*'QUANTITIES-BUDGET'!$L121 -> 0 | R121: ='QUANTITIES-BUDGET'!$J121*'QUANTITIES-BUDGET'!$L121 -> 0
K122: 0 | M122: 0 | N122: ='QUANTITIES-BUDGET'!$F122*'QUANTITIES-BUDGET'!$L122 -> 0 | O122: ='QUANTITIES-BUDGET'!$G122*'QUANTITIES-BUDGET'!$L122 -> 0 | P122: ='QUANTITIES-BUDGET'!$H122*'QUANTITIES-BUDGET'!$L122 -> 0 | Q122: ='QUANTITIES-BUDGET'!$I122*'QUANTITIES-BUDGET'!$L122 -> 0 | R122: ='QUANTITIES-BUDGET'!$J122*'QUANTITIES-BUDGET'!$L122 -> 0
K123: 0 | M123: 0 | N123: ='QUANTITIES-BUDGET'!$F123*'QUANTITIES-BUDGET'!$L123 -> 0 | O123: ='QUANTITIES-BUDGET'!$G123*'QUANTITIES-BUDGET'!$L123 -> 0 | P123: ='QUANTITIES-BUDGET'!$H123*'QUANTITIES-BUDGET'!$L123 -> 0 | Q123: ='QUANTITIES-BUDGET'!$I123*'QUANTITIES-BUDGET'!$L123 -> 0 | R123: ='QUANTITIES-BUDGET'!$J123*'QUANTITIES-BUDGET'!$L123 -> 0
K124: 0 | M124: 0 | N124: ='QUANTITIES-BUDGET'!$F124*'QUANTITIES-BUDGET'!$L124 -> 0 | O124: ='QUANTITIES-BUDGET'!$G124*'QUANTITIES-BUDGET'!$L124 -> 0 | P124: ='QUANTITIES-BUDGET'!$H124*'QUANTITIES-BUDGET'!$L124 -> 0 | Q124: ='QUANTITIES-BUDGET'!$I124*'QUANTITIES-BUDGET'!$L124 -> 0 | R124: ='QUANTITIES-BUDGET'!$J124*'QUANTITIES-BUDGET'!$L124 -> 0
K125: 0 | M125: 0 | N125: ='QUANTITIES-BUDGET'!$F125*'QUANTITIES-BUDGET'!$L125 -> 0 | O125: ='QUANTITIES-BUDGET'!$G125*'QUANTITIES-BUDGET'!$L125 -> 0 | P125: ='QUANTITIES-BUDGET'!$H125*'QUANTITIES-BUDGET'!$L125 -> 0 | Q125: ='QUANTITIES-BUDGET'!$I125*'QUANTITIES-BUDGET'!$L125 -> 0 | R125: ='QUANTITIES-BUDGET'!$J125*'QUANTITIES-BUDGET'!$L125 -> 0
K126: 0 | M126: 0 | N126: ='QUANTITIES-BUDGET'!$F126*'QUANTITIES-BUDGET'!$L126 -> 0 | O126: ='QUANTITIES-BUDGET'!$G126*'QUANTITIES-BUDGET'!$L126 -> 0 | P126: ='QUANTITIES-BUDGET'!$H126*'QUANTITIES-BUDGET'!$L126 -> 0 | Q126: ='QUANTITIES-BUDGET'!$I126*'QUANTITIES-BUDGET'!$L126 -> 0 | R126: ='QUANTITIES-BUDGET'!$J126*'QUANTITIES-BUDGET'!$L126 -> 0
K127: 0 | M127: 0 | N127: ='QUANTITIES-BUDGET'!$F127*'QUANTITIES-BUDGET'!$L127 -> 0 | O127: ='QUANTITIES-BUDGET'!$G127*'QUANTITIES-BUDGET'!$L127 -> 0 | P127: ='QUANTITIES-BUDGET'!$H127*'QUANTITIES-BUDGET'!$L127 -> 0 | Q127: ='QUANTITIES-BUDGET'!$I127*'QUANTITIES-BUDGET'!$L127 -> 0 | R127: ='QUANTITIES-BUDGET'!$J127*'QUANTITIES-BUDGET'!$L127 -> 0
K128: 0 | M128: 0 | N128: ='QUANTITIES-BUDGET'!$F128*'QUANTITIES-BUDGET'!$L128 -> 0 | O128: ='QUANTITIES-BUDGET'!$G128*'QUANTITIES-BUDGET'!$L128 -> 0 | P128: ='QUANTITIES-BUDGET'!$H128*'QUANTITIES-BUDGET'!$L128 -> 0 | Q128: ='QUANTITIES-BUDGET'!$I128*'QUANTITIES-BUDGET'!$L128 -> 0 | R128: ='QUANTITIES-BUDGET'!$J128*'QUANTITIES-BUDGET'!$L128 -> 0
K129: 0 | M129: 0 | N129: ='QUANTITIES-BUDGET'!$F129*'QUANTITIES-BUDGET'!$L129 -> 0 | O129: ='QUANTITIES-BUDGET'!$G129*'QUANTITIES-BUDGET'!$L129 -> 0 | P129: ='QUANTITIES-BUDGET'!$H129*'QUANTITIES-BUDGET'!$L129 -> 0 | Q129: ='QUANTITIES-BUDGET'!$I129*'QUANTITIES-BUDGET'!$L129 -> 0 | R129: ='QUANTITIES-BUDGET'!$J129*'QUANTITIES-BUDGET'!$L129 -> 0
K130: 0 | M130: 0 | N130: ='QUANTITIES-BUDGET'!$F130*'QUANTITIES-BUDGET'!$L130 -> 0 | O130: ='QUANTITIES-BUDGET'!$G130*'QUANTITIES-BUDGET'!$L130 -> 0 | P130: ='QUANTITIES-BUDGET'!$H130*'QUANTITIES-BUDGET'!$L130 -> 0 | Q130: ='QUANTITIES-BUDGET'!$I130*'QUANTITIES-BUDGET'!$L130 -> 0 | R130: ='QUANTITIES-BUDGET'!$J130*'QUANTITIES-BUDGET'!$L130 -> 0
K131: 0 | M131: 0 | N131: ='QUANTITIES-BUDGET'!$F131*'QUANTITIES-BUDGET'!$L131 -> 0 | O131: ='QUANTITIES-BUDGET'!$G131*'QUANTITIES-BUDGET'!$L131 -> 0 | P131: ='QUANTITIES-BUDGET'!$H131*'QUANTITIES-BUDGET'!$L131 -> 0 | Q131: ='QUANTITIES-BUDGET'!$I131*'QUANTITIES-BUDGET'!$L131 -> 0 | R131: ='QUANTITIES-BUDGET'!$J131*'QUANTITIES-BUDGET'!$L131 -> 0
K132: 0 | M132: 0 | N132: ='QUANTITIES-BUDGET'!$F132*'QUANTITIES-BUDGET'!$L132 -> 0 | O132: ='QUANTITIES-BUDGET'!$G132*'QUANTITIES-BUDGET'!$L132 -> 0 | P132: ='QUANTITIES-BUDGET'!$H132*'QUANTITIES-BUDGET'!$L132 -> 0 | Q132: ='QUANTITIES-BUDGET'!$I132*'QUANTITIES-BUDGET'!$L132 -> 0 | R132: ='QUANTITIES-BUDGET'!$J132*'QUANTITIES-BUDGET'!$L132 -> 0
K133: 0 | M133: 0 | N133: ='QUANTITIES-BUDGET'!$F133*'QUANTITIES-BUDGET'!$L133 -> 0 | O133: ='QUANTITIES-BUDGET'!$G133*'QUANTITIES-BUDGET'!$L133 -> 0 | P133: ='QUANTITIES-BUDGET'!$H133*'QUANTITIES-BUDGET'!$L133 -> 0 | Q133: ='QUANTITIES-BUDGET'!$I133*'QUANTITIES-BUDGET'!$L133 -> 0 | R133: ='QUANTITIES-BUDGET'!$J133*'QUANTITIES-BUDGET'!$L133 -> 0
K134: 0 | M134: 0 | N134: ='QUANTITIES-BUDGET'!$F134*'QUANTITIES-BUDGET'!$L134 -> 0 | O134: ='QUANTITIES-BUDGET'!$G134*'QUANTITIES-BUDGET'!$L134 -> 0 | P134: ='QUANTITIES-BUDGET'!$H134*'QUANTITIES-BUDGET'!$L134 -> 0 | Q134: ='QUANTITIES-BUDGET'!$I134*'QUANTITIES-BUDGET'!$L134 -> 0 | R134: ='QUANTITIES-BUDGET'!$J134*'QUANTITIES-BUDGET'!$L134 -> 0
K135: 0 | M135: 0 | N135: ='QUANTITIES-BUDGET'!$F135*'QUANTITIES-BUDGET'!$L135 -> 0 | O135: ='QUANTITIES-BUDGET'!$G135*'QUANTITIES-BUDGET'!$L135 -> 0 | P135: ='QUANTITIES-BUDGET'!$H135*'QUANTITIES-BUDGET'!$L135 -> 0 | Q135: ='QUANTITIES-BUDGET'!$I135*'QUANTITIES-BUDGET'!$L135 -> 0 | R135: ='QUANTITIES-BUDGET'!$J135*'QUANTITIES-BUDGET'!$L135 -> 0
K136: 0 | M136: 0 | N136: ='QUANTITIES-BUDGET'!$F136*'QUANTITIES-BUDGET'!$L136 -> 0 | O136: ='QUANTITIES-BUDGET'!$G136*'QUANTITIES-BUDGET'!$L136 -> 0 | P136: ='QUANTITIES-BUDGET'!$H136*'QUANTITIES-BUDGET'!$L136 -> 0 | Q136: ='QUANTITIES-BUDGET'!$I136*'QUANTITIES-BUDGET'!$L136 -> 0 | R136: ='QUANTITIES-BUDGET'!$J136*'QUANTITIES-BUDGET'!$L136 -> 0
K137: 0 | M137: 0 | N137: ='QUANTITIES-BUDGET'!$F137*'QUANTITIES-BUDGET'!$L137 -> 0 | O137: ='QUANTITIES-BUDGET'!$G137*'QUANTITIES-BUDGET'!$L137 -> 0 | P137: ='QUANTITIES-BUDGET'!$H137*'QUANTITIES-BUDGET'!$L137 -> 0 | Q137: ='QUANTITIES-BUDGET'!$I137*'QUANTITIES-BUDGET'!$L137 -> 0 | R137: ='QUANTITIES-BUDGET'!$J137*'QUANTITIES-BUDGET'!$L137 -> 0
K138: 0 | M138: 0 | N138: ='QUANTITIES-BUDGET'!$F138*'QUANTITIES-BUDGET'!$L138 -> 0 | O138: ='QUANTITIES-BUDGET'!$G138*'QUANTITIES-BUDGET'!$L138 -> 0 | P138: ='QUANTITIES-BUDGET'!$H138*'QUANTITIES-BUDGET'!$L138 -> 0 | Q138: ='QUANTITIES-BUDGET'!$I138*'QUANTITIES-BUDGET'!$L138 -> 0 | R138: ='QUANTITIES-BUDGET'!$J138*'QUANTITIES-BUDGET'!$L138 -> 0
K139: =SUM(F139:J139) -> 0 | M139: 0 | N139: ='QUANTITIES-BUDGET'!$F139*'QUANTITIES-BUDGET'!$L139 -> 0 | O139: ='QUANTITIES-BUDGET'!$G139*'QUANTITIES-BUDGET'!$L139 -> 0 | P139: ='QUANTITIES-BUDGET'!$H139*'QUANTITIES-BUDGET'!$L139 -> 0 | Q139: ='QUANTITIES-BUDGET'!$I139*'QUANTITIES-BUDGET'!$L139 -> 0 | R139: ='QUANTITIES-BUDGET'!$J139*'QUANTITIES-BUDGET'!$L139 -> 0
K140: 0 | M140: 0 | N140: ='QUANTITIES-BUDGET'!$F140*'QUANTITIES-BUDGET'!$L140 -> 0 | O140: ='QUANTITIES-BUDGET'!$G140*'QUANTITIES-BUDGET'!$L140 -> 0 | P140: ='QUANTITIES-BUDGET'!$H140*'QUANTITIES-BUDGET'!$L140 -> 0 | Q140: ='QUANTITIES-BUDGET'!$I140*'QUANTITIES-BUDGET'!$L140 -> 0 | R140: ='QUANTITIES-BUDGET'!$J140*'QUANTITIES-BUDGET'!$L140 -> 0
K141: 0 | M141: 0 | N141: ='QUANTITIES-BUDGET'!$F141*'QUANTITIES-BUDGET'!$L141 -> 0 | O141: ='QUANTITIES-BUDGET'!$G141*'QUANTITIES-BUDGET'!$L141 -> 0 | P141: ='QUANTITIES-BUDGET'!$H141*'QUANTITIES-BUDGET'!$L141 -> 0 | Q141: ='QUANTITIES-BUDGET'!$I141*'QUANTITIES-BUDGET'!$L141 -> 0 | R141: ='QUANTITIES-BUDGET'!$J141*'QUANTITIES-BUDGET'!$L141 -> 0
K142: 0 | M142: 0 | N142: ='QUANTITIES-BUDGET'!$F142*'QUANTITIES-BUDGET'!$L142 -> 0 | O142: ='QUANTITIES-BUDGET'!$G142*'QUANTITIES-BUDGET'!$L142 -> 0 | P142: ='QUANTITIES-BUDGET'!$H142*'QUANTITIES-BUDGET'!$L142 -> 0 | Q142: ='QUANTITIES-BUDGET'!$I142*'QUANTITIES-BUDGET'!$L142 -> 0 | R142: ='QUANTITIES-BUDGET'!$J142*'QUANTITIES-BUDGET'!$L142 -> 0
K143: 0 | M143: 0 | N143: ='QUANTITIES-BUDGET'!$F143*'QUANTITIES-BUDGET'!$L143 -> 0 | O143: ='QUANTITIES-BUDGET'!$G143*'QUANTITIES-BUDGET'!$L143 -> 0 | P143: ='QUANTITIES-BUDGET'!$H143*'QUANTITIES-BUDGET'!$L143 -> 0 | Q143: ='QUANTITIES-BUDGET'!$I143*'QUANTITIES-BUDGET'!$L143 -> 0 | R143: ='QUANTITIES-BUDGET'!$J143*'QUANTITIES-BUDGET'!$L143 -> 0
K144: 0 | M144: 0 | N144: ='QUANTITIES-BUDGET'!$F144*'QUANTITIES-BUDGET'!$L144 -> 0 | O144: ='QUANTITIES-BUDGET'!$G144*'QUANTITIES-BUDGET'!$L144 -> 0 | P144: ='QUANTITIES-BUDGET'!$H144*'QUANTITIES-BUDGET'!$L144 -> 0 | Q144: ='QUANTITIES-BUDGET'!$I144*'QUANTITIES-BUDGET'!$L144 -> 0 | R144: ='QUANTITIES-BUDGET'!$J144*'QUANTITIES-BUDGET'!$L144 -> 0
K145: 0 | M145: 0 | N145: ='QUANTITIES-BUDGET'!$F145*'QUANTITIES-BUDGET'!$L145 -> 0 | O145: ='QUANTITIES-BUDGET'!$G145*'QUANTITIES-BUDGET'!$L145 -> 0 | P145: ='QUANTITIES-BUDGET'!$H145*'QUANTITIES-BUDGET'!$L145 -> 0 | Q145: ='QUANTITIES-BUDGET'!$I145*'QUANTITIES-BUDGET'!$L145 -> 0 | R145: ='QUANTITIES-BUDGET'!$J145*'QUANTITIES-BUDGET'!$L145 -> 0
K146: 0 | M146: 0 | N146: ='QUANTITIES-BUDGET'!$F146*'QUANTITIES-BUDGET'!$L146 -> 0 | O146: ='QUANTITIES-BUDGET'!$G146*'QUANTITIES-BUDGET'!$L146 -> 0 | P146: ='QUANTITIES-BUDGET'!$H146*'QUANTITIES-BUDGET'!$L146 -> 0 | Q146: ='QUANTITIES-BUDGET'!$I146*'QUANTITIES-BUDGET'!$L146 -> 0 | R146: ='QUANTITIES-BUDGET'!$J146*'QUANTITIES-BUDGET'!$L146 -> 0
K147: 0 | M147: 0 | N147: ='QUANTITIES-BUDGET'!$F147*'QUANTITIES-BUDGET'!$L147 -> 0 | O147: ='QUANTITIES-BUDGET'!$G147*'QUANTITIES-BUDGET'!$L147 -> 0 | P147: ='QUANTITIES-BUDGET'!$H147*'QUANTITIES-BUDGET'!$L147 -> 0 | Q147: ='QUANTITIES-BUDGET'!$I147*'QUANTITIES-BUDGET'!$L147 -> 0 | R147: ='QUANTITIES-BUDGET'!$J147*'QUANTITIES-BUDGET'!$L147 -> 0
K148: 0 | M148: 0 | N148: ='QUANTITIES-BUDGET'!$F148*'QUANTITIES-BUDGET'!$L148 -> 0 | O148: ='QUANTITIES-BUDGET'!$G148*'QUANTITIES-BUDGET'!$L148 -> 0 | P148: ='QUANTITIES-BUDGET'!$H148*'QUANTITIES-BUDGET'!$L148 -> 0 | Q148: ='QUANTITIES-BUDGET'!$I148*'QUANTITIES-BUDGET'!$L148 -> 0 | R148: ='QUANTITIES-BUDGET'!$J148*'QUANTITIES-BUDGET'!$L148 -> 0
K149: 0 | M149: 0 | N149: ='QUANTITIES-BUDGET'!$F149*'QUANTITIES-BUDGET'!$L149 -> 0 | O149: ='QUANTITIES-BUDGET'!$G149*'QUANTITIES-BUDGET'!$L149 -> 0 | P149: ='QUANTITIES-BUDGET'!$H149*'QUANTITIES-BUDGET'!$L149 -> 0 | Q149: ='QUANTITIES-BUDGET'!$I149*'QUANTITIES-BUDGET'!$L149 -> 0 | R149: ='QUANTITIES-BUDGET'!$J149*'QUANTITIES-BUDGET'!$L149 -> 0
K150: 0 | M150: 0 | N150: ='QUANTITIES-BUDGET'!$F150*'QUANTITIES-BUDGET'!$L150 -> 0 | O150: ='QUANTITIES-BUDGET'!$G150*'QUANTITIES-BUDGET'!$L150 -> 0 | P150: ='QUANTITIES-BUDGET'!$H150*'QUANTITIES-BUDGET'!$L150 -> 0 | Q150: ='QUANTITIES-BUDGET'!$I150*'QUANTITIES-BUDGET'!$L150 -> 0 | R150: ='QUANTITIES-BUDGET'!$J150*'QUANTITIES-BUDGET'!$L150 -> 0
K151: 0 | M151: 0 | N151: ='QUANTITIES-BUDGET'!$F151*'QUANTITIES-BUDGET'!$L151 -> 0 | O151: ='QUANTITIES-BUDGET'!$G151*'QUANTITIES-BUDGET'!$L151 -> 0 | P151: ='QUANTITIES-BUDGET'!$H151*'QUANTITIES-BUDGET'!$L151 -> 0 | Q151: ='QUANTITIES-BUDGET'!$I151*'QUANTITIES-BUDGET'!$L151 -> 0 | R151: ='QUANTITIES-BUDGET'!$J151*'QUANTITIES-BUDGET'!$L151 -> 0
K152: 0 | M152: 0 | N152: ='QUANTITIES-BUDGET'!$F152*'QUANTITIES-BUDGET'!$L152 -> 0 | O152: ='QUANTITIES-BUDGET'!$G152*'QUANTITIES-BUDGET'!$L152 -> 0 | P152: ='QUANTITIES-BUDGET'!$H152*'QUANTITIES-BUDGET'!$L152 -> 0 | Q152: ='QUANTITIES-BUDGET'!$I152*'QUANTITIES-BUDGET'!$L152 -> 0 | R152: ='QUANTITIES-BUDGET'!$J152*'QUANTITIES-BUDGET'!$L152 -> 0
K153: 0 | M153: 0 | N153: ='QUANTITIES-BUDGET'!$F153*'QUANTITIES-BUDGET'!$L153 -> 0 | O153: ='QUANTITIES-BUDGET'!$G153*'QUANTITIES-BUDGET'!$L153 -> 0 | P153: ='QUANTITIES-BUDGET'!$H153*'QUANTITIES-BUDGET'!$L153 -> 0 | Q153: ='QUANTITIES-BUDGET'!$I153*'QUANTITIES-BUDGET'!$L153 -> 0 | R153: ='QUANTITIES-BUDGET'!$J153*'QUANTITIES-BUDGET'!$L153 -> 0
K154: 0 | M154: 0 | N154: ='QUANTITIES-BUDGET'!$F154*'QUANTITIES-BUDGET'!$L154 -> 0 | O154: ='QUANTITIES-BUDGET'!$G154*'QUANTITIES-BUDGET'!$L154 -> 0 | P154: ='QUANTITIES-BUDGET'!$H154*'QUANTITIES-BUDGET'!$L154 -> 0 | Q154: ='QUANTITIES-BUDGET'!$I154*'QUANTITIES-BUDGET'!$L154 -> 0 | R154: ='QUANTITIES-BUDGET'!$J154*'QUANTITIES-BUDGET'!$L154 -> 0
K155: 0 | M155: 0 | N155: ='QUANTITIES-BUDGET'!$F155*'QUANTITIES-BUDGET'!$L155 -> 0 | O155: ='QUANTITIES-BUDGET'!$G155*'QUANTITIES-BUDGET'!$L155 -> 0 | P155: ='QUANTITIES-BUDGET'!$H155*'QUANTITIES-BUDGET'!$L155 -> 0 | Q155: ='QUANTITIES-BUDGET'!$I155*'QUANTITIES-BUDGET'!$L155 -> 0 | R155: ='QUANTITIES-BUDGET'!$J155*'QUANTITIES-BUDGET'!$L155 -> 0
K156: 0 | M156: 0 | N156: ='QUANTITIES-BUDGET'!$F156*'QUANTITIES-BUDGET'!$L156 -> 0 | O156: ='QUANTITIES-BUDGET'!$G156*'QUANTITIES-BUDGET'!$L156 -> 0 | P156: ='QUANTITIES-BUDGET'!$H156*'QUANTITIES-BUDGET'!$L156 -> 0 | Q156: ='QUANTITIES-BUDGET'!$I156*'QUANTITIES-BUDGET'!$L156 -> 0 | R156: ='QUANTITIES-BUDGET'!$J156*'QUANTITIES-BUDGET'!$L156 -> 0
K157: 0 | M157: 0 | N157: ='QUANTITIES-BUDGET'!$F157*'QUANTITIES-BUDGET'!$L157 -> 0 | O157: ='QUANTITIES-BUDGET'!$G157*'QUANTITIES-BUDGET'!$L157 -> 0 | P157: ='QUANTITIES-BUDGET'!$H157*'QUANTITIES-BUDGET'!$L157 -> 0 | Q157: ='QUANTITIES-BUDGET'!$I157*'QUANTITIES-BUDGET'!$L157 -> 0 | R157: ='QUANTITIES-BUDGET'!$J157*'QUANTITIES-BUDGET'!$L157 -> 0
K158: 0 | M158: 0 | N158: ='QUANTITIES-BUDGET'!$F158*'QUANTITIES-BUDGET'!$L158 -> 0 | O158: ='QUANTITIES-BUDGET'!$G158*'QUANTITIES-BUDGET'!$L158 -> 0 | P158: ='QUANTITIES-BUDGET'!$H158*'QUANTITIES-BUDGET'!$L158 -> 0 | Q158: ='QUANTITIES-BUDGET'!$I158*'QUANTITIES-BUDGET'!$L158 -> 0 | R158: ='QUANTITIES-BUDGET'!$J158*'QUANTITIES-BUDGET'!$L158 -> 0
K159: 0 | M159: 0 | N159: ='QUANTITIES-BUDGET'!$F159*'QUANTITIES-BUDGET'!$L159 -> 0 | O159: ='QUANTITIES-BUDGET'!$G159*'QUANTITIES-BUDGET'!$L159 -> 0 | P159: ='QUANTITIES-BUDGET'!$H159*'QUANTITIES-BUDGET'!$L159 -> 0 | Q159: ='QUANTITIES-BUDGET'!$I159*'QUANTITIES-BUDGET'!$L159 -> 0 | R159: ='QUANTITIES-BUDGET'!$J159*'QUANTITIES-BUDGET'!$L159 -> 0
K160: 0 | M160: 0 | N160: ='QUANTITIES-BUDGET'!$F160*'QUANTITIES-BUDGET'!$L160 -> 0 | O160: ='QUANTITIES-BUDGET'!$G160*'QUANTITIES-BUDGET'!$L160 -> 0 | P160: ='QUANTITIES-BUDGET'!$H160*'QUANTITIES-BUDGET'!$L160 -> 0 | Q160: ='QUANTITIES-BUDGET'!$I160*'QUANTITIES-BUDGET'!$L160 -> 0 | R160: ='QUANTITIES-BUDGET'!$J160*'QUANTITIES-BUDGET'!$L160 -> 0
K161: 0 | M161: 0 | N161: ='QUANTITIES-BUDGET'!$F161*'QUANTITIES-BUDGET'!$L161 -> 0 | O161: ='QUANTITIES-BUDGET'!$G161*'QUANTITIES-BUDGET'!$L161 -> 0 | P161: ='QUANTITIES-BUDGET'!$H161*'QUANTITIES-BUDGET'!$L161 -> 0 | Q161: ='QUANTITIES-BUDGET'!$I161*'QUANTITIES-BUDGET'!$L161 -> 0 | R161: ='QUANTITIES-BUDGET'!$J161*'QUANTITIES-BUDGET'!$L161 -> 0
K162: 0 | M162: 0 | N162: ='QUANTITIES-BUDGET'!$F162*'QUANTITIES-BUDGET'!$L162 -> 0 | O162: ='QUANTITIES-BUDGET'!$G162*'QUANTITIES-BUDGET'!$L162 -> 0 | P162: ='QUANTITIES-BUDGET'!$H162*'QUANTITIES-BUDGET'!$L162 -> 0 | Q162: ='QUANTITIES-BUDGET'!$I162*'QUANTITIES-BUDGET'!$L162 -> 0 | R162: ='QUANTITIES-BUDGET'!$J162*'QUANTITIES-BUDGET'!$L162 -> 0
K163: 0 | M163: =K163*L163 -> 0 | N163: ='QUANTITIES-BUDGET'!$F163*'QUANTITIES-BUDGET'!$L163 -> 0 | O163: ='QUANTITIES-BUDGET'!$G163*'QUANTITIES-BUDGET'!$L163 -> 0 | P163: ='QUANTITIES-BUDGET'!$H163*'QUANTITIES-BUDGET'!$L163 -> 0 | Q163: ='QUANTITIES-BUDGET'!$I163*'QUANTITIES-BUDGET'!$L163 -> 0 | R163: ='QUANTITIES-BUDGET'!$J163*'QUANTITIES-BUDGET'!$L163 -> 0
K164: 0 | M164: 0 | N164: ='QUANTITIES-BUDGET'!$F164*'QUANTITIES-BUDGET'!$L164 -> 0 | O164: ='QUANTITIES-BUDGET'!$G164*'QUANTITIES-BUDGET'!$L164 -> 0 | P164: ='QUANTITIES-BUDGET'!$H164*'QUANTITIES-BUDGET'!$L164 -> 0 | Q164: ='QUANTITIES-BUDGET'!$I164*'QUANTITIES-BUDGET'!$L164 -> 0 | R164: ='QUANTITIES-BUDGET'!$J164*'QUANTITIES-BUDGET'!$L164 -> 0
K165: 0 | M165: 0 | N165: ='QUANTITIES-BUDGET'!$F165*'QUANTITIES-BUDGET'!$L165 -> 0 | O165: ='QUANTITIES-BUDGET'!$G165*'QUANTITIES-BUDGET'!$L165 -> 0 | P165: ='QUANTITIES-BUDGET'!$H165*'QUANTITIES-BUDGET'!$L165 -> 0 | Q165: ='QUANTITIES-BUDGET'!$I165*'QUANTITIES-BUDGET'!$L165 -> 0 | R165: ='QUANTITIES-BUDGET'!$J165*'QUANTITIES-BUDGET'!$L165 -> 0
K166: 0 | M166: 0 | N166: ='QUANTITIES-BUDGET'!$F166*'QUANTITIES-BUDGET'!$L166 -> 0 | O166: ='QUANTITIES-BUDGET'!$G166*'QUANTITIES-BUDGET'!$L166 -> 0 | P166: ='QUANTITIES-BUDGET'!$H166*'QUANTITIES-BUDGET'!$L166 -> 0 | Q166: ='QUANTITIES-BUDGET'!$I166*'QUANTITIES-BUDGET'!$L166 -> 0 | R166: ='QUANTITIES-BUDGET'!$J166*'QUANTITIES-BUDGET'!$L166 -> 0
K167: 0 | M167: 0 | N167: ='QUANTITIES-BUDGET'!$F167*'QUANTITIES-BUDGET'!$L167 -> 0 | O167: ='QUANTITIES-BUDGET'!$G167*'QUANTITIES-BUDGET'!$L167 -> 0 | P167: ='QUANTITIES-BUDGET'!$H167*'QUANTITIES-BUDGET'!$L167 -> 0 | Q167: ='QUANTITIES-BUDGET'!$I167*'QUANTITIES-BUDGET'!$L167 -> 0 | R167: ='QUANTITIES-BUDGET'!$J167*'QUANTITIES-BUDGET'!$L167 -> 0
K168: 0 | M168: 0 | N168: ='QUANTITIES-BUDGET'!$F168*'QUANTITIES-BUDGET'!$L168 -> 0 | O168: ='QUANTITIES-BUDGET'!$G168*'QUANTITIES-BUDGET'!$L168 -> 0 | P168: ='QUANTITIES-BUDGET'!$H168*'QUANTITIES-BUDGET'!$L168 -> 0 | Q168: ='QUANTITIES-BUDGET'!$I168*'QUANTITIES-BUDGET'!$L168 -> 0 | R168: ='QUANTITIES-BUDGET'!$J168*'QUANTITIES-BUDGET'!$L168 -> 0
K169: 0 | M169: 0 | N169: ='QUANTITIES-BUDGET'!$F169*'QUANTITIES-BUDGET'!$L169 -> 0 | O169: ='QUANTITIES-BUDGET'!$G169*'QUANTITIES-BUDGET'!$L169 -> 0 | P169: ='QUANTITIES-BUDGET'!$H169*'QUANTITIES-BUDGET'!$L169 -> 0 | Q169: ='QUANTITIES-BUDGET'!$I169*'QUANTITIES-BUDGET'!$L169 -> 0 | R169: ='QUANTITIES-BUDGET'!$J169*'QUANTITIES-BUDGET'!$L169 -> 0
K170: 0 | M170: 0 | N170: ='QUANTITIES-BUDGET'!$F170*'QUANTITIES-BUDGET'!$L170 -> 0 | O170: ='QUANTITIES-BUDGET'!$G170*'QUANTITIES-BUDGET'!$L170 -> 0 | P170: ='QUANTITIES-BUDGET'!$H170*'QUANTITIES-BUDGET'!$L170 -> 0 | Q170: ='QUANTITIES-BUDGET'!$I170*'QUANTITIES-BUDGET'!$L170 -> 0 | R170: ='QUANTITIES-BUDGET'!$J170*'QUANTITIES-BUDGET'!$L170 -> 0
K171: 0 | M171: 0 | N171: ='QUANTITIES-BUDGET'!$F171*'QUANTITIES-BUDGET'!$L171 -> 0 | O171: ='QUANTITIES-BUDGET'!$G171*'QUANTITIES-BUDGET'!$L171 -> 0 | P171: ='QUANTITIES-BUDGET'!$H171*'QUANTITIES-BUDGET'!$L171 -> 0 | Q171: ='QUANTITIES-BUDGET'!$I171*'QUANTITIES-BUDGET'!$L171 -> 0 | R171: ='QUANTITIES-BUDGET'!$J171*'QUANTITIES-BUDGET'!$L171 -> 0
K172: 0 | M172: 0 | N172: ='QUANTITIES-BUDGET'!$F172*'QUANTITIES-BUDGET'!$L172 -> 0 | O172: ='QUANTITIES-BUDGET'!$G172*'QUANTITIES-BUDGET'!$L172 -> 0 | P172: ='QUANTITIES-BUDGET'!$H172*'QUANTITIES-BUDGET'!$L172 -> 0 | Q172: ='QUANTITIES-BUDGET'!$I172*'QUANTITIES-BUDGET'!$L172 -> 0 | R172: ='QUANTITIES-BUDGET'!$J172*'QUANTITIES-BUDGET'!$L172 -> 0
K173: 0 | M173: 0 | N173: ='QUANTITIES-BUDGET'!$F173*'QUANTITIES-BUDGET'!$L173 -> 0 | O173: ='QUANTITIES-BUDGET'!$G173*'QUANTITIES-BUDGET'!$L173 -> 0 | P173: ='QUANTITIES-BUDGET'!$H173*'QUANTITIES-BUDGET'!$L173 -> 0 | Q173: ='QUANTITIES-BUDGET'!$I173*'QUANTITIES-BUDGET'!$L173 -> 0 | R173: ='QUANTITIES-BUDGET'!$J173*'QUANTITIES-BUDGET'!$L173 -> 0
K174: 0 | M174: 0 | N174: ='QUANTITIES-BUDGET'!$F174*'QUANTITIES-BUDGET'!$L174 -> 0 | O174: ='QUANTITIES-BUDGET'!$G174*'QUANTITIES-BUDGET'!$L174 -> 0 | P174: ='QUANTITIES-BUDGET'!$H174*'QUANTITIES-BUDGET'!$L174 -> 0 | Q174: ='QUANTITIES-BUDGET'!$I174*'QUANTITIES-BUDGET'!$L174 -> 0 | R174: ='QUANTITIES-BUDGET'!$J174*'QUANTITIES-BUDGET'!$L174 -> 0
K175: 0 | M175: 0 | N175: ='QUANTITIES-BUDGET'!$F175*'QUANTITIES-BUDGET'!$L175 -> 0 | O175: ='QUANTITIES-BUDGET'!$G175*'QUANTITIES-BUDGET'!$L175 -> 0 | P175: ='QUANTITIES-BUDGET'!$H175*'QUANTITIES-BUDGET'!$L175 -> 0 | Q175: ='QUANTITIES-BUDGET'!$I175*'QUANTITIES-BUDGET'!$L175 -> 0 | R175: ='QUANTITIES-BUDGET'!$J175*'QUANTITIES-BUDGET'!$L175 -> 0
K176: 0 | M176: 0 | N176: ='QUANTITIES-BUDGET'!$F176*'QUANTITIES-BUDGET'!$L176 -> 0 | O176: ='QUANTITIES-BUDGET'!$G176*'QUANTITIES-BUDGET'!$L176 -> 0 | P176: ='QUANTITIES-BUDGET'!$H176*'QUANTITIES-BUDGET'!$L176 -> 0 | Q176: ='QUANTITIES-BUDGET'!$I176*'QUANTITIES-BUDGET'!$L176 -> 0 | R176: ='QUANTITIES-BUDGET'!$J176*'QUANTITIES-BUDGET'!$L176 -> 0
K177: 0 | M177: 0 | N177: ='QUANTITIES-BUDGET'!$F177*'QUANTITIES-BUDGET'!$L177 -> 0 | O177: ='QUANTITIES-BUDGET'!$G177*'QUANTITIES-BUDGET'!$L177 -> 0 | P177: ='QUANTITIES-BUDGET'!$H177*'QUANTITIES-BUDGET'!$L177 -> 0 | Q177: ='QUANTITIES-BUDGET'!$I177*'QUANTITIES-BUDGET'!$L177 -> 0 | R177: ='QUANTITIES-BUDGET'!$J177*'QUANTITIES-BUDGET'!$L177 -> 0
K178: 0 | M178: 0 | N178: ='QUANTITIES-BUDGET'!$F178*'QUANTITIES-BUDGET'!$L178 -> 0 | O178: ='QUANTITIES-BUDGET'!$G178*'QUANTITIES-BUDGET'!$L178 -> 0 | P178: ='QUANTITIES-BUDGET'!$H178*'QUANTITIES-BUDGET'!$L178 -> 0 | Q178: ='QUANTITIES-BUDGET'!$I178*'QUANTITIES-BUDGET'!$L178 -> 0 | R178: ='QUANTITIES-BUDGET'!$J178*'QUANTITIES-BUDGET'!$L178 -> 0
K179: 0 | M179: 0 | N179: ='QUANTITIES-BUDGET'!$F179*'QUANTITIES-BUDGET'!$L179 -> 0 | O179: ='QUANTITIES-BUDGET'!$G179*'QUANTITIES-BUDGET'!$L179 -> 0 | P179: ='QUANTITIES-BUDGET'!$H179*'QUANTITIES-BUDGET'!$L179 -> 0 | Q179: ='QUANTITIES-BUDGET'!$I179*'QUANTITIES-BUDGET'!$L179 -> 0 | R179: ='QUANTITIES-BUDGET'!$J179*'QUANTITIES-BUDGET'!$L179 -> 0
K180: 0 | M180: 0 | N180: ='QUANTITIES-BUDGET'!$F180*'QUANTITIES-BUDGET'!$L180 -> 0 | O180: ='QUANTITIES-BUDGET'!$G180*'QUANTITIES-BUDGET'!$L180 -> 0 | P180: ='QUANTITIES-BUDGET'!$H180*'QUANTITIES-BUDGET'!$L180 -> 0 | Q180: ='QUANTITIES-BUDGET'!$I180*'QUANTITIES-BUDGET'!$L180 -> 0 | R180: ='QUANTITIES-BUDGET'!$J180*'QUANTITIES-BUDGET'!$L180 -> 0
K181: 0 | M181: 0 | N181: ='QUANTITIES-BUDGET'!$F181*'QUANTITIES-BUDGET'!$L181 -> 0 | O181: ='QUANTITIES-BUDGET'!$G181*'QUANTITIES-BUDGET'!$L181 -> 0 | P181: ='QUANTITIES-BUDGET'!$H181*'QUANTITIES-BUDGET'!$L181 -> 0 | Q181: ='QUANTITIES-BUDGET'!$I181*'QUANTITIES-BUDGET'!$L181 -> 0 | R181: ='QUANTITIES-BUDGET'!$J181*'QUANTITIES-BUDGET'!$L181 -> 0
K182: 0 | M182: 0 | N182: ='QUANTITIES-BUDGET'!$F182*'QUANTITIES-BUDGET'!$L182 -> 0 | O182: ='QUANTITIES-BUDGET'!$G182*'QUANTITIES-BUDGET'!$L182 -> 0 | P182: ='QUANTITIES-BUDGET'!$H182*'QUANTITIES-BUDGET'!$L182 -> 0 | Q182: ='QUANTITIES-BUDGET'!$I182*'QUANTITIES-BUDGET'!$L182 -> 0 | R182: ='QUANTITIES-BUDGET'!$J182*'QUANTITIES-BUDGET'!$L182 -> 0
K183: 0 | M183: 0 | N183: ='QUANTITIES-BUDGET'!$F183*'QUANTITIES-BUDGET'!$L183 -> 0 | O183: ='QUANTITIES-BUDGET'!$G183*'QUANTITIES-BUDGET'!$L183 -> 0 | P183: ='QUANTITIES-BUDGET'!$H183*'QUANTITIES-BUDGET'!$L183 -> 0 | Q183: ='QUANTITIES-BUDGET'!$I183*'QUANTITIES-BUDGET'!$L183 -> 0 | R183: ='QUANTITIES-BUDGET'!$J183*'QUANTITIES-BUDGET'!$L183 -> 0
K184: 0 | M184: 0 | N184: ='QUANTITIES-BUDGET'!$F184*'QUANTITIES-BUDGET'!$L184 -> 0 | O184: ='QUANTITIES-BUDGET'!$G184*'QUANTITIES-BUDGET'!$L184 -> 0 | P184: ='QUANTITIES-BUDGET'!$H184*'QUANTITIES-BUDGET'!$L184 -> 0 | Q184: ='QUANTITIES-BUDGET'!$I184*'QUANTITIES-BUDGET'!$L184 -> 0 | R184: ='QUANTITIES-BUDGET'!$J184*'QUANTITIES-BUDGET'!$L184 -> 0
K185: 0 | M185: 0 | N185: ='QUANTITIES-BUDGET'!$F185*'QUANTITIES-BUDGET'!$L185 -> 0 | O185: ='QUANTITIES-BUDGET'!$G185*'QUANTITIES-BUDGET'!$L185 -> 0 | P185: ='QUANTITIES-BUDGET'!$H185*'QUANTITIES-BUDGET'!$L185 -> 0 | Q185: ='QUANTITIES-BUDGET'!$I185*'QUANTITIES-BUDGET'!$L185 -> 0 | R185: ='QUANTITIES-BUDGET'!$J185*'QUANTITIES-BUDGET'!$L185 -> 0
K186: 0 | M186: 0 | N186: ='QUANTITIES-BUDGET'!$F186*'QUANTITIES-BUDGET'!$L186 -> 0 | O186: ='QUANTITIES-BUDGET'!$G186*'QUANTITIES-BUDGET'!$L186 -> 0 | P186: ='QUANTITIES-BUDGET'!$H186*'QUANTITIES-BUDGET'!$L186 -> 0 | Q186: ='QUANTITIES-BUDGET'!$I186*'QUANTITIES-BUDGET'!$L186 -> 0 | R186: ='QUANTITIES-BUDGET'!$J186*'QUANTITIES-BUDGET'!$L186 -> 0
K187: 0 | M187: 0 | N187: ='QUANTITIES-BUDGET'!$F187*'QUANTITIES-BUDGET'!$L187 -> 0 | O187: ='QUANTITIES-BUDGET'!$G187*'QUANTITIES-BUDGET'!$L187 -> 0 | P187: ='QUANTITIES-BUDGET'!$H187*'QUANTITIES-BUDGET'!$L187 -> 0 | Q187: ='QUANTITIES-BUDGET'!$I187*'QUANTITIES-BUDGET'!$L187 -> 0 | R187: ='QUANTITIES-BUDGET'!$J187*'QUANTITIES-BUDGET'!$L187 -> 0
K188: 0 | M188: 0 | N188: ='QUANTITIES-BUDGET'!$F188*'QUANTITIES-BUDGET'!$L188 -> 0 | O188: ='QUANTITIES-BUDGET'!$G188*'QUANTITIES-BUDGET'!$L188 -> 0 | P188: ='QUANTITIES-BUDGET'!$H188*'QUANTITIES-BUDGET'!$L188 -> 0 | Q188: ='QUANTITIES-BUDGET'!$I188*'QUANTITIES-BUDGET'!$L188 -> 0 | R188: ='QUANTITIES-BUDGET'!$J188*'QUANTITIES-BUDGET'!$L188 -> 0
K189: 0 | M189: 0 | N189: ='QUANTITIES-BUDGET'!$F189*'QUANTITIES-BUDGET'!$L189 -> 0 | O189: ='QUANTITIES-BUDGET'!$G189*'QUANTITIES-BUDGET'!$L189 -> 0 | P189: ='QUANTITIES-BUDGET'!$H189*'QUANTITIES-BUDGET'!$L189 -> 0 | Q189: ='QUANTITIES-BUDGET'!$I189*'QUANTITIES-BUDGET'!$L189 -> 0 | R189: ='QUANTITIES-BUDGET'!$J189*'QUANTITIES-BUDGET'!$L189 -> 0
K190: 0 | M190: 0 | N190: ='QUANTITIES-BUDGET'!$F190*'QUANTITIES-BUDGET'!$L190 -> 0 | O190: ='QUANTITIES-BUDGET'!$G190*'QUANTITIES-BUDGET'!$L190 -> 0 | P190: ='QUANTITIES-BUDGET'!$H190*'QUANTITIES-BUDGET'!$L190 -> 0 | Q190: ='QUANTITIES-BUDGET'!$I190*'QUANTITIES-BUDGET'!$L190 -> 0 | R190: ='QUANTITIES-BUDGET'!$J190*'QUANTITIES-BUDGET'!$L190 -> 0
K191: 0 | M191: 0 | N191: ='QUANTITIES-BUDGET'!$F191*'QUANTITIES-BUDGET'!$L191 -> 0 | O191: ='QUANTITIES-BUDGET'!$G191*'QUANTITIES-BUDGET'!$L191 -> 0 | P191: ='QUANTITIES-BUDGET'!$H191*'QUANTITIES-BUDGET'!$L191 -> 0 | Q191: ='QUANTITIES-BUDGET'!$I191*'QUANTITIES-BUDGET'!$L191 -> 0 | R191: ='QUANTITIES-BUDGET'!$J191*'QUANTITIES-BUDGET'!$L191 -> 0
K192: 0 | M192: 0 | N192: ='QUANTITIES-BUDGET'!$F192*'QUANTITIES-BUDGET'!$L192 -> 0 | O192: ='QUANTITIES-BUDGET'!$G192*'QUANTITIES-BUDGET'!$L192 -> 0 | P192: ='QUANTITIES-BUDGET'!$H192*'QUANTITIES-BUDGET'!$L192 -> 0 | Q192: ='QUANTITIES-BUDGET'!$I192*'QUANTITIES-BUDGET'!$L192 -> 0 | R192: ='QUANTITIES-BUDGET'!$J192*'QUANTITIES-BUDGET'!$L192 -> 0
K193: 0 | M193: 0 | N193: ='QUANTITIES-BUDGET'!$F193*'QUANTITIES-BUDGET'!$L193 -> 0 | O193: ='QUANTITIES-BUDGET'!$G193*'QUANTITIES-BUDGET'!$L193 -> 0 | P193: ='QUANTITIES-BUDGET'!$H193*'QUANTITIES-BUDGET'!$L193 -> 0 | Q193: ='QUANTITIES-BUDGET'!$I193*'QUANTITIES-BUDGET'!$L193 -> 0 | R193: ='QUANTITIES-BUDGET'!$J193*'QUANTITIES-BUDGET'!$L193 -> 0
K194: 0 | M194: 0 | N194: ='QUANTITIES-BUDGET'!$F194*'QUANTITIES-BUDGET'!$L194 -> 0 | O194: ='QUANTITIES-BUDGET'!$G194*'QUANTITIES-BUDGET'!$L194 -> 0 | P194: ='QUANTITIES-BUDGET'!$H194*'QUANTITIES-BUDGET'!$L194 -> 0 | Q194: ='QUANTITIES-BUDGET'!$I194*'QUANTITIES-BUDGET'!$L194 -> 0 | R194: ='QUANTITIES-BUDGET'!$J194*'QUANTITIES-BUDGET'!$L194 -> 0
K195: 0 | M195: 0 | N195: ='QUANTITIES-BUDGET'!$F195*'QUANTITIES-BUDGET'!$L195 -> 0 | O195: ='QUANTITIES-BUDGET'!$G195*'QUANTITIES-BUDGET'!$L195 -> 0 | P195: ='QUANTITIES-BUDGET'!$H195*'QUANTITIES-BUDGET'!$L195 -> 0 | Q195: ='QUANTITIES-BUDGET'!$I195*'QUANTITIES-BUDGET'!$L195 -> 0 | R195: ='QUANTITIES-BUDGET'!$J195*'QUANTITIES-BUDGET'!$L195 -> 0
K196: 0 | M196: 0 | N196: ='QUANTITIES-BUDGET'!$F196*'QUANTITIES-BUDGET'!$L196 -> 0 | O196: ='QUANTITIES-BUDGET'!$G196*'QUANTITIES-BUDGET'!$L196 -> 0 | P196: ='QUANTITIES-BUDGET'!$H196*'QUANTITIES-BUDGET'!$L196 -> 0 | Q196: ='QUANTITIES-BUDGET'!$I196*'QUANTITIES-BUDGET'!$L196 -> 0 | R196: ='QUANTITIES-BUDGET'!$J196*'QUANTITIES-BUDGET'!$L196 -> 0
K197: 0 | M197: 0 | N197: ='QUANTITIES-BUDGET'!$F197*'QUANTITIES-BUDGET'!$L197 -> 0 | O197: ='QUANTITIES-BUDGET'!$G197*'QUANTITIES-BUDGET'!$L197 -> 0 | P197: ='QUANTITIES-BUDGET'!$H197*'QUANTITIES-BUDGET'!$L197 -> 0 | Q197: ='QUANTITIES-BUDGET'!$I197*'QUANTITIES-BUDGET'!$L197 -> 0 | R197: ='QUANTITIES-BUDGET'!$J197*'QUANTITIES-BUDGET'!$L197 -> 0
K198: 0 | M198: 0 | N198: ='QUANTITIES-BUDGET'!$F198*'QUANTITIES-BUDGET'!$L198 -> 0 | O198: ='QUANTITIES-BUDGET'!$G198*'QUANTITIES-BUDGET'!$L198 -> 0 | P198: ='QUANTITIES-BUDGET'!$H198*'QUANTITIES-BUDGET'!$L198 -> 0 | Q198: ='QUANTITIES-BUDGET'!$I198*'QUANTITIES-BUDGET'!$L198 -> 0 | R198: ='QUANTITIES-BUDGET'!$J198*'QUANTITIES-BUDGET'!$L198 -> 0
K199: 0 | M199: 0 | N199: ='QUANTITIES-BUDGET'!$F199*'QUANTITIES-BUDGET'!$L199 -> 0 | O199: ='QUANTITIES-BUDGET'!$G199*'QUANTITIES-BUDGET'!$L199 -> 0 | P199: ='QUANTITIES-BUDGET'!$H199*'QUANTITIES-BUDGET'!$L199 -> 0 | Q199: ='QUANTITIES-BUDGET'!$I199*'QUANTITIES-BUDGET'!$L199 -> 0 | R199: ='QUANTITIES-BUDGET'!$J199*'QUANTITIES-BUDGET'!$L199 -> 0
K200: 0 | M200: 0 | N200: ='QUANTITIES-BUDGET'!$F200*'QUANTITIES-BUDGET'!$L200 -> 0 | O200: ='QUANTITIES-BUDGET'!$G200*'QUANTITIES-BUDGET'!$L200 -> 0 | P200: ='QUANTITIES-BUDGET'!$H200*'QUANTITIES-BUDGET'!$L200 -> 0 | Q200: ='QUANTITIES-BUDGET'!$I200*'QUANTITIES-BUDGET'!$L200 -> 0 | R200: ='QUANTITIES-BUDGET'!$J200*'QUANTITIES-BUDGET'!$L200 -> 0
K201: 0 | M201: 0 | N201: ='QUANTITIES-BUDGET'!$F201*'QUANTITIES-BUDGET'!$L201 -> 0 | O201: ='QUANTITIES-BUDGET'!$G201*'QUANTITIES-BUDGET'!$L201 -> 0 | P201: ='QUANTITIES-BUDGET'!$H201*'QUANTITIES-BUDGET'!$L201 -> 0 | Q201: ='QUANTITIES-BUDGET'!$I201*'QUANTITIES-BUDGET'!$L201 -> 0 | R201: ='QUANTITIES-BUDGET'!$J201*'QUANTITIES-BUDGET'!$L201 -> 0
K202: 0 | M202: 0 | N202: ='QUANTITIES-BUDGET'!$F202*'QUANTITIES-BUDGET'!$L202 -> 0 | O202: ='QUANTITIES-BUDGET'!$G202*'QUANTITIES-BUDGET'!$L202 -> 0 | P202: ='QUANTITIES-BUDGET'!$H202*'QUANTITIES-BUDGET'!$L202 -> 0 | Q202: ='QUANTITIES-BUDGET'!$I202*'QUANTITIES-BUDGET'!$L202 -> 0 | R202: ='QUANTITIES-BUDGET'!$J202*'QUANTITIES-BUDGET'!$L202 -> 0
K203: =SUM(F203:J203) -> 0 | M203: 0 | N203: ='QUANTITIES-BUDGET'!$F203*'QUANTITIES-BUDGET'!$L203 -> 0 | O203: ='QUANTITIES-BUDGET'!$G203*'QUANTITIES-BUDGET'!$L203 -> 0 | P203: ='QUANTITIES-BUDGET'!$H203*'QUANTITIES-BUDGET'!$L203 -> 0 | Q203: ='QUANTITIES-BUDGET'!$I203*'QUANTITIES-BUDGET'!$L203 -> 0 | R203: ='QUANTITIES-BUDGET'!$J203*'QUANTITIES-BUDGET'!$L203 -> 0
... 306 more rows

Sheet PHYSICAL PROGRESS
A1: ACTUAL PROGRESS: Quantities executed per month
F2: All Years Executed | G2: Remaining quamtities | I2: Year 1 | U2: Year 2 | AG2: Year 3 | AS2: Year 4 | BE2: Year 5 | BQ2: Year 6 | CC2: Year 7
I3: Quantities executed every month | U3: Quantities executed every month | AG3: Quantities executed every month | AS3: Quantities executed every month | BE3: Quantities executed every month | BQ3: Quantities executed every month | CC3: Quantities executed every month
A4: Item No | B4: Reference | C4: Description | D4: Unit | E4: Quantity | I4: 1 | J4: 2 | K4: 3 | L4: 4 | M4: 5 | N4: 6 | O4: 7 | P4: 8 | Q4: 9 | R4: 10 | S4: 11 | T4: 12 | U4: 13 | V4: 14 | W4: 15 | X4: 16 | Y4: 17 | Z4: 18 | AA4: 19 | AB4: 20 | AC4: 21 | AD4: 22 | AE4: 23 | AF4: 24 | AG4: 25 | AH4: 26 | AI4: 27 | AJ4: 28 | AK4: 29 | AL4: 30 | AM4: 31 | AN4: 32 | AO4: 33 | AP4: 34 | AQ4: 35 | AR4: 36 | AS4: 37 | AT4: 38 | AU4: 39 | AV4: 40 | AW4: 41 | AX4: 42 | AY4: 43 | AZ4: 44 | BA4: 45 | BB4: 46 | BC4: 47 | BD4: 48 | BE4: 49 | BF4: 50 | BG4: 51 | BH4: 52 | BI4: 53 | BJ4: 54 | BK4: 55 | BL4: 56 | BM4: 57 | BN4: 58 | BO4: 59 | BP4: 60 | BQ4: 61 | BR4: 62 | BS4: 63 | BT4: 64 | BU4: 65 | BV4: 66 | BW4: 67 | BX4: 68 | BY4: 69 | BZ4: 70 | CA4: 71 | CB4: 72 | CC4: 73 | CD4: 74 | CE4: 75 | CF4: 76 | CG4: 77 | CH4: 78 | CI4: 79 | CJ4: 80 | CK4: 81 | CL4: 82 | CM4: 83 | CN4: 84
I5: =TEXT(EOMONTH('PROJECT DETAILS'!$C10,I4-1),"mmmm yyyy") -> March 2016 | J5: =TEXT(EOMONTH('PROJECT DETAILS'!$C10,J4-1),"mmmm yyyy") -> April 2016 | K5: =TEXT(EOMONTH('PROJECT DETAILS'!$C10,K4-1),"mmmm yyyy") -> May 2016 | L5: =TEXT(EOMONTH('PROJECT DETAILS'!$C10,L4-1),"mmmm yyyy") -> June 2016 | M5: =TEXT(EOMONTH('PROJECT DETAILS'!$C10,M4-1),"mmmm yyyy") -> July 2016 | N5: =TEXT(EOMONTH('PROJECT DETAILS'!$C10,N4-1),"mmmm yyyy") -> August 2016 | O5: =TEXT(EOMONTH('PROJECT DETAILS'!$C10,O4-1),"mmmm yyyy") -> September 2016 | P5: =TEXT(EOMONTH('PROJECT DETAILS'!$C10,P4-1),"mmmm yyyy") -> October 2016 | Q5: =TEXT(EOMONTH('PROJECT DETAILS'!$C10,Q4-1),"mmmm yyyy") -> November 2016 | R5: =TEXT(EOMONTH('PROJECT DETAILS'!$C10,R4-1),"mmmm yyyy") -> December 2016 | S5: =TEXT(EOMONTH('PROJECT DETAILS'!$C10,S4-1),"mmmm yyyy") -> January 2017 | T5: =TEXT(EOMONTH('PROJECT DETAILS'!$C10,T4-1),"mmmm yyyy") -> February 2017 | U5: =TEXT(EOMONTH('PROJECT DETAILS'!$C10,U4-1),"mmmm yyyy") -> March 2017 | V5: =TEXT(EOMONTH('PROJECT DETAILS'!$C10,V4-1),"mmmm yyyy") -> April 2017 | W5: =TEXT(EOMONTH('PROJECT DETAILS'!$C10,W4-1),"mmmm yyyy") -> May 2017 | X5: =TEXT(EOMONTH('PROJECT DETAILS'!$C10,X4-1),"mmmm yyyy") -> June 2017 | Y5: =TEXT(EOMONTH('PROJECT DETAILS'!$C10,Y4-1),"mmmm yyyy") -> July 2017 | Z5: =TEXT(EOMONTH('PROJECT DETAILS'!$C10,Z4-1),"mmmm yyyy") -> August 2017 | AA5: =TEXT(EOMONTH('PROJECT DETAILS'!$C10,AA4-1),"mmmm yyyy") -> September 2017 | AB5: =TEXT(EOMONTH('PROJECT DETAILS'!$C10,AB4-1),"mmmm yyyy") -> October 2017 | AC5: =TEXT(EOMONTH('PROJECT DETAILS'!$C10,AC4-1),"mmmm yyyy") -> November 2017 | AD5: =TEXT(EOMONTH('PROJECT DETAILS'!$C10,AD4-1),"mmmm yyyy") -> December 2017 | AE5: =TEXT(EOMONTH('PROJECT DETAILS'!$C10,AE4-1),"mmmm yyyy") -> January 2018 | AF5: =TEXT(EOMONTH('PROJECT DETAILS'!$C10,AF4-1),"mmmm yyyy") -> February 2018 | AG5: =TEXT(EOMONTH('PROJECT DETAILS'!$C10,AG4-1),"mmmm yyyy") -> March 2018 | AH5: =TEXT(EOMONTH('PROJECT DETAILS'!$C10,AH4-1),"mmmm yyyy") -> April 2018 | AI5: =TEXT(EOMONTH('PROJECT DETAILS'!$C10,AI4-1),"mmmm yyyy") -> May 2018 | AJ5: =TEXT(EOMONTH('PROJECT DETAILS'!$C10,AJ4-1),"mmmm yyyy") -> June 2018 | AK5: =TEXT(EOMONTH('PROJECT DETAILS'!$C10,AK4-1),"mmmm yyyy") -> July 2018 | AL5: =TEXT(EOMONTH('PROJECT DETAILS'!$C10,AL4-1),"mmmm yyyy") -> August 2018 | AM5: =TEXT(EOMONTH('PROJECT DETAILS'!$C10,AM4-1),"mmmm yyyy") -> September 2018 | AN5: =TEXT(EOMONTH('PROJECT DETAILS'!$C10,AN4-1),"mmmm yyyy") -> October 2018 | AO5: =TEXT(EOMONTH('PROJECT DETAILS'!$C10,AO4-1),"mmmm yyyy") -> November 2018 | AP5: =TEXT(EOMONTH('PROJECT DETAILS'!$C10,AP4-1),"mmmm yyyy") -> December 2018 | AQ5: =TEXT(EOMONTH('PROJECT DETAILS'!$C10,AQ4-1),"mmmm yyyy") -> January 2019 | AR5: =TEXT(EOMONTH('PROJECT DETAILS'!$C10,AR4-1),"mmmm yyyy") -> February 2019 | AS5: =TEXT(EOMONTH('PROJECT DETAILS'!$C10,AS4-1),"mmmm yyyy") -> March 2019 | AT5: =TEXT(EOMONTH('PROJECT DETAILS'!$C10,AT4-1),"mmmm yyyy") -> April 2019 | AU5: =TEXT(EOMONTH('PROJECT DETAILS'!$C10,AU4-1),"mmmm yyyy") -> May 2019 | AV5: =TEXT(EOMONTH('PROJECT DETAILS'!$C10,AV4-1),"mmmm yyyy") -> June 2019 | AW5: =TEXT(EOMONTH('PROJECT DETAILS'!$C10,AW4-1),"mmmm yyyy") -> July 2019 | AX5: =TEXT(EOMONTH('PROJECT DETAILS'!$C10,AX4-1),"mmmm yyyy") -> August 2019 | AY5: =TEXT(EOMONTH('PROJECT DETAILS'!$C10,AY4-1),"mmmm yyyy") -> September 2019 | AZ5: =TEXT(EOMONTH('PROJECT DETAILS'!$C10,AZ4-1),"mmmm yyyy") -> October 2019 | BA5: =TEXT(EOMONTH('PROJECT DETAILS'!$C10,BA4-1),"mmmm yyyy") -> November 2019 | BB5: =TEXT(EOMONTH('PROJECT DETAILS'!$C10,BB4-1),"mmmm yyyy") -> December 2019 | BC5: =TEXT(EOMONTH('PROJECT DETAILS'!$C10,BC4-1),"mmmm yyyy") -> January 2020 | BD5: =TEXT(EOMONTH('PROJECT DETAILS'!$C10,BD4-1),"mmmm yyyy") -> February 2020 | BE5: =TEXT(EOMONTH('PROJECT DETAILS'!$C10,BE4-1),"mmmm yyyy") -> March 2020 | BF5: =TEXT(EOMONTH('PROJECT DETAILS'!$C10,BF4-1),"mmmm yyyy") -> April 2020 | BG5: =TEXT(EOMONTH('PROJECT DETAILS'!$C10,BG4-1),"mmmm yyyy") -> May 2020 | BH5: =TEXT(EOMONTH('PROJECT DETAILS'!$C10,BH4-1),"mmmm yyyy") -> June 2020 | BI5: =TEXT(EOMONTH('PROJECT DETAILS'!$C10,BI4-1),"mmmm yyyy") -> July 2020 | BJ5: =TEXT(EOMONTH('PROJECT DETAILS'!$C10,BJ4-1),"mmmm yyyy") -> August 2020 | BK5: =TEXT(EOMONTH('PROJECT DETAILS'!$C10,BK4-1),"mmmm yyyy") -> September 2020 | BL5: =TEXT(EOMONTH('PROJECT DETAILS'!$C10,BL4-1),"mmmm yyyy") -> October 2020 | BM5: =TEXT(EOMONTH('PROJECT DETAILS'!$C10,BM4-1),"mmmm yyyy") -> November 2020 | BN5: =TEXT(EOMONTH('PROJECT DETAILS'!$C10,BN4-1),"mmmm yyyy") -> December 2020 | BO5: =TEXT(EOMONTH('PROJECT DETAILS'!$C10,BO4-1),"mmmm yyyy") -> January 2021 | BP5: =TEXT(EOMONTH('PROJECT DETAILS'!$C10,BP4-1),"mmmm yyyy") -> February 2021 | BQ5: =TEXT(EOMONTH('PROJECT DETAILS'!$C10,BQ4-1),"mmmm yyyy") -> March 2021 | BR5: =TEXT(EOMONTH('PROJECT DETAILS'!$C10,BR4-1),"mmmm yyyy") -> April 2021 | BS5: =TEXT(EOMONTH('PROJECT DETAILS'!$C10,BS4-1),"mmmm yyyy") -> May 2021 | BT5: =TEXT(EOMONTH('PROJECT DETAILS'!$C10,BT4-1),"mmmm yyyy") -> June 2021 | BU5: =TEXT(EOMONTH('PROJECT DETAILS'!$C10,BU4-1),"mmmm yyyy") -> July 2021 | BV5: =TEXT(EOMONTH('PROJECT DETAILS'!$C10,BV4-1),"mmmm yyyy") -> August 2021 | BW5: =TEXT(EOMONTH('PROJECT DETAILS'!$C10,BW4-1),"mmmm yyyy") -> September 2021 | BX5: =TEXT(EOMONTH('PROJECT DETAILS'!$C10,BX4-1),"mmmm yyyy") -> October 2021 | BY5: =TEXT(EOMONTH('PROJECT DETAILS'!$C10,BY4-1),"mmmm yyyy") -> November 2021 | BZ5: =TEXT(EOMONTH('PROJECT DETAILS'!$C10,BZ4-1),"mmmm yyyy") -> December 2021 | CA5: =TEXT(EOMONTH('PROJECT DETAILS'!$C10,CA4-1),"mmmm yyyy") -> January 2022 | CB5: =TEXT(EOMONTH('PROJECT DETAILS'!$C10,CB4-1),"mmmm yyyy") -> February 2022 | CC5: =TEXT(EOMONTH('PROJECT DETAILS'!$C10,CC4-1),"mmmm yyyy") -> March 2022 | CD5: =TEXT(EOMONTH('PROJECT DETAILS'!$C10,CD4-1),"mmmm yyyy") -> April 2022 | CE5: =TEXT(EOMONTH('PROJECT DETAILS'!$C10,CE4-1),"mmmm yyyy") -> May 2022 | CF5: =TEXT(EOMONTH('PROJECT DETAILS'!$C10,CF4-1),"mmmm yyyy") -> June 2022 | CG5: =TEXT(EOMONTH('PROJECT DETAILS'!$C10,CG4-1),"mmmm yyyy") -> July 2022 | CH5: =TEXT(EOMONTH('PROJECT DETAILS'!$C10,CH4-1),"mmmm yyyy") -> August 2022 | CI5: =TEXT(EOMONTH('PROJECT DETAILS'!$C10,CI4-1),"mmmm yyyy") -> September 2022 | CJ5: =TEXT(EOMONTH('PROJECT DETAILS'!$C10,CJ4-1),"mmmm yyyy") -> October 2022 | CK5: =TEXT(EOMONTH('PROJECT DETAILS'!$C10,CK4-1),"mmmm yyyy") -> November 2022 | CL5: =TEXT(EOMONTH('PROJECT DETAILS'!$C10,CL4-1),"mmmm yyyy") -> December 2022 | CM5: =TEXT(EOMONTH('PROJECT DETAILS'!$C10,CM4-1),"mmmm yyyy") -> January 2023 | CN5: =TEXT(EOMONTH('PROJECT DETAILS'!$C10,CN4-1),"mmmm yyyy") -> February 2023
H7: Number of activities executed per month: | I7: =COUNTA(I11:I509) -> 19 | J7: =COUNTA(J11:J509) -> 19 | K7: 19 | L7: 19 | M7: 19 | N7: 19 | O7: 19 | P7: 19 | Q7: 19 | R7: 19 | S7: 19 | T7: 19 | U7: 19 | V7: 19 | W7: 19 | X7: 19 | Y7: 19 | Z7: 16 | AA7: 16 | AB7: 16 | AC7: 16 | AD7: 16 | AE7: 16 | AF7: 17 | AG7: 17 | AH7: 17 | AI7: 17 | AJ7: 17 | AK7: 17 | AL7: 17 | AM7: 17 | AN7: 17 | AO7: 17 | AP7: 17 | AQ7: 17 | AR7: 17 | AS7: 17 | AT7: 17 | AU7: 17 | AV7: 17 | AW7: 17 | AX7: 17 | AY7: 18 | AZ7: 18 | BA7: 18 | BB7: 18 | BC7: 18 | BD7: 18 | BE7: 16 | BF7: 16 | BG7: 16 | BH7: 16 | BI7: 0 | BJ7: 0 | BK7: 0 | BL7: 0 | BM7: 0 | BN7: 0 | BO7: 0 | BP7: 0 | BQ7: =COUNTA(BQ11:BQ509) -> 0 | BR7: 0 | BS7: 0 | BT7: 0 | BU7: 0 | BV7: 0 | BW7: 0 | BX7: 0 | BY7: 0 | BZ7: 0 | CA7: 0 | CB7: 0 | CC7: 0 | CD7: 0 | CE7: 0 | CF7: 0 | CG7: 0 | CH7: 0 | CI7: 0 | CJ7: 0 | CK7: 0 | CL7: 0 | CM7: 0 | CN7: 0
H9: Number of Work Orders issued per month: | I9: 2 | J9: 3 | K9: 4 | L9: 2 | M9: 3 | N9: 4 | O9: 2 | P9: 3 | Q9: 4 | R9: 2 | S9: 3 | T9: 4 | U9: 2 | V9: 3 | W9: 4 | X9: 2 | Y9: 3 | Z9: 4 | AA9: 2 | AB9: 3 | AC9: 4 | AD9: 2 | AE9: 3 | AF9: 4 | AG9: 2 | AH9: 3 | AI9: 4 | AJ9: 17 | AK9: 17 | AL9: 17 | AM9: 17 | AN9: 17 | AO9: 17 | AP9: 17 | AQ9: 17 | AR9: 17 | AS9: 17 | AT9: 17 | AU9: 17 | AV9: 17 | AW9: 2 | AX9: 3 | AY9: 4 | AZ9: 2 | BA9: 3 | BB9: 4 | BC9: 2 | BD9: 3 | BE9: 4 | BF9: 2 | BG9: 3 | BH9: 4 | BI9: 0 | BJ9: 0 | BK9: 0 | BL9: 0 | BM9: 0 | BN9: 0 | BO9: 0 | BP9: 0 | BQ9: 0 | BR9: 0 | BS9: 0 | BT9: 0 | BU9: 0 | BV9: 0 | BW9: 0 | BX9: 0 | BY9: 0 | BZ9: 0 | CA9: 0 | CB9: 0 | CC9: 0 | CD9: 0 | CE9: 0 | CF9: 0 | CG9: 0 | CH9: 0 | CI9: 0 | CJ9: 0 | CK9: 0 | CL9: 0 | CM9: 0 | CN9: 0
A11: =IF('QUANTITIES-BUDGET'!A10=0,"",'QUANTITIES-BUDGET'!A10) -> A100 | B11: =IF('QUANTITIES-BUDGET'!B10=0,"",'QUANTITIES-BUDGET'!B10) ->  | C11: =IF('QUANTITIES-BUDGET'!C10=0,"",'QUANTITIES-BUDGET'!C10) -> Description of item A100 | D11: =IF('QUANTITIES-BUDGET'!D10=0,"",'QUANTITIES-BUDGET'!D10) -> m | E11: =IF('QUANTITIES-BUDGET'!K10=0,"",'QUANTITIES-BUDGET'!K10) -> 21000 | F11: =SUM(I11:BP11) -> 8397.433333 | G11: =E11-F11 -> 12602.56667 | I11: 300 | J11: =I11 -> 300 | K11: =J11 -> 300 | L11: 300 | M11: 300 | N11: 100 | O11: 275 | P11: 320 | Q11: 320 | R11: 403.8333333 | S11: 300.5 | T11: 311 | U11: 467.1666667 | V11: 510.1111111 | W11: 424.2777778 | X11: 338.4444444 | Y11: 359.5555556 | AF11: 82.5 | AG11: 96 | AH11: 96 | AI11: 121.15 | AJ11: 90.15 | AK11: 93.3 | AL11: 140.15 | AM11: 153.0333333 | AN11: 127.2833333 | AO11: 101.5333333 | AP11: 128 | AQ11: 161.5333333 | AR11: 120.2 | AS11: 124.4 | AT11: 186.8666667 | AU11: 204.0444444 | AV11: 169.7111111 | AW11: 135.3777778 | AX11: 143.8222222 | AY11: 49.6 | AZ11: 47.26666667 | BA11: 48.2 | BB11: 48.37777778 | BC11: 49.91111111 | BD11: 49.13333333
A12: =IF('QUANTITIES-BUDGET'!A11=0,"",'QUANTITIES-BUDGET'!A11) -> A102 | B12: =IF('QUANTITIES-BUDGET'!B11=0,"",'QUANTITIES-BUDGET'!B11) ->  | C12: =IF('QUANTITIES-BUDGET'!C11=0,"",'QUANTITIES-BUDGET'!C11) -> Description of item A102 | D12: =IF('QUANTITIES-BUDGET'!D11=0,"",'QUANTITIES-BUDGET'!D11) -> m2 | E12: =IF('QUANTITIES-BUDGET'!K11=0,"",'QUANTITIES-BUDGET'!K11) -> 2100 | F12: =SUM(I12:BP12) -> 1638.738519 | G12: =E12-F12 -> 461.2614815 | I12: 40 | J12: 44 | K12: 52.8 | L12: 52 | M12: 46.8 | N12: 50 | O12: 45 | P12: 49.6 | Q12: 50.53333333 | R12: 49.6 | S12: 47.26666667 | T12: 48.2 | U12: 48.37777778 | V12: 49.91111111 | W12: 49.13333333 | X12: 48.35555556 | Y12: 47.94814815 | AF12: 13.5 | AG12: 14.88 | AH12: 15.16 | AI12: 14.88 | AJ12: 14.18 | AK12: 14.46 | AL12: 14.51333333 | AM12: 14.97333333 | AN12: 14.74 | AO12: 14.50666667 | AP12: 20.21333333 | AQ12: 19.84 | AR12: 18.90666667 | AS12: 19.28 | AT12: 19.35111111 | AU12: 19.96444444 | AV12: 19.65333333 | AW12: 19.34222222 | AX12: 19.17925926 | AY12: 84.3 | AZ12: 78.96666667 | BA12: 80.6 | BB12: 83.41111111 | BC12: 86.51111111 | BD12: 83.9
A13: =IF('QUANTITIES-BUDGET'!A12=0,"",'QUANTITIES-BUDGET'!A12) -> A104 | B13: =IF('QUANTITIES-BUDGET'!B12=0,"",'QUANTITIES-BUDGET'!B12) ->  | C13: =IF('QUANTITIES-BUDGET'!C12=0,"",'QUANTITIES-BUDGET'!C12) -> Description of item A104 | D13: =IF('QUANTITIES-BUDGET'!D12=0,"",'QUANTITIES-BUDGET'!D12) -> m | E13: =IF('QUANTITIES-BUDGET'!K12=0,"",'QUANTITIES-BUDGET'!K12) -> 2625 | F13: 2068.53963 | G13: 556.4603704 | I13: 70 | J13: 77 | K13: 92.4 | L13: 91 | M13: 81.9 | N13: 80 | O13: 75 | P13: 86.8 | Q13: 88.43333333 | R13: 84.3 | S13: 78.96666667 | T13: 80.6 | U13: 83.41111111 | V13: 86.51111111 | W13: 83.9 | X13: 81.28888889 | Y13: 80.99259259 | AF13: 22.5 | AG13: 26.04 | AH13: 26.53 | AI13: 25.29 | AJ13: 23.69 | AK13: 24.18 | AL13: 25.02333333 | AM13: 25.95333333 | AN13: 25.17 | AO13: 24.38666667 | AP13: 35.37333333 | AQ13: 33.72 | AR13: 31.58666667 | AS13: 32.24 | AT13: 33.36444444 | AU13: 34.60444444 | AV13: 33.56 | AW13: 32.51555556 | AX13: 32.39703704 | AY13: 19.8 | AZ13: 16.13333333 | BA13: 16.6 | BB13: 21.68888889 | BC13: 23.28888889 | BD13: 20.4
A14: =IF('QUANTITIES-BUDGET'!A13=0,"",'QUANTITIES-BUDGET'!A13) -> A106 | B14: =IF('QUANTITIES-BUDGET'!B13=0,"",'QUANTITIES-BUDGET'!B13) ->  | C14: =IF('QUANTITIES-BUDGET'!C13=0,"",'QUANTITIES-BUDGET'!C13) -> Description of item A106 | D14: =IF('QUANTITIES-BUDGET'!D13=0,"",'QUANTITIES-BUDGET'!D13) -> m | E14: =IF('QUANTITIES-BUDGET'!K13=0,"",'QUANTITIES-BUDGET'!K13) -> 2205 | F14: 1695.797037 | G14: 509.202963 | I14: 20 | J14: 22 | K14: 26.4 | L14: 26 | M14: 23.4 | N14: 10 | O14: 15 | P14: 24 | Q14: 25.26666667 | R14: 19.8 | S14: 16.13333333 | T14: 16.6 | U14: 21.68888889 | V14: 23.28888889 | W14: 20.4 | X14: 17.51111111 | Y14: 18.14074074 | Z14: 90 | AA14: 90 | AB14: 90 | AC14: 90 | AD14: 90 | AE14: 30 | AF14: 4.5 | AG14: 7.44 | AH14: 7.58 | AI14: 5.94 | AJ14: 4.84 | AK14: 4.98 | AL14: 6.506666667 | AM14: 6.986666667 | AN14: 6.12 | AO14: 5.253333333 | AP14: 10.10666667 | AQ14: 7.92 | AR14: 6.453333333 | AS14: 6.64 | AT14: 8.675555556 | AU14: 9.315555556 | AV14: 8.16 | AW14: 7.004444444 | AX14: 7.256296296 | AY14: 63.51666667 | AZ14: 51.18333333 | BA14: 52.7 | BB14: 70.07222222 | BC14: 75.41111111 | BD14: 65.60555556 | BE14: 90 | BF14: 90 | BG14: 90 | BH14: 90
A15: =IF('QUANTITIES-BUDGET'!A14=0,"",'QUANTITIES-BUDGET'!A14) -> A108 | B15: =IF('QUANTITIES-BUDGET'!B14=0,"",'QUANTITIES-BUDGET'!B14) ->  | C15: =IF('QUANTITIES-BUDGET'!C14=0,"",'QUANTITIES-BUDGET'!C14) -> Description of item A108 | D15: =IF('QUANTITIES-BUDGET'!D14=0,"",'QUANTITIES-BUDGET'!D14) -> m | E15: =IF('QUANTITIES-BUDGET'!K14=0,"",'QUANTITIES-BUDGET'!K14) -> 3420 | F15: 2536.768704 | G15: 883.2312963 | I15: 65 | J15: 71.5 | K15: 85.8 | L15: 84.5 | M15: 76.05 | N15: 30 | O15: 47.5 | P15: 80.6 | Q15: 82.11666667 | R15: 63.51666667 | S15: 51.18333333 | T15: 52.7 | U15: 70.07222222 | V15: 75.41111111 | W15: 65.60555556 | X15: 55.8 | Y15: 57.98518519 | Z15: 12 | AA15: 13.2 | AB15: 15.84 | AC15: 15.6 | AD15: 14.04 | AE15: 15 | AF15: 14.25 | AG15: 24.18 | AH15: 24.635 | AI15: 19.055 | AJ15: 15.355 | AK15: 15.81 | AL15: 21.02166667 | AM15: 22.62333333 | AN15: 19.68166667 | AO15: 16.74 | AP15: 32.84666667 | AQ15: 25.40666667 | AR15: 20.47333333 | AS15: 21.08 | AT15: 28.02888889 | AU15: 30.16444444 | AV15: 26.24222222 | AW15: 22.32 | AX15: 23.19407407 | AY15: 143.5 | AZ15: 113.5 | BA15: 117 | BB15: 160.1666667 | BC15: 173 | BD15: 148.8333333 | BE15: 12 | BF15: 13.2 | BG15: 15.84 | BH15: 15.6
A16: =IF('QUANTITIES-BUDGET'!A15=0,"",'QUANTITIES-BUDGET'!A15) -> A110 | B16: =IF('QUANTITIES-BUDGET'!B15=0,"",'QUANTITIES-BUDGET'!B15) ->  | C16: =IF('QUANTITIES-BUDGET'!C15=0,"",'QUANTITIES-BUDGET'!C15) -> Description of item A110 | D16: =IF('QUANTITIES-BUDGET'!D15=0,"",'QUANTITIES-BUDGET'!D15) -> m2 | E16: =IF('QUANTITIES-BUDGET'!K15=0,"",'QUANTITIES-BUDGET'!K15) -> 5130 | F16: 3907.626667 | G16: 1222.373333 | I16: 150 | J16: 165 | K16: 198 | L16: 195 | M16: 175.5 | N16: 60 | O16: 105 | P16: 186 | Q16: 189.5 | R16: 143.5 | S16: 113.5 | T16: 117 | U16: 160.1666667 | V16: 173 | W16: 148.8333333 | X16: 124.6666667 | Y16: 130.2222222 | Z16: 21 | AA16: 23.1 | AB16: 27.72 | AC16: 27.3 | AD16: 24.57 | AE16: 24 | AF16: 31.5 | AG16: 55.8 | AH16: 56.85 | AI16: 43.05 | AJ16: 34.05 | AK16: 35.1 | AL16: 48.05 | AM16: 51.9 | AN16: 44.65 | AO16: 37.4 | AP16: 75.8 | AQ16: 57.4 | AR16: 45.4 | AS16: 46.8 | AT16: 64.06666667 | AU16: 69.2 | AV16: 59.53333333 | AW16: 49.86666667 | AX16: 52.08888889 | AY16: 28.03333333 | AZ16: 21.7 | BA16: 22.4 | BB16: 31.7 | BC16: 34.37777778 | BD16: 29.21111111 | BE16: 21 | BF16: 23.1 | BG16: 27.72 | BH16: 27.3
A17: =IF('QUANTITIES-BUDGET'!A16=0,"",'QUANTITIES-BUDGET'!A16) -> A112 | B17: =IF('QUANTITIES-BUDGET'!B16=0,"",'QUANTITIES-BUDGET'!B16) ->  | C17: =IF('QUANTITIES-BUDGET'!C16=0,"",'QUANTITIES-BUDGET'!C16) -> Description of item A112 | D17: =IF('QUANTITIES-BUDGET'!D16=0,"",'QUANTITIES-BUDGET'!D16) -> m2 | E17: =IF('QUANTITIES-BUDGET'!K16=0,"",'QUANTITIES-BUDGET'!K16) -> 1596 | F17: 1134.883333 | G17: 461.1166667 | I17: 30 | J17: 33 | K17: 39.6 | L17: 39 | M17: 35.1 | N17: 10 | O17: 20 | P17: 37.2 | Q17: 37.9 | R17: 28.03333333 | S17: 21.7 | T17: 22.4 | U17: 31.7 | V17: 34.37777778 | W17: 29.21111111 | X17: 24.04444444 | Y17: 25.26666667 | Z17: 6 | AA17: 6.6 | AB17: 7.92 | AC17: 7.8 | AD17: 7.02 | AE17: 3 | AF17: 6 | AG17: 11.16 | AH17: 11.37 | AI17: 8.41 | AJ17: 6.51 | AK17: 6.72 | AL17: 9.51 | AM17: 10.31333333 | AN17: 8.763333333 | AO17: 7.213333333 | AP17: 15.16 | AQ17: 11.21333333 | AR17: 8.68 | AS17: 8.96 | AT17: 12.68 | AU17: 13.75111111 | AV17: 11.68444444 | AW17: 9.617777778 | AX17: 10.10666667 | AY17: 64.61666667 | AZ17: 59.61666667 | BA17: 60.9 | BB17: 64.72777778 | BC17: 67.43333333 | BD17: 64.57222222 | BE17: 6 | BF17: 6.6 | BG17: 7.92 | BH17: 7.8
A18: =IF('QUANTITIES-BUDGET'!A17=0,"",'QUANTITIES-BUDGET'!A17) -> A114 | B18: =IF('QUANTITIES-BUDGET'!B17=0,"",'QUANTITIES-BUDGET'!B17) ->  | C18: =IF('QUANTITIES-BUDGET'!C17=0,"",'QUANTITIES-BUDGET'!C17) -> Description of item A114 | D18: =IF('QUANTITIES-BUDGET'!D17=0,"",'QUANTITIES-BUDGET'!D17) -> m | E18: =IF('QUANTITIES-BUDGET'!K17=0,"",'QUANTITIES-BUDGET'!K17) -> 2920 | F18: 1992.850741 | G18: 927.1492593 | I18: 55 | J18: 60.5 | K18: 72.6 | L18: 71.5 | M18: 64.35 | N18: 58 | O18: 56.5 | P18: 68.2 | Q18: 69.48333333 | R18: 64.61666667 | S18: 59.61666667 | T18: 60.9 | U18: 64.72777778 | V18: 67.43333333 | W18: 64.57222222 | X18: 61.71111111 | Y18: 61.74814815 | Z18: 19.5 | AA18: 21.45 | AB18: 25.74 | AC18: 25.35 | AD18: 22.815 | AE18: 9 | AF18: 16.95 | AG18: 20.46 | AH18: 20.845 | AI18: 19.385 | AJ18: 17.885 | AK18: 18.27 | AL18: 19.41833333 | AM18: 20.23 | AN18: 19.37166667 | AO18: 18.51333333 | AP18: 27.79333333 | AQ18: 25.84666667 | AR18: 23.84666667 | AS18: 24.36 | AT18: 25.89111111 | AU18: 26.97333333 | AV18: 25.82888889 | AW18: 24.68444444 | AX18: 24.69925926 | AY18: 47.93333333 | AZ18: 44.76666667 | BA18: 44.23333333 | BB18: 44.61111111 | BC18: 46.42222222 | BD18: 46.27777778 | BE18: 19.5 | BF18: 21.45 | BG18: 25.74 | BH18: 25.35
A19: =IF('QUANTITIES-BUDGET'!A18=0,"",'QUANTITIES-BUDGET'!A18) -> B100 | B19: =IF('QUANTITIES-BUDGET'!B18=0,"",'QUANTITIES-BUDGET'!B18) ->  | C19: =IF('QUANTITIES-BUDGET'!C18=0,"",'QUANTITIES-BUDGET'!C18) -> Description of item B100 | D19: =IF('QUANTITIES-BUDGET'!D18=0,"",'QUANTITIES-BUDGET'!D18) -> m | E19: =IF('QUANTITIES-BUDGET'!K18=0,"",'QUANTITIES-BUDGET'!K18) -> 1824 | F19: 1589.818519 | G19: 234.1814815 | I19: 40 | J19: 44 | K19: 39.6 | L19: 52 | M19: 46.8 | N19: 45 | O19: 42.5 | P19: 45.2 | Q19: 46.13333333 | R19: 47.93333333 | S19: 44.76666667 | T19: 44.23333333 | U19: 44.61111111 | V19: 46.42222222 | W19: 46.27777778 | X19: 45.64444444 | Y19: 44.53703704 | Z19: 45 | AA19: 49.5 | AB19: 59.4 | AC19: 58.5 | AD19: 52.65 | AE19: 18 | AF19: 12.75 | AG19: 13.56 | AH19: 13.84 | AI19: 14.38 | AJ19: 13.43 | AK19: 13.27 | AL19: 13.38333333 | AM19: 13.92666667 | AN19: 13.88333333 | AO19: 13.69333333 | AP19: 18.45333333 | AQ19: 19.17333333 | AR19: 17.90666667 | AS19: 17.69333333 | AT19: 17.84444444 | AU19: 18.56888889 | AV19: 18.51111111 | AW19: 18.25777778 | AX19: 17.81481481 | AY19: 4.96 | AZ19: 4.726666667 | BA19: 4.673333333 | BB19: 4.544444444 | BC19: 4.697777778 | BD19: 4.766666667 | BE19: 45 | BF19: 49.5 | BG19: 59.4 | BH19: 58.5
A20: =IF('QUANTITIES-BUDGET'!A19=0,"",'QUANTITIES-BUDGET'!A19) -> B102 | B20: =IF('QUANTITIES-BUDGET'!B19=0,"",'QUANTITIES-BUDGET'!B19) ->  | C20: =IF('QUANTITIES-BUDGET'!C19=0,"",'QUANTITIES-BUDGET'!C19) -> Description of item B102 | D20: =IF('QUANTITIES-BUDGET'!D19=0,"",'QUANTITIES-BUDGET'!D19) -> set | E20: =IF('QUANTITIES-BUDGET'!K19=0,"",'QUANTITIES-BUDGET'!K19) -> 202.3 | F20: 238.6860741 | G20: -36.38607407 | I20: 4 | J20: 4.4 | K20: 3.96 | L20: 5.2 | M20: 4.68 | N20: 5 | O20: 4.5 | P20: 4.52 | Q20: 4.613333333 | R20: 4.96 | S20: 4.726666667 | T20: 4.673333333 | U20: 4.544444444 | V20: 4.697777778 | W20: 4.766666667 | X20: 4.786666667 | Y20: 4.648148148 | Z20: 9 | AA20: 9.9 | AB20: 11.88 | AC20: 11.7 | AD20: 10.53 | AE20: 3 | AF20: 1.35 | AG20: 1.356 | AH20: 1.384 | AI20: 1.488 | AJ20: 1.418 | AK20: 1.402 | AL20: 1.363333333 | AM20: 1.409333333 | AN20: 1.43 | AO20: 1.436 | AP20: 1.845333333 | AQ20: 1.984 | AR20: 1.890666667 | AS20: 1.869333333 | AT20: 1.817777778 | AU20: 1.879111111 | AV20: 1.906666667 | AW20: 1.914666667 | AX20: 1.859259259 | AY20: 3.613333333 | AZ20: 4.58 | BA20: 5.99 | BB20: 6.406666667 | BC20: 5.444444444 | BD20: 4.481111111 | BE20: 9 | BF20: 9.9 | BG20: 11.88 | BH20: 11.7
A21: =IF('QUANTITIES-BUDGET'!A20=0,"",'QUANTITIES-BUDGET'!A20) -> B104 | B21: =IF('QUANTITIES-BUDGET'!B20=0,"",'QUANTITIES-BUDGET'!B20) ->  | C21: =IF('QUANTITIES-BUDGET'!C20=0,"",'QUANTITIES-BUDGET'!C20) -> Description of item B104 | D21: =IF('QUANTITIES-BUDGET'!D20=0,"",'QUANTITIES-BUDGET'!D20) -> set | E21: =IF('QUANTITIES-BUDGET'!K20=0,"",'QUANTITIES-BUDGET'!K20) -> 714 | F21: 363.4971111 | G21: 350.5028889 | I21: 9 | J21: 9.9 | K21: 8.91 | L21: 3.6 | M21: 3.24 | N21: 4 | O21: 6.5 | P21: 7.47 | Q21: 5.25 | R21: 3.613333333 | S21: 4.58 | T21: 5.99 | U21: 6.406666667 | V21: 5.444444444 | W21: 4.481111111 | X21: 4.727777778 | Y21: 5.658888889 | Z21: 16.5 | AA21: 18.15 | AB21: 21.78 | AC21: 21.45 | AD21: 19.305 | AE21: 17.4 | AF21: 1.95 | AG21: 2.241 | AH21: 1.575 | AI21: 1.084 | AJ21: 1.374 | AK21: 1.797 | AL21: 1.922 | AM21: 1.633333333 | AN21: 1.344333333 | AO21: 1.418333333 | AP21: 2.1 | AQ21: 1.445333333 | AR21: 1.832 | AS21: 2.396 | AT21: 2.562666667 | AU21: 2.177777778 | AV21: 1.792444444 | AW21: 1.891111111 | AX21: 2.263555556 | AY21: 6.463333333 | AZ21: 5.513333333 | BA21: 5.492777778 | BB21: 6.584444444 | BC21: 6.988888889 | BD21: 6.417222222 | BE21: 16.5 | BF21: 18.15 | BG21: 21.78 | BH21: 21.45
A22: =IF('QUANTITIES-BUDGET'!A21=0,"",'QUANTITIES-BUDGET'!A21) -> B106 | B22: =IF('QUANTITIES-BUDGET'!B21=0,"",'QUANTITIES-BUDGET'!B21) ->  | C22: =IF('QUANTITIES-BUDGET'!C21=0,"",'QUANTITIES-BUDGET'!C21) -> Description of item B106 | D22: =IF('QUANTITIES-BUDGET'!D21=0,"",'QUANTITIES-BUDGET'!D21) ->  | E22: =IF('QUANTITIES-BUDGET'!K21=0,"",'QUANTITIES-BUDGET'!K21) -> 499.8 | F22: 311.7486111 | G22: 188.0513889 | I22: 6.5 | J22: 7.15 | K22: 6.435 | L22: 8.1 | M22: 7.29 | N22: 4 | O22: 5.25 | P22: 7.228333333 | Q22: 7.275 | R22: 6.463333333 | S22: 5.513333333 | T22: 5.492777778 | U22: 6.584444444 | V22: 6.988888889 | W22: 6.417222222 | X22: 5.823148148 | Y22: 5.863518519 | Z22: 12 | AA22: 13.2 | AB22: 11.88 | AC22: 15.6 | AD22: 14.04 | AE22: 13.5 | AF22: 1.575 | AG22: 2.1685 | AH22: 2.1825 | AI22: 1.939 | AJ22: 1.654 | AK22: 1.647833333 | AL22: 1.975333333 | AM22: 2.096666667 | AN22: 1.925166667 | AO22: 1.746944444 | AP22: 2.91 | AQ22: 2.585333333 | AR22: 2.205333333 | AS22: 2.197111111 | AT22: 2.633777778 | AU22: 2.795555556 | AV22: 2.566888889 | AW22: 2.329259259 | AX22: 2.345407407 | AY22: 5.371666667 | AZ22: 4.821666667 | BA22: 4.506222222 | BB22: 4.448555556 | BC22: 4.839111111 | BD22: 5.006777778 | BE22: 12 | BF22: 13.2 | BG22: 11.88 | BH22: 15.6
A23: =IF('QUANTITIES-BUDGET'!A22=0,"",'QUANTITIES-BUDGET'!A22) -> B108 | B23: =IF('QUANTITIES-BUDGET'!B22=0,"",'QUANTITIES-BUDGET'!B22) ->  | C23: =IF('QUANTITIES-BUDGET'!C22=0,"",'QUANTITIES-BUDGET'!C22) -> Description of item B108 | D23: =IF('QUANTITIES-BUDGET'!D22=0,"",'QUANTITIES-BUDGET'!D22) ->  | E23: =IF('QUANTITIES-BUDGET'!K22=0,"",'QUANTITIES-BUDGET'!K22) -> 190.4 | F23: 151.7546111 | G23: 38.64538889 | I23: 3.4 | J23: 3.74 | K23: 3.366 | L23: 5.85 | M23: 5.265 | N23: 5 | O23: 4.2 | P23: 4.318666667 | Q23: 4.827 | R23: 5.371666667 | S23: 4.821666667 | T23: 4.506222222 | U23: 4.448555556 | V23: 4.839111111 | W23: 5.006777778 | X23: 4.899851852 | Y23: 4.592148148 | Z23: 1.2 | AA23: 1.32 | AB23: 1.188 | AC23: 1.56 | AD23: 1.404 | AE23: 1.5 | AF23: 1.26 | AG23: 1.2956 | AH23: 1.4481 | AI23: 1.6115 | AJ23: 1.4465 | AK23: 1.351866667 | AL23: 1.334566667 | AM23: 1.451733333 | AN23: 1.502033333 | AO23: 1.469955556 | AP23: 1.9308 | AQ23: 2.148666667 | AR23: 1.928666667 | AS23: 1.802488889 | AT23: 1.779422222 | AU23: 1.935644444 | AV23: 2.002711111 | AW23: 1.959940741 | AX23: 1.836859259 | AY23: 3.910666667 | AZ23: 4.807333333 | BA23: 5.432777778 | BB23: 5.229111111 | BC23: 4.616 | BD23: 4.369 | BE23: 1.2 | BF23: 1.32 | BG23: 1.188 | BH23: 1.56
A24: =IF('QUANTITIES-BUDGET'!A23=0,"",'QUANTITIES-BUDGET'!A23) -> B110 | B24: =IF('QUANTITIES-BUDGET'!B23=0,"",'QUANTITIES-BUDGET'!B23) ->  | C24: =IF('QUANTITIES-BUDGET'!C23=0,"",'QUANTITIES-BUDGET'!C23) -> Description of item B110 | D24: =IF('QUANTITIES-BUDGET'!D23=0,"",'QUANTITIES-BUDGET'!D23) ->  | E24: =IF('QUANTITIES-BUDGET'!K23=0,"",'QUANTITIES-BUDGET'!K23) -> 952 | F24: 493.8421889 | G24: 458.1578111 | I24: 6.5 | J24: 7.15 | K24: 6.435 | L24: 3.06 | M24: 3.672 | N24: 5 | O24: 5.75 | P24: 5.548333333 | Q24: 4.389 | R24: 3.910666667 | S24: 4.807333333 | T24: 5.432777778 | U24: 5.229111111 | V24: 4.616 | W24: 4.369 | X24: 4.716925926 | Y24: 5.156407407 | Z24: 2.7 | AA24: 2.97 | AB24: 2.673 | AC24: 1.08 | AD24: 0.972 | AE24: 1.2 | AF24: 1.725 | AG24: 1.6645 | AH24: 1.3167 | AI24: 1.1732 | AJ24: 1.4422 | AK24: 1.629833333 | AL24: 1.568733333 | AM24: 1.3848 | AN24: 1.3107 | AO24: 1.415077778 | AP24: 1.7556 | AQ24: 1.564266667 | AR24: 1.922933333 | AS24: 2.173111111 | AT24: 2.091644444 | AU24: 1.8464 | AV24: 1.7476 | AW24: 1.88677037 | AX24: 2.062562963 | AY24: 65.66666667 | AZ24: 63.16666667 | BA24: 55.12222222 | BB24: 52.52222222 | BC24: 56.91111111 | BD24: 62.01111111 | BE24: 2.7 | BF24: 2.97 | BG24: 2.673 | BH24: 1.08
A25: =IF('QUANTITIES-BUDGET'!A24=0,"",'QUANTITIES-BUDGET'!A24) -> B112 | B25: =IF('QUANTITIES-BUDGET'!B24=0,"",'QUANTITIES-BUDGET'!B24) ->  | C25: =IF('QUANTITIES-BUDGET'!C24=0,"",'QUANTITIES-BUDGET'!C24) -> Description of item B112 | D25: =IF('QUANTITIES-BUDGET'!D24=0,"",'QUANTITIES-BUDGET'!D24) ->  | E25: =IF('QUANTITIES-BUDGET'!K24=0,0,'QUANTITIES-BUDGET'!K24) -> 4760 | F25: 1425.939111 | G25: 3334.060889 | I25: 40 | J25: 44 | K25: 39.6 | L25: 60 | M25: 72 | N25: 65 | O25: 52.5 | P25: 47.86666667 | Q25: 57.2 | R25: 65.66666667 | S25: 63.16666667 | T25: 55.12222222 | U25: 52.52222222 | V25: 56.91111111 | W25: 62.01111111 | X25: 61.31851852 | Y25: 56.93703704 | Z25: 1.95 | AA25: 2.145 | AB25: 1.9305 | AC25: 2.43 | AD25: 2.187 | AE25: 1.2 | AF25: 15.75 | AG25: 14.36 | AH25: 17.16 | AI25: 19.7 | AJ25: 18.95 | AK25: 16.53666667 | AL25: 15.75666667 | AM25: 17.07333333 | AN25: 18.60333333 | AO25: 18.39555556 | AP25: 22.88 | AQ25: 26.26666667 | AR25: 25.26666667 | AS25: 22.04888889 | AT25: 21.00888889 | AU25: 22.76444444 | AV25: 24.80444444 | AW25: 24.52740741 | AX25: 22.77481481 | AY25: 12.8 | AZ25: 12.13333333 | BA25: 10.52444444 | BB25: 10.33777778 | BC25: 11.27111111 | BD25: 12.12444444 | BE25: 1.95 | BF25: 2.145 | BG25: 1.9305 | BH25: 2.43
A26: =IF('QUANTITIES-BUDGET'!A25=0,"",'QUANTITIES-BUDGET'!A25) -> B114 | B26: =IF('QUANTITIES-BUDGET'!B25=0,"",'QUANTITIES-BUDGET'!B25) ->  | C26: =IF('QUANTITIES-BUDGET'!C25=0,"",'QUANTITIES-BUDGET'!C25) -> Description of item B114 | D26: =IF('QUANTITIES-BUDGET'!D25=0,"",'QUANTITIES-BUDGET'!D25) ->  | E26: =IF('QUANTITIES-BUDGET'!K25=0,0,'QUANTITIES-BUDGET'!K25) -> 238 | F26: 321.9886556 | G26: -83.98865556 | I26: 8 | J26: 8.8 | K26: 7.92 | L26: 12 | M26: 14.4 | N26: 12 | O26: 10 | P26: 9.573333333 | Q26: 11.44 | R26: 12.8 | S26: 12.13333333 | T26: 10.52444444 | U26: 10.33777778 | V26: 11.27111111 | W26: 12.12444444 | X26: 11.81925926 | Y26: 10.99851852 | Z26: 1.02 | AA26: 1.122 | AB26: 1.0098 | AC26: 1.755 | AD26: 1.5795 | AE26: 1.5 | AF26: 3 | AG26: 2.872 | AH26: 3.432 | AI26: 3.84 | AJ26: 3.64 | AK26: 3.157333333 | AL26: 3.101333333 | AM26: 3.381333333 | AN26: 3.637333333 | AO26: 3.545777778 | AP26: 4.576 | AQ26: 5.12 | AR26: 4.853333333 | AS26: 4.209777778 | AT26: 4.135111111 | AU26: 4.508444444 | AV26: 4.849777778 | AW26: 4.727703704 | AX26: 4.399407407 | AY26: 8.833333333 | AZ26: 8.833333333 | BA26: 7.827777778 | BB26: 6.877777778 | BC26: 7.322222222 | BD26: 8.272222222 | BE26: 1.02 | BF26: 1.122 | BG26: 1.0098 | BH26: 1.755
A27: =IF('QUANTITIES-BUDGET'!A26=0,"",'QUANTITIES-BUDGET'!A26) -> B116 | B27: =IF('QUANTITIES-BUDGET'!B26=0,"",'QUANTITIES-BUDGET'!B26) ->  | C27: =IF('QUANTITIES-BUDGET'!C26=0,"",'QUANTITIES-BUDGET'!C26) -> Description of item B116 | D27: =IF('QUANTITIES-BUDGET'!D26=0,"",'QUANTITIES-BUDGET'!D26) ->  | E27: =IF('QUANTITIES-BUDGET'!K26=0,0,'QUANTITIES-BUDGET'!K26) -> 595 | F27: 250.5061556 | G27: 344.4938444 | I27: 5 | J27: 5.5 | K27: 4.95 | L27: 7.5 | M27: 9 | N27: 10 | O27: 7.5 | P27: 5.983333333 | Q27: 7.15 | R27: 8.833333333 | S27: 8.833333333 | T27: 7.827777778 | U27: 6.877777778 | V27: 7.322222222 | W27: 8.272222222 | X27: 8.498148148 | Y27: 7.846296296 | Z27: 1.95 | AA27: 2.145 | AB27: 1.9305 | AC27: 0.918 | AD27: 1.1016 | AE27: 1.5 | AF27: 2.288 | AG27: 2.826666667 | AH27: 2.826666667 | AI27: 2.504888889 | AJ27: 2.200888889 | AK27: 2.343111111 | AL27: 2.647111111 | AM27: 2.719407407 | AN27: 2.510814815 | AO27: 0 | AP27: 2.86 | AQ27: 3.533333333 | AR27: 3.533333333 | AS27: 3.131111111 | AT27: 2.751111111 | AU27: 2.928888889 | AV27: 3.308888889 | AW27: 3.399259259 | AX27: 3.138518519 | AY27: 10.26666667 | AZ27: 10.1 | BA27: 8.893333333 | BB27: 8.086666667 | BC27: 8.675555556 | BD27: 9.648888889 | BE27: 1.95 | BF27: 2.145 | BG27: 1.9305 | BH27: 0.918
A28: =IF('QUANTITIES-BUDGET'!A27=0,"",'QUANTITIES-BUDGET'!A27) -> B118 | B28: =IF('QUANTITIES-BUDGET'!B27=0,"",'QUANTITIES-BUDGET'!B27) ->  | C28: =IF('QUANTITIES-BUDGET'!C27=0,"",'QUANTITIES-BUDGET'!C27) -> Description of item B118 | D28: =IF('QUANTITIES-BUDGET'!D27=0,"",'QUANTITIES-BUDGET'!D27) ->  | E28: =IF('QUANTITIES-BUDGET'!K27=0,0,'QUANTITIES-BUDGET'!K27) -> 297.5 | F28: 311.9564444 | G28: -14.45644444 | I28: 6 | J28: 6.6 | K28: 5.94 | L28: 9 | M28: 10.8 | N28: 11 | O28: 8.5 | P28: 7.18 | Q28: 8.58 | R28: 10.26666667 | S28: 10.1 | T28: 8.893333333 | U28: 8.086666667 | V28: 8.675555556 | W28: 9.648888889 | X28: 9.753333333 | Y28: 9.026666667 | Z28: 12 | AA28: 13.2 | AB28: 11.88 | AC28: 18 | AD28: 21.6 | AE28: 19.5 | AY28: 2.32 | AZ28: 2.42 | BA28: 2.178666667 | BB28: 1.750666667 | BC28: 1.824 | BD28: 2.152 | BE28: 12 | BF28: 13.2 | BG28: 11.88 | BH28: 18
A29: =IF('QUANTITIES-BUDGET'!A28=0,"",'QUANTITIES-BUDGET'!A28) -> B120 | B29: =IF('QUANTITIES-BUDGET'!B28=0,"",'QUANTITIES-BUDGET'!B28) ->  | C29: =IF('QUANTITIES-BUDGET'!C28=0,"",'QUANTITIES-BUDGET'!C28) -> Description of item B120 | D29: =IF('QUANTITIES-BUDGET'!D28=0,"",'QUANTITIES-BUDGET'!D28) ->  | E29: =IF('QUANTITIES-BUDGET'!K28=0,0,'QUANTITIES-BUDGET'!K28) -> 142.8 | F29: 62.94 | G29: 79.86 | I29: 1.2 | J29: 1.32 | K29: 1.188 | L29: 1.8 | M29: 2.16 | N29: 3 | O29: 2.1 | P29: 1.436 | Q29: 1.716 | R29: 2.32 | S29: 2.42 | T29: 2.178666667 | U29: 1.750666667 | V29: 1.824 | W29: 2.152 | X29: 2.306222222 | Y29: 2.116444444 | Z29: 2.4 | AA29: 2.64 | AB29: 2.376 | AC29: 3.6 | AD29: 4.32 | AE29: 3.6 | BE29: 2.4 | BF29: 2.64 | BG29: 2.376 | BH29: 3.6
A30: =IF('QUANTITIES-BUDGET'!A29=0,"",'QUANTITIES-BUDGET'!A29) -> C100 | B30: =IF('QUANTITIES-BUDGET'!B29=0,"",'QUANTITIES-BUDGET'!B29) ->  | C30: =IF('QUANTITIES-BUDGET'!C29=0,"",'QUANTITIES-BUDGET'!C29) -> Description of item C100 | D30: =IF('QUANTITIES-BUDGET'!D29=0,"",'QUANTITIES-BUDGET'!D29) ->  | E30: =IF('QUANTITIES-BUDGET'!K29=0,0,'QUANTITIES-BUDGET'!K29) -> 57 | F30: =SUM(I30:BP30) -> 0 | G30: 57
A31: =IF('QUANTITIES-BUDGET'!A30=0,"",'QUANTITIES-BUDGET'!A30) -> C200 | B31: =IF('QUANTITIES-BUDGET'!B30=0,"",'QUANTITIES-BUDGET'!B30) ->  | C31: =IF('QUANTITIES-BUDGET'!C30=0,"",'QUANTITIES-BUDGET'!C30) -> Description of item C200 | D31: =IF('QUANTITIES-BUDGET'!D30=0,"",'QUANTITIES-BUDGET'!D30) ->  | E31: =IF('QUANTITIES-BUDGET'!K30=0,0,'QUANTITIES-BUDGET'!K30) -> 2470 | F31: 0 | G31: 2470
A32: =IF('QUANTITIES-BUDGET'!A31=0,"",'QUANTITIES-BUDGET'!A31) -> C300 | B32: =IF('QUANTITIES-BUDGET'!B31=0,"",'QUANTITIES-BUDGET'!B31) ->  | C32: =IF('QUANTITIES-BUDGET'!C31=0,"",'QUANTITIES-BUDGET'!C31) -> Description of item C300 | D32: =IF('QUANTITIES-BUDGET'!D31=0,"",'QUANTITIES-BUDGET'!D31) ->  | E32: =IF('QUANTITIES-BUDGET'!K31=0,0,'QUANTITIES-BUDGET'!K31) -> 5000 | F32: 0 | G32: 5000
A33: =IF('QUANTITIES-BUDGET'!A32=0,"",'QUANTITIES-BUDGET'!A32) -> C400 | B33: =IF('QUANTITIES-BUDGET'!B32=0,"",'QUANTITIES-BUDGET'!B32) ->  | C33: =IF('QUANTITIES-BUDGET'!C32=0,"",'QUANTITIES-BUDGET'!C32) -> Description of item C400 | D33: =IF('QUANTITIES-BUDGET'!D32=0,"",'QUANTITIES-BUDGET'!D32) ->  | E33: =IF('QUANTITIES-BUDGET'!K32=0,0,'QUANTITIES-BUDGET'!K32) -> 1200 | F33: 0 | G33: 1200
A34: =IF('QUANTITIES-BUDGET'!A33=0,"",'QUANTITIES-BUDGET'!A33) -> C500 | B34: =IF('QUANTITIES-BUDGET'!B33=0,"",'QUANTITIES-BUDGET'!B33) ->  | C34: =IF('QUANTITIES-BUDGET'!C33=0,"",'QUANTITIES-BUDGET'!C33) -> Description of item C500 | D34: =IF('QUANTITIES-BUDGET'!D33=0,"",'QUANTITIES-BUDGET'!D33) ->  | E34: =IF('QUANTITIES-BUDGET'!K33=0,0,'QUANTITIES-BUDGET'!K33) -> 1600 | F34: 0 | G34: 1600
A35: =IF('QUANTITIES-BUDGET'!A34=0,"",'QUANTITIES-BUDGET'!A34) ->  | B35: =IF('QUANTITIES-BUDGET'!B34=0,"",'QUANTITIES-BUDGET'!B34) ->  | C35: =IF('QUANTITIES-BUDGET'!C34=0,"",'QUANTITIES-BUDGET'!C34) ->  | D35: =IF('QUANTITIES-BUDGET'!D34=0,"",'QUANTITIES-BUDGET'!D34) ->  | E35: =IF('QUANTITIES-BUDGET'!K34=0,0,'QUANTITIES-BUDGET'!K34) -> 0 | F35: 0 | G35: 0
A36: =IF('QUANTITIES-BUDGET'!A35=0,"",'QUANTITIES-BUDGET'!A35) ->  | B36: =IF('QUANTITIES-BUDGET'!B35=0,"",'QUANTITIES-BUDGET'!B35) ->  | C36: =IF('QUANTITIES-BUDGET'!C35=0,"",'QUANTITIES-BUDGET'!C35) ->  | D36: =IF('QUANTITIES-BUDGET'!D35=0,"",'QUANTITIES-BUDGET'!D35) ->  | E36: =IF('QUANTITIES-BUDGET'!K35=0,0,'QUANTITIES-BUDGET'!K35) -> 0 | F36: 0 | G36: 0
A37: =IF('QUANTITIES-BUDGET'!A36=0,"",'QUANTITIES-BUDGET'!A36) ->  | B37: =IF('QUANTITIES-BUDGET'!B36=0,"",'QUANTITIES-BUDGET'!B36) ->  | C37: =IF('QUANTITIES-BUDGET'!C36=0,"",'QUANTITIES-BUDGET'!C36) ->  | D37: =IF('QUANTITIES-BUDGET'!D36=0,"",'QUANTITIES-BUDGET'!D36) ->  | E37: =IF('QUANTITIES-BUDGET'!K36=0,0,'QUANTITIES-BUDGET'!K36) -> 0 | F37: 0 | G37: 0
A38: =IF('QUANTITIES-BUDGET'!A37=0,"",'QUANTITIES-BUDGET'!A37) ->  | B38: =IF('QUANTITIES-BUDGET'!B37=0,"",'QUANTITIES-BUDGET'!B37) ->  | C38: =IF('QUANTITIES-BUDGET'!C37=0,"",'QUANTITIES-BUDGET'!C37) ->  | D38: =IF('QUANTITIES-BUDGET'!D37=0,"",'QUANTITIES-BUDGET'!D37) ->  | E38: =IF('QUANTITIES-BUDGET'!K37=0,0,'QUANTITIES-BUDGET'!K37) -> 0 | F38: 0 | G38: 0
A39: =IF('QUANTITIES-BUDGET'!A38=0,"",'QUANTITIES-BUDGET'!A38) ->  | B39: =IF('QUANTITIES-BUDGET'!B38=0,"",'QUANTITIES-BUDGET'!B38) ->  | C39: =IF('QUANTITIES-BUDGET'!C38=0,"",'QUANTITIES-BUDGET'!C38) ->  | D39: =IF('QUANTITIES-BUDGET'!D38=0,"",'QUANTITIES-BUDGET'!D38) ->  | E39: =IF('QUANTITIES-BUDGET'!K38=0,0,'QUANTITIES-BUDGET'!K38) -> 0 | F39: 0 | G39: 0
A40: =IF('QUANTITIES-BUDGET'!A39=0,"",'QUANTITIES-BUDGET'!A39) ->  | B40: =IF('QUANTITIES-BUDGET'!B39=0,"",'QUANTITIES-BUDGET'!B39) ->  | C40: =IF('QUANTITIES-BUDGET'!C39=0,"",'QUANTITIES-BUDGET'!C39) ->  | D40: =IF('QUANTITIES-BUDGET'!D39=0,"",'QUANTITIES-BUDGET'!D39) ->  | E40: =IF('QUANTITIES-BUDGET'!K39=0,0,'QUANTITIES-BUDGET'!K39) -> 0 | F40: 0 | G40: 0
A41: =IF('QUANTITIES-BUDGET'!A40=0,"",'QUANTITIES-BUDGET'!A40) ->  | B41: =IF('QUANTITIES-BUDGET'!B40=0,"",'QUANTITIES-BUDGET'!B40) ->  | C41: =IF('QUANTITIES-BUDGET'!C40=0,"",'QUANTITIES-BUDGET'!C40) ->  | D41: =IF('QUANTITIES-BUDGET'!D40=0,"",'QUANTITIES-BUDGET'!D40) ->  | E41: =IF('QUANTITIES-BUDGET'!K40=0,0,'QUANTITIES-BUDGET'!K40) -> 0 | F41: 0 | G41: 0
A42: =IF('QUANTITIES-BUDGET'!A41=0,"",'QUANTITIES-BUDGET'!A41) ->  | B42: =IF('QUANTITIES-BUDGET'!B41=0,"",'QUANTITIES-BUDGET'!B41) ->  | C42: =IF('QUANTITIES-BUDGET'!C41=0,"",'QUANTITIES-BUDGET'!C41) ->  | D42: =IF('QUANTITIES-BUDGET'!D41=0,"",'QUANTITIES-BUDGET'!D41) ->  | E42: =IF('QUANTITIES-BUDGET'!K41=0,0,'QUANTITIES-BUDGET'!K41) -> 0 | F42: 0 | G42: 0
A43: =IF('QUANTITIES-BUDGET'!A42=0,"",'QUANTITIES-BUDGET'!A42) ->  | B43: =IF('QUANTITIES-BUDGET'!B42=0,"",'QUANTITIES-BUDGET'!B42) ->  | C43: =IF('QUANTITIES-BUDGET'!C42=0,"",'QUANTITIES-BUDGET'!C42) ->  | D43: =IF('QUANTITIES-BUDGET'!D42=0,"",'QUANTITIES-BUDGET'!D42) ->  | E43: =IF('QUANTITIES-BUDGET'!K42=0,0,'QUANTITIES-BUDGET'!K42) -> 0 | F43: 0 | G43: 0
A44: =IF('QUANTITIES-BUDGET'!A43=0,"",'QUANTITIES-BUDGET'!A43) ->  | B44: =IF('QUANTITIES-BUDGET'!B43=0,"",'QUANTITIES-BUDGET'!B43) ->  | C44: =IF('QUANTITIES-BUDGET'!C43=0,"",'QUANTITIES-BUDGET'!C43) ->  | D44: =IF('QUANTITIES-BUDGET'!D43=0,"",'QUANTITIES-BUDGET'!D43) ->  | E44: =IF('QUANTITIES-BUDGET'!K43=0,0,'QUANTITIES-BUDGET'!K43) -> 0 | F44: 0 | G44: 0
A45: =IF('QUANTITIES-BUDGET'!A44=0,"",'QUANTITIES-BUDGET'!A44) ->  | B45: =IF('QUANTITIES-BUDGET'!B44=0,"",'QUANTITIES-BUDGET'!B44) ->  | C45: =IF('QUANTITIES-BUDGET'!C44=0,"",'QUANTITIES-BUDGET'!C44) ->  | D45: =IF('QUANTITIES-BUDGET'!D44=0,"",'QUANTITIES-BUDGET'!D44) ->  | E45: =IF('QUANTITIES-BUDGET'!K44=0,0,'QUANTITIES-BUDGET'!K44) -> 0 | F45: 0 | G45: 0
A46: =IF('QUANTITIES-BUDGET'!A45=0,"",'QUANTITIES-BUDGET'!A45) ->  | B46: =IF('QUANTITIES-BUDGET'!B45=0,"",'QUANTITIES-BUDGET'!B45) ->  | C46: =IF('QUANTITIES-BUDGET'!C45=0,"",'QUANTITIES-BUDGET'!C45) ->  | D46: =IF('QUANTITIES-BUDGET'!D45=0,"",'QUANTITIES-BUDGET'!D45) ->  | E46: =IF('QUANTITIES-BUDGET'!K45=0,0,'QUANTITIES-BUDGET'!K45) -> 0 | F46: 0 | G46: 0
A47: =IF('QUANTITIES-BUDGET'!A46=0,"",'QUANTITIES-BUDGET'!A46) ->  | B47: =IF('QUANTITIES-BUDGET'!B46=0,"",'QUANTITIES-BUDGET'!B46) ->  | C47: =IF('QUANTITIES-BUDGET'!C46=0,"",'QUANTITIES-BUDGET'!C46) ->  | D47: =IF('QUANTITIES-BUDGET'!D46=0,"",'QUANTITIES-BUDGET'!D46) ->  | E47: =IF('QUANTITIES-BUDGET'!K46=0,0,'QUANTITIES-BUDGET'!K46) -> 0 | F47: 0 | G47: 0
A48: =IF('QUANTITIES-BUDGET'!A47=0,"",'QUANTITIES-BUDGET'!A47) ->  | B48: =IF('QUANTITIES-BUDGET'!B47=0,"",'QUANTITIES-BUDGET'!B47) ->  | C48: =IF('QUANTITIES-BUDGET'!C47=0,"",'QUANTITIES-BUDGET'!C47) ->  | D48: =IF('QUANTITIES-BUDGET'!D47=0,"",'QUANTITIES-BUDGET'!D47) ->  | E48: =IF('QUANTITIES-BUDGET'!K47=0,0,'QUANTITIES-BUDGET'!K47) -> 0 | F48: 0 | G48: 0
A49: =IF('QUANTITIES-BUDGET'!A48=0,"",'QUANTITIES-BUDGET'!A48) ->  | B49: =IF('QUANTITIES-BUDGET'!B48=0,"",'QUANTITIES-BUDGET'!B48) ->  | C49: =IF('QUANTITIES-BUDGET'!C48=0,"",'QUANTITIES-BUDGET'!C48) ->  | D49: =IF('QUANTITIES-BUDGET'!D48=0,"",'QUANTITIES-BUDGET'!D48) ->  | E49: =IF('QUANTITIES-BUDGET'!K48=0,0,'QUANTITIES-BUDGET'!K48) -> 0 | F49: 0 | G49: 0
A50: =IF('QUANTITIES-BUDGET'!A49=0,"",'QUANTITIES-BUDGET'!A49) ->  | B50: =IF('QUANTITIES-BUDGET'!B49=0,"",'QUANTITIES-BUDGET'!B49) ->  | C50: =IF('QUANTITIES-BUDGET'!C49=0,"",'QUANTITIES-BUDGET'!C49) ->  | D50: =IF('QUANTITIES-BUDGET'!D49=0,"",'QUANTITIES-BUDGET'!D49) ->  | E50: =IF('QUANTITIES-BUDGET'!K49=0,0,'QUANTITIES-BUDGET'!K49) -> 0 | F50: 0 | G50: 0
A51: =IF('QUANTITIES-BUDGET'!A50=0,"",'QUANTITIES-BUDGET'!A50) ->  | B51: =IF('QUANTITIES-BUDGET'!B50=0,"",'QUANTITIES-BUDGET'!B50) ->  | C51: =IF('QUANTITIES-BUDGET'!C50=0,"",'QUANTITIES-BUDGET'!C50) ->  | D51: =IF('QUANTITIES-BUDGET'!D50=0,"",'QUANTITIES-BUDGET'!D50) ->  | E51: =IF('QUANTITIES-BUDGET'!K50=0,0,'QUANTITIES-BUDGET'!K50) -> 0 | F51: 0 | G51: 0
A52: =IF('QUANTITIES-BUDGET'!A51=0,"",'QUANTITIES-BUDGET'!A51) ->  | B52: =IF('QUANTITIES-BUDGET'!B51=0,"",'QUANTITIES-BUDGET'!B51) ->  | C52: =IF('QUANTITIES-BUDGET'!C51=0,"",'QUANTITIES-BUDGET'!C51) ->  | D52: =IF('QUANTITIES-BUDGET'!D51=0,"",'QUANTITIES-BUDGET'!D51) ->  | E52: =IF('QUANTITIES-BUDGET'!K51=0,0,'QUANTITIES-BUDGET'!K51) -> 0 | F52: 0 | G52: 0
A53: =IF('QUANTITIES-BUDGET'!A52=0,"",'QUANTITIES-BUDGET'!A52) ->  | B53: =IF('QUANTITIES-BUDGET'!B52=0,"",'QUANTITIES-BUDGET'!B52) ->  | C53: =IF('QUANTITIES-BUDGET'!C52=0,"",'QUANTITIES-BUDGET'!C52) ->  | D53: =IF('QUANTITIES-BUDGET'!D52=0,"",'QUANTITIES-BUDGET'!D52) ->  | E53: =IF('QUANTITIES-BUDGET'!K52=0,0,'QUANTITIES-BUDGET'!K52) -> 0 | F53: 0 | G53: 0
A54: =IF('QUANTITIES-BUDGET'!A53=0,"",'QUANTITIES-BUDGET'!A53) ->  | B54: =IF('QUANTITIES-BUDGET'!B53=0,"",'QUANTITIES-BUDGET'!B53) ->  | C54: =IF('QUANTITIES-BUDGET'!C53=0,"",'QUANTITIES-BUDGET'!C53) ->  | D54: =IF('QUANTITIES-BUDGET'!D53=0,"",'QUANTITIES-BUDGET'!D53) ->  | E54: =IF('QUANTITIES-BUDGET'!K53=0,0,'QUANTITIES-BUDGET'!K53) -> 0 | F54: 0 | G54: 0
A55: =IF('QUANTITIES-BUDGET'!A54=0,"",'QUANTITIES-BUDGET'!A54) ->  | B55: =IF('QUANTITIES-BUDGET'!B54=0,"",'QUANTITIES-BUDGET'!B54) ->  | C55: =IF('QUANTITIES-BUDGET'!C54=0,"",'QUANTITIES-BUDGET'!C54) ->  | D55: =IF('QUANTITIES-BUDGET'!D54=0,"",'QUANTITIES-BUDGET'!D54) ->  | E55: =IF('QUANTITIES-BUDGET'!K54=0,0,'QUANTITIES-BUDGET'!K54) -> 0 | F55: 0 | G55: 0
A56: =IF('QUANTITIES-BUDGET'!A55=0,"",'QUANTITIES-BUDGET'!A55) ->  | B56: =IF('QUANTITIES-BUDGET'!B55=0,"",'QUANTITIES-BUDGET'!B55) ->  | C56: =IF('QUANTITIES-BUDGET'!C55=0,"",'QUANTITIES-BUDGET'!C55) ->  | D56: =IF('QUANTITIES-BUDGET'!D55=0,"",'QUANTITIES-BUDGET'!D55) ->  | E56: =IF('QUANTITIES-BUDGET'!K55=0,0,'QUANTITIES-BUDGET'!K55) -> 0 | F56: 0 | G56: 0
A57: =IF('QUANTITIES-BUDGET'!A56=0,"",'QUANTITIES-BUDGET'!A56) ->  | B57: =IF('QUANTITIES-BUDGET'!B56=0,"",'QUANTITIES-BUDGET'!B56) ->  | C57: =IF('QUANTITIES-BUDGET'!C56=0,"",'QUANTITIES-BUDGET'!C56) ->  | D57: =IF('QUANTITIES-BUDGET'!D56=0,"",'QUANTITIES-BUDGET'!D56) ->  | E57: =IF('QUANTITIES-BUDGET'!K56=0,0,'QUANTITIES-BUDGET'!K56) -> 0 | F57: 0 | G57: 0
A58: =IF('QUANTITIES-BUDGET'!A57=0,"",'QUANTITIES-BUDGET'!A57) ->  | B58: =IF('QUANTITIES-BUDGET'!B57=0,"",'QUANTITIES-BUDGET'!B57) ->  | C58: =IF('QUANTITIES-BUDGET'!C57=0,"",'QUANTITIES-BUDGET'!C57) ->  | D58: =IF('QUANTITIES-BUDGET'!D57=0,"",'QUANTITIES-BUDGET'!D57) ->  | E58: =IF('QUANTITIES-BUDGET'!K57=0,0,'QUANTITIES-BUDGET'!K57) -> 0 | F58: 0 | G58: 0
A59: =IF('QUANTITIES-BUDGET'!A58=0,"",'QUANTITIES-BUDGET'!A58) ->  | B59: =IF('QUANTITIES-BUDGET'!B58=0,"",'QUANTITIES-BUDGET'!B58) ->  | C59: =IF('QUANTITIES-BUDGET'!C58=0,"",'QUANTITIES-BUDGET'!C58) ->  | D59: =IF('QUANTITIES-BUDGET'!D58=0,"",'QUANTITIES-BUDGET'!D58) ->  | E59: =IF('QUANTITIES-BUDGET'!K58=0,0,'QUANTITIES-BUDGET'!K58) -> 0 | F59: 0 | G59: 0
A60: =IF('QUANTITIES-BUDGET'!A59=0,"",'QUANTITIES-BUDGET'!A59) ->  | B60: =IF('QUANTITIES-BUDGET'!B59=0,"",'QUANTITIES-BUDGET'!B59) ->  | C60: =IF('QUANTITIES-BUDGET'!C59=0,"",'QUANTITIES-BUDGET'!C59) ->  | D60: =IF('QUANTITIES-BUDGET'!D59=0,"",'QUANTITIES-BUDGET'!D59) ->  | E60: =IF('QUANTITIES-BUDGET'!K59=0,0,'QUANTITIES-BUDGET'!K59) -> 0 | F60: 0 | G60: 0
A61: =IF('QUANTITIES-BUDGET'!A60=0,"",'QUANTITIES-BUDGET'!A60) ->  | B61: =IF('QUANTITIES-BUDGET'!B60=0,"",'QUANTITIES-BUDGET'!B60) ->  | C61: =IF('QUANTITIES-BUDGET'!C60=0,"",'QUANTITIES-BUDGET'!C60) ->  | D61: =IF('QUANTITIES-BUDGET'!D60=0,"",'QUANTITIES-BUDGET'!D60) ->  | E61: =IF('QUANTITIES-BUDGET'!K60=0,0,'QUANTITIES-BUDGET'!K60) -> 0 | F61: 0 | G61: 0
A62: =IF('QUANTITIES-BUDGET'!A61=0,"",'QUANTITIES-BUDGET'!A61) ->  | B62: =IF('QUANTITIES-BUDGET'!B61=0,"",'QUANTITIES-BUDGET'!B61) ->  | C62: =IF('QUANTITIES-BUDGET'!C61=0,"",'QUANTITIES-BUDGET'!C61) ->  | D62: =IF('QUANTITIES-BUDGET'!D61=0,"",'QUANTITIES-BUDGET'!D61) ->  | E62: =IF('QUANTITIES-BUDGET'!K61=0,0,'QUANTITIES-BUDGET'!K61) -> 0 | F62: 0 | G62: 0
A63: =IF('QUANTITIES-BUDGET'!A62=0,"",'QUANTITIES-BUDGET'!A62) ->  | B63: =IF('QUANTITIES-BUDGET'!B62=0,"",'QUANTITIES-BUDGET'!B62) ->  | C63: =IF('QUANTITIES-BUDGET'!C62=0,"",'QUANTITIES-BUDGET'!C62) ->  | D63: =IF('QUANTITIES-BUDGET'!D62=0,"",'QUANTITIES-BUDGET'!D62) ->  | E63: =IF('QUANTITIES-BUDGET'!K62=0,0,'QUANTITIES-BUDGET'!K62) -> 0 | F63: 0 | G63: 0
A64: =IF('QUANTITIES-BUDGET'!A63=0,"",'QUANTITIES-BUDGET'!A63) ->  | B64: =IF('QUANTITIES-BUDGET'!B63=0,"",'QUANTITIES-BUDGET'!B63) ->  | C64: =IF('QUANTITIES-BUDGET'!C63=0,"",'QUANTITIES-BUDGET'!C63) ->  | D64: =IF('QUANTITIES-BUDGET'!D63=0,"",'QUANTITIES-BUDGET'!D63) ->  | E64: =IF('QUANTITIES-BUDGET'!K63=0,0,'QUANTITIES-BUDGET'!K63) -> 0 | F64: 0 | G64: 0
A65: =IF('QUANTITIES-BUDGET'!A64=0,"",'QUANTITIES-BUDGET'!A64) ->  | B65: =IF('QUANTITIES-BUDGET'!B64=0,"",'QUANTITIES-BUDGET'!B64) ->  | C65: =IF('QUANTITIES-BUDGET'!C64=0,"",'QUANTITIES-BUDGET'!C64) ->  | D65: =IF('QUANTITIES-BUDGET'!D64=0,"",'QUANTITIES-BUDGET'!D64) ->  | E65: =IF('QUANTITIES-BUDGET'!K64=0,0,'QUANTITIES-BUDGET'!K64) -> 0 | F65: 0 | G65: 0
A66: =IF('QUANTITIES-BUDGET'!A65=0,"",'QUANTITIES-BUDGET'!A65) ->  | B66: =IF('QUANTITIES-BUDGET'!B65=0,"",'QUANTITIES-BUDGET'!B65) ->  | C66: =IF('QUANTITIES-BUDGET'!C65=0,"",'QUANTITIES-BUDGET'!C65) ->  | D66: =IF('QUANTITIES-BUDGET'!D65=0,"",'QUANTITIES-BUDGET'!D65) ->  | E66: =IF('QUANTITIES-BUDGET'!K65=0,0,'QUANTITIES-BUDGET'!K65) -> 0 | F66: 0 | G66: 0
A67: =IF('QUANTITIES-BUDGET'!A66=0,"",'QUANTITIES-BUDGET'!A66) ->  | B67: =IF('QUANTITIES-BUDGET'!B66=0,"",'QUANTITIES-BUDGET'!B66) ->  | C67: =IF('QUANTITIES-BUDGET'!C66=0,"",'QUANTITIES-BUDGET'!C66) ->  | D67: =IF('QUANTITIES-BUDGET'!D66=0,"",'QUANTITIES-BUDGET'!D66) ->  | E67: =IF('QUANTITIES-BUDGET'!K66=0,0,'QUANTITIES-BUDGET'!K66) -> 0 | F67: 0 | G67: 0
A68: =IF('QUANTITIES-BUDGET'!A67=0,"",'QUANTITIES-BUDGET'!A67) ->  | B68: =IF('QUANTITIES-BUDGET'!B67=0,"",'QUANTITIES-BUDGET'!B67) ->  | C68: =IF('QUANTITIES-BUDGET'!C67=0,"",'QUANTITIES-BUDGET'!C67) ->  | D68: =IF('QUANTITIES-BUDGET'!D67=0,"",'QUANTITIES-BUDGET'!D67) ->  | E68: =IF('QUANTITIES-BUDGET'!K67=0,0,'QUANTITIES-BUDGET'!K67) -> 0 | F68: 0 | G68: 0
A69: =IF('QUANTITIES-BUDGET'!A68=0,"",'QUANTITIES-BUDGET'!A68) ->  | B69: =IF('QUANTITIES-BUDGET'!B68=0,"",'QUANTITIES-BUDGET'!B68) ->  | C69: =IF('QUANTITIES-BUDGET'!C68=0,"",'QUANTITIES-BUDGET'!C68) ->  | D69: =IF('QUANTITIES-BUDGET'!D68=0,"",'QUANTITIES-BUDGET'!D68) ->  | E69: =IF('QUANTITIES-BUDGET'!K68=0,0,'QUANTITIES-BUDGET'!K68) -> 0 | F69: 0 | G69: 0
A70: =IF('QUANTITIES-BUDGET'!A69=0,"",'QUANTITIES-BUDGET'!A69) ->  | B70: =IF('QUANTITIES-BUDGET'!B69=0,"",'QUANTITIES-BUDGET'!B69) ->  | C70: =IF('QUANTITIES-BUDGET'!C69=0,"",'QUANTITIES-BUDGET'!C69) ->  | D70: =IF('QUANTITIES-BUDGET'!D69=0,"",'QUANTITIES-BUDGET'!D69) ->  | E70: =IF('QUANTITIES-BUDGET'!K69=0,0,'QUANTITIES-BUDGET'!K69) -> 0 | F70: 0 | G70: 0
A71: =IF('QUANTITIES-BUDGET'!A70=0,"",'QUANTITIES-BUDGET'!A70) ->  | B71: =IF('QUANTITIES-BUDGET'!B70=0,"",'QUANTITIES-BUDGET'!B70) ->  | C71: =IF('QUANTITIES-BUDGET'!C70=0,"",'QUANTITIES-BUDGET'!C70) ->  | D71: =IF('QUANTITIES-BUDGET'!D70=0,"",'QUANTITIES-BUDGET'!D70) ->  | E71: =IF('QUANTITIES-BUDGET'!K70=0,0,'QUANTITIES-BUDGET'!K70) -> 0 | F71: 0 | G71: 0
A72: =IF('QUANTITIES-BUDGET'!A71=0,"",'QUANTITIES-BUDGET'!A71) ->  | B72: =IF('QUANTITIES-BUDGET'!B71=0,"",'QUANTITIES-BUDGET'!B71) ->  | C72: =IF('QUANTITIES-BUDGET'!C71=0,"",'QUANTITIES-BUDGET'!C71) ->  | D72: =IF('QUANTITIES-BUDGET'!D71=0,"",'QUANTITIES-BUDGET'!D71) ->  | E72: =IF('QUANTITIES-BUDGET'!K71=0,0,'QUANTITIES-BUDGET'!K71) -> 0 | F72: 0 | G72: 0
A73: =IF('QUANTITIES-BUDGET'!A72=0,"",'QUANTITIES-BUDGET'!A72) ->  | B73: =IF('QUANTITIES-BUDGET'!B72=0,"",'QUANTITIES-BUDGET'!B72) ->  | C73: =IF('QUANTITIES-BUDGET'!C72=0,"",'QUANTITIES-BUDGET'!C72) ->  | D73: =IF('QUANTITIES-BUDGET'!D72=0,"",'QUANTITIES-BUDGET'!D72) ->  | E73: =IF('QUANTITIES-BUDGET'!K72=0,0,'QUANTITIES-BUDGET'!K72) -> 0 | F73: 0 | G73: 0
A74: =IF('QUANTITIES-BUDGET'!A73=0,"",'QUANTITIES-BUDGET'!A73) ->  | B74: =IF('QUANTITIES-BUDGET'!B73=0,"",'QUANTITIES-BUDGET'!B73) ->  | C74: =IF('QUANTITIES-BUDGET'!C73=0,"",'QUANTITIES-BUDGET'!C73) ->  | D74: =IF('QUANTITIES-BUDGET'!D73=0,"",'QUANTITIES-BUDGET'!D73) ->  | E74: =IF('QUANTITIES-BUDGET'!K73=0,0,'QUANTITIES-BUDGET'!K73) -> 0 | F74: 0 | G74: 0
A75: =IF('QUANTITIES-BUDGET'!A74=0,"",'QUANTITIES-BUDGET'!A74) ->  | B75: =IF('QUANTITIES-BUDGET'!B74=0,"",'QUANTITIES-BUDGET'!B74) ->  | C75: =IF('QUANTITIES-BUDGET'!C74=0,"",'QUANTITIES-BUDGET'!C74) ->  | D75: =IF('QUANTITIES-BUDGET'!D74=0,"",'QUANTITIES-BUDGET'!D74) ->  | E75: =IF('QUANTITIES-BUDGET'!K74=0,0,'QUANTITIES-BUDGET'!K74) -> 0 | F75: 0 | G75: 0
A76: =IF('QUANTITIES-BUDGET'!A75=0,"",'QUANTITIES-BUDGET'!A75) ->  | B76: =IF('QUANTITIES-BUDGET'!B75=0,"",'QUANTITIES-BUDGET'!B75) ->  | C76: =IF('QUANTITIES-BUDGET'!C75=0,"",'QUANTITIES-BUDGET'!C75) ->  | D76: =IF('QUANTITIES-BUDGET'!D75=0,"",'QUANTITIES-BUDGET'!D75) ->  | E76: =IF('QUANTITIES-BUDGET'!K75=0,0,'QUANTITIES-BUDGET'!K75) -> 0 | F76: =SUM(I76:BP76) -> 0 | G76: =E76-F76 -> 0
A77: =IF('QUANTITIES-BUDGET'!A76=0,"",'QUANTITIES-BUDGET'!A76) ->  | B77: =IF('QUANTITIES-BUDGET'!B76=0,"",'QUANTITIES-BUDGET'!B76) ->  | C77: =IF('QUANTITIES-BUDGET'!C76=0,"",'QUANTITIES-BUDGET'!C76) ->  | D77: =IF('QUANTITIES-BUDGET'!D76=0,"",'QUANTITIES-BUDGET'!D76) ->  | E77: =IF('QUANTITIES-BUDGET'!K76=0,0,'QUANTITIES-BUDGET'!K76) -> 0 | F77: 0 | G77: 0
A78: =IF('QUANTITIES-BUDGET'!A77=0,"",'QUANTITIES-BUDGET'!A77) ->  | B78: =IF('QUANTITIES-BUDGET'!B77=0,"",'QUANTITIES-BUDGET'!B77) ->  | C78: =IF('QUANTITIES-BUDGET'!C77=0,"",'QUANTITIES-BUDGET'!C77) ->  | D78: =IF('QUANTITIES-BUDGET'!D77=0,"",'QUANTITIES-BUDGET'!D77) ->  | E78: =IF('QUANTITIES-BUDGET'!K77=0,0,'QUANTITIES-BUDGET'!K77) -> 0 | F78: 0 | G78: 0
A79: =IF('QUANTITIES-BUDGET'!A78=0,"",'QUANTITIES-BUDGET'!A78) ->  | B79: =IF('QUANTITIES-BUDGET'!B78=0,"",'QUANTITIES-BUDGET'!B78) ->  | C79: =IF('QUANTITIES-BUDGET'!C78=0,"",'QUANTITIES-BUDGET'!C78) ->  | D79: =IF('QUANTITIES-BUDGET'!D78=0,"",'QUANTITIES-BUDGET'!D78) ->  | E79: =IF('QUANTITIES-BUDGET'!K78=0,0,'QUANTITIES-BUDGET'!K78) -> 0 | F79: 0 | G79: 0
A80: =IF('QUANTITIES-BUDGET'!A79=0,"",'QUANTITIES-BUDGET'!A79) ->  | B80: =IF('QUANTITIES-BUDGET'!B79=0,"",'QUANTITIES-BUDGET'!B79) ->  | C80: =IF('QUANTITIES-BUDGET'!C79=0,"",'QUANTITIES-BUDGET'!C79) ->  | D80: =IF('QUANTITIES-BUDGET'!D79=0,"",'QUANTITIES-BUDGET'!D79) ->  | E80: =IF('QUANTITIES-BUDGET'!K79=0,0,'QUANTITIES-BUDGET'!K79) -> 0 | F80: 0 | G80: 0
A81: =IF('QUANTITIES-BUDGET'!A80=0,"",'QUANTITIES-BUDGET'!A80) ->  | B81: =IF('QUANTITIES-BUDGET'!B80=0,"",'QUANTITIES-BUDGET'!B80) ->  | C81: =IF('QUANTITIES-BUDGET'!C80=0,"",'QUANTITIES-BUDGET'!C80) ->  | D81: =IF('QUANTITIES-BUDGET'!D80=0,"",'QUANTITIES-BUDGET'!D80) ->  | E81: =IF('QUANTITIES-BUDGET'!K80=0,0,'QUANTITIES-BUDGET'!K80) -> 0 | F81: 0 | G81: 0
A82: =IF('QUANTITIES-BUDGET'!A81=0,"",'QUANTITIES-BUDGET'!A81) ->  | B82: =IF('QUANTITIES-BUDGET'!B81=0,"",'QUANTITIES-BUDGET'!B81) ->  | C82: =IF('QUANTITIES-BUDGET'!C81=0,"",'QUANTITIES-BUDGET'!C81) ->  | D82: =IF('QUANTITIES-BUDGET'!D81=0,"",'QUANTITIES-BUDGET'!D81) ->  | E82: =IF('QUANTITIES-BUDGET'!K81=0,0,'QUANTITIES-BUDGET'!K81) -> 0 | F82: 0 | G82: 0
A83: =IF('QUANTITIES-BUDGET'!A82=0,"",'QUANTITIES-BUDGET'!A82) ->  | B83: =IF('QUANTITIES-BUDGET'!B82=0,"",'QUANTITIES-BUDGET'!B82) ->  | C83: =IF('QUANTITIES-BUDGET'!C82=0,"",'QUANTITIES-BUDGET'!C82) ->  | D83: =IF('QUANTITIES-BUDGET'!D82=0,"",'QUANTITIES-BUDGET'!D82) ->  | E83: =IF('QUANTITIES-BUDGET'!K82=0,0,'QUANTITIES-BUDGET'!K82) -> 0 | F83: 0 | G83: 0
A84: =IF('QUANTITIES-BUDGET'!A83=0,"",'QUANTITIES-BUDGET'!A83) ->  | B84: =IF('QUANTITIES-BUDGET'!B83=0,"",'QUANTITIES-BUDGET'!B83) ->  | C84: =IF('QUANTITIES-BUDGET'!C83=0,"",'QUANTITIES-BUDGET'!C83) ->  | D84: =IF('QUANTITIES-BUDGET'!D83=0,"",'QUANTITIES-BUDGET'!D83) ->  | E84: =IF('QUANTITIES-BUDGET'!K83=0,0,'QUANTITIES-BUDGET'!K83) -> 0 | F84: 0 | G84: 0
A85: =IF('QUANTITIES-BUDGET'!A84=0,"",'QUANTITIES-BUDGET'!A84) ->  | B85: =IF('QUANTITIES-BUDGET'!B84=0,"",'QUANTITIES-BUDGET'!B84) ->  | C85: =IF('QUANTITIES-BUDGET'!C84=0,"",'QUANTITIES-BUDGET'!C84) ->  | D85: =IF('QUANTITIES-BUDGET'!D84=0,"",'QUANTITIES-BUDGET'!D84) ->  | E85: =IF('QUANTITIES-BUDGET'!K84=0,0,'QUANTITIES-BUDGET'!K84) -> 0 | F85: 0 | G85: 0
A86: =IF('QUANTITIES-BUDGET'!A85=0,"",'QUANTITIES-BUDGET'!A85) ->  | B86: =IF('QUANTITIES-BUDGET'!B85=0,"",'QUANTITIES-BUDGET'!B85) ->  | C86: =IF('QUANTITIES-BUDGET'!C85=0,"",'QUANTITIES-BUDGET'!C85) ->  | D86: =IF('QUANTITIES-BUDGET'!D85=0,"",'QUANTITIES-BUDGET'!D85) ->  | E86: =IF('QUANTITIES-BUDGET'!K85=0,0,'QUANTITIES-BUDGET'!K85) -> 0 | F86: 0 | G86: 0
A87: =IF('QUANTITIES-BUDGET'!A86=0,"",'QUANTITIES-BUDGET'!A86) ->  | B87: =IF('QUANTITIES-BUDGET'!B86=0,"",'QUANTITIES-BUDGET'!B86) ->  | C87: =IF('QUANTITIES-BUDGET'!C86=0,"",'QUANTITIES-BUDGET'!C86) ->  | D87: =IF('QUANTITIES-BUDGET'!D86=0,"",'QUANTITIES-BUDGET'!D86) ->  | E87: =IF('QUANTITIES-BUDGET'!K86=0,0,'QUANTITIES-BUDGET'!K86) -> 0 | F87: 0 | G87: 0
A88: =IF('QUANTITIES-BUDGET'!A87=0,"",'QUANTITIES-BUDGET'!A87) ->  | B88: =IF('QUANTITIES-BUDGET'!B87=0,"",'QUANTITIES-BUDGET'!B87) ->  | C88: =IF('QUANTITIES-BUDGET'!C87=0,"",'QUANTITIES-BUDGET'!C87) ->  | D88: =IF('QUANTITIES-BUDGET'!D87=0,"",'QUANTITIES-BUDGET'!D87) ->  | E88: =IF('QUANTITIES-BUDGET'!K87=0,0,'QUANTITIES-BUDGET'!K87) -> 0 | F88: 0 | G88: 0
A89: =IF('QUANTITIES-BUDGET'!A88=0,"",'QUANTITIES-BUDGET'!A88) ->  | B89: =IF('QUANTITIES-BUDGET'!B88=0,"",'QUANTITIES-BUDGET'!B88) ->  | C89: =IF('QUANTITIES-BUDGET'!C88=0,"",'QUANTITIES-BUDGET'!C88) ->  | D89: =IF('QUANTITIES-BUDGET'!D88=0,"",'QUANTITIES-BUDGET'!D88) ->  | E89: =IF('QUANTITIES-BUDGET'!K88=0,0,'QUANTITIES-BUDGET'!K88) -> 0 | F89: 0 | G89: 0
A90: =IF('QUANTITIES-BUDGET'!A89=0,"",'QUANTITIES-BUDGET'!A89) ->  | B90: =IF('QUANTITIES-BUDGET'!B89=0,"",'QUANTITIES-BUDGET'!B89) ->  | C90: =IF('QUANTITIES-BUDGET'!C89=0,"",'QUANTITIES-BUDGET'!C89) ->  | D90: =IF('QUANTITIES-BUDGET'!D89=0,"",'QUANTITIES-BUDGET'!D89) ->  | E90: =IF('QUANTITIES-BUDGET'!K89=0,0,'QUANTITIES-BUDGET'!K89) -> 0 | F90: 0 | G90: 0
A91: =IF('QUANTITIES-BUDGET'!A90=0,"",'QUANTITIES-BUDGET'!A90) ->  | B91: =IF('QUANTITIES-BUDGET'!B90=0,"",'QUANTITIES-BUDGET'!B90) ->  | C91: =IF('QUANTITIES-BUDGET'!C90=0,"",'QUANTITIES-BUDGET'!C90) ->  | D91: =IF('QUANTITIES-BUDGET'!D90=0,"",'QUANTITIES-BUDGET'!D90) ->  | E91: =IF('QUANTITIES-BUDGET'!K90=0,0,'QUANTITIES-BUDGET'!K90) -> 0 | F91: 0 | G91: 0
A92: =IF('QUANTITIES-BUDGET'!A91=0,"",'QUANTITIES-BUDGET'!A91) ->  | B92: =IF('QUANTITIES-BUDGET'!B91=0,"",'QUANTITIES-BUDGET'!B91) ->  | C92: =IF('QUANTITIES-BUDGET'!C91=0,"",'QUANTITIES-BUDGET'!C91) ->  | D92: =IF('QUANTITIES-BUDGET'!D91=0,"",'QUANTITIES-BUDGET'!D91) ->  | E92: =IF('QUANTITIES-BUDGET'!K91=0,0,'QUANTITIES-BUDGET'!K91) -> 0 | F92: 0 | G92: 0
A93: =IF('QUANTITIES-BUDGET'!A92=0,"",'QUANTITIES-BUDGET'!A92) ->  | B93: =IF('QUANTITIES-BUDGET'!B92=0,"",'QUANTITIES-BUDGET'!B92) ->  | C93: =IF('QUANTITIES-BUDGET'!C92=0,"",'QUANTITIES-BUDGET'!C92) ->  | D93: =IF('QUANTITIES-BUDGET'!D92=0,"",'QUANTITIES-BUDGET'!D92) ->  | E93: =IF('QUANTITIES-BUDGET'!K92=0,0,'QUANTITIES-BUDGET'!K92) -> 0 | F93: 0 | G93: 0
A94: =IF('QUANTITIES-BUDGET'!A93=0,"",'QUANTITIES-BUDGET'!A93) ->  | B94: =IF('QUANTITIES-BUDGET'!B93=0,"",'QUANTITIES-BUDGET'!B93) ->  | C94: =IF('QUANTITIES-BUDGET'!C93=0,"",'QUANTITIES-BUDGET'!C93) ->  | D94: =IF('QUANTITIES-BUDGET'!D93=0,"",'QUANTITIES-BUDGET'!D93) ->  | E94: =IF('QUANTITIES-BUDGET'!K93=0,0,'QUANTITIES-BUDGET'!K93) -> 0 | F94: 0 | G94: 0
A95: =IF('QUANTITIES-BUDGET'!A94=0,"",'QUANTITIES-BUDGET'!A94) ->  | B95: =IF('QUANTITIES-BUDGET'!B94=0,"",'QUANTITIES-BUDGET'!B94) ->  | C95: =IF('QUANTITIES-BUDGET'!C94=0,"",'QUANTITIES-BUDGET'!C94) ->  | D95: =IF('QUANTITIES-BUDGET'!D94=0,"",'QUANTITIES-BUDGET'!D94) ->  | E95: =IF('QUANTITIES-BUDGET'!K94=0,0,'QUANTITIES-BUDGET'!K94) -> 0 | F95: 0 | G95: 0
A96: =IF('QUANTITIES-BUDGET'!A95=0,"",'QUANTITIES-BUDGET'!A95) ->  | B96: =IF('QUANTITIES-BUDGET'!B95=0,"",'QUANTITIES-BUDGET'!B95) ->  | C96: =IF('QUANTITIES-BUDGET'!C95=0,"",'QUANTITIES-BUDGET'!C95) ->  | D96: =IF('QUANTITIES-BUDGET'!D95=0,"",'QUANTITIES-BUDGET'!D95) ->  | E96: =IF('QUANTITIES-BUDGET'!K95=0,0,'QUANTITIES-BUDGET'!K95) -> 0 | F96: 0 | G96: 0
A97: =IF('QUANTITIES-BUDGET'!A96=0,"",'QUANTITIES-BUDGET'!A96) ->  | B97: =IF('QUANTITIES-BUDGET'!B96=0,"",'QUANTITIES-BUDGET'!B96) ->  | C97: =IF('QUANTITIES-BUDGET'!C96=0,"",'QUANTITIES-BUDGET'!C96) ->  | D97: =IF('QUANTITIES-BUDGET'!D96=0,"",'QUANTITIES-BUDGET'!D96) ->  | E97: =IF('QUANTITIES-BUDGET'!K96=0,0,'QUANTITIES-BUDGET'!K96) -> 0 | F97: 0 | G97: 0
A98: =IF('QUANTITIES-BUDGET'!A97=0,"",'QUANTITIES-BUDGET'!A97) ->  | B98: =IF('QUANTITIES-BUDGET'!B97=0,"",'QUANTITIES-BUDGET'!B97) ->  | C98: =IF('QUANTITIES-BUDGET'!C97=0,"",'QUANTITIES-BUDGET'!C97) ->  | D98: =IF('QUANTITIES-BUDGET'!D97=0,"",'QUANTITIES-BUDGET'!D97) ->  | E98: =IF('QUANTITIES-BUDGET'!K97=0,0,'QUANTITIES-BUDGET'!K97) -> 0 | F98: 0 | G98: 0
A99: =IF('QUANTITIES-BUDGET'!A98=0,"",'QUANTITIES-BUDGET'!A98) ->  | B99: =IF('QUANTITIES-BUDGET'!B98=0,"",'QUANTITIES-BUDGET'!B98) ->  | C99: =IF('QUANTITIES-BUDGET'!C98=0,"",'QUANTITIES-BUDGET'!C98) ->  | D99: =IF('QUANTITIES-BUDGET'!D98=0,"",'QUANTITIES-BUDGET'!D98) ->  | E99: =IF('QUANTITIES-BUDGET'!K98=0,0,'QUANTITIES-BUDGET'!K98) -> 0 | F99: 0 | G99: 0
A100: =IF('QUANTITIES-BUDGET'!A99=0,"",'QUANTITIES-BUDGET'!A99) ->  | B100: =IF('QUANTITIES-BUDGET'!B99=0,"",'QUANTITIES-BUDGET'!B99) ->  | C100: =IF('QUANTITIES-BUDGET'!C99=0,"",'QUANTITIES-BUDGET'!C99) ->  | D100: =IF('QUANTITIES-BUDGET'!D99=0,"",'QUANTITIES-BUDGET'!D99) ->  | E100: =IF('QUANTITIES-BUDGET'!K99=0,0,'QUANTITIES-BUDGET'!K99) -> 0 | F100: 0 | G100: 0
A101: =IF('QUANTITIES-BUDGET'!A100=0,"",'QUANTITIES-BUDGET'!A100) ->  | B101: =IF('QUANTITIES-BUDGET'!B100=0,"",'QUANTITIES-BUDGET'!B100) ->  | C101: =IF('QUANTITIES-BUDGET'!C100=0,"",'QUANTITIES-BUDGET'!C100) ->  | D101: =IF('QUANTITIES-BUDGET'!D100=0,"",'QUANTITIES-BUDGET'!D100) ->  | E101: =IF('QUANTITIES-BUDGET'!K100=0,0,'QUANTITIES-BUDGET'!K100) -> 0 | F101: 0 | G101: 0
A102: =IF('QUANTITIES-BUDGET'!A101=0,"",'QUANTITIES-BUDGET'!A101) ->  | B102: =IF('QUANTITIES-BUDGET'!B101=0,"",'QUANTITIES-BUDGET'!B101) ->  | C102: =IF('QUANTITIES-BUDGET'!C101=0,"",'QUANTITIES-BUDGET'!C101) ->  | D102: =IF('QUANTITIES-BUDGET'!D101=0,"",'QUANTITIES-BUDGET'!D101) ->  | E102: =IF('QUANTITIES-BUDGET'!K101=0,0,'QUANTITIES-BUDGET'!K101) -> 0 | F102: 0 | G102: 0
A103: =IF('QUANTITIES-BUDGET'!A102=0,"",'QUANTITIES-BUDGET'!A102) ->  | B103: =IF('QUANTITIES-BUDGET'!B102=0,"",'QUANTITIES-BUDGET'!B102) ->  | C103: =IF('QUANTITIES-BUDGET'!C102=0,"",'QUANTITIES-BUDGET'!C102) ->  | D103: =IF('QUANTITIES-BUDGET'!D102=0,"",'QUANTITIES-BUDGET'!D102) ->  | E103: =IF('QUANTITIES-BUDGET'!K102=0,0,'QUANTITIES-BUDGET'!K102) -> 0 | F103: 0 | G103: 0
A104: =IF('QUANTITIES-BUDGET'!A103=0,"",'QUANTITIES-BUDGET'!A103) ->  | B104: =IF('QUANTITIES-BUDGET'!B103=0,"",'QUANTITIES-BUDGET'!B103) ->  | C104: =IF('QUANTITIES-BUDGET'!C103=0,"",'QUANTITIES-BUDGET'!C103) ->  | D104: =IF('QUANTITIES-BUDGET'!D103=0,"",'QUANTITIES-BUDGET'!D103) ->  | E104: =IF('QUANTITIES-BUDGET'!K103=0,0,'QUANTITIES-BUDGET'!K103) -> 0 | F104: 0 | G104: 0
A105: =IF('QUANTITIES-BUDGET'!A104=0,"",'QUANTITIES-BUDGET'!A104) ->  | B105: =IF('QUANTITIES-BUDGET'!B104=0,"",'QUANTITIES-BUDGET'!B104) ->  | C105: =IF('QUANTITIES-BUDGET'!C104=0,"",'QUANTITIES-BUDGET'!C104) ->  | D105: =IF('QUANTITIES-BUDGET'!D104=0,"",'QUANTITIES-BUDGET'!D104) ->  | E105: =IF('QUANTITIES-BUDGET'!K104=0,0,'QUANTITIES-BUDGET'!K104) -> 0 | F105: 0 | G105: 0
A106: =IF('QUANTITIES-BUDGET'!A105=0,"",'QUANTITIES-BUDGET'!A105) ->  | B106: =IF('QUANTITIES-BUDGET'!B105=0,"",'QUANTITIES-BUDGET'!B105) ->  | C106: =IF('QUANTITIES-BUDGET'!C105=0,"",'QUANTITIES-BUDGET'!C105) ->  | D106: =IF('QUANTITIES-BUDGET'!D105=0,"",'QUANTITIES-BUDGET'!D105) ->  | E106: =IF('QUANTITIES-BUDGET'!K105=0,0,'QUANTITIES-BUDGET'!K105) -> 0 | F106: 0 | G106: 0
A107: =IF('QUANTITIES-BUDGET'!A106=0,"",'QUANTITIES-BUDGET'!A106) ->  | B107: =IF('QUANTITIES-BUDGET'!B106=0,"",'QUANTITIES-BUDGET'!B106) ->  | C107: =IF('QUANTITIES-BUDGET'!C106=0,"",'QUANTITIES-BUDGET'!C106) ->  | D107: =IF('QUANTITIES-BUDGET'!D106=0,"",'QUANTITIES-BUDGET'!D106) ->  | E107: =IF('QUANTITIES-BUDGET'!K106=0,0,'QUANTITIES-BUDGET'!K106) -> 0 | F107: 0 | G107: 0
A108: =IF('QUANTITIES-BUDGET'!A107=0,"",'QUANTITIES-BUDGET'!A107) ->  | B108: =IF('QUANTITIES-BUDGET'!B107=0,"",'QUANTITIES-BUDGET'!B107) ->  | C108: =IF('QUANTITIES-BUDGET'!C107=0,"",'QUANTITIES-BUDGET'!C107) ->  | D108: =IF('QUANTITIES-BUDGET'!D107=0,"",'QUANTITIES-BUDGET'!D107) ->  | E108: =IF('QUANTITIES-BUDGET'!K107=0,0,'QUANTITIES-BUDGET'!K107) -> 0 | F108: 0 | G108: 0
A109: =IF('QUANTITIES-BUDGET'!A108=0,"",'QUANTITIES-BUDGET'!A108) ->  | B109: =IF('QUANTITIES-BUDGET'!B108=0,"",'QUANTITIES-BUDGET'!B108) ->  | C109: =IF('QUANTITIES-BUDGET'!C108=0,"",'QUANTITIES-BUDGET'!C108) ->  | D109: =IF('QUANTITIES-BUDGET'!D108=0,"",'QUANTITIES-BUDGET'!D108) ->  | E109: =IF('QUANTITIES-BUDGET'!K108=0,0,'QUANTITIES-BUDGET'!K108) -> 0 | F109: 0 | G109: 0
A110: =IF('QUANTITIES-BUDGET'!A109=0,"",'QUANTITIES-BUDGET'!A109) ->  | B110: =IF('QUANTITIES-BUDGET'!B109=0,"",'QUANTITIES-BUDGET'!B109) ->  | C110: =IF('QUANTITIES-BUDGET'!C109=0,"",'QUANTITIES-BUDGET'!C109) ->  | D110: =IF('QUANTITIES-BUDGET'!D109=0,"",'QUANTITIES-BUDGET'!D109) ->  | E110: =IF('QUANTITIES-BUDGET'!K109=0,0,'QUANTITIES-BUDGET'!K109) -> 0 | F110: 0 | G110: 0
A111: =IF('QUANTITIES-BUDGET'!A110=0,"",'QUANTITIES-BUDGET'!A110) ->  | B111: =IF('QUANTITIES-BUDGET'!B110=0,"",'QUANTITIES-BUDGET'!B110) ->  | C111: =IF('QUANTITIES-BUDGET'!C110=0,"",'QUANTITIES-BUDGET'!C110) ->  | D111: =IF('QUANTITIES-BUDGET'!D110=0,"",'QUANTITIES-BUDGET'!D110) ->  | E111: =IF('QUANTITIES-BUDGET'!K110=0,0,'QUANTITIES-BUDGET'!K110) -> 0 | F111: 0 | G111: 0
A112: =IF('QUANTITIES-BUDGET'!A111=0,"",'QUANTITIES-BUDGET'!A111) ->  | B112: =IF('QUANTITIES-BUDGET'!B111=0,"",'QUANTITIES-BUDGET'!B111) ->  | C112: =IF('QUANTITIES-BUDGET'!C111=0,"",'QUANTITIES-BUDGET'!C111) ->  | D112: =IF('QUANTITIES-BUDGET'!D111=0,"",'QUANTITIES-BUDGET'!D111) ->  | E112: =IF('QUANTITIES-BUDGET'!K111=0,0,'QUANTITIES-BUDGET'!K111) -> 0 | F112: 0 | G112: 0
A113: =IF('QUANTITIES-BUDGET'!A112=0,"",'QUANTITIES-BUDGET'!A112) ->  | B113: =IF('QUANTITIES-BUDGET'!B112=0,"",'QUANTITIES-BUDGET'!B112) ->  | C113: =IF('QUANTITIES-BUDGET'!C112=0,"",'QUANTITIES-BUDGET'!C112) ->  | D113: =IF('QUANTITIES-BUDGET'!D112=0,"",'QUANTITIES-BUDGET'!D112) ->  | E113: =IF('QUANTITIES-BUDGET'!K112=0,0,'QUANTITIES-BUDGET'!K112) -> 0 | F113: 0 | G113: 0
A114: =IF('QUANTITIES-BUDGET'!A113=0,"",'QUANTITIES-BUDGET'!A113) ->  | B114: =IF('QUANTITIES-BUDGET'!B113=0,"",'QUANTITIES-BUDGET'!B113) ->  | C114: =IF('QUANTITIES-BUDGET'!C113=0,"",'QUANTITIES-BUDGET'!C113) ->  | D114: =IF('QUANTITIES-BUDGET'!D113=0,"",'QUANTITIES-BUDGET'!D113) ->  | E114: =IF('QUANTITIES-BUDGET'!K113=0,0,'QUANTITIES-BUDGET'!K113) -> 0 | F114: 0 | G114: 0
A115: =IF('QUANTITIES-BUDGET'!A114=0,"",'QUANTITIES-BUDGET'!A114) ->  | B115: =IF('QUANTITIES-BUDGET'!B114=0,"",'QUANTITIES-BUDGET'!B114) ->  | C115: =IF('QUANTITIES-BUDGET'!C114=0,"",'QUANTITIES-BUDGET'!C114) ->  | D115: =IF('QUANTITIES-BUDGET'!D114=0,"",'QUANTITIES-BUDGET'!D114) ->  | E115: =IF('QUANTITIES-BUDGET'!K114=0,0,'QUANTITIES-BUDGET'!K114) -> 0 | F115: 0 | G115: 0
A116: =IF('QUANTITIES-BUDGET'!A115=0,"",'QUANTITIES-BUDGET'!A115) ->  | B116: =IF('QUANTITIES-BUDGET'!B115=0,"",'QUANTITIES-BUDGET'!B115) ->  | C116: =IF('QUANTITIES-BUDGET'!C115=0,"",'QUANTITIES-BUDGET'!C115) ->  | D116: =IF('QUANTITIES-BUDGET'!D115=0,"",'QUANTITIES-BUDGET'!D115) ->  | E116: =IF('QUANTITIES-BUDGET'!K115=0,0,'QUANTITIES-BUDGET'!K115) -> 0 | F116: 0 | G116: 0
A117: =IF('QUANTITIES-BUDGET'!A116=0,"",'QUANTITIES-BUDGET'!A116) ->  | B117: =IF('QUANTITIES-BUDGET'!B116=0,"",'QUANTITIES-BUDGET'!B116) ->  | C117: =IF('QUANTITIES-BUDGET'!C116=0,"",'QUANTITIES-BUDGET'!C116) ->  | D117: =IF('QUANTITIES-BUDGET'!D116=0,"",'QUANTITIES-BUDGET'!D116) ->  | E117: =IF('QUANTITIES-BUDGET'!K116=0,0,'QUANTITIES-BUDGET'!K116) -> 0 | F117: 0 | G117: 0
A118: =IF('QUANTITIES-BUDGET'!A117=0,"",'QUANTITIES-BUDGET'!A117) ->  | B118: =IF('QUANTITIES-BUDGET'!B117=0,"",'QUANTITIES-BUDGET'!B117) ->  | C118: =IF('QUANTITIES-BUDGET'!C117=0,"",'QUANTITIES-BUDGET'!C117) ->  | D118: =IF('QUANTITIES-BUDGET'!D117=0,"",'QUANTITIES-BUDGET'!D117) ->  | E118: =IF('QUANTITIES-BUDGET'!K117=0,0,'QUANTITIES-BUDGET'!K117) -> 0 | F118: 0 | G118: 0
A119: =IF('QUANTITIES-BUDGET'!A118=0,"",'QUANTITIES-BUDGET'!A118) ->  | B119: =IF('QUANTITIES-BUDGET'!B118=0,"",'QUANTITIES-BUDGET'!B118) ->  | C119: =IF('QUANTITIES-BUDGET'!C118=0,"",'QUANTITIES-BUDGET'!C118) ->  | D119: =IF('QUANTITIES-BUDGET'!D118=0,"",'QUANTITIES-BUDGET'!D118) ->  | E119: =IF('QUANTITIES-BUDGET'!K118=0,0,'QUANTITIES-BUDGET'!K118) -> 0 | F119: 0 | G119: 0
A120: =IF('QUANTITIES-BUDGET'!A119=0,"",'QUANTITIES-BUDGET'!A119) ->  | B120: =IF('QUANTITIES-BUDGET'!B119=0,"",'QUANTITIES-BUDGET'!B119) ->  | C120: =IF('QUANTITIES-BUDGET'!C119=0,"",'QUANTITIES-BUDGET'!C119) ->  | D120: =IF('QUANTITIES-BUDGET'!D119=0,"",'QUANTITIES-BUDGET'!D119) ->  | E120: =IF('QUANTITIES-BUDGET'!K119=0,0,'QUANTITIES-BUDGET'!K119) -> 0 | F120: 0 | G120: 0
A121: =IF('QUANTITIES-BUDGET'!A120=0,"",'QUANTITIES-BUDGET'!A120) ->  | B121: =IF('QUANTITIES-BUDGET'!B120=0,"",'QUANTITIES-BUDGET'!B120) ->  | C121: =IF('QUANTITIES-BUDGET'!C120=0,"",'QUANTITIES-BUDGET'!C120) ->  | D121: =IF('QUANTITIES-BUDGET'!D120=0,"",'QUANTITIES-BUDGET'!D120) ->  | E121: =IF('QUANTITIES-BUDGET'!K120=0,0,'QUANTITIES-BUDGET'!K120) -> 0 | F121: 0 | G121: 0
A122: =IF('QUANTITIES-BUDGET'!A121=0,"",'QUANTITIES-BUDGET'!A121) ->  | B122: =IF('QUANTITIES-BUDGET'!B121=0,"",'QUANTITIES-BUDGET'!B121) ->  | C122: =IF('QUANTITIES-BUDGET'!C121=0,"",'QUANTITIES-BUDGET'!C121) ->  | D122: =IF('QUANTITIES-BUDGET'!D121=0,"",'QUANTITIES-BUDGET'!D121) ->  | E122: =IF('QUANTITIES-BUDGET'!K121=0,0,'QUANTITIES-BUDGET'!K121) -> 0 | F122: 0 | G122: 0
A123: =IF('QUANTITIES-BUDGET'!A122=0,"",'QUANTITIES-BUDGET'!A122) ->  | B123: =IF('QUANTITIES-BUDGET'!B122=0,"",'QUANTITIES-BUDGET'!B122) ->  | C123: =IF('QUANTITIES-BUDGET'!C122=0,"",'QUANTITIES-BUDGET'!C122) ->  | D123: =IF('QUANTITIES-BUDGET'!D122=0,"",'QUANTITIES-BUDGET'!D122) ->  | E123: =IF('QUANTITIES-BUDGET'!K122=0,0,'QUANTITIES-BUDGET'!K122) -> 0 | F123: 0 | G123: 0
A124: =IF('QUANTITIES-BUDGET'!A123=0,"",'QUANTITIES-BUDGET'!A123) ->  | B124: =IF('QUANTITIES-BUDGET'!B123=0,"",'QUANTITIES-BUDGET'!B123) ->  | C124: =IF('QUANTITIES-BUDGET'!C123=0,"",'QUANTITIES-BUDGET'!C123) ->  | D124: =IF('QUANTITIES-BUDGET'!D123=0,"",'QUANTITIES-BUDGET'!D123) ->  | E124: =IF('QUANTITIES-BUDGET'!K123=0,0,'QUANTITIES-BUDGET'!K123) -> 0 | F124: 0 | G124: 0
A125: =IF('QUANTITIES-BUDGET'!A124=0,"",'QUANTITIES-BUDGET'!A124) ->  | B125: =IF('QUANTITIES-BUDGET'!B124=0,"",'QUANTITIES-BUDGET'!B124) ->  | C125: =IF('QUANTITIES-BUDGET'!C124=0,"",'QUANTITIES-BUDGET'!C124) ->  | D125: =IF('QUANTITIES-BUDGET'!D124=0,"",'QUANTITIES-BUDGET'!D124) ->  | E125: =IF('QUANTITIES-BUDGET'!K124=0,0,'QUANTITIES-BUDGET'!K124) -> 0 | F125: 0 | G125: 0
A126: =IF('QUANTITIES-BUDGET'!A125=0,"",'QUANTITIES-BUDGET'!A125) ->  | B126: =IF('QUANTITIES-BUDGET'!B125=0,"",'QUANTITIES-BUDGET'!B125) ->  | C126: =IF('QUANTITIES-BUDGET'!C125=0,"",'QUANTITIES-BUDGET'!C125) ->  | D126: =IF('QUANTITIES-BUDGET'!D125=0,"",'QUANTITIES-BUDGET'!D125) ->  | E126: =IF('QUANTITIES-BUDGET'!K125=0,0,'QUANTITIES-BUDGET'!K125) -> 0 | F126: 0 | G126: 0
A127: =IF('QUANTITIES-BUDGET'!A126=0,"",'QUANTITIES-BUDGET'!A126) ->  | B127: =IF('QUANTITIES-BUDGET'!B126=0,"",'QUANTITIES-BUDGET'!B126) ->  | C127: =IF('QUANTITIES-BUDGET'!C126=0,"",'QUANTITIES-BUDGET'!C126) ->  | D127: =IF('QUANTITIES-BUDGET'!D126=0,"",'QUANTITIES-BUDGET'!D126) ->  | E127: =IF('QUANTITIES-BUDGET'!K126=0,0,'QUANTITIES-BUDGET'!K126) -> 0 | F127: 0 | G127: 0
A128: =IF('QUANTITIES-BUDGET'!A127=0,"",'QUANTITIES-BUDGET'!A127) ->  | B128: =IF('QUANTITIES-BUDGET'!B127=0,"",'QUANTITIES-BUDGET'!B127) ->  | C128: =IF('QUANTITIES-BUDGET'!C127=0,"",'QUANTITIES-BUDGET'!C127) ->  | D128: =IF('QUANTITIES-BUDGET'!D127=0,"",'QUANTITIES-BUDGET'!D127) ->  | E128: =IF('QUANTITIES-BUDGET'!K127=0,0,'QUANTITIES-BUDGET'!K127) -> 0 | F128: 0 | G128: 0
A129: =IF('QUANTITIES-BUDGET'!A128=0,"",'QUANTITIES-BUDGET'!A128) ->  | B129: =IF('QUANTITIES-BUDGET'!B128=0,"",'QUANTITIES-BUDGET'!B128) ->  | C129: =IF('QUANTITIES-BUDGET'!C128=0,"",'QUANTITIES-BUDGET'!C128) ->  | D129: =IF('QUANTITIES-BUDGET'!D128=0,"",'QUANTITIES-BUDGET'!D128) ->  | E129: =IF('QUANTITIES-BUDGET'!K128=0,0,'QUANTITIES-BUDGET'!K128) -> 0 | F129: 0 | G129: 0
A130: =IF('QUANTITIES-BUDGET'!A129=0,"",'QUANTITIES-BUDGET'!A129) ->  | B130: =IF('QUANTITIES-BUDGET'!B129=0,"",'QUANTITIES-BUDGET'!B129) ->  | C130: =IF('QUANTITIES-BUDGET'!C129=0,"",'QUANTITIES-BUDGET'!C129) ->  | D130: =IF('QUANTITIES-BUDGET'!D129=0,"",'QUANTITIES-BUDGET'!D129) ->  | E130: =IF('QUANTITIES-BUDGET'!K129=0,0,'QUANTITIES-BUDGET'!K129) -> 0 | F130: 0 | G130: 0
A131: =IF('QUANTITIES-BUDGET'!A130=0,"",'QUANTITIES-BUDGET'!A130) ->  | B131: =IF('QUANTITIES-BUDGET'!B130=0,"",'QUANTITIES-BUDGET'!B130) ->  | C131: =IF('QUANTITIES-BUDGET'!C130=0,"",'QUANTITIES-BUDGET'!C130) ->  | D131: =IF('QUANTITIES-BUDGET'!D130=0,"",'QUANTITIES-BUDGET'!D130) ->  | E131: =IF('QUANTITIES-BUDGET'!K130=0,0,'QUANTITIES-BUDGET'!K130) -> 0 | F131: 0 | G131: 0
A132: =IF('QUANTITIES-BUDGET'!A131=0,"",'QUANTITIES-BUDGET'!A131) ->  | B132: =IF('QUANTITIES-BUDGET'!B131=0,"",'QUANTITIES-BUDGET'!B131) ->  | C132: =IF('QUANTITIES-BUDGET'!C131=0,"",'QUANTITIES-BUDGET'!C131) ->  | D132: =IF('QUANTITIES-BUDGET'!D131=0,"",'QUANTITIES-BUDGET'!D131) ->  | E132: =IF('QUANTITIES-BUDGET'!K131=0,0,'QUANTITIES-BUDGET'!K131) -> 0 | F132: 0 | G132: 0
A133: =IF('QUANTITIES-BUDGET'!A132=0,"",'QUANTITIES-BUDGET'!A132) ->  | B133: =IF('QUANTITIES-BUDGET'!B132=0,"",'QUANTITIES-BUDGET'!B132) ->  | C133: =IF('QUANTITIES-BUDGET'!C132=0,"",'QUANTITIES-BUDGET'!C132) ->  | D133: =IF('QUANTITIES-BUDGET'!D132=0,"",'QUANTITIES-BUDGET'!D132) ->  | E133: =IF('QUANTITIES-BUDGET'!K132=0,0,'QUANTITIES-BUDGET'!K132) -> 0 | F133: 0 | G133: 0
A134: =IF('QUANTITIES-BUDGET'!A133=0,"",'QUANTITIES-BUDGET'!A133) ->  | B134: =IF('QUANTITIES-BUDGET'!B133=0,"",'QUANTITIES-BUDGET'!B133) ->  | C134: =IF('QUANTITIES-BUDGET'!C133=0,"",'QUANTITIES-BUDGET'!C133) ->  | D134: =IF('QUANTITIES-BUDGET'!D133=0,"",'QUANTITIES-BUDGET'!D133) ->  | E134: =IF('QUANTITIES-BUDGET'!K133=0,0,'QUANTITIES-BUDGET'!K133) -> 0 | F134: 0 | G134: 0
A135: =IF('QUANTITIES-BUDGET'!A134=0,"",'QUANTITIES-BUDGET'!A134) ->  | B135: =IF('QUANTITIES-BUDGET'!B134=0,"",'QUANTITIES-BUDGET'!B134) ->  | C135: =IF('QUANTITIES-BUDGET'!C134=0,"",'QUANTITIES-BUDGET'!C134) ->  | D135: =IF('QUANTITIES-BUDGET'!D134=0,"",'QUANTITIES-BUDGET'!D134) ->  | E135: =IF('QUANTITIES-BUDGET'!K134=0,0,'QUANTITIES-BUDGET'!K134) -> 0 | F135: 0 | G135: 0
A136: =IF('QUANTITIES-BUDGET'!A135=0,"",'QUANTITIES-BUDGET'!A135) ->  | B136: =IF('QUANTITIES-BUDGET'!B135=0,"",'QUANTITIES-BUDGET'!B135) ->  | C136: =IF('QUANTITIES-BUDGET'!C135=0,"",'QUANTITIES-BUDGET'!C135) ->  | D136: =IF('QUANTITIES-BUDGET'!D135=0,"",'QUANTITIES-BUDGET'!D135) ->  | E136: =IF('QUANTITIES-BUDGET'!K135=0,0,'QUANTITIES-BUDGET'!K135) -> 0 | F136: 0 | G136: 0
A137: =IF('QUANTITIES-BUDGET'!A136=0,"",'QUANTITIES-BUDGET'!A136) ->  | B137: =IF('QUANTITIES-BUDGET'!B136=0,"",'QUANTITIES-BUDGET'!B136) ->  | C137: =IF('QUANTITIES-BUDGET'!C136=0,"",'QUANTITIES-BUDGET'!C136) ->  | D137: =IF('QUANTITIES-BUDGET'!D136=0,"",'QUANTITIES-BUDGET'!D136) ->  | E137: =IF('QUANTITIES-BUDGET'!K136=0,0,'QUANTITIES-BUDGET'!K136) -> 0 | F137: 0 | G137: 0
A138: =IF('QUANTITIES-BUDGET'!A137=0,"",'QUANTITIES-BUDGET'!A137) ->  | B138: =IF('QUANTITIES-BUDGET'!B137=0,"",'QUANTITIES-BUDGET'!B137) ->  | C138: =IF('QUANTITIES-BUDGET'!C137=0,"",'QUANTITIES-BUDGET'!C137) ->  | D138: =IF('QUANTITIES-BUDGET'!D137=0,"",'QUANTITIES-BUDGET'!D137) ->  | E138: =IF('QUANTITIES-BUDGET'!K137=0,0,'QUANTITIES-BUDGET'!K137) -> 0 | F138: 0 | G138: 0
A139: =IF('QUANTITIES-BUDGET'!A138=0,"",'QUANTITIES-BUDGET'!A138) ->  | B139: =IF('QUANTITIES-BUDGET'!B138=0,"",'QUANTITIES-BUDGET'!B138) ->  | C139: =IF('QUANTITIES-BUDGET'!C138=0,"",'QUANTITIES-BUDGET'!C138) ->  | D139: =IF('QUANTITIES-BUDGET'!D138=0,"",'QUANTITIES-BUDGET'!D138) ->  | E139: =IF('QUANTITIES-BUDGET'!K138=0,0,'QUANTITIES-BUDGET'!K138) -> 0 | F139: 0 | G139: 0
A140: =IF('QUANTITIES-BUDGET'!A139=0,"",'QUANTITIES-BUDGET'!A139) ->  | B140: =IF('QUANTITIES-BUDGET'!B139=0,"",'QUANTITIES-BUDGET'!B139) ->  | C140: =IF('QUANTITIES-BUDGET'!C139=0,"",'QUANTITIES-BUDGET'!C139) ->  | D140: =IF('QUANTITIES-BUDGET'!D139=0,"",'QUANTITIES-BUDGET'!D139) ->  | E140: =IF('QUANTITIES-BUDGET'!K139=0,0,'QUANTITIES-BUDGET'!K139) -> 0 | F140: =SUM(I140:BP140) -> 0 | G140: =E140-F140 -> 0
A141: =IF('QUANTITIES-BUDGET'!A140=0,"",'QUANTITIES-BUDGET'!A140) ->  | B141: =IF('QUANTITIES-BUDGET'!B140=0,"",'QUANTITIES-BUDGET'!B140) ->  | C141: =IF('QUANTITIES-BUDGET'!C140=0,"",'QUANTITIES-BUDGET'!C140) ->  | D141: =IF('QUANTITIES-BUDGET'!D140=0,"",'QUANTITIES-BUDGET'!D140) ->  | E141: =IF('QUANTITIES-BUDGET'!K140=0,0,'QUANTITIES-BUDGET'!K140) -> 0 | F141: 0 | G141: 0
A142: =IF('QUANTITIES-BUDGET'!A141=0,"",'QUANTITIES-BUDGET'!A141) ->  | B142: =IF('QUANTITIES-BUDGET'!B141=0,"",'QUANTITIES-BUDGET'!B141) ->  | C142: =IF('QUANTITIES-BUDGET'!C141=0,"",'QUANTITIES-BUDGET'!C141) ->  | D142: =IF('QUANTITIES-BUDGET'!D141=0,"",'QUANTITIES-BUDGET'!D141) ->  | E142: =IF('QUANTITIES-BUDGET'!K141=0,0,'QUANTITIES-BUDGET'!K141) -> 0 | F142: 0 | G142: 0
A143: =IF('QUANTITIES-BUDGET'!A142=0,"",'QUANTITIES-BUDGET'!A142) ->  | B143: =IF('QUANTITIES-BUDGET'!B142=0,"",'QUANTITIES-BUDGET'!B142) ->  | C143: =IF('QUANTITIES-BUDGET'!C142=0,"",'QUANTITIES-BUDGET'!C142) ->  | D143: =IF('QUANTITIES-BUDGET'!D142=0,"",'QUANTITIES-BUDGET'!D142) ->  | E143: =IF('QUANTITIES-BUDGET'!K142=0,0,'QUANTITIES-BUDGET'!K142) -> 0 | F143: 0 | G143: 0
A144: =IF('QUANTITIES-BUDGET'!A143=0,"",'QUANTITIES-BUDGET'!A143) ->  | B144: =IF('QUANTITIES-BUDGET'!B143=0,"",'QUANTITIES-BUDGET'!B143) ->  | C144: =IF('QUANTITIES-BUDGET'!C143=0,"",'QUANTITIES-BUDGET'!C143) ->  | D144: =IF('QUANTITIES-BUDGET'!D143=0,"",'QUANTITIES-BUDGET'!D143) ->  | E144: =IF('QUANTITIES-BUDGET'!K143=0,0,'QUANTITIES-BUDGET'!K143) -> 0 | F144: 0 | G144: 0
A145: =IF('QUANTITIES-BUDGET'!A144=0,"",'QUANTITIES-BUDGET'!A144) ->  | B145: =IF('QUANTITIES-BUDGET'!B144=0,"",'QUANTITIES-BUDGET'!B144) ->  | C145: =IF('QUANTITIES-BUDGET'!C144=0,"",'QUANTITIES-BUDGET'!C144) ->  | D145: =IF('QUANTITIES-BUDGET'!D144=0,"",'QUANTITIES-BUDGET'!D144) ->  | E145: =IF('QUANTITIES-BUDGET'!K144=0,0,'QUANTITIES-BUDGET'!K144) -> 0 | F145: 0 | G145: 0
A146: =IF('QUANTITIES-BUDGET'!A145=0,"",'QUANTITIES-BUDGET'!A145) ->  | B146: =IF('QUANTITIES-BUDGET'!B145=0,"",'QUANTITIES-BUDGET'!B145) ->  | C146: =IF('QUANTITIES-BUDGET'!C145=0,"",'QUANTITIES-BUDGET'!C145) ->  | D146: =IF('QUANTITIES-BUDGET'!D145=0,"",'QUANTITIES-BUDGET'!D145) ->  | E146: =IF('QUANTITIES-BUDGET'!K145=0,0,'QUANTITIES-BUDGET'!K145) -> 0 | F146: 0 | G146: 0
A147: =IF('QUANTITIES-BUDGET'!A146=0,"",'QUANTITIES-BUDGET'!A146) ->  | B147: =IF('QUANTITIES-BUDGET'!B146=0,"",'QUANTITIES-BUDGET'!B146) ->  | C147: =IF('QUANTITIES-BUDGET'!C146=0,"",'QUANTITIES-BUDGET'!C146) ->  | D147: =IF('QUANTITIES-BUDGET'!D146=0,"",'QUANTITIES-BUDGET'!D146) ->  | E147: =IF('QUANTITIES-BUDGET'!K146=0,0,'QUANTITIES-BUDGET'!K146) -> 0 | F147: 0 | G147: 0
A148: =IF('QUANTITIES-BUDGET'!A147=0,"",'QUANTITIES-BUDGET'!A147) ->  | B148: =IF('QUANTITIES-BUDGET'!B147=0,"",'QUANTITIES-BUDGET'!B147) ->  | C148: =IF('QUANTITIES-BUDGET'!C147=0,"",'QUANTITIES-BUDGET'!C147) ->  | D148: =IF('QUANTITIES-BUDGET'!D147=0,"",'QUANTITIES-BUDGET'!D147) ->  | E148: =IF('QUANTITIES-BUDGET'!K147=0,0,'QUANTITIES-BUDGET'!K147) -> 0 | F148: 0 | G148: 0
A149: =IF('QUANTITIES-BUDGET'!A148=0,"",'QUANTITIES-BUDGET'!A148) ->  | B149: =IF('QUANTITIES-BUDGET'!B148=0,"",'QUANTITIES-BUDGET'!B148) ->  | C149: =IF('QUANTITIES-BUDGET'!C148=0,"",'QUANTITIES-BUDGET'!C148) ->  | D149: =IF('QUANTITIES-BUDGET'!D148=0,"",'QUANTITIES-BUDGET'!D148) ->  | E149: =IF('QUANTITIES-BUDGET'!K148=0,0,'QUANTITIES-BUDGET'!K148) -> 0 | F149: 0 | G149: 0
A150: =IF('QUANTITIES-BUDGET'!A149=0,"",'QUANTITIES-BUDGET'!A149) ->  | B150: =IF('QUANTITIES-BUDGET'!B149=0,"",'QUANTITIES-BUDGET'!B149) ->  | C150: =IF('QUANTITIES-BUDGET'!C149=0,"",'QUANTITIES-BUDGET'!C149) ->  | D150: =IF('QUANTITIES-BUDGET'!D149=0,"",'QUANTITIES-BUDGET'!D149) ->  | E150: =IF('QUANTITIES-BUDGET'!K149=0,0,'QUANTITIES-BUDGET'!K149) -> 0 | F150: 0 | G150: 0
A151: =IF('QUANTITIES-BUDGET'!A150=0,"",'QUANTITIES-BUDGET'!A150) ->  | B151: =IF('QUANTITIES-BUDGET'!B150=0,"",'QUANTITIES-BUDGET'!B150) ->  | C151: =IF('QUANTITIES-BUDGET'!C150=0,"",'QUANTITIES-BUDGET'!C150) ->  | D151: =IF('QUANTITIES-BUDGET'!D150=0,"",'QUANTITIES-BUDGET'!D150) ->  | E151: =IF('QUANTITIES-BUDGET'!K150=0,0,'QUANTITIES-BUDGET'!K150) -> 0 | F151: 0 | G151: 0
A152: =IF('QUANTITIES-BUDGET'!A151=0,"",'QUANTITIES-BUDGET'!A151) ->  | B152: =IF('QUANTITIES-BUDGET'!B151=0,"",'QUANTITIES-BUDGET'!B151) ->  | C152: =IF('QUANTITIES-BUDGET'!C151=0,"",'QUANTITIES-BUDGET'!C151) ->  | D152: =IF('QUANTITIES-BUDGET'!D151=0,"",'QUANTITIES-BUDGET'!D151) ->  | E152: =IF('QUANTITIES-BUDGET'!K151=0,0,'QUANTITIES-BUDGET'!K151) -> 0 | F152: 0 | G152: 0
A153: =IF('QUANTITIES-BUDGET'!A152=0,"",'QUANTITIES-BUDGET'!A152) ->  | B153: =IF('QUANTITIES-BUDGET'!B152=0,"",'QUANTITIES-BUDGET'!B152) ->  | C153: =IF('QUANTITIES-BUDGET'!C152=0,"",'QUANTITIES-BUDGET'!C152) ->  | D153: =IF('QUANTITIES-BUDGET'!D152=0,"",'QUANTITIES-BUDGET'!D152) ->  | E153: =IF('QUANTITIES-BUDGET'!K152=0,0,'QUANTITIES-BUDGET'!K152) -> 0 | F153: 0 | G153: 0
A154: =IF('QUANTITIES-BUDGET'!A153=0,"",'QUANTITIES-BUDGET'!A153) ->  | B154: =IF('QUANTITIES-BUDGET'!B153=0,"",'QUANTITIES-BUDGET'!B153) ->  | C154: =IF('QUANTITIES-BUDGET'!C153=0,"",'QUANTITIES-BUDGET'!C153) ->  | D154: =IF('QUANTITIES-BUDGET'!D153=0,"",'QUANTITIES-BUDGET'!D153) ->  | E154: =IF('QUANTITIES-BUDGET'!K153=0,0,'QUANTITIES-BUDGET'!K153) -> 0 | F154: 0 | G154: 0
A155: =IF('QUANTITIES-BUDGET'!A154=0,"",'QUANTITIES-BUDGET'!A154) ->  | B155: =IF('QUANTITIES-BUDGET'!B154=0,"",'QUANTITIES-BUDGET'!B154) ->  | C155: =IF('QUANTITIES-BUDGET'!C154=0,"",'QUANTITIES-BUDGET'!C154) ->  | D155: =IF('QUANTITIES-BUDGET'!D154=0,"",'QUANTITIES-BUDGET'!D154) ->  | E155: =IF('QUANTITIES-BUDGET'!K154=0,0,'QUANTITIES-BUDGET'!K154) -> 0 | F155: 0 | G155: 0
A156: =IF('QUANTITIES-BUDGET'!A155=0,"",'QUANTITIES-BUDGET'!A155) ->  | B156: =IF('QUANTITIES-BUDGET'!B155=0,"",'QUANTITIES-BUDGET'!B155) ->  | C156: =IF('QUANTITIES-BUDGET'!C155=0,"",'QUANTITIES-BUDGET'!C155) ->  | D156: =IF('QUANTITIES-BUDGET'!D155=0,"",'QUANTITIES-BUDGET'!D155) ->  | E156: =IF('QUANTITIES-BUDGET'!K155=0,0,'QUANTITIES-BUDGET'!K155) -> 0 | F156: 0 | G156: 0
A157: =IF('QUANTITIES-BUDGET'!A156=0,"",'QUANTITIES-BUDGET'!A156) ->  | B157: =IF('QUANTITIES-BUDGET'!B156=0,"",'QUANTITIES-BUDGET'!B156) ->  | C157: =IF('QUANTITIES-BUDGET'!C156=0,"",'QUANTITIES-BUDGET'!C156) ->  | D157: =IF('QUANTITIES-BUDGET'!D156=0,"",'QUANTITIES-BUDGET'!D156) ->  | E157: =IF('QUANTITIES-BUDGET'!K156=0,0,'QUANTITIES-BUDGET'!K156) -> 0 | F157: 0 | G157: 0
A158: =IF('QUANTITIES-BUDGET'!A157=0,"",'QUANTITIES-BUDGET'!A157) ->  | B158: =IF('QUANTITIES-BUDGET'!B157=0,"",'QUANTITIES-BUDGET'!B157) ->  | C158: =IF('QUANTITIES-BUDGET'!C157=0,"",'QUANTITIES-BUDGET'!C157) ->  | D158: =IF('QUANTITIES-BUDGET'!D157=0,"",'QUANTITIES-BUDGET'!D157) ->  | E158: =IF('QUANTITIES-BUDGET'!K157=0,0,'QUANTITIES-BUDGET'!K157) -> 0 | F158: 0 | G158: 0
A159: =IF('QUANTITIES-BUDGET'!A158=0,"",'QUANTITIES-BUDGET'!A158) ->  | B159: =IF('QUANTITIES-BUDGET'!B158=0,"",'QUANTITIES-BUDGET'!B158) ->  | C159: =IF('QUANTITIES-BUDGET'!C158=0,"",'QUANTITIES-BUDGET'!C158) ->  | D159: =IF('QUANTITIES-BUDGET'!D158=0,"",'QUANTITIES-BUDGET'!D158) ->  | E159: =IF('QUANTITIES-BUDGET'!K158=0,0,'QUANTITIES-BUDGET'!K158) -> 0 | F159: 0 | G159: 0
A160: =IF('QUANTITIES-BUDGET'!A159=0,"",'QUANTITIES-BUDGET'!A159) ->  | B160: =IF('QUANTITIES-BUDGET'!B159=0,"",'QUANTITIES-BUDGET'!B159) ->  | C160: =IF('QUANTITIES-BUDGET'!C159=0,"",'QUANTITIES-BUDGET'!C159) ->  | D160: =IF('QUANTITIES-BUDGET'!D159=0,"",'QUANTITIES-BUDGET'!D159) ->  | E160: =IF('QUANTITIES-BUDGET'!K159=0,0,'QUANTITIES-BUDGET'!K159) -> 0 | F160: 0 | G160: 0
A161: =IF('QUANTITIES-BUDGET'!A160=0,"",'QUANTITIES-BUDGET'!A160) ->  | B161: =IF('QUANTITIES-BUDGET'!B160=0,"",'QUANTITIES-BUDGET'!B160) ->  | C161: =IF('QUANTITIES-BUDGET'!C160=0,"",'QUANTITIES-BUDGET'!C160) ->  | D161: =IF('QUANTITIES-BUDGET'!D160=0,"",'QUANTITIES-BUDGET'!D160) ->  | E161: =IF('QUANTITIES-BUDGET'!K160=0,0,'QUANTITIES-BUDGET'!K160) -> 0 | F161: 0 | G161: 0
A162: =IF('QUANTITIES-BUDGET'!A161=0,"",'QUANTITIES-BUDGET'!A161) ->  | B162: =IF('QUANTITIES-BUDGET'!B161=0,"",'QUANTITIES-BUDGET'!B161) ->  | C162: =IF('QUANTITIES-BUDGET'!C161=0,"",'QUANTITIES-BUDGET'!C161) ->  | D162: =IF('QUANTITIES-BUDGET'!D161=0,"",'QUANTITIES-BUDGET'!D161) ->  | E162: =IF('QUANTITIES-BUDGET'!K161=0,0,'QUANTITIES-BUDGET'!K161) -> 0 | F162: 0 | G162: 0
A163: =IF('QUANTITIES-BUDGET'!A162=0,"",'QUANTITIES-BUDGET'!A162) ->  | B163: =IF('QUANTITIES-BUDGET'!B162=0,"",'QUANTITIES-BUDGET'!B162) ->  | C163: =IF('QUANTITIES-BUDGET'!C162=0,"",'QUANTITIES-BUDGET'!C162) ->  | D163: =IF('QUANTITIES-BUDGET'!D162=0,"",'QUANTITIES-BUDGET'!D162) ->  | E163: =IF('QUANTITIES-BUDGET'!K162=0,0,'QUANTITIES-BUDGET'!K162) -> 0 | F163: 0 | G163: 0
A164: =IF('QUANTITIES-BUDGET'!A163=0,"",'QUANTITIES-BUDGET'!A163) ->  | B164: =IF('QUANTITIES-BUDGET'!B163=0,"",'QUANTITIES-BUDGET'!B163) ->  | C164: =IF('QUANTITIES-BUDGET'!C163=0,"",'QUANTITIES-BUDGET'!C163) ->  | D164: =IF('QUANTITIES-BUDGET'!D163=0,"",'QUANTITIES-BUDGET'!D163) ->  | E164: =IF('QUANTITIES-BUDGET'!K163=0,0,'QUANTITIES-BUDGET'!K163) -> 0 | F164: 0 | G164: 0
A165: =IF('QUANTITIES-BUDGET'!A164=0,"",'QUANTITIES-BUDGET'!A164) ->  | B165: =IF('QUANTITIES-BUDGET'!B164=0,"",'QUANTITIES-BUDGET'!B164) ->  | C165: =IF('QUANTITIES-BUDGET'!C164=0,"",'QUANTITIES-BUDGET'!C164) ->  | D165: =IF('QUANTITIES-BUDGET'!D164=0,"",'QUANTITIES-BUDGET'!D164) ->  | E165: =IF('QUANTITIES-BUDGET'!K164=0,0,'QUANTITIES-BUDGET'!K164) -> 0 | F165: 0 | G165: 0
A166: =IF('QUANTITIES-BUDGET'!A165=0,"",'QUANTITIES-BUDGET'!A165) ->  | B166: =IF('QUANTITIES-BUDGET'!B165=0,"",'QUANTITIES-BUDGET'!B165) ->  | C166: =IF('QUANTITIES-BUDGET'!C165=0,"",'QUANTITIES-BUDGET'!C165) ->  | D166: =IF('QUANTITIES-BUDGET'!D165=0,"",'QUANTITIES-BUDGET'!D165) ->  | E166: =IF('QUANTITIES-BUDGET'!K165=0,0,'QUANTITIES-BUDGET'!K165) -> 0 | F166: 0 | G166: 0
A167: =IF('QUANTITIES-BUDGET'!A166=0,"",'QUANTITIES-BUDGET'!A166) ->  | B167: =IF('QUANTITIES-BUDGET'!B166=0,"",'QUANTITIES-BUDGET'!B166) ->  | C167: =IF('QUANTITIES-BUDGET'!C166=0,"",'QUANTITIES-BUDGET'!C166) ->  | D167: =IF('QUANTITIES-BUDGET'!D166=0,"",'QUANTITIES-BUDGET'!D166) ->  | E167: =IF('QUANTITIES-BUDGET'!K166=0,0,'QUANTITIES-BUDGET'!K166) -> 0 | F167: 0 | G167: 0
A168: =IF('QUANTITIES-BUDGET'!A167=0,"",'QUANTITIES-BUDGET'!A167) ->  | B168: =IF('QUANTITIES-BUDGET'!B167=0,"",'QUANTITIES-BUDGET'!B167) ->  | C168: =IF('QUANTITIES-BUDGET'!C167=0,"",'QUANTITIES-BUDGET'!C167) ->  | D168: =IF('QUANTITIES-BUDGET'!D167=0,"",'QUANTITIES-BUDGET'!D167) ->  | E168: =IF('QUANTITIES-BUDGET'!K167=0,0,'QUANTITIES-BUDGET'!K167) -> 0 | F168: 0 | G168: 0
A169: =IF('QUANTITIES-BUDGET'!A168=0,"",'QUANTITIES-BUDGET'!A168) ->  | B169: =IF('QUANTITIES-BUDGET'!B168=0,"",'QUANTITIES-BUDGET'!B168) ->  | C169: =IF('QUANTITIES-BUDGET'!C168=0,"",'QUANTITIES-BUDGET'!C168) ->  | D169: =IF('QUANTITIES-BUDGET'!D168=0,"",'QUANTITIES-BUDGET'!D168) ->  | E169: =IF('QUANTITIES-BUDGET'!K168=0,0,'QUANTITIES-BUDGET'!K168) -> 0 | F169: 0 | G169: 0
A170: =IF('QUANTITIES-BUDGET'!A169=0,"",'QUANTITIES-BUDGET'!A169) ->  | B170: =IF('QUANTITIES-BUDGET'!B169=0,"",'QUANTITIES-BUDGET'!B169) ->  | C170: =IF('QUANTITIES-BUDGET'!C169=0,"",'QUANTITIES-BUDGET'!C169) ->  | D170: =IF('QUANTITIES-BUDGET'!D169=0,"",'QUANTITIES-BUDGET'!D169) ->  | E170: =IF('QUANTITIES-BUDGET'!K169=0,0,'QUANTITIES-BUDGET'!K169) -> 0 | F170: 0 | G170: 0
A171: =IF('QUANTITIES-BUDGET'!A170=0,"",'QUANTITIES-BUDGET'!A170) ->  | B171: =IF('QUANTITIES-BUDGET'!B170=0,"",'QUANTITIES-BUDGET'!B170) ->  | C171: =IF('QUANTITIES-BUDGET'!C170=0,"",'QUANTITIES-BUDGET'!C170) ->  | D171: =IF('QUANTITIES-BUDGET'!D170=0,"",'QUANTITIES-BUDGET'!D170) ->  | E171: =IF('QUANTITIES-BUDGET'!K170=0,0,'QUANTITIES-BUDGET'!K170) -> 0 | F171: 0 | G171: 0
A172: =IF('QUANTITIES-BUDGET'!A171=0,"",'QUANTITIES-BUDGET'!A171) ->  | B172: =IF('QUANTITIES-BUDGET'!B171=0,"",'QUANTITIES-BUDGET'!B171) ->  | C172: =IF('QUANTITIES-BUDGET'!C171=0,"",'QUANTITIES-BUDGET'!C171) ->  | D172: =IF('QUANTITIES-BUDGET'!D171=0,"",'QUANTITIES-BUDGET'!D171) ->  | E172: =IF('QUANTITIES-BUDGET'!K171=0,0,'QUANTITIES-BUDGET'!K171) -> 0 | F172: 0 | G172: 0
A173: =IF('QUANTITIES-BUDGET'!A172=0,"",'QUANTITIES-BUDGET'!A172) ->  | B173: =IF('QUANTITIES-BUDGET'!B172=0,"",'QUANTITIES-BUDGET'!B172) ->  | C173: =IF('QUANTITIES-BUDGET'!C172=0,"",'QUANTITIES-BUDGET'!C172) ->  | D173: =IF('QUANTITIES-BUDGET'!D172=0,"",'QUANTITIES-BUDGET'!D172) ->  | E173: =IF('QUANTITIES-BUDGET'!K172=0,0,'QUANTITIES-BUDGET'!K172) -> 0 | F173: 0 | G173: 0
A174: =IF('QUANTITIES-BUDGET'!A173=0,"",'QUANTITIES-BUDGET'!A173) ->  | B174: =IF('QUANTITIES-BUDGET'!B173=0,"",'QUANTITIES-BUDGET'!B173) ->  | C174: =IF('QUANTITIES-BUDGET'!C173=0,"",'QUANTITIES-BUDGET'!C173) ->  | D174: =IF('QUANTITIES-BUDGET'!D173=0,"",'QUANTITIES-BUDGET'!D173) ->  | E174: =IF('QUANTITIES-BUDGET'!K173=0,0,'QUANTITIES-BUDGET'!K173) -> 0 | F174: 0 | G174: 0
A175: =IF('QUANTITIES-BUDGET'!A174=0,"",'QUANTITIES-BUDGET'!A174) ->  | B175: =IF('QUANTITIES-BUDGET'!B174=0,"",'QUANTITIES-BUDGET'!B174) ->  | C175: =IF('QUANTITIES-BUDGET'!C174=0,"",'QUANTITIES-BUDGET'!C174) ->  | D175: =IF('QUANTITIES-BUDGET'!D174=0,"",'QUANTITIES-BUDGET'!D174) ->  | E175: =IF('QUANTITIES-BUDGET'!K174=0,0,'QUANTITIES-BUDGET'!K174) -> 0 | F175: 0 | G175: 0
A176: =IF('QUANTITIES-BUDGET'!A175=0,"",'QUANTITIES-BUDGET'!A175) ->  | B176: =IF('QUANTITIES-BUDGET'!B175=0,"",'QUANTITIES-BUDGET'!B175) ->  | C176: =IF('QUANTITIES-BUDGET'!C175=0,"",'QUANTITIES-BUDGET'!C175) ->  | D176: =IF('QUANTITIES-BUDGET'!D175=0,"",'QUANTITIES-BUDGET'!D175) ->  | E176: =IF('QUANTITIES-BUDGET'!K175=0,0,'QUANTITIES-BUDGET'!K175) -> 0 | F176: 0 | G176: 0
A177: =IF('QUANTITIES-BUDGET'!A176=0,"",'QUANTITIES-BUDGET'!A176) ->  | B177: =IF('QUANTITIES-BUDGET'!B176=0,"",'QUANTITIES-BUDGET'!B176) ->  | C177: =IF('QUANTITIES-BUDGET'!C176=0,"",'QUANTITIES-BUDGET'!C176) ->  | D177: =IF('QUANTITIES-BUDGET'!D176=0,"",'QUANTITIES-BUDGET'!D176) ->  | E177: =IF('QUANTITIES-BUDGET'!K176=0,0,'QUANTITIES-BUDGET'!K176) -> 0 | F177: 0 | G177: 0
A178: =IF('QUANTITIES-BUDGET'!A177=0,"",'QUANTITIES-BUDGET'!A177) ->  | B178: =IF('QUANTITIES-BUDGET'!B177=0,"",'QUANTITIES-BUDGET'!B177) ->  | C178: =IF('QUANTITIES-BUDGET'!C177=0,"",'QUANTITIES-BUDGET'!C177) ->  | D178: =IF('QUANTITIES-BUDGET'!D177=0,"",'QUANTITIES-BUDGET'!D177) ->  | E178: =IF('QUANTITIES-BUDGET'!K177=0,0,'QUANTITIES-BUDGET'!K177) -> 0 | F178: 0 | G178: 0
A179: =IF('QUANTITIES-BUDGET'!A178=0,"",'QUANTITIES-BUDGET'!A178) ->  | B179: =IF('QUANTITIES-BUDGET'!B178=0,"",'QUANTITIES-BUDGET'!B178) ->  | C179: =IF('QUANTITIES-BUDGET'!C178=0,"",'QUANTITIES-BUDGET'!C178) ->  | D179: =IF('QUANTITIES-BUDGET'!D178=0,"",'QUANTITIES-BUDGET'!D178) ->  | E179: =IF('QUANTITIES-BUDGET'!K178=0,0,'QUANTITIES-BUDGET'!K178) -> 0 | F179: 0 | G179: 0
A180: =IF('QUANTITIES-BUDGET'!A179=0,"",'QUANTITIES-BUDGET'!A179) ->  | B180: =IF('QUANTITIES-BUDGET'!B179=0,"",'QUANTITIES-BUDGET'!B179) ->  | C180: =IF('QUANTITIES-BUDGET'!C179=0,"",'QUANTITIES-BUDGET'!C179) ->  | D180: =IF('QUANTITIES-BUDGET'!D179=0,"",'QUANTITIES-BUDGET'!D179) ->  | E180: =IF('QUANTITIES-BUDGET'!K179=0,0,'QUANTITIES-BUDGET'!K179) -> 0 | F180: 0 | G180: 0
A181: =IF('QUANTITIES-BUDGET'!A180=0,"",'QUANTITIES-BUDGET'!A180) ->  | B181: =IF('QUANTITIES-BUDGET'!B180=0,"",'QUANTITIES-BUDGET'!B180) ->  | C181: =IF('QUANTITIES-BUDGET'!C180=0,"",'QUANTITIES-BUDGET'!C180) ->  | D181: =IF('QUANTITIES-BUDGET'!D180=0,"",'QUANTITIES-BUDGET'!D180) ->  | E181: =IF('QUANTITIES-BUDGET'!K180=0,0,'QUANTITIES-BUDGET'!K180) -> 0 | F181: 0 | G181: 0
A182: =IF('QUANTITIES-BUDGET'!A181=0,"",'QUANTITIES-BUDGET'!A181) ->  | B182: =IF('QUANTITIES-BUDGET'!B181=0,"",'QUANTITIES-BUDGET'!B181) ->  | C182: =IF('QUANTITIES-BUDGET'!C181=0,"",'QUANTITIES-BUDGET'!C181) ->  | D182: =IF('QUANTITIES-BUDGET'!D181=0,"",'QUANTITIES-BUDGET'!D181) ->  | E182: =IF('QUANTITIES-BUDGET'!K181=0,0,'QUANTITIES-BUDGET'!K181) -> 0 | F182: 0 | G182: 0
A183: =IF('QUANTITIES-BUDGET'!A182=0,"",'QUANTITIES-BUDGET'!A182) ->  | B183: =IF('QUANTITIES-BUDGET'!B182=0,"",'QUANTITIES-BUDGET'!B182) ->  | C183: =IF('QUANTITIES-BUDGET'!C182=0,"",'QUANTITIES-BUDGET'!C182) ->  | D183: =IF('QUANTITIES-BUDGET'!D182=0,"",'QUANTITIES-BUDGET'!D182) ->  | E183: =IF('QUANTITIES-BUDGET'!K182=0,0,'QUANTITIES-BUDGET'!K182) -> 0 | F183: 0 | G183: 0
A184: =IF('QUANTITIES-BUDGET'!A183=0,"",'QUANTITIES-BUDGET'!A183) ->  | B184: =IF('QUANTITIES-BUDGET'!B183=0,"",'QUANTITIES-BUDGET'!B183) ->  | C184: =IF('QUANTITIES-BUDGET'!C183=0,"",'QUANTITIES-BUDGET'!C183) ->  | D184: =IF('QUANTITIES-BUDGET'!D183=0,"",'QUANTITIES-BUDGET'!D183) ->  | E184: =IF('QUANTITIES-BUDGET'!K183=0,0,'QUANTITIES-BUDGET'!K183) -> 0 | F184: 0 | G184: 0
A185: =IF('QUANTITIES-BUDGET'!A184=0,"",'QUANTITIES-BUDGET'!A184) ->  | B185: =IF('QUANTITIES-BUDGET'!B184=0,"",'QUANTITIES-BUDGET'!B184) ->  | C185: =IF('QUANTITIES-BUDGET'!C184=0,"",'QUANTITIES-BUDGET'!C184) ->  | D185: =IF('QUANTITIES-BUDGET'!D184=0,"",'QUANTITIES-BUDGET'!D184) ->  | E185: =IF('QUANTITIES-BUDGET'!K184=0,0,'QUANTITIES-BUDGET'!K184) -> 0 | F185: 0 | G185: 0
A186: =IF('QUANTITIES-BUDGET'!A185=0,"",'QUANTITIES-BUDGET'!A185) ->  | B186: =IF('QUANTITIES-BUDGET'!B185=0,"",'QUANTITIES-BUDGET'!B185) ->  | C186: =IF('QUANTITIES-BUDGET'!C185=0,"",'QUANTITIES-BUDGET'!C185) ->  | D186: =IF('QUANTITIES-BUDGET'!D185=0,"",'QUANTITIES-BUDGET'!D185) ->  | E186: =IF('QUANTITIES-BUDGET'!K185=0,0,'QUANTITIES-BUDGET'!K185) -> 0 | F186: 0 | G186: 0
A187: =IF('QUANTITIES-BUDGET'!A186=0,"",'QUANTITIES-BUDGET'!A186) ->  | B187: =IF('QUANTITIES-BUDGET'!B186=0,"",'QUANTITIES-BUDGET'!B186) ->  | C187: =IF('QUANTITIES-BUDGET'!C186=0,"",'QUANTITIES-BUDGET'!C186) ->  | D187: =IF('QUANTITIES-BUDGET'!D186=0,"",'QUANTITIES-BUDGET'!D186) ->  | E187: =IF('QUANTITIES-BUDGET'!K186=0,0,'QUANTITIES-BUDGET'!K186) -> 0 | F187: 0 | G187: 0
A188: =IF('QUANTITIES-BUDGET'!A187=0,"",'QUANTITIES-BUDGET'!A187) ->  | B188: =IF('QUANTITIES-BUDGET'!B187=0,"",'QUANTITIES-BUDGET'!B187) ->  | C188: =IF('QUANTITIES-BUDGET'!C187=0,"",'QUANTITIES-BUDGET'!C187) ->  | D188: =IF('QUANTITIES-BUDGET'!D187=0,"",'QUANTITIES-BUDGET'!D187) ->  | E188: =IF('QUANTITIES-BUDGET'!K187=0,0,'QUANTITIES-BUDGET'!K187) -> 0 | F188: 0 | G188: 0
A189: =IF('QUANTITIES-BUDGET'!A188=0,"",'QUANTITIES-BUDGET'!A188) ->  | B189: =IF('QUANTITIES-BUDGET'!B188=0,"",'QUANTITIES-BUDGET'!B188) ->  | C189: =IF('QUANTITIES-BUDGET'!C188=0,"",'QUANTITIES-BUDGET'!C188) ->  | D189: =IF('QUANTITIES-BUDGET'!D188=0,"",'QUANTITIES-BUDGET'!D188) ->  | E189: =IF('QUANTITIES-BUDGET'!K188=0,0,'QUANTITIES-BUDGET'!K188) -> 0 | F189: 0 | G189: 0
A190: =IF('QUANTITIES-BUDGET'!A189=0,"",'QUANTITIES-BUDGET'!A189) ->  | B190: =IF('QUANTITIES-BUDGET'!B189=0,"",'QUANTITIES-BUDGET'!B189) ->  | C190: =IF('QUANTITIES-BUDGET'!C189=0,"",'QUANTITIES-BUDGET'!C189) ->  | D190: =IF('QUANTITIES-BUDGET'!D189=0,"",'QUANTITIES-BUDGET'!D189) ->  | E190: =IF('QUANTITIES-BUDGET'!K189=0,0,'QUANTITIES-BUDGET'!K189) -> 0 | F190: 0 | G190: 0
A191: =IF('QUANTITIES-BUDGET'!A190=0,"",'QUANTITIES-BUDGET'!A190) ->  | B191: =IF('QUANTITIES-BUDGET'!B190=0,"",'QUANTITIES-BUDGET'!B190) ->  | C191: =IF('QUANTITIES-BUDGET'!C190=0,"",'QUANTITIES-BUDGET'!C190) ->  | D191: =IF('QUANTITIES-BUDGET'!D190=0,"",'QUANTITIES-BUDGET'!D190) ->  | E191: =IF('QUANTITIES-BUDGET'!K190=0,0,'QUANTITIES-BUDGET'!K190) -> 0 | F191: 0 | G191: 0
A192: =IF('QUANTITIES-BUDGET'!A191=0,"",'QUANTITIES-BUDGET'!A191) ->  | B192: =IF('QUANTITIES-BUDGET'!B191=0,"",'QUANTITIES-BUDGET'!B191) ->  | C192: =IF('QUANTITIES-BUDGET'!C191=0,"",'QUANTITIES-BUDGET'!C191) ->  | D192: =IF('QUANTITIES-BUDGET'!D191=0,"",'QUANTITIES-BUDGET'!D191) ->  | E192: =IF('QUANTITIES-BUDGET'!K191=0,0,'QUANTITIES-BUDGET'!K191) -> 0 | F192: 0 | G192: 0
A193: =IF('QUANTITIES-BUDGET'!A192=0,"",'QUANTITIES-BUDGET'!A192) ->  | B193: =IF('QUANTITIES-BUDGET'!B192=0,"",'QUANTITIES-BUDGET'!B192) ->  | C193: =IF('QUANTITIES-BUDGET'!C192=0,"",'QUANTITIES-BUDGET'!C192) ->  | D193: =IF('QUANTITIES-BUDGET'!D192=0,"",'QUANTITIES-BUDGET'!D192) ->  | E193: =IF('QUANTITIES-BUDGET'!K192=0,0,'QUANTITIES-BUDGET'!K192) -> 0 | F193: 0 | G193: 0
A194: =IF('QUANTITIES-BUDGET'!A193=0,"",'QUANTITIES-BUDGET'!A193) ->  | B194: =IF('QUANTITIES-BUDGET'!B193=0,"",'QUANTITIES-BUDGET'!B193) ->  | C194: =IF('QUANTITIES-BUDGET'!C193=0,"",'QUANTITIES-BUDGET'!C193) ->  | D194: =IF('QUANTITIES-BUDGET'!D193=0,"",'QUANTITIES-BUDGET'!D193) ->  | E194: =IF('QUANTITIES-BUDGET'!K193=0,0,'QUANTITIES-BUDGET'!K193) -> 0 | F194: 0 | G194: 0
A195: =IF('QUANTITIES-BUDGET'!A194=0,"",'QUANTITIES-BUDGET'!A194) ->  | B195: =IF('QUANTITIES-BUDGET'!B194=0,"",'QUANTITIES-BUDGET'!B194) ->  | C195: =IF('QUANTITIES-BUDGET'!C194=0,"",'QUANTITIES-BUDGET'!C194) ->  | D195: =IF('QUANTITIES-BUDGET'!D194=0,"",'QUANTITIES-BUDGET'!D194) ->  | E195: =IF('QUANTITIES-BUDGET'!K194=0,0,'QUANTITIES-BUDGET'!K194) -> 0 | F195: 0 | G195: 0
A196: =IF('QUANTITIES-BUDGET'!A195=0,"",'QUANTITIES-BUDGET'!A195) ->  | B196: =IF('QUANTITIES-BUDGET'!B195=0,"",'QUANTITIES-BUDGET'!B195) ->  | C196: =IF('QUANTITIES-BUDGET'!C195=0,"",'QUANTITIES-BUDGET'!C195) ->  | D196: =IF('QUANTITIES-BUDGET'!D195=0,"",'QUANTITIES-BUDGET'!D195) ->  | E196: =IF('QUANTITIES-BUDGET'!K195=0,0,'QUANTITIES-BUDGET'!K195) -> 0 | F196: 0 | G196: 0
A197: =IF('QUANTITIES-BUDGET'!A196=0,"",'QUANTITIES-BUDGET'!A196) ->  | B197: =IF('QUANTITIES-BUDGET'!B196=0,"",'QUANTITIES-BUDGET'!B196) ->  | C197: =IF('QUANTITIES-BUDGET'!C196=0,"",'QUANTITIES-BUDGET'!C196) ->  | D197: =IF('QUANTITIES-BUDGET'!D196=0,"",'QUANTITIES-BUDGET'!D196) ->  | E197: =IF('QUANTITIES-BUDGET'!K196=0,0,'QUANTITIES-BUDGET'!K196) -> 0 | F197: 0 | G197: 0
A198: =IF('QUANTITIES-BUDGET'!A197=0,"",'QUANTITIES-BUDGET'!A197) ->  | B198: =IF('QUANTITIES-BUDGET'!B197=0,"",'QUANTITIES-BUDGET'!B197) ->  | C198: =IF('QUANTITIES-BUDGET'!C197=0,"",'QUANTITIES-BUDGET'!C197) ->  | D198: =IF('QUANTITIES-BUDGET'!D197=0,"",'QUANTITIES-BUDGET'!D197) ->  | E198: =IF('QUANTITIES-BUDGET'!K197=0,0,'QUANTITIES-BUDGET'!K197) -> 0 | F198: 0 | G198: 0
A199: =IF('QUANTITIES-BUDGET'!A198=0,"",'QUANTITIES-BUDGET'!A198) ->  | B199: =IF('QUANTITIES-BUDGET'!B198=0,"",'QUANTITIES-BUDGET'!B198) ->  | C199: =IF('QUANTITIES-BUDGET'!C198=0,"",'QUANTITIES-BUDGET'!C198) ->  | D199: =IF('QUANTITIES-BUDGET'!D198=0,"",'QUANTITIES-BUDGET'!D198) ->  | E199: =IF('QUANTITIES-BUDGET'!K198=0,0,'QUANTITIES-BUDGET'!K198) -> 0 | F199: 0 | G199: 0
A200: =IF('QUANTITIES-BUDGET'!A199=0,"",'QUANTITIES-BUDGET'!A199) ->  | B200: =IF('QUANTITIES-BUDGET'!B199=0,"",'QUANTITIES-BUDGET'!B199) ->  | C200: =IF('QUANTITIES-BUDGET'!C199=0,"",'QUANTITIES-BUDGET'!C199) ->  | D200: =IF('QUANTITIES-BUDGET'!D199=0,"",'QUANTITIES-BUDGET'!D199) ->  | E200: =IF('QUANTITIES-BUDGET'!K199=0,0,'QUANTITIES-BUDGET'!K199) -> 0 | F200: 0 | G200: 0
A201: =IF('QUANTITIES-BUDGET'!A200=0,"",'QUANTITIES-BUDGET'!A200) ->  | B201: =IF('QUANTITIES-BUDGET'!B200=0,"",'QUANTITIES-BUDGET'!B200) ->  | C201: =IF('QUANTITIES-BUDGET'!C200=0,"",'QUANTITIES-BUDGET'!C200) ->  | D201: =IF('QUANTITIES-BUDGET'!D200=0,"",'QUANTITIES-BUDGET'!D200) ->  | E201: =IF('QUANTITIES-BUDGET'!K200=0,0,'QUANTITIES-BUDGET'!K200) -> 0 | F201: 0 | G201: 0
A202: =IF('QUANTITIES-BUDGET'!A201=0,"",'QUANTITIES-BUDGET'!A201) ->  | B202: =IF('QUANTITIES-BUDGET'!B201=0,"",'QUANTITIES-BUDGET'!B201) ->  | C202: =IF('QUANTITIES-BUDGET'!C201=0,"",'QUANTITIES-BUDGET'!C201) ->  | D202: =IF('QUANTITIES-BUDGET'!D201=0,"",'QUANTITIES-BUDGET'!D201) ->  | E202: =IF('QUANTITIES-BUDGET'!K201=0,0,'QUANTITIES-BUDGET'!K201) -> 0 | F202: 0 | G202: 0
A203: =IF('QUANTITIES-BUDGET'!A202=0,"",'QUANTITIES-BUDGET'!A202) ->  | B203: =IF('QUANTITIES-BUDGET'!B202=0,"",'QUANTITIES-BUDGET'!B202) ->  | C203: =IF('QUANTITIES-BUDGET'!C202=0,"",'QUANTITIES-BUDGET'!C202) ->  | D203: =IF('QUANTITIES-BUDGET'!D202=0,"",'QUANTITIES-BUDGET'!D202) ->  | E203: =IF('QUANTITIES-BUDGET'!K202=0,0,'QUANTITIES-BUDGET'!K202) -> 0 | F203: 0 | G203: 0
... 308 more rows

Sheet ACTUAL vs.PLANNED
A1: Actual Progress vs. Planned Progress
E3: PLANNED | J3: ACTUAL | O3: SPI (=EV/PV) | P3: DURATION as per initial contract (IC) or V.O. | Q3: CONTRACT VALUE as per initial contract (IC) or V.O.
C4: Month | E4: Value planned per month | F4: Value planned cummulative (all years) | G4: Remaining amount (PLANNED) | H4: Planned Progress = PLANNED VALUE (PV) [%] | I4: Remaining PLANNED progress [%[ | J4: Value executed per month | K4: Value executed cummulative | L4: Remaining amount (ACTUAL) | M4: Actual Progress =EARNED VALUE (EV) [%] | N4: Remaining ACTUAL progress [%[
N5: باقي التقدم الفعلي [٪ [
A6: Year 1 | C6: 1 | D6: =TEXT(EOMONTH('PROJECT DETAILS'!C$10,C6-1),"mmmm yyyy") -> March 2016 | E6: 218000 | F6: =IF(E6=0,"",E6) -> 218000 | G6: =IF(E6=0,"",'PROGRESS MONITORING'!G$15-F6) -> 21513860.65 | H6: =IF(E6=0,"",F6/'PROGRESS MONITORING'!G$15) -> 0.01003135459 | I6: =IF(E6=0,"",1-H6) -> 0.9899686454 | J6: ='PROGRESS MONITORING'!Q16 -> 223919.1 | K6: =IF(J6=0,0,J6) -> 223919.1 | L6: =IF(J6=0,"",'PROGRESS MONITORING'!G$15-K6) -> 21507941.55 | M6: =IF(J6=0,"",ROUND(K6/'PROGRESS MONITORING'!G$15,3)) -> 0.01 | N6: =IF(J6=0,"",1-M6) -> 0.99 | O6: =IF(J6=0,"N/A",M6/H6) -> 0.9968743417 | P6: =_xlfn.IFS(C6<='PROJECT DETAILS'!$C$12,"IC",C6<='PROJECT DETAILS'!$E$63,"V.O. 1",C6<'PROJECT DETAILS'!$E$64,"V.O. 2",C6<'PROJECT DETAILS'!$E$65,"V.O. 3",C6<'PROJECT DETAILS'!$E$66,"V.O. 4") -> IC | Q6: =_xlfn.IFS('ACTUAL vs.PLANNED'!K6<='QUANTITIES-BUDGET'!$N$8,"IC",'ACTUAL vs.PLANNED'!K6<='QUANTITIES-BUDGET'!$O$8,"V.O. 1",'ACTUAL vs.PLANNED'!K6<='QUANTITIES-BUDGET'!$P$8,"V.O. 2",'ACTUAL vs.PLANNED'!K6<='QUANTITIES-BUDGET'!$Q$8,"V.O. 3",'ACTUAL vs.PLANNED'!K6<='QUANTITIES-BUDGET'!$R$8,"V.O. 4") -> IC | R6: =D6 -> March 2016 | S6: =C6 -> 1 | T6: =TEXT(R6,"[$-401] mmmm yyyy") -> مارس 2016
C7: 2 | D7: =TEXT(EOMONTH('PROJECT DETAILS'!C$10,C7-1),"mmmm yyyy") -> April 2016 | E7: 240000 | F7: =IF(E7=0,"",F6+E7) -> 458000 | G7: =IF(E7=0,"",'PROGRESS MONITORING'!G$15-F7) -> 21273860.65 | H7: =IF(E7=0,"",F7/'PROGRESS MONITORING'!G$15) -> 0.02107504771 | I7: =IF(E7=0,"",1-H7) -> 0.9789249523 | J7: ='PROGRESS MONITORING'!V16 -> 245942.01 | K7: =IF(J7=0,0,J7+K6) -> 469861.11 | L7: =IF(J7=0,"",'PROGRESS MONITORING'!G$15-K7) -> 21261999.54 | M7: =IF(J7=0,"",ROUND(K7/'PROGRESS MONITORING'!G$15,3)) -> 0.022 | N7: =IF(J7=0,"",1-M7) -> 0.978 | O7: 1.043888503 | P7: =_xlfn.IFS(C7<='PROJECT DETAILS'!$C$12,"IC",C7<='PROJECT DETAILS'!$E$63,"V.O. 1",C7<'PROJECT DETAILS'!$E$64,"V.O. 2",C7<'PROJECT DETAILS'!$E$65,"V.O. 3",C7<'PROJECT DETAILS'!$E$66,"V.O. 4") -> IC | Q7: =_xlfn.IFS('ACTUAL vs.PLANNED'!K7<='QUANTITIES-BUDGET'!$N$8,"IC",'ACTUAL vs.PLANNED'!K7<='QUANTITIES-BUDGET'!$O$8,"V.O. 1",'ACTUAL vs.PLANNED'!K7<='QUANTITIES-BUDGET'!$P$8,"V.O. 2",'ACTUAL vs.PLANNED'!K7<='QUANTITIES-BUDGET'!$Q$8,"V.O. 3",'ACTUAL vs.PLANNED'!K7<='QUANTITIES-BUDGET'!$R$8,"V.O. 4") -> IC | R7: =D7 -> April 2016 | S7: =C7 -> 2 | T7: =TEXT(R7,"[$-401] mmmm yyyy") -> أبريل 2016
C8: 3 | D8: =TEXT(EOMONTH('PROJECT DETAILS'!C$10,C8-1),"mmmm yyyy") -> May 2016 | E8: 220000 | F8: =IF(E8=0,"",E8+F7) -> 678000 | G8: =IF(E8=0,"",'PROGRESS MONITORING'!G$15-F8) -> 21053860.65 | H8: =IF(E8=0,"",F8/'PROGRESS MONITORING'!G$15) -> 0.03119843307 | I8: 0.9688015669 | J8: ='PROGRESS MONITORING'!AA16 -> 228047.562 | K8: =IF(J8=0,0,J8+K7) -> 697908.672 | L8: =IF(J8=0,"",'PROGRESS MONITORING'!G$15-K8) -> 21033951.98 | M8: =IF(J8=0,"",ROUND(K8/'PROGRESS MONITORING'!G$15,3)) -> 0.032 | N8: 0.968 | O8: 1.025692538 | P8: =_xlfn.IFS(C8<='PROJECT DETAILS'!$C$12,"IC",C8<='PROJECT DETAILS'!$E$63,"V.O. 1",C8<'PROJECT DETAILS'!$E$64,"V.O. 2",C8<'PROJECT DETAILS'!$E$65,"V.O. 3",C8<'PROJECT DETAILS'!$E$66,"V.O. 4") -> IC | Q8: =_xlfn.IFS('ACTUAL vs.PLANNED'!K8<='QUANTITIES-BUDGET'!$N$8,"IC",'ACTUAL vs.PLANNED'!K8<='QUANTITIES-BUDGET'!$O$8,"V.O. 1",'ACTUAL vs.PLANNED'!K8<='QUANTITIES-BUDGET'!$P$8,"V.O. 2",'ACTUAL vs.PLANNED'!K8<='QUANTITIES-BUDGET'!$Q$8,"V.O. 3",'ACTUAL vs.PLANNED'!K8<='QUANTITIES-BUDGET'!$R$8,"V.O. 4") -> IC | R8: May 2016 | S8: 3 | T8: مايو 2016
C9: 4 | D9: =TEXT(EOMONTH('PROJECT DETAILS'!C$10,C9-1),"mmmm yyyy") -> June 2016 | E9: 270000 | F9: 948000 | G9: =IF(E9=0,"",'PROGRESS MONITORING'!G$15-F9) -> 20783860.65 | H9: =IF(E9=0,"",F9/'PROGRESS MONITORING'!G$15) -> 0.04362258783 | I9: 0.9563774122 | J9: ='PROGRESS MONITORING'!AF16 -> 270534.33 | K9: 968443.002 | L9: =IF(J9=0,"",'PROGRESS MONITORING'!G$15-K9) -> 20763417.65 | M9: =IF(J9=0,"",ROUND(K9/'PROGRESS MONITORING'!G$15,3)) -> 0.045 | N9: 0.955 | O9: 1.031575664 | P9: =_xlfn.IFS(C9<='PROJECT DETAILS'!$C$12,"IC",C9<='PROJECT DETAILS'!$E$63,"V.O. 1",C9<'PROJECT DETAILS'!$E$64,"V.O. 2",C9<'PROJECT DETAILS'!$E$65,"V.O. 3",C9<'PROJECT DETAILS'!$E$66,"V.O. 4") -> IC | Q9: =_xlfn.IFS('ACTUAL vs.PLANNED'!K9<='QUANTITIES-BUDGET'!$N$8,"IC",'ACTUAL vs.PLANNED'!K9<='QUANTITIES-BUDGET'!$O$8,"V.O. 1",'ACTUAL vs.PLANNED'!K9<='QUANTITIES-BUDGET'!$P$8,"V.O. 2",'ACTUAL vs.PLANNED'!K9<='QUANTITIES-BUDGET'!$Q$8,"V.O. 3",'ACTUAL vs.PLANNED'!K9<='QUANTITIES-BUDGET'!$R$8,"V.O. 4") -> IC | R9: June 2016 | S9: 4 | T9: يونيو 2016
C10: 5 | D10: =TEXT(EOMONTH('PROJECT DETAILS'!C$10,C10-1),"mmmm yyyy") -> July 2016 | E10: 250000 | F10: 1198000 | G10: =IF(E10=0,"",'PROGRESS MONITORING'!G$15-F10) -> 20533860.65 | H10: =IF(E10=0,"",F10/'PROGRESS MONITORING'!G$15) -> 0.05512643484 | I10: 0.9448735652 | J10: ='PROGRESS MONITORING'!AK16 -> 289983.897 | K10: 1258426.899 | L10: =IF(J10=0,"",'PROGRESS MONITORING'!G$15-K10) -> 20473433.75 | M10: =IF(J10=0,"",ROUND(K10/'PROGRESS MONITORING'!G$15,3)) -> 0.058 | N10: 0.942 | O10: 1.052126809 | P10: =_xlfn.IFS(C10<='PROJECT DETAILS'!$C$12,"IC",C10<='PROJECT DETAILS'!$E$63,"V.O. 1",C10<'PROJECT DETAILS'!$E$64,"V.O. 2",C10<'PROJECT DETAILS'!$E$65,"V.O. 3",C10<'PROJECT DETAILS'!$E$66,"V.O. 4") -> IC | Q10: =_xlfn.IFS('ACTUAL vs.PLANNED'!K10<='QUANTITIES-BUDGET'!$N$8,"IC",'ACTUAL vs.PLANNED'!K10<='QUANTITIES-BUDGET'!$O$8,"V.O. 1",'ACTUAL vs.PLANNED'!K10<='QUANTITIES-BUDGET'!$P$8,"V.O. 2",'ACTUAL vs.PLANNED'!K10<='QUANTITIES-BUDGET'!$Q$8,"V.O. 3",'ACTUAL vs.PLANNED'!K10<='QUANTITIES-BUDGET'!$R$8,"V.O. 4") -> IC | R10: July 2016 | S10: 5 | T10: يوليو 2016
C11: 6 | D11: =TEXT(EOMONTH('PROJECT DETAILS'!C$10,C11-1),"mmmm yyyy") -> August 2016 | E11: 250000 | F11: 1448000 | G11: =IF(E11=0,"",'PROGRESS MONITORING'!G$15-F11) -> 20283860.65 | H11: =IF(E11=0,"",F11/'PROGRESS MONITORING'!G$15) -> 0.06663028184 | I11: 0.9333697182 | J11: ='PROGRESS MONITORING'!AP16 -> 305219.25 | K11: 1563646.149 | L11: =IF(J11=0,"",'PROGRESS MONITORING'!G$15-K11) -> 20168214.5 | M11: =IF(J11=0,"",ROUND(K11/'PROGRESS MONITORING'!G$15,3)) -> 0.072 | N11: 0.928 | O11: 1.080589756 | P11: =_xlfn.IFS(C11<='PROJECT DETAILS'!$C$12,"IC",C11<='PROJECT DETAILS'!$E$63,"V.O. 1",C11<'PROJECT DETAILS'!$E$64,"V.O. 2",C11<'PROJECT DETAILS'!$E$65,"V.O. 3",C11<'PROJECT DETAILS'!$E$66,"V.O. 4") -> IC | Q11: =_xlfn.IFS('ACTUAL vs.PLANNED'!K11<='QUANTITIES-BUDGET'!$N$8,"IC",'ACTUAL vs.PLANNED'!K11<='QUANTITIES-BUDGET'!$O$8,"V.O. 1",'ACTUAL vs.PLANNED'!K11<='QUANTITIES-BUDGET'!$P$8,"V.O. 2",'ACTUAL vs.PLANNED'!K11<='QUANTITIES-BUDGET'!$Q$8,"V.O. 3",'ACTUAL vs.PLANNED'!K11<='QUANTITIES-BUDGET'!$R$8,"V.O. 4") -> IC | R11: August 2016 | S11: 6 | T11: أغسطس 2016
C12: 7 | D12: =TEXT(EOMONTH('PROJECT DETAILS'!C$10,C12-1),"mmmm yyyy") -> September 2016 | E12: =E11 -> 250000 | F12: 1698000 | G12: =IF(E12=0,"",'PROGRESS MONITORING'!G$15-F12) -> 20033860.65 | H12: =IF(E12=0,"",F12/'PROGRESS MONITORING'!G$15) -> 0.07813412884 | I12: 0.9218658712 | J12: ='PROGRESS MONITORING'!AU16 -> 265491.675 | K12: 1829137.824 | L12: =IF(J12=0,"",'PROGRESS MONITORING'!G$15-K12) -> 19902722.83 | M12: =IF(J12=0,"",ROUND(K12/'PROGRESS MONITORING'!G$15,3)) -> 0.084 | N12: 0.916 | O12: 1.075074378 | P12: =_xlfn.IFS(C12<='PROJECT DETAILS'!$C$12,"IC",C12<='PROJECT DETAILS'!$E$63,"V.O. 1",C12<'PROJECT DETAILS'!$E$64,"V.O. 2",C12<'PROJECT DETAILS'!$E$65,"V.O. 3",C12<'PROJECT DETAILS'!$E$66,"V.O. 4") -> IC | Q12: =_xlfn.IFS('ACTUAL vs.PLANNED'!K12<='QUANTITIES-BUDGET'!$N$8,"IC",'ACTUAL vs.PLANNED'!K12<='QUANTITIES-BUDGET'!$O$8,"V.O. 1",'ACTUAL vs.PLANNED'!K12<='QUANTITIES-BUDGET'!$P$8,"V.O. 2",'ACTUAL vs.PLANNED'!K12<='QUANTITIES-BUDGET'!$Q$8,"V.O. 3",'ACTUAL vs.PLANNED'!K12<='QUANTITIES-BUDGET'!$R$8,"V.O. 4") -> IC | R12: September 2016 | S12: 7 | T12: سبتمبر 2016
C13: 8 | D13: =TEXT(EOMONTH('PROJECT DETAILS'!C$10,C13-1),"mmmm yyyy") -> October 2016 | E13: =E12 -> 250000 | F13: 1948000 | G13: =IF(E13=0,"",'PROGRESS MONITORING'!G$15-F13) -> 19783860.65 | H13: =IF(E13=0,"",F13/'PROGRESS MONITORING'!G$15) -> 0.08963797584 | I13: 0.9103620242 | J13: ='PROGRESS MONITORING'!AZ16 -> 248368.634 | K13: 2077506.458 | L13: =IF(J13=0,"",'PROGRESS MONITORING'!G$15-K13) -> 19654354.19 | M13: =IF(J13=0,"",ROUND(K13/'PROGRESS MONITORING'!G$15,3)) -> 0.096 | N13: 0.904 | O13: 1.070974652 | P13: =_xlfn.IFS(C13<='PROJECT DETAILS'!$C$12,"IC",C13<='PROJECT DETAILS'!$E$63,"V.O. 1",C13<'PROJECT DETAILS'!$E$64,"V.O. 2",C13<'PROJECT DETAILS'!$E$65,"V.O. 3",C13<'PROJECT DETAILS'!$E$66,"V.O. 4") -> IC | Q13: =_xlfn.IFS('ACTUAL vs.PLANNED'!K13<='QUANTITIES-BUDGET'!$N$8,"IC",'ACTUAL vs.PLANNED'!K13<='QUANTITIES-BUDGET'!$O$8,"V.O. 1",'ACTUAL vs.PLANNED'!K13<='QUANTITIES-BUDGET'!$P$8,"V.O. 2",'ACTUAL vs.PLANNED'!K13<='QUANTITIES-BUDGET'!$Q$8,"V.O. 3",'ACTUAL vs.PLANNED'!K13<='QUANTITIES-BUDGET'!$R$8,"V.O. 4") -> IC | R13: October 2016 | S13: 8 | T13: أكتوبر 2016
C14: 9 | D14: =TEXT(EOMONTH('PROJECT DETAILS'!C$10,C14-1),"mmmm yyyy") -> November 2016 | E14: 250000 | F14: 2198000 | G14: =IF(E14=0,"",'PROGRESS MONITORING'!G$15-F14) -> 19533860.65 | H14: =IF(E14=0,"",F14/'PROGRESS MONITORING'!G$15) -> 0.1011418228 | I14: 0.8988581772 | J14: ='PROGRESS MONITORING'!BE16 -> 263101.263 | K14: 2340607.721 | L14: =IF(J14=0,"",'PROGRESS MONITORING'!G$15-K14) -> 19391252.93 | M14: =IF(J14=0,"",ROUND(K14/'PROGRESS MONITORING'!G$15,3)) -> 0.108 | N14: 0.892 | O14: 1.06780753 | P14: =_xlfn.IFS(C14<='PROJECT DETAILS'!$C$12,"IC",C14<='PROJECT DETAILS'!$E$63,"V.O. 1",C14<'PROJECT DETAILS'!$E$64,"V.O. 2",C14<'PROJECT DETAILS'!$E$65,"V.O. 3",C14<'PROJECT DETAILS'!$E$66,"V.O. 4") -> IC | Q14: =_xlfn.IFS('ACTUAL vs.PLANNED'!K14<='QUANTITIES-BUDGET'!$N$8,"IC",'ACTUAL vs.PLANNED'!K14<='QUANTITIES-BUDGET'!$O$8,"V.O. 1",'ACTUAL vs.PLANNED'!K14<='QUANTITIES-BUDGET'!$P$8,"V.O. 2",'ACTUAL vs.PLANNED'!K14<='QUANTITIES-BUDGET'!$Q$8,"V.O. 3",'ACTUAL vs.PLANNED'!K14<='QUANTITIES-BUDGET'!$R$8,"V.O. 4") -> IC | R14: November 2016 | S14: 9 | T14: نوفمبر 2016
C15: 10 | D15: =TEXT(EOMONTH('PROJECT DETAILS'!C$10,C15-1),"mmmm yyyy") -> December 2016 | E15: 250000 | F15: 2448000 | G15: =IF(E15=0,"",'PROGRESS MONITORING'!G$15-F15) -> 19283860.65 | H15: =IF(E15=0,"",F15/'PROGRESS MONITORING'!G$15) -> 0.1126456698 | I15: 0.8873543302 | J15: ='PROGRESS MONITORING'!BJ16 -> 290676.309 | K15: 2631284.03 | L15: =IF(J15=0,"",'PROGRESS MONITORING'!G$15-K15) -> 19100576.62 | M15: =IF(J15=0,"",ROUND(K15/'PROGRESS MONITORING'!G$15,3)) -> 0.121 | N15: 0.879 | O15: 1.074164681 | P15: =_xlfn.IFS(C15<='PROJECT DETAILS'!$C$12,"IC",C15<='PROJECT DETAILS'!$E$63,"V.O. 1",C15<'PROJECT DETAILS'!$E$64,"V.O. 2",C15<'PROJECT DETAILS'!$E$65,"V.O. 3",C15<'PROJECT DETAILS'!$E$66,"V.O. 4") -> IC | Q15: =_xlfn.IFS('ACTUAL vs.PLANNED'!K15<='QUANTITIES-BUDGET'!$N$8,"IC",'ACTUAL vs.PLANNED'!K15<='QUANTITIES-BUDGET'!$O$8,"V.O. 1",'ACTUAL vs.PLANNED'!K15<='QUANTITIES-BUDGET'!$P$8,"V.O. 2",'ACTUAL vs.PLANNED'!K15<='QUANTITIES-BUDGET'!$Q$8,"V.O. 3",'ACTUAL vs.PLANNED'!K15<='QUANTITIES-BUDGET'!$R$8,"V.O. 4") -> IC | R15: December 2016 | S15: 10 | T15: ديسمبر 2016
C16: 11 | D16: =TEXT(EOMONTH('PROJECT DETAILS'!C$10,C16-1),"mmmm yyyy") -> January 2017 | E16: 250000 | F16: 2698000 | G16: =IF(E16=0,"",'PROGRESS MONITORING'!G$15-F16) -> 19033860.65 | H16: =IF(E16=0,"",F16/'PROGRESS MONITORING'!G$15) -> 0.1241495169 | I16: 0.8758504831 | J16: ='PROGRESS MONITORING'!BO16 -> 287826.924 | K16: 2919110.954 | L16: =IF(J16=0,"",'PROGRESS MONITORING'!G$15-K16) -> 18812749.7 | M16: =IF(J16=0,"",ROUND(K16/'PROGRESS MONITORING'!G$15,3)) -> 0.134 | N16: 0.866 | O16: 1.079343709 | P16: =_xlfn.IFS(C16<='PROJECT DETAILS'!$C$12,"IC",C16<='PROJECT DETAILS'!$E$63,"V.O. 1",C16<'PROJECT DETAILS'!$E$64,"V.O. 2",C16<'PROJECT DETAILS'!$E$65,"V.O. 3",C16<'PROJECT DETAILS'!$E$66,"V.O. 4") -> IC | Q16: =_xlfn.IFS('ACTUAL vs.PLANNED'!K16<='QUANTITIES-BUDGET'!$N$8,"IC",'ACTUAL vs.PLANNED'!K16<='QUANTITIES-BUDGET'!$O$8,"V.O. 1",'ACTUAL vs.PLANNED'!K16<='QUANTITIES-BUDGET'!$P$8,"V.O. 2",'ACTUAL vs.PLANNED'!K16<='QUANTITIES-BUDGET'!$Q$8,"V.O. 3",'ACTUAL vs.PLANNED'!K16<='QUANTITIES-BUDGET'!$R$8,"V.O. 4") -> IC | R16: January 2017 | S16: 11 | T16: يناير 2017
C17: 12 | D17: =TEXT(EOMONTH('PROJECT DETAILS'!C$10,C17-1),"mmmm yyyy") -> February 2017 | E17: 250000 | F17: 2948000 | G17: =IF(E17=0,"",'PROGRESS MONITORING'!G$15-F17) -> 18783860.65 | H17: =IF(E17=0,"",F17/'PROGRESS MONITORING'!G$15) -> 0.1356533639 | I17: 0.8643466361 | J17: ='PROGRESS MONITORING'!BT16 -> 274019.653 | K17: 3193130.607 | L17: =IF(J17=0,"",'PROGRESS MONITORING'!G$15-K17) -> 18538730.04 | M17: =IF(J17=0,"",ROUND(K17/'PROGRESS MONITORING'!G$15,3)) -> 0.147 | N17: 0.853 | O17: 1.08364434 | P17: =_xlfn.IFS(C17<='PROJECT DETAILS'!$C$12,"IC",C17<='PROJECT DETAILS'!$E$63,"V.O. 1",C17<'PROJECT DETAILS'!$E$64,"V.O. 2",C17<'PROJECT DETAILS'!$E$65,"V.O. 3",C17<'PROJECT DETAILS'!$E$66,"V.O. 4") -> IC | Q17: =_xlfn.IFS('ACTUAL vs.PLANNED'!K17<='QUANTITIES-BUDGET'!$N$8,"IC",'ACTUAL vs.PLANNED'!K17<='QUANTITIES-BUDGET'!$O$8,"V.O. 1",'ACTUAL vs.PLANNED'!K17<='QUANTITIES-BUDGET'!$P$8,"V.O. 2",'ACTUAL vs.PLANNED'!K17<='QUANTITIES-BUDGET'!$Q$8,"V.O. 3",'ACTUAL vs.PLANNED'!K17<='QUANTITIES-BUDGET'!$R$8,"V.O. 4") -> IC | R17: February 2017 | S17: 12 | T17: فبراير 2017
A18: Year 2 | C18: 13 | D18: =TEXT(EOMONTH('PROJECT DETAILS'!C$10,C18-1),"mmmm yyyy") -> March 2017 | E18: 250000 | F18: 3198000 | G18: =IF(E18=0,"",'PROGRESS MONITORING'!G$15-F18) -> 18533860.65 | H18: =IF(E18=0,"",F18/'PROGRESS MONITORING'!G$15) -> 0.1471572109 | I18: =IF(E18=0,"",1-H18) -> 0.8528427891 | J18: ='PROGRESS MONITORING'!BY16 -> 260999.174 | K18: 3454129.781 | L18: =IF(J18=0,"",'PROGRESS MONITORING'!G$15-K18) -> 18277730.87 | M18: =IF(J18=0,"",ROUND(K18/'PROGRESS MONITORING'!G$15,3)) -> 0.159 | N18: 0.841 | O18: 1.080477124 | P18: =_xlfn.IFS(C18<='PROJECT DETAILS'!$C$12,"IC",C18<='PROJECT DETAILS'!$E$63,"V.O. 1",C18<'PROJECT DETAILS'!$E$64,"V.O. 2",C18<'PROJECT DETAILS'!$E$65,"V.O. 3",C18<'PROJECT DETAILS'!$E$66,"V.O. 4") -> IC | Q18: =_xlfn.IFS('ACTUAL vs.PLANNED'!K18<='QUANTITIES-BUDGET'!$N$8,"IC",'ACTUAL vs.PLANNED'!K18<='QUANTITIES-BUDGET'!$O$8,"V.O. 1",'ACTUAL vs.PLANNED'!K18<='QUANTITIES-BUDGET'!$P$8,"V.O. 2",'ACTUAL vs.PLANNED'!K18<='QUANTITIES-BUDGET'!$Q$8,"V.O. 3",'ACTUAL vs.PLANNED'!K18<='QUANTITIES-BUDGET'!$R$8,"V.O. 4") -> IC | R18: March 2017 | S18: 13 | T18: مارس 2017
C19: 14 | D19: =TEXT(EOMONTH('PROJECT DETAILS'!C$10,C19-1),"mmmm yyyy") -> April 2017 | E19: 250000 | F19: 3448000 | G19: =IF(E19=0,"",'PROGRESS MONITORING'!G$15-F19) -> 18283860.65 | H19: =IF(E19=0,"",F19/'PROGRESS MONITORING'!G$15) -> 0.1586610579 | I19: 0.8413389421 | J19: ='PROGRESS MONITORING'!CD16 -> 269394.052 | K19: 3723523.833 | L19: =IF(J19=0,"",'PROGRESS MONITORING'!G$15-K19) -> 18008336.82 | M19: =IF(J19=0,"",ROUND(K19/'PROGRESS MONITORING'!G$15,3)) -> 0.171 | N19: 0.829 | O19: 1.077769191 | P19: =_xlfn.IFS(C19<='PROJECT DETAILS'!$C$12,"IC",C19<='PROJECT DETAILS'!$E$63,"V.O. 1",C19<'PROJECT DETAILS'!$E$64,"V.O. 2",C19<'PROJECT DETAILS'!$E$65,"V.O. 3",C19<'PROJECT DETAILS'!$E$66,"V.O. 4") -> IC | Q19: =_xlfn.IFS('ACTUAL vs.PLANNED'!K19<='QUANTITIES-BUDGET'!$N$8,"IC",'ACTUAL vs.PLANNED'!K19<='QUANTITIES-BUDGET'!$O$8,"V.O. 1",'ACTUAL vs.PLANNED'!K19<='QUANTITIES-BUDGET'!$P$8,"V.O. 2",'ACTUAL vs.PLANNED'!K19<='QUANTITIES-BUDGET'!$Q$8,"V.O. 3",'ACTUAL vs.PLANNED'!K19<='QUANTITIES-BUDGET'!$R$8,"V.O. 4") -> IC | R19: April 2017 | S19: 14 | T19: أبريل 2017
C20: 15 | D20: =TEXT(EOMONTH('PROJECT DETAILS'!C$10,C20-1),"mmmm yyyy") -> May 2017 | E20: 250000 | F20: 3698000 | G20: =IF(E20=0,"",'PROGRESS MONITORING'!G$15-F20) -> 18033860.65 | H20: =IF(E20=0,"",F20/'PROGRESS MONITORING'!G$15) -> 0.1701649049 | I20: 0.8298350951 | J20: ='PROGRESS MONITORING'!CI16 -> 281553.682 | K20: 4005077.515 | L20: =IF(J20=0,"",'PROGRESS MONITORING'!G$15-K20) -> 17726783.13 | M20: =IF(J20=0,"",ROUND(K20/'PROGRESS MONITORING'!G$15,3)) -> 0.184 | N20: 0.816 | O20: 1.081304045 | P20: =_xlfn.IFS(C20<='PROJECT DETAILS'!$C$12,"IC",C20<='PROJECT DETAILS'!$E$63,"V.O. 1",C20<'PROJECT DETAILS'!$E$64,"V.O. 2",C20<'PROJECT DETAILS'!$E$65,"V.O. 3",C20<'PROJECT DETAILS'!$E$66,"V.O. 4") -> IC | Q20: =_xlfn.IFS('ACTUAL vs.PLANNED'!K20<='QUANTITIES-BUDGET'!$N$8,"IC",'ACTUAL vs.PLANNED'!K20<='QUANTITIES-BUDGET'!$O$8,"V.O. 1",'ACTUAL vs.PLANNED'!K20<='QUANTITIES-BUDGET'!$P$8,"V.O. 2",'ACTUAL vs.PLANNED'!K20<='QUANTITIES-BUDGET'!$Q$8,"V.O. 3",'ACTUAL vs.PLANNED'!K20<='QUANTITIES-BUDGET'!$R$8,"V.O. 4") -> IC | R20: May 2017 | S20: 15 | T20: مايو 2017
C21: 16 | D21: =TEXT(EOMONTH('PROJECT DETAILS'!C$10,C21-1),"mmmm yyyy") -> June 2017 | E21: 250000 | F21: 3948000 | G21: =IF(E21=0,"",'PROGRESS MONITORING'!G$15-F21) -> 17783860.65 | H21: =IF(E21=0,"",F21/'PROGRESS MONITORING'!G$15) -> 0.1816687519 | I21: 0.8183312481 | J21: ='PROGRESS MONITORING'!CN16 -> 284174.2953 | K21: 4289251.81 | L21: =IF(J21=0,"",'PROGRESS MONITORING'!G$15-K21) -> 17442608.84 | M21: =IF(J21=0,"",ROUND(K21/'PROGRESS MONITORING'!G$15,3)) -> 0.197 | N21: 0.803 | O21: 1.084391223 | P21: =_xlfn.IFS(C21<='PROJECT DETAILS'!$C$12,"IC",C21<='PROJECT DETAILS'!$E$63,"V.O. 1",C21<'PROJECT DETAILS'!$E$64,"V.O. 2",C21<'PROJECT DETAILS'!$E$65,"V.O. 3",C21<'PROJECT DETAILS'!$E$66,"V.O. 4") -> IC | Q21: =_xlfn.IFS('ACTUAL vs.PLANNED'!K21<='QUANTITIES-BUDGET'!$N$8,"IC",'ACTUAL vs.PLANNED'!K21<='QUANTITIES-BUDGET'!$O$8,"V.O. 1",'ACTUAL vs.PLANNED'!K21<='QUANTITIES-BUDGET'!$P$8,"V.O. 2",'ACTUAL vs.PLANNED'!K21<='QUANTITIES-BUDGET'!$Q$8,"V.O. 3",'ACTUAL vs.PLANNED'!K21<='QUANTITIES-BUDGET'!$R$8,"V.O. 4") -> IC | R21: June 2017 | S21: 16 | T21: يونيو 2017
C22: 17 | D22: =TEXT(EOMONTH('PROJECT DETAILS'!C$10,C22-1),"mmmm yyyy") -> July 2017 | E22: 250000 | F22: 4198000 | G22: =IF(E22=0,"",'PROGRESS MONITORING'!G$15-F22) -> 17533860.65 | H22: =IF(E22=0,"",F22/'PROGRESS MONITORING'!G$15) -> 0.1931725989 | I22: 0.8068274011 | J22: ='PROGRESS MONITORING'!CS16 -> 274281.917 | K22: 4563533.727 | L22: =IF(J22=0,"",'PROGRESS MONITORING'!G$15-K22) -> 17168326.92 | M22: =IF(J22=0,"",ROUND(K22/'PROGRESS MONITORING'!G$15,3)) -> 0.21 | N22: 0.79 | O22: 1.087110704 | P22: =_xlfn.IFS(C22<='PROJECT DETAILS'!$C$12,"IC",C22<='PROJECT DETAILS'!$E$63,"V.O. 1",C22<'PROJECT DETAILS'!$E$64,"V.O. 2",C22<'PROJECT DETAILS'!$E$65,"V.O. 3",C22<'PROJECT DETAILS'!$E$66,"V.O. 4") -> IC | Q22: =_xlfn.IFS('ACTUAL vs.PLANNED'!K22<='QUANTITIES-BUDGET'!$N$8,"IC",'ACTUAL vs.PLANNED'!K22<='QUANTITIES-BUDGET'!$O$8,"V.O. 1",'ACTUAL vs.PLANNED'!K22<='QUANTITIES-BUDGET'!$P$8,"V.O. 2",'ACTUAL vs.PLANNED'!K22<='QUANTITIES-BUDGET'!$Q$8,"V.O. 3",'ACTUAL vs.PLANNED'!K22<='QUANTITIES-BUDGET'!$R$8,"V.O. 4") -> IC | R22: July 2017 | S22: 17 | T22: يوليو 2017
C23: 18 | D23: =TEXT(EOMONTH('PROJECT DETAILS'!C$10,C23-1),"mmmm yyyy") -> August 2017 | E23: 250000 | F23: 4448000 | G23: =IF(E23=0,"",'PROGRESS MONITORING'!G$15-F23) -> 17283860.65 | H23: =IF(E23=0,"",F23/'PROGRESS MONITORING'!G$15) -> 0.2046764459 | I23: 0.7953235541 | J23: ='PROGRESS MONITORING'!CX16 -> 266239.08 | K23: 4829772.807 | L23: =IF(J23=0,"",'PROGRESS MONITORING'!G$15-K23) -> 16902087.84 | M23: =IF(J23=0,"",ROUND(K23/'PROGRESS MONITORING'!G$15,3)) -> 0.222 | N23: 0.778 | O23: 1.084638728 | P23: =_xlfn.IFS(C23<='PROJECT DETAILS'!$C$12,"IC",C23<='PROJECT DETAILS'!$E$63,"V.O. 1",C23<'PROJECT DETAILS'!$E$64,"V.O. 2",C23<'PROJECT DETAILS'!$E$65,"V.O. 3",C23<'PROJECT DETAILS'!$E$66,"V.O. 4") -> IC | Q23: =_xlfn.IFS('ACTUAL vs.PLANNED'!K23<='QUANTITIES-BUDGET'!$N$8,"IC",'ACTUAL vs.PLANNED'!K23<='QUANTITIES-BUDGET'!$O$8,"V.O. 1",'ACTUAL vs.PLANNED'!K23<='QUANTITIES-BUDGET'!$P$8,"V.O. 2",'ACTUAL vs.PLANNED'!K23<='QUANTITIES-BUDGET'!$Q$8,"V.O. 3",'ACTUAL vs.PLANNED'!K23<='QUANTITIES-BUDGET'!$R$8,"V.O. 4") -> IC | R23: August 2017 | S23: 18 | T23: أغسطس 2017
C24: 19 | D24: =TEXT(EOMONTH('PROJECT DETAILS'!C$10,C24-1),"mmmm yyyy") -> September 2017 | E24: 250000 | F24: 4698000 | G24: =IF(E24=0,"",'PROGRESS MONITORING'!G$15-F24) -> 17033860.65 | H24: =IF(E24=0,"",F24/'PROGRESS MONITORING'!G$15) -> 0.2161802929 | I24: 0.7838197071 | J24: ='PROGRESS MONITORING'!DC16 -> 292277.988 | K24: 5122050.795 | L24: =IF(J24=0,"",'PROGRESS MONITORING'!G$15-K24) -> 16609809.85 | M24: =IF(J24=0,"",ROUND(K24/'PROGRESS MONITORING'!G$15,3)) -> 0.236 | N24: 0.764 | O24: 1.091681378 | P24: =_xlfn.IFS(C24<='PROJECT DETAILS'!$C$12,"IC",C24<='PROJECT DETAILS'!$E$63,"V.O. 1",C24<'PROJECT DETAILS'!$E$64,"V.O. 2",C24<'PROJECT DETAILS'!$E$65,"V.O. 3",C24<'PROJECT DETAILS'!$E$66,"V.O. 4") -> IC | Q24: =_xlfn.IFS('ACTUAL vs.PLANNED'!K24<='QUANTITIES-BUDGET'!$N$8,"IC",'ACTUAL vs.PLANNED'!K24<='QUANTITIES-BUDGET'!$O$8,"V.O. 1",'ACTUAL vs.PLANNED'!K24<='QUANTITIES-BUDGET'!$P$8,"V.O. 2",'ACTUAL vs.PLANNED'!K24<='QUANTITIES-BUDGET'!$Q$8,"V.O. 3",'ACTUAL vs.PLANNED'!K24<='QUANTITIES-BUDGET'!$R$8,"V.O. 4") -> IC | R24: September 2017 | S24: 19 | T24: سبتمبر 2017
C25: 20 | D25: =TEXT(EOMONTH('PROJECT DETAILS'!C$10,C25-1),"mmmm yyyy") -> October 2017 | E25: 250000 | F25: 4948000 | G25: =IF(E25=0,"",'PROGRESS MONITORING'!G$15-F25) -> 16783860.65 | H25: =IF(E25=0,"",F25/'PROGRESS MONITORING'!G$15) -> 0.2276841399 | I25: 0.7723158601 | J25: ='PROGRESS MONITORING'!DH16 -> 296575.8156 | K25: 5418626.611 | L25: =IF(J25=0,"",'PROGRESS MONITORING'!G$15-K25) -> 16313234.04 | M25: =IF(J25=0,"",ROUND(K25/'PROGRESS MONITORING'!G$15,3)) -> 0.249 | N25: 0.751 | O25: 1.093620312 | P25: =_xlfn.IFS(C25<='PROJECT DETAILS'!$C$12,"IC",C25<='PROJECT DETAILS'!$E$63,"V.O. 1",C25<'PROJECT DETAILS'!$E$64,"V.O. 2",C25<'PROJECT DETAILS'!$E$65,"V.O. 3",C25<'PROJECT DETAILS'!$E$66,"V.O. 4") -> IC | Q25: =_xlfn.IFS('ACTUAL vs.PLANNED'!K25<='QUANTITIES-BUDGET'!$N$8,"IC",'ACTUAL vs.PLANNED'!K25<='QUANTITIES-BUDGET'!$O$8,"V.O. 1",'ACTUAL vs.PLANNED'!K25<='QUANTITIES-BUDGET'!$P$8,"V.O. 2",'ACTUAL vs.PLANNED'!K25<='QUANTITIES-BUDGET'!$Q$8,"V.O. 3",'ACTUAL vs.PLANNED'!K25<='QUANTITIES-BUDGET'!$R$8,"V.O. 4") -> IC | R25: October 2017 | S25: 20 | T25: أكتوبر 2017
C26: 21 | D26: =TEXT(EOMONTH('PROJECT DETAILS'!C$10,C26-1),"mmmm yyyy") -> November 2017 | E26: 250000 | F26: 5198000 | G26: =IF(E26=0,"",'PROGRESS MONITORING'!G$15-F26) -> 16533860.65 | H26: =IF(E26=0,"",F26/'PROGRESS MONITORING'!G$15) -> 0.2391879869 | I26: 0.7608120131 | J26: ='PROGRESS MONITORING'!DM16 -> 361160.154 | K26: 5779786.765 | L26: =IF(J26=0,"",'PROGRESS MONITORING'!G$15-K26) -> 15952073.89 | M26: =IF(J26=0,"",ROUND(K26/'PROGRESS MONITORING'!G$15,3)) -> 0.266 | N26: 0.734 | O26: 1.112095986 | P26: =_xlfn.IFS(C26<='PROJECT DETAILS'!$C$12,"IC",C26<='PROJECT DETAILS'!$E$63,"V.O. 1",C26<'PROJECT DETAILS'!$E$64,"V.O. 2",C26<'PROJECT DETAILS'!$E$65,"V.O. 3",C26<'PROJECT DETAILS'!$E$66,"V.O. 4") -> IC | Q26: =_xlfn.IFS('ACTUAL vs.PLANNED'!K26<='QUANTITIES-BUDGET'!$N$8,"IC",'ACTUAL vs.PLANNED'!K26<='QUANTITIES-BUDGET'!$O$8,"V.O. 1",'ACTUAL vs.PLANNED'!K26<='QUANTITIES-BUDGET'!$P$8,"V.O. 2",'ACTUAL vs.PLANNED'!K26<='QUANTITIES-BUDGET'!$Q$8,"V.O. 3",'ACTUAL vs.PLANNED'!K26<='QUANTITIES-BUDGET'!$R$8,"V.O. 4") -> IC | R26: November 2017 | S26: 21 | T26: نوفمبر 2017
C27: 22 | D27: =TEXT(EOMONTH('PROJECT DETAILS'!C$10,C27-1),"mmmm yyyy") -> December 2017 | E27: 250000 | F27: 5448000 | G27: =IF(E27=0,"",'PROGRESS MONITORING'!G$15-F27) -> 16283860.65 | H27: =IF(E27=0,"",F27/'PROGRESS MONITORING'!G$15) -> 0.2506918339 | I27: 0.7493081661 | J27: ='PROGRESS MONITORING'!DR16 -> 381414.3786 | K27: 6161201.144 | L27: =IF(J27=0,"",'PROGRESS MONITORING'!G$15-K27) -> 15570659.51 | M27: =IF(J27=0,"",ROUND(K27/'PROGRESS MONITORING'!G$15,3)) -> 0.284 | N27: 0.716 | O27: 1.132864982 | P27: =_xlfn.IFS(C27<='PROJECT DETAILS'!$C$12,"IC",C27<='PROJECT DETAILS'!$E$63,"V.O. 1",C27<'PROJECT DETAILS'!$E$64,"V.O. 2",C27<'PROJECT DETAILS'!$E$65,"V.O. 3",C27<'PROJECT DETAILS'!$E$66,"V.O. 4") -> IC | Q27: =_xlfn.IFS('ACTUAL vs.PLANNED'!K27<='QUANTITIES-BUDGET'!$N$8,"IC",'ACTUAL vs.PLANNED'!K27<='QUANTITIES-BUDGET'!$O$8,"V.O. 1",'ACTUAL vs.PLANNED'!K27<='QUANTITIES-BUDGET'!$P$8,"V.O. 2",'ACTUAL vs.PLANNED'!K27<='QUANTITIES-BUDGET'!$Q$8,"V.O. 3",'ACTUAL vs.PLANNED'!K27<='QUANTITIES-BUDGET'!$R$8,"V.O. 4") -> IC | R27: December 2017 | S27: 22 | T27: ديسمبر 2017
C28: 23 | D28: =TEXT(EOMONTH('PROJECT DETAILS'!C$10,C28-1),"mmmm yyyy") -> January 2018 | E28: 250000 | F28: 5698000 | G28: =IF(E28=0,"",'PROGRESS MONITORING'!G$15-F28) -> 16033860.65 | H28: =IF(E28=0,"",F28/'PROGRESS MONITORING'!G$15) -> 0.2621956809 | I28: 0.7378043191 | J28: ='PROGRESS MONITORING'!DW16 -> 301313.64 | K28: 6462514.784 | L28: =IF(J28=0,"",'PROGRESS MONITORING'!G$15-K28) -> 15269345.87 | M28: =IF(J28=0,"",ROUND(K28/'PROGRESS MONITORING'!G$15,3)) -> 0.297 | N28: 0.703 | O28: 1.132741771 | P28: =_xlfn.IFS(C28<='PROJECT DETAILS'!$C$12,"IC",C28<='PROJECT DETAILS'!$E$63,"V.O. 1",C28<'PROJECT DETAILS'!$E$64,"V.O. 2",C28<'PROJECT DETAILS'!$E$65,"V.O. 3",C28<'PROJECT DETAILS'!$E$66,"V.O. 4") -> IC | Q28: =_xlfn.IFS('ACTUAL vs.PLANNED'!K28<='QUANTITIES-BUDGET'!$N$8,"IC",'ACTUAL vs.PLANNED'!K28<='QUANTITIES-BUDGET'!$O$8,"V.O. 1",'ACTUAL vs.PLANNED'!K28<='QUANTITIES-BUDGET'!$P$8,"V.O. 2",'ACTUAL vs.PLANNED'!K28<='QUANTITIES-BUDGET'!$Q$8,"V.O. 3",'ACTUAL vs.PLANNED'!K28<='QUANTITIES-BUDGET'!$R$8,"V.O. 4") -> IC | R28: January 2018 | S28: 23 | T28: يناير 2018
C29: 24 | D29: =TEXT(EOMONTH('PROJECT DETAILS'!C$10,C29-1),"mmmm yyyy") -> February 2018 | E29: 250000 | F29: 5948000 | G29: =IF(E29=0,"",'PROGRESS MONITORING'!G$15-F29) -> 15783860.65 | H29: =IF(E29=0,"",F29/'PROGRESS MONITORING'!G$15) -> 0.2736995279 | I29: 0.7263004721 | J29: ='PROGRESS MONITORING'!EB16 -> 389062.99 | K29: 6851577.774 | L29: =IF(J29=0,"",'PROGRESS MONITORING'!G$15-K29) -> 14880282.88 | M29: =IF(J29=0,"",ROUND(K29/'PROGRESS MONITORING'!G$15,3)) -> 0.315 | N29: 0.685 | O29: 1.150897126 | P29: =_xlfn.IFS(C29<='PROJECT DETAILS'!$C$12,"IC",C29<='PROJECT DETAILS'!$E$63,"V.O. 1",C29<'PROJECT DETAILS'!$E$64,"V.O. 2",C29<'PROJECT DETAILS'!$E$65,"V.O. 3",C29<'PROJECT DETAILS'!$E$66,"V.O. 4") -> IC | Q29: =_xlfn.IFS('ACTUAL vs.PLANNED'!K29<='QUANTITIES-BUDGET'!$N$8,"IC",'ACTUAL vs.PLANNED'!K29<='QUANTITIES-BUDGET'!$O$8,"V.O. 1",'ACTUAL vs.PLANNED'!K29<='QUANTITIES-BUDGET'!$P$8,"V.O. 2",'ACTUAL vs.PLANNED'!K29<='QUANTITIES-BUDGET'!$Q$8,"V.O. 3",'ACTUAL vs.PLANNED'!K29<='QUANTITIES-BUDGET'!$R$8,"V.O. 4") -> IC | R29: February 2018 | S29: 24 | T29: فبراير 2018
A30: Year 3 | C30: 25 | D30: =TEXT(EOMONTH('PROJECT DETAILS'!C$10,C30-1),"mmmm yyyy") -> March 2018 | E30: 600000 | F30: 6548000 | G30: =IF(E30=0,"",'PROGRESS MONITORING'!G$15-F30) -> 15183860.65 | H30: =IF(E30=0,"",F30/'PROGRESS MONITORING'!G$15) -> 0.3013087607 | I30: 0.6986912393 | J30: ='PROGRESS MONITORING'!EG16 -> 421502.0759 | K30: 7273079.849 | L30: =IF(J30=0,"",'PROGRESS MONITORING'!G$15-K30) -> 14458780.8 | M30: =IF(J30=0,"",ROUND(K30/'PROGRESS MONITORING'!G$15,3)) -> 0.335 | N30: 0.665 | O30: 1.111816328 | P30: =_xlfn.IFS(C30<='PROJECT DETAILS'!$C$12,"IC",C30<='PROJECT DETAILS'!$E$63,"V.O. 1",C30<'PROJECT DETAILS'!$E$64,"V.O. 2",C30<'PROJECT DETAILS'!$E$65,"V.O. 3",C30<'PROJECT DETAILS'!$E$66,"V.O. 4") -> IC | Q30: =_xlfn.IFS('ACTUAL vs.PLANNED'!K30<='QUANTITIES-BUDGET'!$N$8,"IC",'ACTUAL vs.PLANNED'!K30<='QUANTITIES-BUDGET'!$O$8,"V.O. 1",'ACTUAL vs.PLANNED'!K30<='QUANTITIES-BUDGET'!$P$8,"V.O. 2",'ACTUAL vs.PLANNED'!K30<='QUANTITIES-BUDGET'!$Q$8,"V.O. 3",'ACTUAL vs.PLANNED'!K30<='QUANTITIES-BUDGET'!$R$8,"V.O. 4") -> IC | R30: March 2018 | S30: 25 | T30: مارس 2018
C31: 26 | D31: =TEXT(EOMONTH('PROJECT DETAILS'!C$10,C31-1),"mmmm yyyy") -> April 2018 | E31: 600000 | F31: 7148000 | G31: =IF(E31=0,"",'PROGRESS MONITORING'!G$15-F31) -> 14583860.65 | H31: =IF(E31=0,"",F31/'PROGRESS MONITORING'!G$15) -> 0.3289179935 | I31: 0.6710820065 | J31: ='PROGRESS MONITORING'!EL16 -> 451299.2011 | K31: 7724379.05 | L31: =IF(J31=0,"",'PROGRESS MONITORING'!G$15-K31) -> 14007481.6 | M31: =IF(J31=0,"",ROUND(K31/'PROGRESS MONITORING'!G$15,3)) -> 0.355 | N31: 0.645 | O31: 1.079296381 | P31: =_xlfn.IFS(C31<='PROJECT DETAILS'!$C$12,"IC",C31<='PROJECT DETAILS'!$E$63,"V.O. 1",C31<'PROJECT DETAILS'!$E$64,"V.O. 2",C31<'PROJECT DETAILS'!$E$65,"V.O. 3",C31<'PROJECT DETAILS'!$E$66,"V.O. 4") -> IC | Q31: =_xlfn.IFS('ACTUAL vs.PLANNED'!K31<='QUANTITIES-BUDGET'!$N$8,"IC",'ACTUAL vs.PLANNED'!K31<='QUANTITIES-BUDGET'!$O$8,"V.O. 1",'ACTUAL vs.PLANNED'!K31<='QUANTITIES-BUDGET'!$P$8,"V.O. 2",'ACTUAL vs.PLANNED'!K31<='QUANTITIES-BUDGET'!$Q$8,"V.O. 3",'ACTUAL vs.PLANNED'!K31<='QUANTITIES-BUDGET'!$R$8,"V.O. 4") -> IC | R31: April 2018 | S31: 26 | T31: أبريل 2018
C32: 27 | D32: =TEXT(EOMONTH('PROJECT DETAILS'!C$10,C32-1),"mmmm yyyy") -> May 2018 | E32: 600000 | F32: 7748000 | G32: =IF(E32=0,"",'PROGRESS MONITORING'!G$15-F32) -> 13983860.65 | H32: =IF(E32=0,"",F32/'PROGRESS MONITORING'!G$15) -> 0.3565272263 | I32: 0.6434727737 | J32: ='PROGRESS MONITORING'!EQ16 -> 455574.0981 | K32: 8179953.149 | L32: =IF(J32=0,"",'PROGRESS MONITORING'!G$15-K32) -> 13551907.5 | M32: =IF(J32=0,"",ROUND(K32/'PROGRESS MONITORING'!G$15,3)) -> 0.376 | N32: 0.624 | O32: 1.054617915 | P32: =_xlfn.IFS(C32<='PROJECT DETAILS'!$C$12,"IC",C32<='PROJECT DETAILS'!$E$63,"V.O. 1",C32<'PROJECT DETAILS'!$E$64,"V.O. 2",C32<'PROJECT DETAILS'!$E$65,"V.O. 3",C32<'PROJECT DETAILS'!$E$66,"V.O. 4") -> IC | Q32: =_xlfn.IFS('ACTUAL vs.PLANNED'!K32<='QUANTITIES-BUDGET'!$N$8,"IC",'ACTUAL vs.PLANNED'!K32<='QUANTITIES-BUDGET'!$O$8,"V.O. 1",'ACTUAL vs.PLANNED'!K32<='QUANTITIES-BUDGET'!$P$8,"V.O. 2",'ACTUAL vs.PLANNED'!K32<='QUANTITIES-BUDGET'!$Q$8,"V.O. 3",'ACTUAL vs.PLANNED'!K32<='QUANTITIES-BUDGET'!$R$8,"V.O. 4") -> IC | R32: May 2018 | S32: 27 | T32: مايو 2018
C33: 28 | D33: =TEXT(EOMONTH('PROJECT DETAILS'!C$10,C33-1),"mmmm yyyy") -> June 2018 | E33: 600000 | F33: 8348000 | G33: =IF(E33=0,"",'PROGRESS MONITORING'!G$15-F33) -> 13383860.65 | H33: =IF(E33=0,"",F33/'PROGRESS MONITORING'!G$15) -> 0.3841364591 | I33: 0.6158635409 | J33: ='PROGRESS MONITORING'!EV16 -> 428195.4951 | K33: 8608148.644 | L33: =IF(J33=0,"",'PROGRESS MONITORING'!G$15-K33) -> 13123712.01 | M33: =IF(J33=0,"",ROUND(K33/'PROGRESS MONITORING'!G$15,3)) -> 0.396 | N33: 0.604 | O33: 1.030883663 | P33: =_xlfn.IFS(C33<='PROJECT DETAILS'!$C$12,"IC",C33<='PROJECT DETAILS'!$E$63,"V.O. 1",C33<'PROJECT DETAILS'!$E$64,"V.O. 2",C33<'PROJECT DETAILS'!$E$65,"V.O. 3",C33<'PROJECT DETAILS'!$E$66,"V.O. 4") -> IC | Q33: =_xlfn.IFS('ACTUAL vs.PLANNED'!K33<='QUANTITIES-BUDGET'!$N$8,"IC",'ACTUAL vs.PLANNED'!K33<='QUANTITIES-BUDGET'!$O$8,"V.O. 1",'ACTUAL vs.PLANNED'!K33<='QUANTITIES-BUDGET'!$P$8,"V.O. 2",'ACTUAL vs.PLANNED'!K33<='QUANTITIES-BUDGET'!$Q$8,"V.O. 3",'ACTUAL vs.PLANNED'!K33<='QUANTITIES-BUDGET'!$R$8,"V.O. 4") -> IC | R33: June 2018 | S33: 28 | T33: يونيو 2018
C34: 29 | D34: =TEXT(EOMONTH('PROJECT DETAILS'!C$10,C34-1),"mmmm yyyy") -> July 2018 | E34: 600000 | F34: 8948000 | G34: =IF(E34=0,"",'PROGRESS MONITORING'!G$15-F34) -> 12783860.65 | H34: =IF(E34=0,"",F34/'PROGRESS MONITORING'!G$15) -> 0.4117456919 | I34: 0.5882543081 | J34: ='PROGRESS MONITORING'!FA16 -> 407044.0975 | K34: 9015192.741 | L34: =IF(J34=0,"",'PROGRESS MONITORING'!G$15-K34) -> 12716667.91 | M34: =IF(J34=0,"",ROUND(K34/'PROGRESS MONITORING'!G$15,3)) -> 0.415 | N34: 0.585 | O34: 1.007903685 | P34: =_xlfn.IFS(C34<='PROJECT DETAILS'!$C$12,"IC",C34<='PROJECT DETAILS'!$E$63,"V.O. 1",C34<'PROJECT DETAILS'!$E$64,"V.O. 2",C34<'PROJECT DETAILS'!$E$65,"V.O. 3",C34<'PROJECT DETAILS'!$E$66,"V.O. 4") -> IC | Q34: =_xlfn.IFS('ACTUAL vs.PLANNED'!K34<='QUANTITIES-BUDGET'!$N$8,"IC",'ACTUAL vs.PLANNED'!K34<='QUANTITIES-BUDGET'!$O$8,"V.O. 1",'ACTUAL vs.PLANNED'!K34<='QUANTITIES-BUDGET'!$P$8,"V.O. 2",'ACTUAL vs.PLANNED'!K34<='QUANTITIES-BUDGET'!$Q$8,"V.O. 3",'ACTUAL vs.PLANNED'!K34<='QUANTITIES-BUDGET'!$R$8,"V.O. 4") -> IC | R34: July 2018 | S34: 29 | T34: يوليو 2018
C35: 30 | D35: =TEXT(EOMONTH('PROJECT DETAILS'!C$10,C35-1),"mmmm yyyy") -> August 2018 | E35: 600000 | F35: 9548000 | G35: =IF(E35=0,"",'PROGRESS MONITORING'!G$15-F35) -> 12183860.65 | H35: =IF(E35=0,"",F35/'PROGRESS MONITORING'!G$15) -> 0.4393549247 | I35: 0.5606450753 | J35: ='PROGRESS MONITORING'!FF16 -> 424201.6123 | K35: 9439394.353 | L35: =IF(J35=0,"",'PROGRESS MONITORING'!G$15-K35) -> 12292466.3 | M35: =IF(J35=0,"",ROUND(K35/'PROGRESS MONITORING'!G$15,3)) -> 0.434 | N35: 0.566 | O35: 0.9878118477 | P35: =_xlfn.IFS(C35<='PROJECT DETAILS'!$C$12,"IC",C35<='PROJECT DETAILS'!$E$63,"V.O. 1",C35<'PROJECT DETAILS'!$E$64,"V.O. 2",C35<'PROJECT DETAILS'!$E$65,"V.O. 3",C35<'PROJECT DETAILS'!$E$66,"V.O. 4") -> IC | Q35: =_xlfn.IFS('ACTUAL vs.PLANNED'!K35<='QUANTITIES-BUDGET'!$N$8,"IC",'ACTUAL vs.PLANNED'!K35<='QUANTITIES-BUDGET'!$O$8,"V.O. 1",'ACTUAL vs.PLANNED'!K35<='QUANTITIES-BUDGET'!$P$8,"V.O. 2",'ACTUAL vs.PLANNED'!K35<='QUANTITIES-BUDGET'!$Q$8,"V.O. 3",'ACTUAL vs.PLANNED'!K35<='QUANTITIES-BUDGET'!$R$8,"V.O. 4") -> IC | R35: August 2018 | S35: 30 | T35: أغسطس 2018
C36: 31 | D36: =TEXT(EOMONTH('PROJECT DETAILS'!C$10,C36-1),"mmmm yyyy") -> September 2018 | E36: 600000 | F36: 10148000 | G36: =IF(E36=0,"",'PROGRESS MONITORING'!G$15-F36) -> 11583860.65 | H36: =IF(E36=0,"",F36/'PROGRESS MONITORING'!G$15) -> 0.4669641575 | I36: 0.5330358425 | J36: ='PROGRESS MONITORING'!FK16 -> 446375.1083 | K36: 9885769.462 | L36: =IF(J36=0,"",'PROGRESS MONITORING'!G$15-K36) -> 11846091.19 | M36: =IF(J36=0,"",ROUND(K36/'PROGRESS MONITORING'!G$15,3)) -> 0.455 | N36: 0.545 | O36: 0.9743788526 | P36: =_xlfn.IFS(C36<='PROJECT DETAILS'!$C$12,"IC",C36<='PROJECT DETAILS'!$E$63,"V.O. 1",C36<'PROJECT DETAILS'!$E$64,"V.O. 2",C36<'PROJECT DETAILS'!$E$65,"V.O. 3",C36<'PROJECT DETAILS'!$E$66,"V.O. 4") -> IC | Q36: =_xlfn.IFS('ACTUAL vs.PLANNED'!K36<='QUANTITIES-BUDGET'!$N$8,"IC",'ACTUAL vs.PLANNED'!K36<='QUANTITIES-BUDGET'!$O$8,"V.O. 1",'ACTUAL vs.PLANNED'!K36<='QUANTITIES-BUDGET'!$P$8,"V.O. 2",'ACTUAL vs.PLANNED'!K36<='QUANTITIES-BUDGET'!$Q$8,"V.O. 3",'ACTUAL vs.PLANNED'!K36<='QUANTITIES-BUDGET'!$R$8,"V.O. 4") -> IC | R36: September 2018 | S36: 31 | T36: سبتمبر 2018
C37: 32 | D37: =TEXT(EOMONTH('PROJECT DETAILS'!C$10,C37-1),"mmmm yyyy") -> October 2018 | E37: 700000 | F37: 10848000 | G37: =IF(E37=0,"",'PROGRESS MONITORING'!G$15-F37) -> 10883860.65 | H37: =IF(E37=0,"",F37/'PROGRESS MONITORING'!G$15) -> 0.4991749291 | I37: 0.5008250709 | J37: ='PROGRESS MONITORING'!FP16 -> 447057.6847 | K37: 10332827.15 | L37: =IF(J37=0,"",'PROGRESS MONITORING'!G$15-K37) -> 11399033.5 | M37: =IF(J37=0,"",ROUND(K37/'PROGRESS MONITORING'!G$15,3)) -> 0.475 | N37: 0.525 | O37: 0.9515702257 | P37: =_xlfn.IFS(C37<='PROJECT DETAILS'!$C$12,"IC",C37<='PROJECT DETAILS'!$E$63,"V.O. 1",C37<'PROJECT DETAILS'!$E$64,"V.O. 2",C37<'PROJECT DETAILS'!$E$65,"V.O. 3",C37<'PROJECT DETAILS'!$E$66,"V.O. 4") -> IC | Q37: =_xlfn.IFS('ACTUAL vs.PLANNED'!K37<='QUANTITIES-BUDGET'!$N$8,"IC",'ACTUAL vs.PLANNED'!K37<='QUANTITIES-BUDGET'!$O$8,"V.O. 1",'ACTUAL vs.PLANNED'!K37<='QUANTITIES-BUDGET'!$P$8,"V.O. 2",'ACTUAL vs.PLANNED'!K37<='QUANTITIES-BUDGET'!$Q$8,"V.O. 3",'ACTUAL vs.PLANNED'!K37<='QUANTITIES-BUDGET'!$R$8,"V.O. 4") -> IC | R37: October 2018 | S37: 32 | T37: أكتوبر 2018
C38: 33 | D38: =TEXT(EOMONTH('PROJECT DETAILS'!C$10,C38-1),"mmmm yyyy") -> November 2018 | E38: 650000 | F38: 11498000 | G38: =IF(E38=0,"",'PROGRESS MONITORING'!G$15-F38) -> 10233860.65 | H38: =IF(E38=0,"",F38/'PROGRESS MONITORING'!G$15) -> 0.5290849313 | I38: 0.4709150687 | J38: ='PROGRESS MONITORING'!FU16 -> 428342.6673 | K38: 10761169.81 | L38: =IF(J38=0,"",'PROGRESS MONITORING'!G$15-K38) -> 10970690.84 | M38: =IF(J38=0,"",ROUND(K38/'PROGRESS MONITORING'!G$15,3)) -> 0.495 | N38: 0.505 | O38: =IF(J38=0,"N/A",M38/H38) -> 0.9355775806 | P38: =_xlfn.IFS(C38<='PROJECT DETAILS'!$C$12,"IC",C38<='PROJECT DETAILS'!$E$63,"V.O. 1",C38<'PROJECT DETAILS'!$E$64,"V.O. 2",C38<'PROJECT DETAILS'!$E$65,"V.O. 3",C38<'PROJECT DETAILS'!$E$66,"V.O. 4") -> IC | Q38: =_xlfn.IFS('ACTUAL vs.PLANNED'!K38<='QUANTITIES-BUDGET'!$N$8,"IC",'ACTUAL vs.PLANNED'!K38<='QUANTITIES-BUDGET'!$O$8,"V.O. 1",'ACTUAL vs.PLANNED'!K38<='QUANTITIES-BUDGET'!$P$8,"V.O. 2",'ACTUAL vs.PLANNED'!K38<='QUANTITIES-BUDGET'!$Q$8,"V.O. 3",'ACTUAL vs.PLANNED'!K38<='QUANTITIES-BUDGET'!$R$8,"V.O. 4") -> IC | R38: November 2018 | S38: 33 | T38: نوفمبر 2018
C39: 34 | D39: =TEXT(EOMONTH('PROJECT DETAILS'!C$10,C39-1),"mmmm yyyy") -> December 2018 | E39: 100000 | F39: 11598000 | G39: =IF(E39=0,"",'PROGRESS MONITORING'!G$15-F39) -> 10133860.65 | H39: =IF(E39=0,"",F39/'PROGRESS MONITORING'!G$15) -> 0.5336864701 | I39: 0.4663135299 | J39: ='PROGRESS MONITORING'!FZ16 -> 69890.9052 | K39: 10831060.72 | L39: =IF(J39=0,"",'PROGRESS MONITORING'!G$15-K39) -> 10900799.93 | M39: =IF(J39=0,"",ROUND(K39/'PROGRESS MONITORING'!G$15,3)) -> 0.498 | N39: 0.502 | O39: 0.9331321438 | P39: =_xlfn.IFS(C39<='PROJECT DETAILS'!$C$12,"IC",C39<='PROJECT DETAILS'!$E$63,"V.O. 1",C39<'PROJECT DETAILS'!$E$64,"V.O. 2",C39<'PROJECT DETAILS'!$E$65,"V.O. 3",C39<'PROJECT DETAILS'!$E$66,"V.O. 4") -> IC | Q39: =_xlfn.IFS('ACTUAL vs.PLANNED'!K39<='QUANTITIES-BUDGET'!$N$8,"IC",'ACTUAL vs.PLANNED'!K39<='QUANTITIES-BUDGET'!$O$8,"V.O. 1",'ACTUAL vs.PLANNED'!K39<='QUANTITIES-BUDGET'!$P$8,"V.O. 2",'ACTUAL vs.PLANNED'!K39<='QUANTITIES-BUDGET'!$Q$8,"V.O. 3",'ACTUAL vs.PLANNED'!K39<='QUANTITIES-BUDGET'!$R$8,"V.O. 4") -> IC | R39: December 2018 | S39: 34 | T39: ديسمبر 2018
C40: 35 | D40: =TEXT(EOMONTH('PROJECT DETAILS'!C$10,C40-1),"mmmm yyyy") -> January 2019 | E40: 100000 | F40: 11698000 | G40: =IF(E40=0,"",'PROGRESS MONITORING'!G$15-F40) -> 10033860.65 | H40: =IF(E40=0,"",F40/'PROGRESS MONITORING'!G$15) -> 0.5382880089 | I40: 0.4617119911 | J40: ='PROGRESS MONITORING'!GE16 -> 69705.19027 | K40: 10900765.91 | L40: =IF(J40=0,"",'PROGRESS MONITORING'!G$15-K40) -> 10831094.74 | M40: =IF(J40=0,"",ROUND(K40/'PROGRESS MONITORING'!G$15,3)) -> 0.502 | N40: 0.498 | O40: 0.932586258 | P40: =_xlfn.IFS(C40<='PROJECT DETAILS'!$C$12,"IC",C40<='PROJECT DETAILS'!$E$63,"V.O. 1",C40<'PROJECT DETAILS'!$E$64,"V.O. 2",C40<'PROJECT DETAILS'!$E$65,"V.O. 3",C40<'PROJECT DETAILS'!$E$66,"V.O. 4") -> IC | Q40: =_xlfn.IFS('ACTUAL vs.PLANNED'!K40<='QUANTITIES-BUDGET'!$N$8,"IC",'ACTUAL vs.PLANNED'!K40<='QUANTITIES-BUDGET'!$O$8,"V.O. 1",'ACTUAL vs.PLANNED'!K40<='QUANTITIES-BUDGET'!$P$8,"V.O. 2",'ACTUAL vs.PLANNED'!K40<='QUANTITIES-BUDGET'!$Q$8,"V.O. 3",'ACTUAL vs.PLANNED'!K40<='QUANTITIES-BUDGET'!$R$8,"V.O. 4") -> IC | R40: January 2019 | S40: 35 | T40: يناير 2019
C41: 36 | D41: =TEXT(EOMONTH('PROJECT DETAILS'!C$10,C41-1),"mmmm yyyy") -> February 2019 | E41: 100000 | F41: 11798000 | G41: =IF(E41=0,"",'PROGRESS MONITORING'!G$15-F41) -> 9933860.65 | H41: =IF(E41=0,"",F41/'PROGRESS MONITORING'!G$15) -> 0.5428895477 | I41: 0.4571104523 | J41: ='PROGRESS MONITORING'!GJ16 -> 67118.7696 | K41: 10967884.68 | L41: =IF(J41=0,"",'PROGRESS MONITORING'!G$15-K41) -> 10763975.97 | M41: =IF(J41=0,"",ROUND(K41/'PROGRESS MONITORING'!G$15,3)) -> 0.505 | N41: 0.495 | O41: 0.9302076308 | P41: =_xlfn.IFS(C41<='PROJECT DETAILS'!$C$12,"IC",C41<='PROJECT DETAILS'!$E$63,"V.O. 1",C41<'PROJECT DETAILS'!$E$64,"V.O. 2",C41<'PROJECT DETAILS'!$E$65,"V.O. 3",C41<'PROJECT DETAILS'!$E$66,"V.O. 4") -> IC | Q41: =_xlfn.IFS('ACTUAL vs.PLANNED'!K41<='QUANTITIES-BUDGET'!$N$8,"IC",'ACTUAL vs.PLANNED'!K41<='QUANTITIES-BUDGET'!$O$8,"V.O. 1",'ACTUAL vs.PLANNED'!K41<='QUANTITIES-BUDGET'!$P$8,"V.O. 2",'ACTUAL vs.PLANNED'!K41<='QUANTITIES-BUDGET'!$Q$8,"V.O. 3",'ACTUAL vs.PLANNED'!K41<='QUANTITIES-BUDGET'!$R$8,"V.O. 4") -> IC | R41: February 2019 | S41: 36 | T41: فبراير 2019
A42: Year 4 | C42: 37 | D42: =TEXT(EOMONTH('PROJECT DETAILS'!C$10,C42-1),"mmmm yyyy") -> March 2019 | E42: 80000 | F42: 11878000 | G42: =IF(E42=0,"",'PROGRESS MONITORING'!G$15-F42) -> 9853860.65 | H42: =IF(E42=0,"",F42/'PROGRESS MONITORING'!G$15) -> 0.5465707788 | I42: 0.4534292212 | J42: ='PROGRESS MONITORING'!GO16 -> 66567.32787 | K42: 11034452.01 | L42: =IF(J42=0,"",'PROGRESS MONITORING'!G$15-K42) -> 10697408.64 | M42: =IF(J42=0,"",ROUND(K42/'PROGRESS MONITORING'!G$15,3)) -> 0.508 | N42: 0.492 | O42: 0.9294313193 | P42: =_xlfn.IFS(C42<='PROJECT DETAILS'!$C$12,"IC",C42<='PROJECT DETAILS'!$E$63,"V.O. 1",C42<'PROJECT DETAILS'!$E$64,"V.O. 2",C42<'PROJECT DETAILS'!$E$65,"V.O. 3",C42<'PROJECT DETAILS'!$E$66,"V.O. 4") -> IC | Q42: =_xlfn.IFS('ACTUAL vs.PLANNED'!K42<='QUANTITIES-BUDGET'!$N$8,"IC",'ACTUAL vs.PLANNED'!K42<='QUANTITIES-BUDGET'!$O$8,"V.O. 1",'ACTUAL vs.PLANNED'!K42<='QUANTITIES-BUDGET'!$P$8,"V.O. 2",'ACTUAL vs.PLANNED'!K42<='QUANTITIES-BUDGET'!$Q$8,"V.O. 3",'ACTUAL vs.PLANNED'!K42<='QUANTITIES-BUDGET'!$R$8,"V.O. 4") -> IC | R42: March 2019 | S42: 37 | T42: مارس 2019
C43: 38 | D43: =TEXT(EOMONTH('PROJECT DETAILS'!C$10,C43-1),"mmmm yyyy") -> April 2019 | E43: 60000 | F43: 11938000 | G43: =IF(E43=0,"",'PROGRESS MONITORING'!G$15-F43) -> 9793860.65 | H43: =IF(E43=0,"",F43/'PROGRESS MONITORING'!G$15) -> 0.5493317021 | I43: 0.4506682979 | J43: ='PROGRESS MONITORING'!GT16 -> 68949.2696 | K43: 11103401.28 | L43: =IF(J43=0,"",'PROGRESS MONITORING'!G$15-K43) -> 10628459.37 | M43: =IF(J43=0,"",ROUND(K43/'PROGRESS MONITORING'!G$15,3)) -> 0.511 | N43: 0.489 | O43: 0.9302212089 | P43: =_xlfn.IFS(C43<='PROJECT DETAILS'!$C$12,"IC",C43<='PROJECT DETAILS'!$E$63,"V.O. 1",C43<'PROJECT DETAILS'!$E$64,"V.O. 2",C43<'PROJECT DETAILS'!$E$65,"V.O. 3",C43<'PROJECT DETAILS'!$E$66,"V.O. 4") -> IC | Q43: =_xlfn.IFS('ACTUAL vs.PLANNED'!K43<='QUANTITIES-BUDGET'!$N$8,"IC",'ACTUAL vs.PLANNED'!K43<='QUANTITIES-BUDGET'!$O$8,"V.O. 1",'ACTUAL vs.PLANNED'!K43<='QUANTITIES-BUDGET'!$P$8,"V.O. 2",'ACTUAL vs.PLANNED'!K43<='QUANTITIES-BUDGET'!$Q$8,"V.O. 3",'ACTUAL vs.PLANNED'!K43<='QUANTITIES-BUDGET'!$R$8,"V.O. 4") -> IC | R43: April 2019 | S43: 38 | T43: أبريل 2019
C44: 39 | D44: =TEXT(EOMONTH('PROJECT DETAILS'!C$10,C44-1),"mmmm yyyy") -> May 2019 | E44: 60000 | F44: 11998000 | G44: =IF(E44=0,"",'PROGRESS MONITORING'!G$15-F44) -> 9733860.65 | H44: =IF(E44=0,"",F44/'PROGRESS MONITORING'!G$15) -> 0.5520926254 | I44: 0.4479073746 | J44: ='PROGRESS MONITORING'!GY16 -> 70592.10969 | K44: 11173993.39 | L44: =IF(J44=0,"",'PROGRESS MONITORING'!G$15-K44) -> 10557867.26 | M44: =IF(J44=0,"",ROUND(K44/'PROGRESS MONITORING'!G$15,3)) -> 0.514 | N44: 0.486 | O44: 0.9310031984 | P44: =_xlfn.IFS(C44<='PROJECT DETAILS'!$C$12,"IC",C44<='PROJECT DETAILS'!$E$63,"V.O. 1",C44<'PROJECT DETAILS'!$E$64,"V.O. 2",C44<'PROJECT DETAILS'!$E$65,"V.O. 3",C44<'PROJECT DETAILS'!$E$66,"V.O. 4") -> IC | Q44: =_xlfn.IFS('ACTUAL vs.PLANNED'!K44<='QUANTITIES-BUDGET'!$N$8,"IC",'ACTUAL vs.PLANNED'!K44<='QUANTITIES-BUDGET'!$O$8,"V.O. 1",'ACTUAL vs.PLANNED'!K44<='QUANTITIES-BUDGET'!$P$8,"V.O. 2",'ACTUAL vs.PLANNED'!K44<='QUANTITIES-BUDGET'!$Q$8,"V.O. 3",'ACTUAL vs.PLANNED'!K44<='QUANTITIES-BUDGET'!$R$8,"V.O. 4") -> IC | R44: May 2019 | S44: 39 | T44: مايو 2019
C45: 40 | D45: =TEXT(EOMONTH('PROJECT DETAILS'!C$10,C45-1),"mmmm yyyy") -> June 2019 | E45: 60000 | F45: 12058000 | G45: =IF(E45=0,"",'PROGRESS MONITORING'!G$15-F45) -> 9673860.65 | H45: =IF(E45=0,"",F45/'PROGRESS MONITORING'!G$15) -> 0.5548535486 | I45: 0.4451464514 | J45: ='PROGRESS MONITORING'!HD16 -> 69312.49502 | K45: 11243305.88 | L45: =IF(J45=0,"",'PROGRESS MONITORING'!G$15-K45) -> 10488554.77 | M45: =IF(J45=0,"",ROUND(K45/'PROGRESS MONITORING'!G$15,3)) -> 0.517 | N45: 0.483 | O45: 0.9317774055 | P45: =_xlfn.IFS(C45<='PROJECT DETAILS'!$C$12,"IC",C45<='PROJECT DETAILS'!$E$63,"V.O. 1",C45<'PROJECT DETAILS'!$E$64,"V.O. 2",C45<'PROJECT DETAILS'!$E$65,"V.O. 3",C45<'PROJECT DETAILS'!$E$66,"V.O. 4") -> IC | Q45: =_xlfn.IFS('ACTUAL vs.PLANNED'!K45<='QUANTITIES-BUDGET'!$N$8,"IC",'ACTUAL vs.PLANNED'!K45<='QUANTITIES-BUDGET'!$O$8,"V.O. 1",'ACTUAL vs.PLANNED'!K45<='QUANTITIES-BUDGET'!$P$8,"V.O. 2",'ACTUAL vs.PLANNED'!K45<='QUANTITIES-BUDGET'!$Q$8,"V.O. 3",'ACTUAL vs.PLANNED'!K45<='QUANTITIES-BUDGET'!$R$8,"V.O. 4") -> IC | R45: June 2019 | S45: 40 | T45: يونيو 2019
C46: 41 | D46: =TEXT(EOMONTH('PROJECT DETAILS'!C$10,C46-1),"mmmm yyyy") -> July 2019 | E46: 60000 | F46: 12118000 | G46: =IF(E46=0,"",'PROGRESS MONITORING'!G$15-F46) -> 9613860.65 | H46: =IF(E46=0,"",F46/'PROGRESS MONITORING'!G$15) -> 0.5576144719 | I46: 0.4423855281 | J46: ='PROGRESS MONITORING'!HI16 -> 67797.09591 | K46: 11311102.98 | L46: =IF(J46=0,"",'PROGRESS MONITORING'!G$15-K46) -> 10420757.67 | M46: =IF(J46=0,"",ROUND(K46/'PROGRESS MONITORING'!G$15,3)) -> 0.52 | N46: 0.48 | O46: 0.932543946 | P46: =_xlfn.IFS(C46<='PROJECT DETAILS'!$C$12,"IC",C46<='PROJECT DETAILS'!$E$63,"V.O. 1",C46<'PROJECT DETAILS'!$E$64,"V.O. 2",C46<'PROJECT DETAILS'!$E$65,"V.O. 3",C46<'PROJECT DETAILS'!$E$66,"V.O. 4") -> IC | Q46: =_xlfn.IFS('ACTUAL vs.PLANNED'!K46<='QUANTITIES-BUDGET'!$N$8,"IC",'ACTUAL vs.PLANNED'!K46<='QUANTITIES-BUDGET'!$O$8,"V.O. 1",'ACTUAL vs.PLANNED'!K46<='QUANTITIES-BUDGET'!$P$8,"V.O. 2",'ACTUAL vs.PLANNED'!K46<='QUANTITIES-BUDGET'!$Q$8,"V.O. 3",'ACTUAL vs.PLANNED'!K46<='QUANTITIES-BUDGET'!$R$8,"V.O. 4") -> IC | R46: July 2019 | S46: 41 | T46: يوليو 2019
C47: 42 | D47: =TEXT(EOMONTH('PROJECT DETAILS'!C$10,C47-1),"mmmm yyyy") -> August 2019 | E47: 60000 | F47: 12178000 | G47: =IF(E47=0,"",'PROGRESS MONITORING'!G$15-F47) -> 9553860.65 | H47: =IF(E47=0,"",F47/'PROGRESS MONITORING'!G$15) -> 0.5603753952 | I47: 0.4396246048 | J47: ='PROGRESS MONITORING'!HN16 -> 67545.12236 | K47: 11378648.1 | L47: =IF(J47=0,"",'PROGRESS MONITORING'!G$15-K47) -> 10353212.55 | M47: =IF(J47=0,"",ROUND(K47/'PROGRESS MONITORING'!G$15,3)) -> 0.524 | N47: 0.476 | O47: 0.9350874512 | P47: =_xlfn.IFS(C47<='PROJECT DETAILS'!$C$12,"IC",C47<='PROJECT DETAILS'!$E$63,"V.O. 1",C47<'PROJECT DETAILS'!$E$64,"V.O. 2",C47<'PROJECT DETAILS'!$E$65,"V.O. 3",C47<'PROJECT DETAILS'!$E$66,"V.O. 4") -> IC | Q47: =_xlfn.IFS('ACTUAL vs.PLANNED'!K47<='QUANTITIES-BUDGET'!$N$8,"IC",'ACTUAL vs.PLANNED'!K47<='QUANTITIES-BUDGET'!$O$8,"V.O. 1",'ACTUAL vs.PLANNED'!K47<='QUANTITIES-BUDGET'!$P$8,"V.O. 2",'ACTUAL vs.PLANNED'!K47<='QUANTITIES-BUDGET'!$Q$8,"V.O. 3",'ACTUAL vs.PLANNED'!K47<='QUANTITIES-BUDGET'!$R$8,"V.O. 4") -> IC | R47: August 2019 | S47: 42 | T47: أغسطس 2019
C48: 43 | D48: =TEXT(EOMONTH('PROJECT DETAILS'!C$10,C48-1),"mmmm yyyy") -> September 2019 | E48: 60000 | F48: 12238000 | G48: =IF(E48=0,"",'PROGRESS MONITORING'!G$15-F48) -> 9493860.65 | H48: =IF(E48=0,"",F48/'PROGRESS MONITORING'!G$15) -> 0.5631363185 | I48: 0.4368636815 | J48: ='PROGRESS MONITORING'!HS16 -> 300437.1282 | K48: 11679085.23 | L48: =IF(J48=0,"",'PROGRESS MONITORING'!G$15-K48) -> 10052775.42 | M48: =IF(J48=0,"",ROUND(K48/'PROGRESS MONITORING'!G$15,3)) -> 0.537 | N48: 0.463 | O48: 0.9535879367 | P48: =_xlfn.IFS(C48<='PROJECT DETAILS'!$C$12,"IC",C48<='PROJECT DETAILS'!$E$63,"V.O. 1",C48<'PROJECT DETAILS'!$E$64,"V.O. 2",C48<'PROJECT DETAILS'!$E$65,"V.O. 3",C48<'PROJECT DETAILS'!$E$66,"V.O. 4") -> IC | Q48: =_xlfn.IFS('ACTUAL vs.PLANNED'!K48<='QUANTITIES-BUDGET'!$N$8,"IC",'ACTUAL vs.PLANNED'!K48<='QUANTITIES-BUDGET'!$O$8,"V.O. 1",'ACTUAL vs.PLANNED'!K48<='QUANTITIES-BUDGET'!$P$8,"V.O. 2",'ACTUAL vs.PLANNED'!K48<='QUANTITIES-BUDGET'!$Q$8,"V.O. 3",'ACTUAL vs.PLANNED'!K48<='QUANTITIES-BUDGET'!$R$8,"V.O. 4") -> IC | R48: September 2019 | S48: 43 | T48: سبتمبر 2019
C49: 44 | D49: =TEXT(EOMONTH('PROJECT DETAILS'!C$10,C49-1),"mmmm yyyy") -> October 2019 | E49: 200000 | F49: 12438000 | G49: =IF(E49=0,"",'PROGRESS MONITORING'!G$15-F49) -> 9293860.65 | H49: =IF(E49=0,"",F49/'PROGRESS MONITORING'!G$15) -> 0.5723393961 | I49: 0.4276606039 | J49: ='PROGRESS MONITORING'!HX16 -> 288782.6848 | K49: 11967867.91 | L49: =IF(J49=0,"",'PROGRESS MONITORING'!G$15-K49) -> 9763992.738 | M49: =IF(J49=0,"",ROUND(K49/'PROGRESS MONITORING'!G$15,3)) -> 0.551 | N49: 0.449 | O49: 0.9627154863 | P49: =_xlfn.IFS(C49<='PROJECT DETAILS'!$C$12,"IC",C49<='PROJECT DETAILS'!$E$63,"V.O. 1",C49<'PROJECT DETAILS'!$E$64,"V.O. 2",C49<'PROJECT DETAILS'!$E$65,"V.O. 3",C49<'PROJECT DETAILS'!$E$66,"V.O. 4") -> IC | Q49: =_xlfn.IFS('ACTUAL vs.PLANNED'!K49<='QUANTITIES-BUDGET'!$N$8,"IC",'ACTUAL vs.PLANNED'!K49<='QUANTITIES-BUDGET'!$O$8,"V.O. 1",'ACTUAL vs.PLANNED'!K49<='QUANTITIES-BUDGET'!$P$8,"V.O. 2",'ACTUAL vs.PLANNED'!K49<='QUANTITIES-BUDGET'!$Q$8,"V.O. 3",'ACTUAL vs.PLANNED'!K49<='QUANTITIES-BUDGET'!$R$8,"V.O. 4") -> IC | R49: October 2019 | S49: 44 | T49: أكتوبر 2019
C50: 45 | D50: =TEXT(EOMONTH('PROJECT DETAILS'!C$10,C50-1),"mmmm yyyy") -> November 2019 | E50: 20000 | F50: 12458000 | G50: =IF(E50=0,"",'PROGRESS MONITORING'!G$15-F50) -> 9273860.65 | H50: =IF(E50=0,"",F50/'PROGRESS MONITORING'!G$15) -> 0.5732597038 | I50: 0.4267402962 | J50: ='PROGRESS MONITORING'!IC16 -> 263836.6663 | K50: 12231704.58 | L50: =IF(J50=0,"",'PROGRESS MONITORING'!G$15-K50) -> 9500156.071 | M50: =IF(J50=0,"",ROUND(K50/'PROGRESS MONITORING'!G$15,3)) -> 0.563 | N50: 0.437 | O50: 0.9821028693 | P50: =_xlfn.IFS(C50<='PROJECT DETAILS'!$C$12,"IC",C50<='PROJECT DETAILS'!$E$63,"V.O. 1",C50<'PROJECT DETAILS'!$E$64,"V.O. 2",C50<'PROJECT DETAILS'!$E$65,"V.O. 3",C50<'PROJECT DETAILS'!$E$66,"V.O. 4") -> IC | Q50: =_xlfn.IFS('ACTUAL vs.PLANNED'!K50<='QUANTITIES-BUDGET'!$N$8,"IC",'ACTUAL vs.PLANNED'!K50<='QUANTITIES-BUDGET'!$O$8,"V.O. 1",'ACTUAL vs.PLANNED'!K50<='QUANTITIES-BUDGET'!$P$8,"V.O. 2",'ACTUAL vs.PLANNED'!K50<='QUANTITIES-BUDGET'!$Q$8,"V.O. 3",'ACTUAL vs.PLANNED'!K50<='QUANTITIES-BUDGET'!$R$8,"V.O. 4") -> IC | R50: November 2019 | S50: 45 | T50: نوفمبر 2019
C51: 46 | D51: =TEXT(EOMONTH('PROJECT DETAILS'!C$10,C51-1),"mmmm yyyy") -> December 2019 | E51: 300000 | F51: 12758000 | G51: =IF(E51=0,"",'PROGRESS MONITORING'!G$15-F51) -> 8973860.65 | H51: =IF(E51=0,"",F51/'PROGRESS MONITORING'!G$15) -> 0.5870643202 | I51: 0.4129356798 | J51: ='PROGRESS MONITORING'!IH16 -> 259211.7071 | K51: 12490916.29 | L51: =IF(J51=0,"",'PROGRESS MONITORING'!G$15-K51) -> 9240944.364 | M51: =IF(J51=0,"",ROUND(K51/'PROGRESS MONITORING'!G$15,3)) -> 0.575 | N51: 0.425 | O51: 0.9794497471 | P51: =_xlfn.IFS(C51<='PROJECT DETAILS'!$C$12,"IC",C51<='PROJECT DETAILS'!$E$63,"V.O. 1",C51<'PROJECT DETAILS'!$E$64,"V.O. 2",C51<'PROJECT DETAILS'!$E$65,"V.O. 3",C51<'PROJECT DETAILS'!$E$66,"V.O. 4") -> IC | Q51: =_xlfn.IFS('ACTUAL vs.PLANNED'!K51<='QUANTITIES-BUDGET'!$N$8,"IC",'ACTUAL vs.PLANNED'!K51<='QUANTITIES-BUDGET'!$O$8,"V.O. 1",'ACTUAL vs.PLANNED'!K51<='QUANTITIES-BUDGET'!$P$8,"V.O. 2",'ACTUAL vs.PLANNED'!K51<='QUANTITIES-BUDGET'!$Q$8,"V.O. 3",'ACTUAL vs.PLANNED'!K51<='QUANTITIES-BUDGET'!$R$8,"V.O. 4") -> IC | R51: December 2019 | S51: 46 | T51: ديسمبر 2019
C52: 47 | D52: =TEXT(EOMONTH('PROJECT DETAILS'!C$10,C52-1),"mmmm yyyy") -> January 2020 | E52: 300000 | F52: 13058000 | G52: =IF(E52=0,"",'PROGRESS MONITORING'!G$15-F52) -> 8673860.65 | H52: =IF(E52=0,"",F52/'PROGRESS MONITORING'!G$15) -> 0.6008689366 | I52: 0.3991310634 | J52: ='PROGRESS MONITORING'!IM16 -> 275040.1081 | K52: 12765956.39 | L52: =IF(J52=0,"",'PROGRESS MONITORING'!G$15-K52) -> 8965904.256 | M52: =IF(J52=0,"",ROUND(K52/'PROGRESS MONITORING'!G$15,3)) -> 0.587 | N52: 0.413 | O52: 0.9769185328 | P52: =_xlfn.IFS(C52<='PROJECT DETAILS'!$C$12,"IC",C52<='PROJECT DETAILS'!$E$63,"V.O. 1",C52<'PROJECT DETAILS'!$E$64,"V.O. 2",C52<'PROJECT DETAILS'!$E$65,"V.O. 3",C52<'PROJECT DETAILS'!$E$66,"V.O. 4") -> IC | Q52: =_xlfn.IFS('ACTUAL vs.PLANNED'!K52<='QUANTITIES-BUDGET'!$N$8,"IC",'ACTUAL vs.PLANNED'!K52<='QUANTITIES-BUDGET'!$O$8,"V.O. 1",'ACTUAL vs.PLANNED'!K52<='QUANTITIES-BUDGET'!$P$8,"V.O. 2",'ACTUAL vs.PLANNED'!K52<='QUANTITIES-BUDGET'!$Q$8,"V.O. 3",'ACTUAL vs.PLANNED'!K52<='QUANTITIES-BUDGET'!$R$8,"V.O. 4") -> IC | R52: January 2020 | S52: 47 | T52: يناير 2020
C53: 48 | D53: =TEXT(EOMONTH('PROJECT DETAILS'!C$10,C53-1),"mmmm yyyy") -> February 2020 | E53: 300000 | F53: 13358000 | G53: =IF(E53=0,"",'PROGRESS MONITORING'!G$15-F53) -> 8373860.65 | H53: =IF(E53=0,"",F53/'PROGRESS MONITORING'!G$15) -> 0.614673553 | I53: 0.385326447 | J53: ='PROGRESS MONITORING'!IR16 -> 288629.1451 | K53: 13054585.54 | L53: =IF(J53=0,"",'PROGRESS MONITORING'!G$15-K53) -> 8677275.111 | M53: =IF(J53=0,"",ROUND(K53/'PROGRESS MONITORING'!G$15,3)) -> 0.601 | N53: 0.399 | O53: 0.9777547725 | P53: =_xlfn.IFS(C53<='PROJECT DETAILS'!$C$12,"IC",C53<='PROJECT DETAILS'!$E$63,"V.O. 1",C53<'PROJECT DETAILS'!$E$64,"V.O. 2",C53<'PROJECT DETAILS'!$E$65,"V.O. 3",C53<'PROJECT DETAILS'!$E$66,"V.O. 4") -> IC | Q53: =_xlfn.IFS('ACTUAL vs.PLANNED'!K53<='QUANTITIES-BUDGET'!$N$8,"IC",'ACTUAL vs.PLANNED'!K53<='QUANTITIES-BUDGET'!$O$8,"V.O. 1",'ACTUAL vs.PLANNED'!K53<='QUANTITIES-BUDGET'!$P$8,"V.O. 2",'ACTUAL vs.PLANNED'!K53<='QUANTITIES-BUDGET'!$Q$8,"V.O. 3",'ACTUAL vs.PLANNED'!K53<='QUANTITIES-BUDGET'!$R$8,"V.O. 4") -> IC | R53: February 2020 | S53: 48 | T53: فبراير 2020
A54: Year 5 | C54: 49 | D54: =TEXT(EOMONTH('PROJECT DETAILS'!C$10,C54-1),"mmmm yyyy") -> March 2020 | E54: 300000 | F54: 13658000 | G54: =IF(E54=0,"",'PROGRESS MONITORING'!G$15-F54) -> 8073860.65 | H54: =IF(E54=0,"",F54/'PROGRESS MONITORING'!G$15) -> 0.6284781694 | I54: 0.3715218306 | J54: ='PROGRESS MONITORING'!IW16 -> 266239.08 | K54: 13320824.62 | L54: =IF(J54=0,"",'PROGRESS MONITORING'!G$15-K54) -> 8411036.031 | M54: =IF(J54=0,"",ROUND(K54/'PROGRESS MONITORING'!G$15,3)) -> 0.613 | N54: 0.387 | O54: 0.9753719855 | P54: =_xlfn.IFS(C54<='PROJECT DETAILS'!$C$12,"IC",C54<='PROJECT DETAILS'!$E$63,"V.O. 1",C54<'PROJECT DETAILS'!$E$64,"V.O. 2",C54<'PROJECT DETAILS'!$E$65,"V.O. 3",C54<'PROJECT DETAILS'!$E$66,"V.O. 4") -> IC | Q54: =_xlfn.IFS('ACTUAL vs.PLANNED'!K54<='QUANTITIES-BUDGET'!$N$8,"IC",'ACTUAL vs.PLANNED'!K54<='QUANTITIES-BUDGET'!$O$8,"V.O. 1",'ACTUAL vs.PLANNED'!K54<='QUANTITIES-BUDGET'!$P$8,"V.O. 2",'ACTUAL vs.PLANNED'!K54<='QUANTITIES-BUDGET'!$Q$8,"V.O. 3",'ACTUAL vs.PLANNED'!K54<='QUANTITIES-BUDGET'!$R$8,"V.O. 4") -> IC | R54: March 2020 | S54: 49 | T54: مارس 2020
C55: 50 | D55: =TEXT(EOMONTH('PROJECT DETAILS'!C$10,C55-1),"mmmm yyyy") -> April 2020 | E55: 300000 | F55: 13958000 | G55: =IF(E55=0,"",'PROGRESS MONITORING'!G$15-F55) -> 7773860.65 | H55: =IF(E55=0,"",F55/'PROGRESS MONITORING'!G$15) -> 0.6422827859 | I55: 0.3577172141 | J55: ='PROGRESS MONITORING'!JB16 -> 292277.988 | K55: 13613102.61 | L55: =IF(J55=0,"",'PROGRESS MONITORING'!G$15-K55) -> 8118758.043 | M55: =IF(J55=0,"",ROUND(K55/'PROGRESS MONITORING'!G$15,3)) -> 0.626 | N55: 0.374 | O55: 0.9746485719 | P55: =_xlfn.IFS(C55<='PROJECT DETAILS'!$C$12,"IC",C55<='PROJECT DETAILS'!$E$63,"V.O. 1",C55<'PROJECT DETAILS'!$E$64,"V.O. 2",C55<'PROJECT DETAILS'!$E$65,"V.O. 3",C55<'PROJECT DETAILS'!$E$66,"V.O. 4") -> IC | Q55: =_xlfn.IFS('ACTUAL vs.PLANNED'!K55<='QUANTITIES-BUDGET'!$N$8,"IC",'ACTUAL vs.PLANNED'!K55<='QUANTITIES-BUDGET'!$O$8,"V.O. 1",'ACTUAL vs.PLANNED'!K55<='QUANTITIES-BUDGET'!$P$8,"V.O. 2",'ACTUAL vs.PLANNED'!K55<='QUANTITIES-BUDGET'!$Q$8,"V.O. 3",'ACTUAL vs.PLANNED'!K55<='QUANTITIES-BUDGET'!$R$8,"V.O. 4") -> IC | R55: April 2020 | S55: 50 | T55: أبريل 2020
C56: 51 | D56: =TEXT(EOMONTH('PROJECT DETAILS'!C$10,C56-1),"mmmm yyyy") -> May 2020 | E56: 300000 | F56: 14258000 | G56: =IF(E56=0,"",'PROGRESS MONITORING'!G$15-F56) -> 7473860.65 | H56: =IF(E56=0,"",F56/'PROGRESS MONITORING'!G$15) -> 0.6560874023 | I56: 0.3439125977 | J56: ='PROGRESS MONITORING'!JG16 -> 296575.8156 | K56: 13909678.42 | L56: =IF(J56=0,"",'PROGRESS MONITORING'!G$15-K56) -> 7822182.228 | M56: =IF(J56=0,"",ROUND(K56/'PROGRESS MONITORING'!G$15,3)) -> 0.64 | N56: 0.36 | O56: 0.9754797879 | P56: =_xlfn.IFS(C56<='PROJECT DETAILS'!$C$12,"IC",C56<='PROJECT DETAILS'!$E$63,"V.O. 1",C56<'PROJECT DETAILS'!$E$64,"V.O. 2",C56<'PROJECT DETAILS'!$E$65,"V.O. 3",C56<'PROJECT DETAILS'!$E$66,"V.O. 4") -> IC | Q56: =_xlfn.IFS('ACTUAL vs.PLANNED'!K56<='QUANTITIES-BUDGET'!$N$8,"IC",'ACTUAL vs.PLANNED'!K56<='QUANTITIES-BUDGET'!$O$8,"V.O. 1",'ACTUAL vs.PLANNED'!K56<='QUANTITIES-BUDGET'!$P$8,"V.O. 2",'ACTUAL vs.PLANNED'!K56<='QUANTITIES-BUDGET'!$Q$8,"V.O. 3",'ACTUAL vs.PLANNED'!K56<='QUANTITIES-BUDGET'!$R$8,"V.O. 4") -> IC | R56: May 2020 | S56: 51 | T56: مايو 2020
C57: 52 | D57: =TEXT(EOMONTH('PROJECT DETAILS'!C$10,C57-1),"mmmm yyyy") -> June 2020 | E57: 300000 | F57: 14558000 | G57: =IF(E57=0,"",'PROGRESS MONITORING'!G$15-F57) -> 7173860.65 | H57: =IF(E57=0,"",F57/'PROGRESS MONITORING'!G$15) -> 0.6698920187 | I57: 0.3301079813 | J57: ='PROGRESS MONITORING'!JL16 -> 361160.154 | K57: 14270838.58 | L57: =IF(J57=0,"",'PROGRESS MONITORING'!G$15-K57) -> 7461022.074 | M57: =IF(J57=0,"",ROUND(K57/'PROGRESS MONITORING'!G$15,3)) -> 0.657 | N57: 0.343 | O57: 0.9807550795 | P57: =_xlfn.IFS(C57<='PROJECT DETAILS'!$C$12,"IC",C57<='PROJECT DETAILS'!$E$63,"V.O. 1",C57<'PROJECT DETAILS'!$E$64,"V.O. 2",C57<'PROJECT DETAILS'!$E$65,"V.O. 3",C57<'PROJECT DETAILS'!$E$66,"V.O. 4") -> IC | Q57: =_xlfn.IFS('ACTUAL vs.PLANNED'!K57<='QUANTITIES-BUDGET'!$N$8,"IC",'ACTUAL vs.PLANNED'!K57<='QUANTITIES-BUDGET'!$O$8,"V.O. 1",'ACTUAL vs.PLANNED'!K57<='QUANTITIES-BUDGET'!$P$8,"V.O. 2",'ACTUAL vs.PLANNED'!K57<='QUANTITIES-BUDGET'!$Q$8,"V.O. 3",'ACTUAL vs.PLANNED'!K57<='QUANTITIES-BUDGET'!$R$8,"V.O. 4") -> IC | R57: June 2020 | S57: 52 | T57: يونيو 2020
C58: 53 | D58: =TEXT(EOMONTH('PROJECT DETAILS'!C$10,C58-1),"mmmm yyyy") -> July 2020 | E58: 300000 | F58: 14858000 | G58: =IF(E58=0,"",'PROGRESS MONITORING'!G$15-F58) -> 6873860.65 | H58: =IF(E58=0,"",F58/'PROGRESS MONITORING'!G$15) -> 0.6836966351 | I58: 0.3163033649 | J58: ='PROGRESS MONITORING'!JQ16 -> 0 | K58: =IF(J58=0,0,J58+K57) -> 0 | L58: =IF(J58=0,"",'PROGRESS MONITORING'!G$15-K58) ->  | M58: =IF(J58=0,"",ROUND(K58/'PROGRESS MONITORING'!G$15,3)) ->  | N58: =IF(J58=0,"",1-M58) ->  | O58: =IF(J58=0,"N/A",M58/H58) -> N/A | P58: =_xlfn.IFS(C58<='PROJECT DETAILS'!$C$12,"IC",C58<='PROJECT DETAILS'!$E$63,"V.O. 1",C58<'PROJECT DETAILS'!$E$64,"V.O. 2",C58<'PROJECT DETAILS'!$E$65,"V.O. 3",C58<'PROJECT DETAILS'!$E$66,"V.O. 4") -> IC | Q58: =_xlfn.IFS('ACTUAL vs.PLANNED'!K58<='QUANTITIES-BUDGET'!$N$8,"IC",'ACTUAL vs.PLANNED'!K58<='QUANTITIES-BUDGET'!$O$8,"V.O. 1",'ACTUAL vs.PLANNED'!K58<='QUANTITIES-BUDGET'!$P$8,"V.O. 2",'ACTUAL vs.PLANNED'!K58<='QUANTITIES-BUDGET'!$Q$8,"V.O. 3",'ACTUAL vs.PLANNED'!K58<='QUANTITIES-BUDGET'!$R$8,"V.O. 4") -> IC | R58: July 2020 | S58: 53 | T58: يوليو 2020
C59: 54 | D59: =TEXT(EOMONTH('PROJECT DETAILS'!C$10,C59-1),"mmmm yyyy") -> August 2020 | E59: 300000 | F59: 15158000 | G59: =IF(E59=0,"",'PROGRESS MONITORING'!G$15-F59) -> 6573860.65 | H59: =IF(E59=0,"",F59/'PROGRESS MONITORING'!G$15) -> 0.6975012515 | I59: 0.3024987485 | J59: ='PROGRESS MONITORING'!JV16 -> 0 | K59: 0 | L59: =IF(J59=0,"",'PROGRESS MONITORING'!G$15-K59) ->  | M59: =IF(J59=0,"",ROUND(K59/'PROGRESS MONITORING'!G$15,3)) ->  | O59: N/A | P59: =_xlfn.IFS(C59<='PROJECT DETAILS'!$C$12,"IC",C59<='PROJECT DETAILS'!$E$63,"V.O. 1",C59<'PROJECT DETAILS'!$E$64,"V.O. 2",C59<'PROJECT DETAILS'!$E$65,"V.O. 3",C59<'PROJECT DETAILS'!$E$66,"V.O. 4") -> IC | Q59: =_xlfn.IFS('ACTUAL vs.PLANNED'!K59<='QUANTITIES-BUDGET'!$N$8,"IC",'ACTUAL vs.PLANNED'!K59<='QUANTITIES-BUDGET'!$O$8,"V.O. 1",'ACTUAL vs.PLANNED'!K59<='QUANTITIES-BUDGET'!$P$8,"V.O. 2",'ACTUAL vs.PLANNED'!K59<='QUANTITIES-BUDGET'!$Q$8,"V.O. 3",'ACTUAL vs.PLANNED'!K59<='QUANTITIES-BUDGET'!$R$8,"V.O. 4") -> IC | R59: August 2020 | S59: 54 | T59: أغسطس 2020
C60: 55 | D60: =TEXT(EOMONTH('PROJECT DETAILS'!C$10,C60-1),"mmmm yyyy") -> September 2020 | E60: 300000 | F60: 15458000 | G60: =IF(E60=0,"",'PROGRESS MONITORING'!G$15-F60) -> 6273860.65 | H60: =IF(E60=0,"",F60/'PROGRESS MONITORING'!G$15) -> 0.7113058679 | I60: 0.2886941321 | J60: ='PROGRESS MONITORING'!KA16 -> 0 | K60: 0 | L60: =IF(J60=0,"",'PROGRESS MONITORING'!G$15-K60) ->  | M60: =IF(J60=0,"",ROUND(K60/'PROGRESS MONITORING'!G$15,3)) ->  | O60: N/A | P60: =_xlfn.IFS(C60<='PROJECT DETAILS'!$C$12,"IC",C60<='PROJECT DETAILS'!$E$63,"V.O. 1",C60<'PROJECT DETAILS'!$E$64,"V.O. 2",C60<'PROJECT DETAILS'!$E$65,"V.O. 3",C60<'PROJECT DETAILS'!$E$66,"V.O. 4") -> IC | Q60: =_xlfn.IFS('ACTUAL vs.PLANNED'!K60<='QUANTITIES-BUDGET'!$N$8,"IC",'ACTUAL vs.PLANNED'!K60<='QUANTITIES-BUDGET'!$O$8,"V.O. 1",'ACTUAL vs.PLANNED'!K60<='QUANTITIES-BUDGET'!$P$8,"V.O. 2",'ACTUAL vs.PLANNED'!K60<='QUANTITIES-BUDGET'!$Q$8,"V.O. 3",'ACTUAL vs.PLANNED'!K60<='QUANTITIES-BUDGET'!$R$8,"V.O. 4") -> IC | R60: September 2020 | S60: 55 | T60: سبتمبر 2020
C61: 56 | D61: =TEXT(EOMONTH('PROJECT DETAILS'!C$10,C61-1),"mmmm yyyy") -> October 2020 | E61: 300000 | F61: 15758000 | G61: =IF(E61=0,"",'PROGRESS MONITORING'!G$15-F61) -> 5973860.65 | H61: =IF(E61=0,"",F61/'PROGRESS MONITORING'!G$15) -> 0.7251104843 | I61: 0.2748895157 | J61: ='PROGRESS MONITORING'!KF16 -> 0 | K61: 0 | L61: =IF(J61=0,"",'PROGRESS MONITORING'!G$15-K61) ->  | M61: =IF(J61=0,"",ROUND(K61/'PROGRESS MONITORING'!G$15,3)) ->  | O61: N/A | P61: =_xlfn.IFS(C61<='PROJECT DETAILS'!$C$12,"IC",C61<='PROJECT DETAILS'!$E$63,"V.O. 1",C61<'PROJECT DETAILS'!$E$64,"V.O. 2",C61<'PROJECT DETAILS'!$E$65,"V.O. 3",C61<'PROJECT DETAILS'!$E$66,"V.O. 4") -> IC | Q61: =_xlfn.IFS('ACTUAL vs.PLANNED'!K61<='QUANTITIES-BUDGET'!$N$8,"IC",'ACTUAL vs.PLANNED'!K61<='QUANTITIES-BUDGET'!$O$8,"V.O. 1",'ACTUAL vs.PLANNED'!K61<='QUANTITIES-BUDGET'!$P$8,"V.O. 2",'ACTUAL vs.PLANNED'!K61<='QUANTITIES-BUDGET'!$Q$8,"V.O. 3",'ACTUAL vs.PLANNED'!K61<='QUANTITIES-BUDGET'!$R$8,"V.O. 4") -> IC | R61: October 2020 | S61: 56 | T61: أكتوبر 2020
C62: 57 | D62: =TEXT(EOMONTH('PROJECT DETAILS'!C$10,C62-1),"mmmm yyyy") -> November 2020 | E62: 200000 | F62: 15958000 | G62: =IF(E62=0,"",'PROGRESS MONITORING'!G$15-F62) -> 5773860.65 | H62: =IF(E62=0,"",F62/'PROGRESS MONITORING'!G$15) -> 0.7343135619 | I62: 0.2656864381 | J62: ='PROGRESS MONITORING'!KK16 -> 0 | K62: 0 | L62: =IF(J62=0,"",'PROGRESS MONITORING'!G$15-K62) ->  | M62: =IF(J62=0,"",ROUND(K62/'PROGRESS MONITORING'!G$15,3)) ->  | O62: N/A | P62: =_xlfn.IFS(C62<='PROJECT DETAILS'!$C$12,"IC",C62<='PROJECT DETAILS'!$E$63,"V.O. 1",C62<'PROJECT DETAILS'!$E$64,"V.O. 2",C62<'PROJECT DETAILS'!$E$65,"V.O. 3",C62<'PROJECT DETAILS'!$E$66,"V.O. 4") -> IC | Q62: =_xlfn.IFS('ACTUAL vs.PLANNED'!K62<='QUANTITIES-BUDGET'!$N$8,"IC",'ACTUAL vs.PLANNED'!K62<='QUANTITIES-BUDGET'!$O$8,"V.O. 1",'ACTUAL vs.PLANNED'!K62<='QUANTITIES-BUDGET'!$P$8,"V.O. 2",'ACTUAL vs.PLANNED'!K62<='QUANTITIES-BUDGET'!$Q$8,"V.O. 3",'ACTUAL vs.PLANNED'!K62<='QUANTITIES-BUDGET'!$R$8,"V.O. 4") -> IC | R62: November 2020 | S62: 57 | T62: نوفمبر 2020
C63: 58 | D63: =TEXT(EOMONTH('PROJECT DETAILS'!C$10,C63-1),"mmmm yyyy") -> December 2020 | E63: 200000 | F63: 16158000 | G63: =IF(E63=0,"",'PROGRESS MONITORING'!G$15-F63) -> 5573860.65 | H63: =IF(E63=0,"",F63/'PROGRESS MONITORING'!G$15) -> 0.7435166395 | I63: 0.2564833605 | J63: ='PROGRESS MONITORING'!KP16 -> 0 | K63: 0 | L63: =IF(J63=0,"",'PROGRESS MONITORING'!G$15-K63) ->  | M63: =IF(J63=0,"",ROUND(K63/'PROGRESS MONITORING'!G$15,3)) ->  | O63: N/A | P63: =_xlfn.IFS(C63<='PROJECT DETAILS'!$C$12,"IC",C63<='PROJECT DETAILS'!$E$63,"V.O. 1",C63<'PROJECT DETAILS'!$E$64,"V.O. 2",C63<'PROJECT DETAILS'!$E$65,"V.O. 3",C63<'PROJECT DETAILS'!$E$66,"V.O. 4") -> IC | Q63: =_xlfn.IFS('ACTUAL vs.PLANNED'!K63<='QUANTITIES-BUDGET'!$N$8,"IC",'ACTUAL vs.PLANNED'!K63<='QUANTITIES-BUDGET'!$O$8,"V.O. 1",'ACTUAL vs.PLANNED'!K63<='QUANTITIES-BUDGET'!$P$8,"V.O. 2",'ACTUAL vs.PLANNED'!K63<='QUANTITIES-BUDGET'!$Q$8,"V.O. 3",'ACTUAL vs.PLANNED'!K63<='QUANTITIES-BUDGET'!$R$8,"V.O. 4") -> IC | R63: December 2020 | S63: 58 | T63: ديسمبر 2020
C64: 59 | D64: =TEXT(EOMONTH('PROJECT DETAILS'!C$10,C64-1),"mmmm yyyy") -> January 2021 | E64: 200000 | F64: 16358000 | G64: =IF(E64=0,"",'PROGRESS MONITORING'!G$15-F64) -> 5373860.65 | H64: =IF(E64=0,"",F64/'PROGRESS MONITORING'!G$15) -> 0.7527197171 | I64: 0.2472802829 | J64: ='PROGRESS MONITORING'!KU16 -> 0 | K64: 0 | L64: =IF(J64=0,"",'PROGRESS MONITORING'!G$15-K64) ->  | M64: =IF(J64=0,"",ROUND(K64/'PROGRESS MONITORING'!G$15,3)) ->  | O64: N/A | P64: =_xlfn.IFS(C64<='PROJECT DETAILS'!$C$12,"IC",C64<='PROJECT DETAILS'!$E$63,"V.O. 1",C64<'PROJECT DETAILS'!$E$64,"V.O. 2",C64<'PROJECT DETAILS'!$E$65,"V.O. 3",C64<'PROJECT DETAILS'!$E$66,"V.O. 4") -> IC | Q64: =_xlfn.IFS('ACTUAL vs.PLANNED'!K64<='QUANTITIES-BUDGET'!$N$8,"IC",'ACTUAL vs.PLANNED'!K64<='QUANTITIES-BUDGET'!$O$8,"V.O. 1",'ACTUAL vs.PLANNED'!K64<='QUANTITIES-BUDGET'!$P$8,"V.O. 2",'ACTUAL vs.PLANNED'!K64<='QUANTITIES-BUDGET'!$Q$8,"V.O. 3",'ACTUAL vs.PLANNED'!K64<='QUANTITIES-BUDGET'!$R$8,"V.O. 4") -> IC | R64: January 2021 | S64: 59 | T64: يناير 2021
C65: 60 | D65: =TEXT(EOMONTH('PROJECT DETAILS'!C$10,C65-1),"mmmm yyyy") -> February 2021 | E65: 21565 | F65: 16379565 | G65: =IF(E65=0,"",'PROGRESS MONITORING'!G$15-F65) -> 5352295.65 | H65: =IF(E65=0,"",F65/'PROGRESS MONITORING'!G$15) -> 0.7537120389 | I65: 0.2462879611 | J65: ='PROGRESS MONITORING'!KZ16 -> 0 | K65: 0 | L65: =IF(J65=0,"",'PROGRESS MONITORING'!G$15-K65) ->  | M65: =IF(J65=0,"",ROUND(K65/'PROGRESS MONITORING'!G$15,3)) ->  | O65: N/A | P65: =_xlfn.IFS(C65<='PROJECT DETAILS'!$C$12,"IC",C65<='PROJECT DETAILS'!$E$63,"V.O. 1",C65<'PROJECT DETAILS'!$E$64,"V.O. 2",C65<'PROJECT DETAILS'!$E$65,"V.O. 3",C65<'PROJECT DETAILS'!$E$66,"V.O. 4") -> IC | Q65: =_xlfn.IFS('ACTUAL vs.PLANNED'!K65<='QUANTITIES-BUDGET'!$N$8,"IC",'ACTUAL vs.PLANNED'!K65<='QUANTITIES-BUDGET'!$O$8,"V.O. 1",'ACTUAL vs.PLANNED'!K65<='QUANTITIES-BUDGET'!$P$8,"V.O. 2",'ACTUAL vs.PLANNED'!K65<='QUANTITIES-BUDGET'!$Q$8,"V.O. 3",'ACTUAL vs.PLANNED'!K65<='QUANTITIES-BUDGET'!$R$8,"V.O. 4") -> IC | R65: February 2021 | S65: 60 | T65: فبراير 2021
A66: Year 6 | C66: 61 | D66: =TEXT(EOMONTH('PROJECT DETAILS'!C$10,C66-1),"mmmm yyyy") -> March 2021 | E66: 21566 | F66: =IF(E66=0,"",E66+F65) -> 16401131 | G66: =IF(E66=0,"",'PROGRESS MONITORING'!G$15-F66) -> 5330729.65 | H66: =IF(E66=0,"",F66/'PROGRESS MONITORING'!G$15) -> 0.7547044068 | I66: =IF(E66=0,"",1-H66) -> 0.2452955932 | J66: ='PROGRESS MONITORING'!LE16 -> 0 | K66: 0 | L66: =IF(J66=0,"",'PROGRESS MONITORING'!G$15-K66) ->  | M66: =IF(J66=0,"",ROUND(K66/'PROGRESS MONITORING'!G$15,3)) ->  | O66: N/A | P66: =_xlfn.IFS(C66<='PROJECT DETAILS'!$C$12,"IC",C66<='PROJECT DETAILS'!$E$63,"V.O. 1",C66<'PROJECT DETAILS'!$E$64,"V.O. 2",C66<'PROJECT DETAILS'!$E$65,"V.O. 3",C66<'PROJECT DETAILS'!$E$66,"V.O. 4") -> V.O. 2 | Q66: =_xlfn.IFS('ACTUAL vs.PLANNED'!K66<='QUANTITIES-BUDGET'!$N$8,"IC",'ACTUAL vs.PLANNED'!K66<='QUANTITIES-BUDGET'!$O$8,"V.O. 1",'ACTUAL vs.PLANNED'!K66<='QUANTITIES-BUDGET'!$P$8,"V.O. 2",'ACTUAL vs.PLANNED'!K66<='QUANTITIES-BUDGET'!$Q$8,"V.O. 3",'ACTUAL vs.PLANNED'!K66<='QUANTITIES-BUDGET'!$R$8,"V.O. 4") -> IC | R66: =D66 -> March 2021 | S66: =C66 -> 61 | T66: مارس 2021
C67: 62 | D67: =TEXT(EOMONTH('PROJECT DETAILS'!C$10,C67-1),"mmmm yyyy") -> April 2021 | E67: 21567 | F67: 16422698 | G67: =IF(E67=0,"",'PROGRESS MONITORING'!G$15-F67) -> 5309162.65 | H67: =IF(E67=0,"",F67/'PROGRESS MONITORING'!G$15) -> 0.7556968206 | I67: 0.2443031794 | J67: ='PROGRESS MONITORING'!LJ16 -> 0 | K67: 0 | L67: =IF(J67=0,"",'PROGRESS MONITORING'!G$15-K67) ->  | M67: =IF(J67=0,"",ROUND(K67/'PROGRESS MONITORING'!G$15,3)) ->  | O67: N/A | P67: =_xlfn.IFS(C67<='PROJECT DETAILS'!$C$12,"IC",C67<='PROJECT DETAILS'!$E$63,"V.O. 1",C67<'PROJECT DETAILS'!$E$64,"V.O. 2",C67<'PROJECT DETAILS'!$E$65,"V.O. 3",C67<'PROJECT DETAILS'!$E$66,"V.O. 4") -> V.O. 2 | Q67: =_xlfn.IFS('ACTUAL vs.PLANNED'!K67<='QUANTITIES-BUDGET'!$N$8,"IC",'ACTUAL vs.PLANNED'!K67<='QUANTITIES-BUDGET'!$O$8,"V.O. 1",'ACTUAL vs.PLANNED'!K67<='QUANTITIES-BUDGET'!$P$8,"V.O. 2",'ACTUAL vs.PLANNED'!K67<='QUANTITIES-BUDGET'!$Q$8,"V.O. 3",'ACTUAL vs.PLANNED'!K67<='QUANTITIES-BUDGET'!$R$8,"V.O. 4") -> IC | R67: April 2021 | S67: 62 | T67: أبريل 2021
C68: 63 | D68: =TEXT(EOMONTH('PROJECT DETAILS'!C$10,C68-1),"mmmm yyyy") -> May 2021 | E68: 21568 | F68: 16444266 | G68: =IF(E68=0,"",'PROGRESS MONITORING'!G$15-F68) -> 5287594.65 | H68: =IF(E68=0,"",F68/'PROGRESS MONITORING'!G$15) -> 0.7566892805 | I68: 0.2433107195 | J68: ='PROGRESS MONITORING'!LO16 -> 0 | K68: 0 | L68: =IF(J68=0,"",'PROGRESS MONITORING'!G$15-K68) ->  | M68: =IF(J68=0,"",ROUND(K68/'PROGRESS MONITORING'!G$15,3)) ->  | O68: N/A | P68: =_xlfn.IFS(C68<='PROJECT DETAILS'!$C$12,"IC",C68<='PROJECT DETAILS'!$E$63,"V.O. 1",C68<'PROJECT DETAILS'!$E$64,"V.O. 2",C68<'PROJECT DETAILS'!$E$65,"V.O. 3",C68<'PROJECT DETAILS'!$E$66,"V.O. 4") -> V.O. 2 | Q68: =_xlfn.IFS('ACTUAL vs.PLANNED'!K68<='QUANTITIES-BUDGET'!$N$8,"IC",'ACTUAL vs.PLANNED'!K68<='QUANTITIES-BUDGET'!$O$8,"V.O. 1",'ACTUAL vs.PLANNED'!K68<='QUANTITIES-BUDGET'!$P$8,"V.O. 2",'ACTUAL vs.PLANNED'!K68<='QUANTITIES-BUDGET'!$Q$8,"V.O. 3",'ACTUAL vs.PLANNED'!K68<='QUANTITIES-BUDGET'!$R$8,"V.O. 4") -> IC | R68: May 2021 | S68: 63 | T68: مايو 2021
C69: 64 | D69: =TEXT(EOMONTH('PROJECT DETAILS'!C$10,C69-1),"mmmm yyyy") -> June 2021 | E69: 21569 | F69: 16465835 | G69: =IF(E69=0,"",'PROGRESS MONITORING'!G$15-F69) -> 5266025.65 | H69: =IF(E69=0,"",F69/'PROGRESS MONITORING'!G$15) -> 0.7576817864 | I69: 0.2423182136 | J69: ='PROGRESS MONITORING'!LT16 -> 0 | K69: 0 | L69: =IF(J69=0,"",'PROGRESS MONITORING'!G$15-K69) ->  | M69: =IF(J69=0,"",ROUND(K69/'PROGRESS MONITORING'!G$15,3)) ->  | O69: N/A | P69: =_xlfn.IFS(C69<='PROJECT DETAILS'!$C$12,"IC",C69<='PROJECT DETAILS'!$E$63,"V.O. 1",C69<'PROJECT DETAILS'!$E$64,"V.O. 2",C69<'PROJECT DETAILS'!$E$65,"V.O. 3",C69<'PROJECT DETAILS'!$E$66,"V.O. 4") -> V.O. 3 | Q69: =_xlfn.IFS('ACTUAL vs.PLANNED'!K69<='QUANTITIES-BUDGET'!$N$8,"IC",'ACTUAL vs.PLANNED'!K69<='QUANTITIES-BUDGET'!$O$8,"V.O. 1",'ACTUAL vs.PLANNED'!K69<='QUANTITIES-BUDGET'!$P$8,"V.O. 2",'ACTUAL vs.PLANNED'!K69<='QUANTITIES-BUDGET'!$Q$8,"V.O. 3",'ACTUAL vs.PLANNED'!K69<='QUANTITIES-BUDGET'!$R$8,"V.O. 4") -> IC | R69: June 2021 | S69: 64 | T69: يونيو 2021
C70: 65 | D70: =TEXT(EOMONTH('PROJECT DETAILS'!C$10,C70-1),"mmmm yyyy") -> July 2021 | E70: 21570 | F70: 16487405 | G70: =IF(E70=0,"",'PROGRESS MONITORING'!G$15-F70) -> 5244455.65 | H70: =IF(E70=0,"",F70/'PROGRESS MONITORING'!G$15) -> 0.7586743384 | I70: 0.2413256616 | J70: ='PROGRESS MONITORING'!LY16 -> 0 | K70: 0 | L70: =IF(J70=0,"",'PROGRESS MONITORING'!G$15-K70) ->  | M70: =IF(J70=0,"",ROUND(K70/'PROGRESS MONITORING'!G$15,3)) ->  | O70: N/A | P70: =_xlfn.IFS(C70<='PROJECT DETAILS'!$C$12,"IC",C70<='PROJECT DETAILS'!$E$63,"V.O. 1",C70<'PROJECT DETAILS'!$E$64,"V.O. 2",C70<'PROJECT DETAILS'!$E$65,"V.O. 3",C70<'PROJECT DETAILS'!$E$66,"V.O. 4") -> V.O. 3 | Q70: =_xlfn.IFS('ACTUAL vs.PLANNED'!K70<='QUANTITIES-BUDGET'!$N$8,"IC",'ACTUAL vs.PLANNED'!K70<='QUANTITIES-BUDGET'!$O$8,"V.O. 1",'ACTUAL vs.PLANNED'!K70<='QUANTITIES-BUDGET'!$P$8,"V.O. 2",'ACTUAL vs.PLANNED'!K70<='QUANTITIES-BUDGET'!$Q$8,"V.O. 3",'ACTUAL vs.PLANNED'!K70<='QUANTITIES-BUDGET'!$R$8,"V.O. 4") -> IC | R70: July 2021 | S70: 65 | T70: يوليو 2021
C71: 66 | D71: =TEXT(EOMONTH('PROJECT DETAILS'!C$10,C71-1),"mmmm yyyy") -> August 2021 | E71: 21571 | F71: 16508976 | G71: =IF(E71=0,"",'PROGRESS MONITORING'!G$15-F71) -> 5222884.65 | H71: =IF(E71=0,"",F71/'PROGRESS MONITORING'!G$15) -> 0.7596669363 | I71: 0.2403330637 | J71: ='PROGRESS MONITORING'!MD16 -> 0 | K71: 0 | L71: =IF(J71=0,"",'PROGRESS MONITORING'!G$15-K71) ->  | M71: =IF(J71=0,"",ROUND(K71/'PROGRESS MONITORING'!G$15,3)) ->  | O71: N/A | P71: =_xlfn.IFS(C71<='PROJECT DETAILS'!$C$12,"IC",C71<='PROJECT DETAILS'!$E$63,"V.O. 1",C71<'PROJECT DETAILS'!$E$64,"V.O. 2",C71<'PROJECT DETAILS'!$E$65,"V.O. 3",C71<'PROJECT DETAILS'!$E$66,"V.O. 4") -> V.O. 3 | Q71: =_xlfn.IFS('ACTUAL vs.PLANNED'!K71<='QUANTITIES-BUDGET'!$N$8,"IC",'ACTUAL vs.PLANNED'!K71<='QUANTITIES-BUDGET'!$O$8,"V.O. 1",'ACTUAL vs.PLANNED'!K71<='QUANTITIES-BUDGET'!$P$8,"V.O. 2",'ACTUAL vs.PLANNED'!K71<='QUANTITIES-BUDGET'!$Q$8,"V.O. 3",'ACTUAL vs.PLANNED'!K71<='QUANTITIES-BUDGET'!$R$8,"V.O. 4") -> IC | R71: August 2021 | S71: 66 | T71: =TEXT(R71,"[$-401] mmmm yyyy") -> أغسطس 2021
C72: 67 | D72: =TEXT(EOMONTH('PROJECT DETAILS'!C$10,C72-1),"mmmm yyyy") -> September 2021 | E72: 21572 | F72: 16530548 | G72: =IF(E72=0,"",'PROGRESS MONITORING'!G$15-F72) -> 5201312.65 | H72: =IF(E72=0,"",F72/'PROGRESS MONITORING'!G$15) -> 0.7606595802 | I72: 0.2393404198 | J72: ='PROGRESS MONITORING'!MI16 -> 0 | K72: 0 | L72: =IF(J72=0,"",'PROGRESS MONITORING'!G$15-K72) ->  | M72: =IF(J72=0,"",ROUND(K72/'PROGRESS MONITORING'!G$15,3)) ->  | O72: N/A | P72: =_xlfn.IFS(C72<='PROJECT DETAILS'!$C$12,"IC",C72<='PROJECT DETAILS'!$E$63,"V.O. 1",C72<'PROJECT DETAILS'!$E$64,"V.O. 2",C72<'PROJECT DETAILS'!$E$65,"V.O. 3",C72<'PROJECT DETAILS'!$E$66,"V.O. 4") -> V.O. 3 | Q72: =_xlfn.IFS('ACTUAL vs.PLANNED'!K72<='QUANTITIES-BUDGET'!$N$8,"IC",'ACTUAL vs.PLANNED'!K72<='QUANTITIES-BUDGET'!$O$8,"V.O. 1",'ACTUAL vs.PLANNED'!K72<='QUANTITIES-BUDGET'!$P$8,"V.O. 2",'ACTUAL vs.PLANNED'!K72<='QUANTITIES-BUDGET'!$Q$8,"V.O. 3",'ACTUAL vs.PLANNED'!K72<='QUANTITIES-BUDGET'!$R$8,"V.O. 4") -> IC | R72: September 2021 | S72: 67 | T72: سبتمبر 2021
C73: 68 | D73: =TEXT(EOMONTH('PROJECT DETAILS'!C$10,C73-1),"mmmm yyyy") -> October 2021 | E73: 21573 | F73: 16552121 | G73: =IF(E73=0,"",'PROGRESS MONITORING'!G$15-F73) -> 5179739.65 | H73: =IF(E73=0,"",F73/'PROGRESS MONITORING'!G$15) -> 0.7616522702 | I73: 0.2383477298 | J73: ='PROGRESS MONITORING'!MN16 -> 0 | K73: 0 | L73: =IF(J73=0,"",'PROGRESS MONITORING'!G$15-K73) ->  | M73: =IF(J73=0,"",ROUND(K73/'PROGRESS MONITORING'!G$15,3)) ->  | O73: N/A | P73: =_xlfn.IFS(C73<='PROJECT DETAILS'!$C$12,"IC",C73<='PROJECT DETAILS'!$E$63,"V.O. 1",C73<'PROJECT DETAILS'!$E$64,"V.O. 2",C73<'PROJECT DETAILS'!$E$65,"V.O. 3",C73<'PROJECT DETAILS'!$E$66,"V.O. 4") -> V.O. 3 | Q73: =_xlfn.IFS('ACTUAL vs.PLANNED'!K73<='QUANTITIES-BUDGET'!$N$8,"IC",'ACTUAL vs.PLANNED'!K73<='QUANTITIES-BUDGET'!$O$8,"V.O. 1",'ACTUAL vs.PLANNED'!K73<='QUANTITIES-BUDGET'!$P$8,"V.O. 2",'ACTUAL vs.PLANNED'!K73<='QUANTITIES-BUDGET'!$Q$8,"V.O. 3",'ACTUAL vs.PLANNED'!K73<='QUANTITIES-BUDGET'!$R$8,"V.O. 4") -> IC | R73: October 2021 | S73: 68 | T73: أكتوبر 2021
C74: 69 | D74: =TEXT(EOMONTH('PROJECT DETAILS'!C$10,C74-1),"mmmm yyyy") -> November 2021 | E74: 21574 | F74: 16573695 | G74: =IF(E74=0,"",'PROGRESS MONITORING'!G$15-F74) -> 5158165.65 | H74: =IF(E74=0,"",F74/'PROGRESS MONITORING'!G$15) -> 0.7626450062 | I74: 0.2373549938 | J74: ='PROGRESS MONITORING'!MS16 -> 0 | K74: 0 | L74: =IF(J74=0,"",'PROGRESS MONITORING'!G$15-K74) ->  | M74: =IF(J74=0,"",ROUND(K74/'PROGRESS MONITORING'!G$15,3)) ->  | O74: N/A | P74: =_xlfn.IFS(C74<='PROJECT DETAILS'!$C$12,"IC",C74<='PROJECT DETAILS'!$E$63,"V.O. 1",C74<'PROJECT DETAILS'!$E$64,"V.O. 2",C74<'PROJECT DETAILS'!$E$65,"V.O. 3",C74<'PROJECT DETAILS'!$E$66,"V.O. 4") -> V.O. 3 | Q74: =_xlfn.IFS('ACTUAL vs.PLANNED'!K74<='QUANTITIES-BUDGET'!$N$8,"IC",'ACTUAL vs.PLANNED'!K74<='QUANTITIES-BUDGET'!$O$8,"V.O. 1",'ACTUAL vs.PLANNED'!K74<='QUANTITIES-BUDGET'!$P$8,"V.O. 2",'ACTUAL vs.PLANNED'!K74<='QUANTITIES-BUDGET'!$Q$8,"V.O. 3",'ACTUAL vs.PLANNED'!K74<='QUANTITIES-BUDGET'!$R$8,"V.O. 4") -> IC | R74: November 2021 | S74: 69 | T74: نوفمبر 2021
C75: 70 | D75: =TEXT(EOMONTH('PROJECT DETAILS'!C$10,C75-1),"mmmm yyyy") -> December 2021 | E75: 21575 | F75: 16595270 | G75: =IF(E75=0,"",'PROGRESS MONITORING'!G$15-F75) -> 5136590.65 | H75: =IF(E75=0,"",F75/'PROGRESS MONITORING'!G$15) -> 0.7636377882 | I75: 0.2363622118 | J75: ='PROGRESS MONITORING'!MX16 -> 0 | K75: 0 | L75: =IF(J75=0,"",'PROGRESS MONITORING'!G$15-K75) ->  | M75: =IF(J75=0,"",ROUND(K75/'PROGRESS MONITORING'!G$15,3)) ->  | O75: N/A | P75: =_xlfn.IFS(C75<='PROJECT DETAILS'!$C$12,"IC",C75<='PROJECT DETAILS'!$E$63,"V.O. 1",C75<'PROJECT DETAILS'!$E$64,"V.O. 2",C75<'PROJECT DETAILS'!$E$65,"V.O. 3",C75<'PROJECT DETAILS'!$E$66,"V.O. 4") -> V.O. 3 | Q75: =_xlfn.IFS('ACTUAL vs.PLANNED'!K75<='QUANTITIES-BUDGET'!$N$8,"IC",'ACTUAL vs.PLANNED'!K75<='QUANTITIES-BUDGET'!$O$8,"V.O. 1",'ACTUAL vs.PLANNED'!K75<='QUANTITIES-BUDGET'!$P$8,"V.O. 2",'ACTUAL vs.PLANNED'!K75<='QUANTITIES-BUDGET'!$Q$8,"V.O. 3",'ACTUAL vs.PLANNED'!K75<='QUANTITIES-BUDGET'!$R$8,"V.O. 4") -> IC | R75: December 2021 | S75: 70 | T75: ديسمبر 2021
C76: 71 | D76: =TEXT(EOMONTH('PROJECT DETAILS'!C$10,C76-1),"mmmm yyyy") -> January 2022 | E76: 21576 | F76: 16616846 | G76: =IF(E76=0,"",'PROGRESS MONITORING'!G$15-F76) -> 5115014.65 | H76: =IF(E76=0,"",F76/'PROGRESS MONITORING'!G$15) -> 0.7646306162 | I76: 0.2353693838 | J76: ='PROGRESS MONITORING'!NC16 -> 0 | K76: 0 | L76: =IF(J76=0,"",'PROGRESS MONITORING'!G$15-K76) ->  | M76: =IF(J76=0,"",ROUND(K76/'PROGRESS MONITORING'!G$15,3)) ->  | O76: N/A | P76: =_xlfn.IFS(C76<='PROJECT DETAILS'!$C$12,"IC",C76<='PROJECT DETAILS'!$E$63,"V.O. 1",C76<'PROJECT DETAILS'!$E$64,"V.O. 2",C76<'PROJECT DETAILS'!$E$65,"V.O. 3",C76<'PROJECT DETAILS'!$E$66,"V.O. 4") -> V.O. 3 | Q76: =_xlfn.IFS('ACTUAL vs.PLANNED'!K76<='QUANTITIES-BUDGET'!$N$8,"IC",'ACTUAL vs.PLANNED'!K76<='QUANTITIES-BUDGET'!$O$8,"V.O. 1",'ACTUAL vs.PLANNED'!K76<='QUANTITIES-BUDGET'!$P$8,"V.O. 2",'ACTUAL vs.PLANNED'!K76<='QUANTITIES-BUDGET'!$Q$8,"V.O. 3",'ACTUAL vs.PLANNED'!K76<='QUANTITIES-BUDGET'!$R$8,"V.O. 4") -> IC | R76: January 2022 | S76: 71 | T76: يناير 2022
C77: 72 | D77: =TEXT(EOMONTH('PROJECT DETAILS'!C$10,C77-1),"mmmm yyyy") -> February 2022 | E77: 21577 | F77: 16638423 | G77: =IF(E77=0,"",'PROGRESS MONITORING'!G$15-F77) -> 5093437.65 | H77: =IF(E77=0,"",F77/'PROGRESS MONITORING'!G$15) -> 0.7656234902 | I77: 0.2343765098 | J77: ='PROGRESS MONITORING'!NH16 -> 0 | K77: 0 | L77: =IF(J77=0,"",'PROGRESS MONITORING'!G$15-K77) ->  | M77: =IF(J77=0,"",ROUND(K77/'PROGRESS MONITORING'!G$15,3)) ->  | O77: N/A | P77: =_xlfn.IFS(C77<='PROJECT DETAILS'!$C$12,"IC",C77<='PROJECT DETAILS'!$E$63,"V.O. 1",C77<'PROJECT DETAILS'!$E$64,"V.O. 2",C77<'PROJECT DETAILS'!$E$65,"V.O. 3",C77<'PROJECT DETAILS'!$E$66,"V.O. 4") -> V.O. 3 | Q77: =_xlfn.IFS('ACTUAL vs.PLANNED'!K77<='QUANTITIES-BUDGET'!$N$8,"IC",'ACTUAL vs.PLANNED'!K77<='QUANTITIES-BUDGET'!$O$8,"V.O. 1",'ACTUAL vs.PLANNED'!K77<='QUANTITIES-BUDGET'!$P$8,"V.O. 2",'ACTUAL vs.PLANNED'!K77<='QUANTITIES-BUDGET'!$Q$8,"V.O. 3",'ACTUAL vs.PLANNED'!K77<='QUANTITIES-BUDGET'!$R$8,"V.O. 4") -> IC | R77: February 2022 | S77: 72 | T77: فبراير 2022
A78: Year 7 | C78: 73 | D78: =TEXT(EOMONTH('PROJECT DETAILS'!C$10,C78-1),"mmmm yyyy") -> March 2022 | E78: 21578 | F78: 16660001 | G78: =IF(E78=0,"",'PROGRESS MONITORING'!G$15-F78) -> 5071859.65 | H78: =IF(E78=0,"",F78/'PROGRESS MONITORING'!G$15) -> 0.7666164103 | I78: 0.2333835897 | J78: ='PROGRESS MONITORING'!NM16 -> 0 | K78: 0 | L78: =IF(J78=0,"",'PROGRESS MONITORING'!G$15-K78) ->  | M78: =IF(J78=0,"",ROUND(K78/'PROGRESS MONITORING'!G$15,3)) ->  | O78: N/A | P78: =_xlfn.IFS(C78<='PROJECT DETAILS'!$C$12,"IC",C78<='PROJECT DETAILS'!$E$63,"V.O. 1",C78<'PROJECT DETAILS'!$E$64,"V.O. 2",C78<'PROJECT DETAILS'!$E$65,"V.O. 3",C78<'PROJECT DETAILS'!$E$66,"V.O. 4") -> V.O. 3 | Q78: =_xlfn.IFS('ACTUAL vs.PLANNED'!K78<='QUANTITIES-BUDGET'!$N$8,"IC",'ACTUAL vs.PLANNED'!K78<='QUANTITIES-BUDGET'!$O$8,"V.O. 1",'ACTUAL vs.PLANNED'!K78<='QUANTITIES-BUDGET'!$P$8,"V.O. 2",'ACTUAL vs.PLANNED'!K78<='QUANTITIES-BUDGET'!$Q$8,"V.O. 3",'ACTUAL vs.PLANNED'!K78<='QUANTITIES-BUDGET'!$R$8,"V.O. 4") -> IC | R78: =D78 -> March 2022 | S78: =C78 -> 73 | T78: مارس 2022
C79: 74 | D79: =TEXT(EOMONTH('PROJECT DETAILS'!C$10,C79-1),"mmmm yyyy") -> April 2022 | E79: 21579 | F79: 16681580 | G79: =IF(E79=0,"",'PROGRESS MONITORING'!G$15-F79) -> 5050280.65 | H79: =IF(E79=0,"",F79/'PROGRESS MONITORING'!G$15) -> 0.7676093763 | I79: 0.2323906237 | J79: ='PROGRESS MONITORING'!NR16 -> 0 | K79: 0 | L79: =IF(J79=0,"",'PROGRESS MONITORING'!G$15-K79) ->  | M79: =IF(J79=0,"",ROUND(K79/'PROGRESS MONITORING'!G$15,3)) ->  | O79: N/A | P79: =_xlfn.IFS(C79<='PROJECT DETAILS'!$C$12,"IC",C79<='PROJECT DETAILS'!$E$63,"V.O. 1",C79<'PROJECT DETAILS'!$E$64,"V.O. 2",C79<'PROJECT DETAILS'!$E$65,"V.O. 3",C79<'PROJECT DETAILS'!$E$66,"V.O. 4") -> V.O. 3 | Q79: =_xlfn.IFS('ACTUAL vs.PLANNED'!K79<='QUANTITIES-BUDGET'!$N$8,"IC",'ACTUAL vs.PLANNED'!K79<='QUANTITIES-BUDGET'!$O$8,"V.O. 1",'ACTUAL vs.PLANNED'!K79<='QUANTITIES-BUDGET'!$P$8,"V.O. 2",'ACTUAL vs.PLANNED'!K79<='QUANTITIES-BUDGET'!$Q$8,"V.O. 3",'ACTUAL vs.PLANNED'!K79<='QUANTITIES-BUDGET'!$R$8,"V.O. 4") -> IC | R79: April 2022 | S79: 74 | T79: أبريل 2022
C80: 75 | D80: =TEXT(EOMONTH('PROJECT DETAILS'!C$10,C80-1),"mmmm yyyy") -> May 2022 | E80: 21580 | F80: 16703160 | G80: =IF(E80=0,"",'PROGRESS MONITORING'!G$15-F80) -> 5028700.65 | H80: =IF(E80=0,"",F80/'PROGRESS MONITORING'!G$15) -> 0.7686023884 | I80: 0.2313976116 | J80: ='PROGRESS MONITORING'!NW16 -> 0 | K80: 0 | L80: =IF(J80=0,"",'PROGRESS MONITORING'!G$15-K80) ->  | M80: =IF(J80=0,"",ROUND(K80/'PROGRESS MONITORING'!G$15,3)) ->  | O80: N/A | P80: =_xlfn.IFS(C80<='PROJECT DETAILS'!$C$12,"IC",C80<='PROJECT DETAILS'!$E$63,"V.O. 1",C80<'PROJECT DETAILS'!$E$64,"V.O. 2",C80<'PROJECT DETAILS'!$E$65,"V.O. 3",C80<'PROJECT DETAILS'!$E$66,"V.O. 4") -> V.O. 3 | Q80: =_xlfn.IFS('ACTUAL vs.PLANNED'!K80<='QUANTITIES-BUDGET'!$N$8,"IC",'ACTUAL vs.PLANNED'!K80<='QUANTITIES-BUDGET'!$O$8,"V.O. 1",'ACTUAL vs.PLANNED'!K80<='QUANTITIES-BUDGET'!$P$8,"V.O. 2",'ACTUAL vs.PLANNED'!K80<='QUANTITIES-BUDGET'!$Q$8,"V.O. 3",'ACTUAL vs.PLANNED'!K80<='QUANTITIES-BUDGET'!$R$8,"V.O. 4") -> IC | R80: May 2022 | S80: 75 | T80: مايو 2022
C81: 76 | D81: =TEXT(EOMONTH('PROJECT DETAILS'!C$10,C81-1),"mmmm yyyy") -> June 2022 | E81: 21581 | F81: 16724741 | G81: =IF(E81=0,"",'PROGRESS MONITORING'!G$15-F81) -> 5007119.65 | H81: =IF(E81=0,"",F81/'PROGRESS MONITORING'!G$15) -> 0.7695954465 | I81: 0.2304045535 | J81: ='PROGRESS MONITORING'!OB16 -> 0 | K81: 0 | L81: =IF(J81=0,"",'PROGRESS MONITORING'!G$15-K81) ->  | M81: =IF(J81=0,"",ROUND(K81/'PROGRESS MONITORING'!G$15,3)) ->  | O81: N/A | P81: =_xlfn.IFS(C81<='PROJECT DETAILS'!$C$12,"IC",C81<='PROJECT DETAILS'!$E$63,"V.O. 1",C81<'PROJECT DETAILS'!$E$64,"V.O. 2",C81<'PROJECT DETAILS'!$E$65,"V.O. 3",C81<'PROJECT DETAILS'!$E$66,"V.O. 4") -> V.O. 3 | Q81: =_xlfn.IFS('ACTUAL vs.PLANNED'!K81<='QUANTITIES-BUDGET'!$N$8,"IC",'ACTUAL vs.PLANNED'!K81<='QUANTITIES-BUDGET'!$O$8,"V.O. 1",'ACTUAL vs.PLANNED'!K81<='QUANTITIES-BUDGET'!$P$8,"V.O. 2",'ACTUAL vs.PLANNED'!K81<='QUANTITIES-BUDGET'!$Q$8,"V.O. 3",'ACTUAL vs.PLANNED'!K81<='QUANTITIES-BUDGET'!$R$8,"V.O. 4") -> IC | R81: June 2022 | S81: 76 | T81: يونيو 2022
C82: 77 | D82: =TEXT(EOMONTH('PROJECT DETAILS'!C$10,C82-1),"mmmm yyyy") -> July 2022 | E82: 21582 | F82: 16746323 | G82: =IF(E82=0,"",'PROGRESS MONITORING'!G$15-F82) -> 4985537.65 | H82: =IF(E82=0,"",F82/'PROGRESS MONITORING'!G$15) -> 0.7705885506 | I82: 0.2294114494 | J82: ='PROGRESS MONITORING'!OG16 -> 0 | K82: 0 | L82: =IF(J82=0,"",'PROGRESS MONITORING'!G$15-K82) ->  | M82: =IF(J82=0,"",ROUND(K82/'PROGRESS MONITORING'!G$15,3)) ->  | O82: N/A | P82: =_xlfn.IFS(C82<='PROJECT DETAILS'!$C$12,"IC",C82<='PROJECT DETAILS'!$E$63,"V.O. 1",C82<'PROJECT DETAILS'!$E$64,"V.O. 2",C82<'PROJECT DETAILS'!$E$65,"V.O. 3",C82<'PROJECT DETAILS'!$E$66,"V.O. 4") -> V.O. 3 | Q82: =_xlfn.IFS('ACTUAL vs.PLANNED'!K82<='QUANTITIES-BUDGET'!$N$8,"IC",'ACTUAL vs.PLANNED'!K82<='QUANTITIES-BUDGET'!$O$8,"V.O. 1",'ACTUAL vs.PLANNED'!K82<='QUANTITIES-BUDGET'!$P$8,"V.O. 2",'ACTUAL vs.PLANNED'!K82<='QUANTITIES-BUDGET'!$Q$8,"V.O. 3",'ACTUAL vs.PLANNED'!K82<='QUANTITIES-BUDGET'!$R$8,"V.O. 4") -> IC | R82: July 2022 | S82: 77 | T82: يوليو 2022
C83: 78 | D83: =TEXT(EOMONTH('PROJECT DETAILS'!C$10,C83-1),"mmmm yyyy") -> August 2022 | E83: 21583 | F83: 16767906 | G83: =IF(E83=0,"",'PROGRESS MONITORING'!G$15-F83) -> 4963954.65 | H83: =IF(E83=0,"",F83/'PROGRESS MONITORING'!G$15) -> 0.7715817007 | I83: 0.2284182993 | J83: ='PROGRESS MONITORING'!OL16 -> 0 | K83: 0 | L83: =IF(J83=0,"",'PROGRESS MONITORING'!G$15-K83) ->  | M83: =IF(J83=0,"",ROUND(K83/'PROGRESS MONITORING'!G$15,3)) ->  | O83: N/A | P83: =_xlfn.IFS(C83<='PROJECT DETAILS'!$C$12,"IC",C83<='PROJECT DETAILS'!$E$63,"V.O. 1",C83<'PROJECT DETAILS'!$E$64,"V.O. 2",C83<'PROJECT DETAILS'!$E$65,"V.O. 3",C83<'PROJECT DETAILS'!$E$66,"V.O. 4") -> V.O. 3 | Q83: =_xlfn.IFS('ACTUAL vs.PLANNED'!K83<='QUANTITIES-BUDGET'!$N$8,"IC",'ACTUAL vs.PLANNED'!K83<='QUANTITIES-BUDGET'!$O$8,"V.O. 1",'ACTUAL vs.PLANNED'!K83<='QUANTITIES-BUDGET'!$P$8,"V.O. 2",'ACTUAL vs.PLANNED'!K83<='QUANTITIES-BUDGET'!$Q$8,"V.O. 3",'ACTUAL vs.PLANNED'!K83<='QUANTITIES-BUDGET'!$R$8,"V.O. 4") -> IC | R83: August 2022 | S83: 78 | T83: أغسطس 2022
C84: 79 | D84: =TEXT(EOMONTH('PROJECT DETAILS'!C$10,C84-1),"mmmm yyyy") -> September 2022 | E84: 21584 | F84: 16789490 | G84: =IF(E84=0,"",'PROGRESS MONITORING'!G$15-F84) -> 4942370.65 | H84: =IF(E84=0,"",F84/'PROGRESS MONITORING'!G$15) -> 0.7725748968 | I84: 0.2274251032 | J84: ='PROGRESS MONITORING'!OQ16 -> 0 | K84: 0 | L84: =IF(J84=0,"",'PROGRESS MONITORING'!G$15-K84) ->  | M84: =IF(J84=0,"",ROUND(K84/'PROGRESS MONITORING'!G$15,3)) ->  | O84: N/A | P84: =_xlfn.IFS(C84<='PROJECT DETAILS'!$C$12,"IC",C84<='PROJECT DETAILS'!$E$63,"V.O. 1",C84<'PROJECT DETAILS'!$E$64,"V.O. 2",C84<'PROJECT DETAILS'!$E$65,"V.O. 3",C84<'PROJECT DETAILS'!$E$66,"V.O. 4") -> V.O. 3 | Q84: =_xlfn.IFS('ACTUAL vs.PLANNED'!K84<='QUANTITIES-BUDGET'!$N$8,"IC",'ACTUAL vs.PLANNED'!K84<='QUANTITIES-BUDGET'!$O$8,"V.O. 1",'ACTUAL vs.PLANNED'!K84<='QUANTITIES-BUDGET'!$P$8,"V.O. 2",'ACTUAL vs.PLANNED'!K84<='QUANTITIES-BUDGET'!$Q$8,"V.O. 3",'ACTUAL vs.PLANNED'!K84<='QUANTITIES-BUDGET'!$R$8,"V.O. 4") -> IC | R84: September 2022 | S84: 79 | T84: سبتمبر 2022
C85: 80 | D85: =TEXT(EOMONTH('PROJECT DETAILS'!C$10,C85-1),"mmmm yyyy") -> October 2022 | E85: 21585 | F85: 16811075 | G85: =IF(E85=0,"",'PROGRESS MONITORING'!G$15-F85) -> 4920785.65 | H85: =IF(E85=0,"",F85/'PROGRESS MONITORING'!G$15) -> 0.773568139 | I85: 0.226431861 | J85: ='PROGRESS MONITORING'!OV16 -> 0 | K85: 0 | L85: =IF(J85=0,"",'PROGRESS MONITORING'!G$15-K85) ->  | M85: =IF(J85=0,"",ROUND(K85/'PROGRESS MONITORING'!G$15,3)) ->  | O85: N/A | P85: =_xlfn.IFS(C85<='PROJECT DETAILS'!$C$12,"IC",C85<='PROJECT DETAILS'!$E$63,"V.O. 1",C85<'PROJECT DETAILS'!$E$64,"V.O. 2",C85<'PROJECT DETAILS'!$E$65,"V.O. 3",C85<'PROJECT DETAILS'!$E$66,"V.O. 4") -> V.O. 3 | Q85: =_xlfn.IFS('ACTUAL vs.PLANNED'!K85<='QUANTITIES-BUDGET'!$N$8,"IC",'ACTUAL vs.PLANNED'!K85<='QUANTITIES-BUDGET'!$O$8,"V.O. 1",'ACTUAL vs.PLANNED'!K85<='QUANTITIES-BUDGET'!$P$8,"V.O. 2",'ACTUAL vs.PLANNED'!K85<='QUANTITIES-BUDGET'!$Q$8,"V.O. 3",'ACTUAL vs.PLANNED'!K85<='QUANTITIES-BUDGET'!$R$8,"V.O. 4") -> IC | R85: October 2022 | S85: 80 | T85: أكتوبر 2022
C86: 81 | D86: =TEXT(EOMONTH('PROJECT DETAILS'!C$10,C86-1),"mmmm yyyy") -> November 2022 | E86: 21586 | F86: 16832661 | G86: =IF(E86=0,"",'PROGRESS MONITORING'!G$15-F86) -> 4899199.65 | H86: =IF(E86=0,"",F86/'PROGRESS MONITORING'!G$15) -> 0.7745614272 | I86: 0.2254385728 | J86: ='PROGRESS MONITORING'!PA16 -> 0 | K86: 0 | L86: =IF(J86=0,"",'PROGRESS MONITORING'!G$15-K86) ->  | M86: =IF(J86=0,"",ROUND(K86/'PROGRESS MONITORING'!G$15,3)) ->  | O86: N/A | P86: =_xlfn.IFS(C86<='PROJECT DETAILS'!$C$12,"IC",C86<='PROJECT DETAILS'!$E$63,"V.O. 1",C86<'PROJECT DETAILS'!$E$64,"V.O. 2",C86<'PROJECT DETAILS'!$E$65,"V.O. 3",C86<'PROJECT DETAILS'!$E$66,"V.O. 4") -> V.O. 3 | Q86: =_xlfn.IFS('ACTUAL vs.PLANNED'!K86<='QUANTITIES-BUDGET'!$N$8,"IC",'ACTUAL vs.PLANNED'!K86<='QUANTITIES-BUDGET'!$O$8,"V.O. 1",'ACTUAL vs.PLANNED'!K86<='QUANTITIES-BUDGET'!$P$8,"V.O. 2",'ACTUAL vs.PLANNED'!K86<='QUANTITIES-BUDGET'!$Q$8,"V.O. 3",'ACTUAL vs.PLANNED'!K86<='QUANTITIES-BUDGET'!$R$8,"V.O. 4") -> IC | R86: November 2022 | S86: 81 | T86: نوفمبر 2022
C87: 82 | D87: =TEXT(EOMONTH('PROJECT DETAILS'!C$10,C87-1),"mmmm yyyy") -> December 2022 | E87: 21587 | F87: 16854248 | G87: =IF(E87=0,"",'PROGRESS MONITORING'!G$15-F87) -> 4877612.65 | H87: =IF(E87=0,"",F87/'PROGRESS MONITORING'!G$15) -> 0.7755547613 | I87: 0.2244452387 | J87: ='PROGRESS MONITORING'!PF16 -> 0 | K87: 0 | L87: =IF(J87=0,"",'PROGRESS MONITORING'!G$15-K87) ->  | M87: =IF(J87=0,"",ROUND(K87/'PROGRESS MONITORING'!G$15,3)) ->  | O87: N/A | P87: =_xlfn.IFS(C87<='PROJECT DETAILS'!$C$12,"IC",C87<='PROJECT DETAILS'!$E$63,"V.O. 1",C87<'PROJECT DETAILS'!$E$64,"V.O. 2",C87<'PROJECT DETAILS'!$E$65,"V.O. 3",C87<'PROJECT DETAILS'!$E$66,"V.O. 4") -> V.O. 3 | Q87: =_xlfn.IFS('ACTUAL vs.PLANNED'!K87<='QUANTITIES-BUDGET'!$N$8,"IC",'ACTUAL vs.PLANNED'!K87<='QUANTITIES-BUDGET'!$O$8,"V.O. 1",'ACTUAL vs.PLANNED'!K87<='QUANTITIES-BUDGET'!$P$8,"V.O. 2",'ACTUAL vs.PLANNED'!K87<='QUANTITIES-BUDGET'!$Q$8,"V.O. 3",'ACTUAL vs.PLANNED'!K87<='QUANTITIES-BUDGET'!$R$8,"V.O. 4") -> IC | R87: December 2022 | S87: 82 | T87: ديسمبر 2022
C88: 83 | D88: =TEXT(EOMONTH('PROJECT DETAILS'!C$10,C88-1),"mmmm yyyy") -> January 2023 | E88: 21588 | F88: 16875836 | G88: =IF(E88=0,"",'PROGRESS MONITORING'!G$15-F88) -> 4856024.65 | H88: =IF(E88=0,"",F88/'PROGRESS MONITORING'!G$15) -> 0.7765481415 | I88: 0.2234518585 | J88: ='PROGRESS MONITORING'!PK16 -> 0 | K88: 0 | L88: =IF(J88=0,"",'PROGRESS MONITORING'!G$15-K88) ->  | M88: =IF(J88=0,"",ROUND(K88/'PROGRESS MONITORING'!G$15,3)) ->  | O88: N/A | P88: =_xlfn.IFS(C88<='PROJECT DETAILS'!$C$12,"IC",C88<='PROJECT DETAILS'!$E$63,"V.O. 1",C88<'PROJECT DETAILS'!$E$64,"V.O. 2",C88<'PROJECT DETAILS'!$E$65,"V.O. 3",C88<'PROJECT DETAILS'!$E$66,"V.O. 4") -> V.O. 3 | Q88: =_xlfn.IFS('ACTUAL vs.PLANNED'!K88<='QUANTITIES-BUDGET'!$N$8,"IC",'ACTUAL vs.PLANNED'!K88<='QUANTITIES-BUDGET'!$O$8,"V.O. 1",'ACTUAL vs.PLANNED'!K88<='QUANTITIES-BUDGET'!$P$8,"V.O. 2",'ACTUAL vs.PLANNED'!K88<='QUANTITIES-BUDGET'!$Q$8,"V.O. 3",'ACTUAL vs.PLANNED'!K88<='QUANTITIES-BUDGET'!$R$8,"V.O. 4") -> IC | R88: January 2023 | S88: 83 | T88: يناير 2023
C89: 84 | D89: =TEXT(EOMONTH('PROJECT DETAILS'!C$10,C89-1),"mmmm yyyy") -> February 2023 | E89: 21589 | F89: 16897425 | G89: =IF(E89=0,"",'PROGRESS MONITORING'!G$15-F89) -> 4834435.65 | H89: =IF(E89=0,"",F89/'PROGRESS MONITORING'!G$15) -> 0.7775415678 | I89: 0.2224584322 | J89: ='PROGRESS MONITORING'!PP16 -> 0 | K89: 0 | L89: =IF(J89=0,"",'PROGRESS MONITORING'!G$15-K89) ->  | M89: =IF(J89=0,"",ROUND(K89/'PROGRESS MONITORING'!G$15,3)) ->  | O89: N/A | P89: =_xlfn.IFS(C89<='PROJECT DETAILS'!$C$12,"IC",C89<='PROJECT DETAILS'!$E$63,"V.O. 1",C89<'PROJECT DETAILS'!$E$64,"V.O. 2",C89<'PROJECT DETAILS'!$E$65,"V.O. 3",C89<'PROJECT DETAILS'!$E$66,"V.O. 4") -> V.O. 3 | Q89: =_xlfn.IFS('ACTUAL vs.PLANNED'!K89<='QUANTITIES-BUDGET'!$N$8,"IC",'ACTUAL vs.PLANNED'!K89<='QUANTITIES-BUDGET'!$O$8,"V.O. 1",'ACTUAL vs.PLANNED'!K89<='QUANTITIES-BUDGET'!$P$8,"V.O. 2",'ACTUAL vs.PLANNED'!K89<='QUANTITIES-BUDGET'!$Q$8,"V.O. 3",'ACTUAL vs.PLANNED'!K89<='QUANTITIES-BUDGET'!$R$8,"V.O. 4") -> IC | R89: February 2023 | S89: 84 | T89: فبراير 2023
A91: Summary
A92: A. Progres for all years (progress as per total contract value) | I92: B. Progress per year (progress as per year's contract value distribution)
C93: PLANNED | E93: ACTUAL | G93: SPI (=EV/PV) | J93: PLANNED | M93: ACTUAL | O93: SPI (=EV/PV)
C94: Value planned cummulative (all years) | D94: Planned Progress = PLANNED VALUE -PV [%] | E94: Value executed cummulative | F94: Actual Progress =EARNED VALUE - EV [%] | J94: Value planned (for current year) | K94: Value allocated for current year (savings added, overspending deducted) | L94: Planned Progress = PV [%] | M94: Value executed (current year) | N94: Actual Progress = EV for current year[%]
C95: القيمة المخطط لها (جميع السنوات) | D95: التقدم المخطط = القيمة المخطط لها -PV [٪] | E95: تم تنفيذ القيمة التراكمية | F95: التقدم الفعلي = القيمة المكتسبة - إيف [٪] | G95: =G93 -> SPI (=EV/PV) | J95: القيمة المخطط لها (للسنة الحالية) | K95: القيمة المخصصة للسنة الحالية (إضافة مدخرات، إنفاق زائد) | L95: التقدم المخطط له = بف [٪] | M95: القيمة المنفذة (السنة الحالية) | N95: التقدم الفعلي = إيف للسنة الحالية [٪] | O95: =O93 -> SPI (=EV/PV)
A96: Year 1 | B96: عام 1 | C96: =IF(D96=0,"",SUM(E6:E17)) -> 2948000 | D96: =MAX(H6:H17) -> 0.1356533639 | E96: =IF(F96=0,0,SUM(J6:J17)) -> 3193130.607 | F96: =MAX(M6:M17) -> 0.147 | G96: =IF(C96=0,"N/A",F96/D96) -> 1.08364434 | I96: Year 1 | J96: =IF(C96=0,0,C96) -> 2948000 | K96: ='PROGRESS MONITORING'!S13 -> 1823356.44 | L96: =IF(K96=0,0,MAX(H6:H17)) -> 0.1356533639 | M96: =SUM(J6:J17) -> 3193130.607 | N96: =MAX(M6:M17) -> 0.147 | O96: =IF(J96=0,"N/A",N96/L96) -> 1.08364434
A97: Year 2 | B97: عام 2 | C97: =IF(D97=0,0,SUM(E6:E29)) -> 5948000 | D97: =MAX(H18:H29) -> 0.2736995279 | E97: =IF(F97=0,0,SUM(J6:J29)) -> 6851577.774 | F97: =MAX(M18:M29) -> 0.315 | G97: =IF(C97=0,"N/A",F97/D97) -> 1.150897126 | I97: Year 2 | J97: =IF(C97=0,0,C97-C96) -> 3000000 | K97: ='PROGRESS MONITORING'!CA13 -> 2324102.41 | L97: =IF(K97=0,0,MAX(H18:H29)) -> 0.2736995279 | M97: =SUM(J18:J29) -> 3658447.167 | N97: =MAX(M18:M29)-N96 -> 0.168 | O97: =IF(J97=0,"N/A",N97/L97) -> 0.6138118005
A98: Year 3 | B98: عام 3 | C98: =IF(D98=0,0,SUM(E6:E41)) -> 11798000 | D98: =MAX(H30:H41) -> 0.5428895477 | E98: =IF(F98=0,0,SUM(J6:J41)) -> 10967884.68 | F98: =MAX(M30:M41) -> 0.505 | G98: 0.9302076308 | I98: Year 3 | J98: =IF(C98=0,0,C98-C97) -> 5850000 | K98: ='PROGRESS MONITORING'!EI13 -> 4158087.673 | L98: =IF(K98=0,0,MAX('ACTUAL vs.PLANNED'!H30:H41)) -> 0.5428895477 | M98: =SUM(J30:J41) -> 4116306.905 | N98: =MAX(M30:M41) -> 0.505 | O98: 0.9302076308
A99: Year 4 | B99: عام 4 | C99: =IF(D99=0,0,SUM(E6:E53)) -> 13358000 | D99: =MAX(H42:H53) -> 0.614673553 | E99: =IF(F99=0,0,SUM(J6:J53)) -> 13054585.54 | F99: =MAX(M42:M53) -> 0.601 | G99: 0.9777547725 | I99: Year 4 | J99: =IF(C99=0,0,C99-C98) -> 1560000 | K99: ='PROGRESS MONITORING'!GQ13 -> 5307848.802 | L99: =IF(K99=0,0,MAX(H42:H53)) -> 0.614673553 | M99: =SUM(J42:J53) -> 2086700.86 | N99: =MAX(M42:M53) -> 0.601 | O99: 0.9777547725
A100: Year 5 | B100: عام 5 | C100: =IF(D100=0,0,SUM(E6:E65)) -> 16379565 | D100: =MAX(H54:H65) -> 0.7537120389 | E100: =IF(F100=0,0,SUM(J6:J65)) -> 14270838.58 | F100: =MAX(M54:M65) -> 0.657 | G100: 0.8716856917 | I100: Year 5 | J100: =IF(C100=0,0,C100-C99) -> 3021565 | K100: ='PROGRESS MONITORING'!IY13 -> 6968264.278 | L100: =IF(K100=0,0,MAX(H54:H65)) -> 0.7537120389 | M100: =SUM(J54:J65) -> 1216253.038 | N100: =MAX(M54:M65) -> 0.657 | O100: 0.8716856917
A101: Year 6 | B101: عام 6 | C101: =F77 -> 16638423 | D101: =MAX(H66:H77) -> 0.7656234902 | E101: =K77 -> 0 | F101: =MAX(M66:M77) -> 0 | G101: 0 | I101: Year 6 | J101: =IF(C101=0,0,C101-C100) -> 258858 | K101: ='PROGRESS MONITORING'!LG13 -> 3880614.182 | L101: =IF(K101=0,0,MAX(H66:H77)) -> 0.7656234902 | M101: =SUM(J66:J77) -> 0 | N101: =MAX(M66:M77) -> 0 | O101: 0
A102: Year 7 | B102: عام 7 | C102: =F89 -> 16897425 | D102: =MAX(H78:H89) -> 0.7775415678 | E102: =K89 -> 0 | F102: =MAX(M78:M89) -> 0 | G102: 0 | I102: Year 7 | J102: 259002 | K102: ='PROGRESS MONITORING'!NO13 -> 2134337.8 | L102: =IF(K102=0,0,MAX(H78:H89)) -> 0.7775415678 | M102: =SUM(J78:J89) -> 0 | N102: =MAX(M78:M89) -> 0 | O102: 0
C103: =MAX(C96:C102) -> 16897425 | D103: =MAX(D96:D100) -> 0.7537120389 | E103: =MAX(E96:E102) -> 14270838.58 | F103: 0.657 | I103: TOTAL | J103: =SUM(J96:J102) -> 16897425 | K103: =SUM(K96:K102) -> 26596611.59

Sheet EQUIPMENT
A1: Equipment Used
E3: Equipent Type used per month
E4: 1 | F4: 2 | G4: 3 | H4: 4 | I4: 5 | J4: 6 | K4: 7 | L4: 8 | M4: 9 | N4: 10 | O4: 11 | P4: 12
E5: Motor Grader | F5: Wheel Loader | G5: Vibrating Roller | H5: Tipper | I5: Water Tank | J5: Bulldozer Tracked | K5: Excavator with Hammer
E6: in arabic:
D7: Total Number | E7: =E5 -> Motor Grader | F7: =F5 -> Wheel Loader | G7: Vibrating Roller | H7: Tipper | I7: Water Tank | J7: Bulldozer Tracked | K7: Excavator with Hammer
A9: Year 1 | B9: 1 | C9: =TEXT(EOMONTH('PROJECT DETAILS'!C$10,B9-1),"mmmm yyyy") -> March 2016 | D9: =SUM(E9:P9) -> 5 | E9: 1 | F9: 4
B10: 2 | C10: =TEXT(EOMONTH('PROJECT DETAILS'!C$10,B10-1),"mmmm yyyy") -> April 2016 | D10: =SUM(E10:P10) -> 8 | E10: 1 | F10: 2 | G10: 5
B11: 3 | C11: =TEXT(EOMONTH('PROJECT DETAILS'!C$10,B11-1),"mmmm yyyy") -> May 2016 | D11: 9 | E11: 2 | F11: 2 | G11: 4 | H11: 1
B12: 4 | C12: =TEXT(EOMONTH('PROJECT DETAILS'!C$10,B12-1),"mmmm yyyy") -> June 2016 | D12: 7 | E12: 2 | F12: 2 | G12: 2 | H12: 1
B13: 5 | C13: =TEXT(EOMONTH('PROJECT DETAILS'!C$10,B13-1),"mmmm yyyy") -> July 2016 | D13: 4 | E13: 1 | G13: 2 | H13: 1
B14: 6 | C14: =TEXT(EOMONTH('PROJECT DETAILS'!C$10,B14-1),"mmmm yyyy") -> August 2016 | D14: 6 | E14: 3 | G14: 2 | H14: 1
B15: 7 | C15: =TEXT(EOMONTH('PROJECT DETAILS'!C$10,B15-1),"mmmm yyyy") -> September 2016 | D15: 4 | E15: 3 | H15: 1
B16: 8 | C16: =TEXT(EOMONTH('PROJECT DETAILS'!C$10,B16-1),"mmmm yyyy") -> October 2016 | D16: 4 | E16: 3 | H16: 1
B17: 9 | C17: =TEXT(EOMONTH('PROJECT DETAILS'!C$10,B17-1),"mmmm yyyy") -> November 2016 | D17: 21 | F17: 5 | G17: 5 | H17: 4 | I17: 4 | J17: 3
B18: 10 | C18: =TEXT(EOMONTH('PROJECT DETAILS'!C$10,B18-1),"mmmm yyyy") -> December 2016 | D18: 3 | E18: 1 | F18: 2
B19: 11 | C19: =TEXT(EOMONTH('PROJECT DETAILS'!C$10,B19-1),"mmmm yyyy") -> January 2017 | D19: 5 | E19: 2 | F19: 3
B20: 12 | C20: =TEXT(EOMONTH('PROJECT DETAILS'!C$10,B20-1),"mmmm yyyy") -> February 2017 | D20: 9 | F20: 4 | G20: 5
A21: Year 2 | B21: 13 | C21: =TEXT(EOMONTH('PROJECT DETAILS'!C$10,B21-1),"mmmm yyyy") -> March 2017 | D21: 5 | E21: 1 | F21: 4
B22: 14 | C22: =TEXT(EOMONTH('PROJECT DETAILS'!C$10,B22-1),"mmmm yyyy") -> April 2017 | D22: 8 | E22: 1 | F22: 2 | G22: 5
B23: 15 | C23: =TEXT(EOMONTH('PROJECT DETAILS'!C$10,B23-1),"mmmm yyyy") -> May 2017 | D23: 9 | E23: 2 | F23: 2 | G23: 4 | H23: 1
B24: 16 | C24: =TEXT(EOMONTH('PROJECT DETAILS'!C$10,B24-1),"mmmm yyyy") -> June 2017 | D24: 7 | E24: 2 | F24: 2 | G24: 2 | H24: 1
B25: 17 | C25: =TEXT(EOMONTH('PROJECT DETAILS'!C$10,B25-1),"mmmm yyyy") -> July 2017 | D25: 4 | E25: 1 | G25: 2 | H25: 1
B26: 18 | C26: =TEXT(EOMONTH('PROJECT DETAILS'!C$10,B26-1),"mmmm yyyy") -> August 2017 | D26: 6 | E26: 3 | G26: 2 | H26: 1
B27: 19 | C27: =TEXT(EOMONTH('PROJECT DETAILS'!C$10,B27-1),"mmmm yyyy") -> September 2017 | D27: 4 | E27: 3 | H27: 1
B28: 20 | C28: =TEXT(EOMONTH('PROJECT DETAILS'!C$10,B28-1),"mmmm yyyy") -> October 2017 | D28: 4 | E28: 3 | H28: 1
B29: 21 | C29: =TEXT(EOMONTH('PROJECT DETAILS'!C$10,B29-1),"mmmm yyyy") -> November 2017 | D29: 21 | F29: 5 | G29: 5 | H29: 4 | I29: 4 | J29: 3
B30: 22 | C30: =TEXT(EOMONTH('PROJECT DETAILS'!C$10,B30-1),"mmmm yyyy") -> December 2017 | D30: 3 | E30: 1 | F30: 2
B31: 23 | C31: =TEXT(EOMONTH('PROJECT DETAILS'!C$10,B31-1),"mmmm yyyy") -> January 2018 | D31: 5 | E31: 2 | F31: 3
B32: 24 | C32: =TEXT(EOMONTH('PROJECT DETAILS'!C$10,B32-1),"mmmm yyyy") -> February 2018 | D32: 9 | F32: 4 | G32: 5
A33: Year 3 | B33: 25 | C33: =TEXT(EOMONTH('PROJECT DETAILS'!C$10,B33-1),"mmmm yyyy") -> March 2018 | D33: 5 | E33: 1 | F33: 4
B34: 26 | C34: =TEXT(EOMONTH('PROJECT DETAILS'!C$10,B34-1),"mmmm yyyy") -> April 2018 | D34: 8 | E34: 1 | F34: 2 | G34: 5
B35: 27 | C35: =TEXT(EOMONTH('PROJECT DETAILS'!C$10,B35-1),"mmmm yyyy") -> May 2018 | D35: 9 | E35: 2 | F35: 2 | G35: 4 | H35: 1
B36: 28 | C36: =TEXT(EOMONTH('PROJECT DETAILS'!C$10,B36-1),"mmmm yyyy") -> June 2018 | D36: 7 | E36: 2 | F36: 2 | G36: 2 | H36: 1
B37: 29 | C37: =TEXT(EOMONTH('PROJECT DETAILS'!C$10,B37-1),"mmmm yyyy") -> July 2018 | D37: 4 | E37: 1 | G37: 2 | H37: 1
B38: 30 | C38: =TEXT(EOMONTH('PROJECT DETAILS'!C$10,B38-1),"mmmm yyyy") -> August 2018 | D38: 6 | E38: 3 | G38: 2 | H38: 1
B39: 31 | C39: =TEXT(EOMONTH('PROJECT DETAILS'!C$10,B39-1),"mmmm yyyy") -> September 2018 | D39: 4 | E39: 3 | H39: 1
B40: 32 | C40: =TEXT(EOMONTH('PROJECT DETAILS'!C$10,B40-1),"mmmm yyyy") -> October 2018 | D40: 4 | E40: 3 | H40: 1
B41: 33 | C41: =TEXT(EOMONTH('PROJECT DETAILS'!C$10,B41-1),"mmmm yyyy") -> November 2018 | D41: 21 | F41: 5 | G41: 5 | H41: 4 | I41: 4 | J41: 3
B42: 34 | C42: =TEXT(EOMONTH('PROJECT DETAILS'!C$10,B42-1),"mmmm yyyy") -> December 2018 | D42: 3 | E42: 1 | F42: 2
B43: 35 | C43: =TEXT(EOMONTH('PROJECT DETAILS'!C$10,B43-1),"mmmm yyyy") -> January 2019 | D43: 5 | E43: 2 | F43: 3
B44: 36 | C44: =TEXT(EOMONTH('PROJECT DETAILS'!C$10,B44-1),"mmmm yyyy") -> February 2019 | D44: 9 | F44: 4 | G44: 5
A45: Year 4 | B45: 37 | C45: =TEXT(EOMONTH('PROJECT DETAILS'!C$10,B45-1),"mmmm yyyy") -> March 2019 | D45: 5 | E45: 1 | F45: 4
B46: 38 | C46: =TEXT(EOMONTH('PROJECT DETAILS'!C$10,B46-1),"mmmm yyyy") -> April 2019 | D46: 8 | E46: 1 | F46: 2 | G46: 5
B47: 39 | C47: =TEXT(EOMONTH('PROJECT DETAILS'!C$10,B47-1),"mmmm yyyy") -> May 2019 | D47: 9 | E47: 2 | F47: 2 | G47: 4 | H47: 1
B48: 40 | C48: =TEXT(EOMONTH('PROJECT DETAILS'!C$10,B48-1),"mmmm yyyy") -> June 2019 | D48: 7 | E48: 2 | F48: 2 | G48: 2 | H48: 1
B49: 41 | C49: =TEXT(EOMONTH('PROJECT DETAILS'!C$10,B49-1),"mmmm yyyy") -> July 2019 | D49: 4 | E49: 1 | G49: 2 | H49: 1
B50: 42 | C50: =TEXT(EOMONTH('PROJECT DETAILS'!C$10,B50-1),"mmmm yyyy") -> August 2019 | D50: 6 | E50: 3 | G50: 2 | H50: 1
B51: 43 | C51: =TEXT(EOMONTH('PROJECT DETAILS'!C$10,B51-1),"mmmm yyyy") -> September 2019 | D51: 4 | E51: 3 | H51: 1
B52: 44 | C52: =TEXT(EOMONTH('PROJECT DETAILS'!C$10,B52-1),"mmmm yyyy") -> October 2019 | D52: 4 | E52: 3 | H52: 1
B53: 45 | C53: =TEXT(EOMONTH('PROJECT DETAILS'!C$10,B53-1),"mmmm yyyy") -> November 2019 | D53: 21 | F53: 5 | G53: 5 | H53: 4 | I53: 4 | J53: 3
B54: 46 | C54: =TEXT(EOMONTH('PROJECT DETAILS'!C$10,B54-1),"mmmm yyyy") -> December 2019 | D54: 3 | E54: 1 | F54: 2
B55: 47 | C55: =TEXT(EOMONTH('PROJECT DETAILS'!C$10,B55-1),"mmmm yyyy") -> January 2020 | D55: 5 | E55: 2 | F55: 3
B56: 48 | C56: =TEXT(EOMONTH('PROJECT DETAILS'!C$10,B56-1),"mmmm yyyy") -> February 2020 | D56: 9 | F56: 4 | G56: 5
A57: Year 5 | B57: 49 | C57: =TEXT(EOMONTH('PROJECT DETAILS'!C$10,B57-1),"mmmm yyyy") -> March 2020 | D57: 5 | E57: 1 | F57: 4
B58: 50 | C58: =TEXT(EOMONTH('PROJECT DETAILS'!C$10,B58-1),"mmmm yyyy") -> April 2020 | D58: 8 | E58: 1 | F58: 2 | G58: 5
B59: 51 | C59: =TEXT(EOMONTH('PROJECT DETAILS'!C$10,B59-1),"mmmm yyyy") -> May 2020 | D59: 9 | E59: 2 | F59: 2 | G59: 4 | H59: 1
B60: 52 | C60: =TEXT(EOMONTH('PROJECT DETAILS'!C$10,B60-1),"mmmm yyyy") -> June 2020 | D60: 14 | E60: 2 | F60: 3 | G60: 4 | H60: 5
B61: 53 | C61: =TEXT(EOMONTH('PROJECT DETAILS'!C$10,B61-1),"mmmm yyyy") -> July 2020 | D61: 4 | E61: 1 | G61: 2 | H61: 1
B62: 54 | C62: =TEXT(EOMONTH('PROJECT DETAILS'!C$10,B62-1),"mmmm yyyy") -> August 2020 | D62: 6 | E62: 3 | G62: 2 | H62: 1
B63: 55 | C63: =TEXT(EOMONTH('PROJECT DETAILS'!C$10,B63-1),"mmmm yyyy") -> September 2020 | D63: 4 | E63: 3 | H63: 1
B64: 56 | C64: =TEXT(EOMONTH('PROJECT DETAILS'!C$10,B64-1),"mmmm yyyy") -> October 2020 | D64: 4 | E64: 3 | H64: 1
B65: 57 | C65: =TEXT(EOMONTH('PROJECT DETAILS'!C$10,B65-1),"mmmm yyyy") -> November 2020 | D65: 21 | F65: 5 | G65: 5 | H65: 4 | I65: 4 | J65: 3
B66: 58 | C66: =TEXT(EOMONTH('PROJECT DETAILS'!C$10,B66-1),"mmmm yyyy") -> December 2020 | D66: 3 | E66: 1 | F66: 2
B67: 59 | C67: =TEXT(EOMONTH('PROJECT DETAILS'!C$10,B67-1),"mmmm yyyy") -> January 2021 | D67: 5 | E67: 2 | F67: 3
B68: 60 | C68: =TEXT(EOMONTH('PROJECT DETAILS'!C$10,B68-1),"mmmm yyyy") -> February 2021 | D68: 26 | E68: 7 | F68: 4 | G68: 5 | H68: 1 | I68: 2 | J68: 3 | K68: 4
A69: Year 6 | B69: 61 | C69: =TEXT(EOMONTH('PROJECT DETAILS'!C$10,B69-1),"mmmm yyyy") -> March 2021 | D69: =SUM(E69:P69) -> 0
B70: 62 | C70: =TEXT(EOMONTH('PROJECT DETAILS'!C$10,B70-1),"mmmm yyyy") -> April 2021 | D70: 0
B71: 63 | C71: =TEXT(EOMONTH('PROJECT DETAILS'!C$10,B71-1),"mmmm yyyy") -> May 2021 | D71: 3 | E71: 3
B72: 64 | C72: =TEXT(EOMONTH('PROJECT DETAILS'!C$10,B72-1),"mmmm yyyy") -> June 2021 | D72: 4 | E72: 4
B73: 65 | C73: =TEXT(EOMONTH('PROJECT DETAILS'!C$10,B73-1),"mmmm yyyy") -> July 2021 | D73: 5 | E73: 5
B74: 66 | C74: =TEXT(EOMONTH('PROJECT DETAILS'!C$10,B74-1),"mmmm yyyy") -> August 2021 | D74: 0
B75: 67 | C75: =TEXT(EOMONTH('PROJECT DETAILS'!C$10,B75-1),"mmmm yyyy") -> September 2021 | D75: 0
B76: 68 | C76: =TEXT(EOMONTH('PROJECT DETAILS'!C$10,B76-1),"mmmm yyyy") -> October 2021 | D76: 0
B77: 69 | C77: =TEXT(EOMONTH('PROJECT DETAILS'!C$10,B77-1),"mmmm yyyy") -> November 2021 | D77: 0
B78: 70 | C78: =TEXT(EOMONTH('PROJECT DETAILS'!C$10,B78-1),"mmmm yyyy") -> December 2021 | D78: 0
B79: 71 | C79: =TEXT(EOMONTH('PROJECT DETAILS'!C$10,B79-1),"mmmm yyyy") -> January 2022 | D79: 0
B80: 72 | C80: =TEXT(EOMONTH('PROJECT DETAILS'!C$10,B80-1),"mmmm yyyy") -> February 2022 | D80: 0
A81: Year 7 | B81: 73 | C81: =TEXT(EOMONTH('PROJECT DETAILS'!C$10,B81-1),"mmmm yyyy") -> March 2022 | D81: 0
B82: 74 | C82: =TEXT(EOMONTH('PROJECT DETAILS'!C$10,B82-1),"mmmm yyyy") -> April 2022 | D82: 4 | E82: 4
B83: 75 | C83: =TEXT(EOMONTH('PROJECT DETAILS'!C$10,B83-1),"mmmm yyyy") -> May 2022 | D83: 5 | E83: 5
B84: 76 | C84: =TEXT(EOMONTH('PROJECT DETAILS'!C$10,B84-1),"mmmm yyyy") -> June 2022 | D84: 6 | E84: 6
B85: 77 | C85: =TEXT(EOMONTH('PROJECT DETAILS'!C$10,B85-1),"mmmm yyyy") -> July 2022 | D85: 0
B86: 78 | C86: =TEXT(EOMONTH('PROJECT DETAILS'!C$10,B86-1),"mmmm yyyy") -> August 2022 | D86: 0
B87: 79 | C87: =TEXT(EOMONTH('PROJECT DETAILS'!C$10,B87-1),"mmmm yyyy") -> September 2022 | D87: 0
B88: 80 | C88: =TEXT(EOMONTH('PROJECT DETAILS'!C$10,B88-1),"mmmm yyyy") -> October 2022 | D88: 0
B89: 81 | C89: =TEXT(EOMONTH('PROJECT DETAILS'!C$10,B89-1),"mmmm yyyy") -> November 2022 | D89: 0
B90: 82 | C90: =TEXT(EOMONTH('PROJECT DETAILS'!C$10,B90-1),"mmmm yyyy") -> December 2022 | D90: 0
B91: 83 | C91: =TEXT(EOMONTH('PROJECT DETAILS'!C$10,B91-1),"mmmm yyyy") -> January 2023 | D91: 0
B92: 84 | C92: =TEXT(EOMONTH('PROJECT DETAILS'!C$10,B92-1),"mmmm yyyy") -> February 2023 | D92: 0

Sheet PROGRESS MONITORING
A1: Project: | B1: ='PROJECT DETAILS'!D3 -> Maintenance of Road between X and Y
A3: Progress Monitoring
O4: Year 1 | BW4: Year 2 | EE4: Year 3 | GM4: Year 4 | IU4: Year 5 | LC4: Year 6 | NK4: Year 7
O5: MONTH | Q5: 1 | T5: MONTH | V5: 2 | Y5: MONTH | AA5: 3 | AD5: MONTH | AF5: 4 | AI5: MONTH | AK5: 5 | AN5: MONTH | AP5: 6 | AS5: MONTH | AU5: 7 | AX5: MONTH | AZ5: 8 | BC5: MONTH | BE5: 9 | BH5: MONTH | BJ5: 10 | BM5: MONTH | BO5: 11 | BR5: MONTH | BT5: 12 | BW5: MONTH | BY5: 13 | CB5: MONTH | CD5: 14 | CG5: MONTH | CI5: 15 | CL5: MONTH | CN5: 16 | CQ5: MONTH | CS5: 17 | CV5: MONTH | CX5: 18 | DA5: MONTH | DC5: 19 | DF5: MONTH | DH5: 20 | DK5: MONTH | DM5: 21 | DP5: MONTH | DR5: 22 | DU5: MONTH | DW5: 23 | DZ5: MONTH | EB5: 24 | EE5: MONTH | EG5: 25 | EJ5: MONTH | EL5: 26 | EO5: MONTH | EQ5: 27 | ET5: MONTH | EV5: 28 | EY5: MONTH | FA5: 29 | FD5: MONTH | FF5: 30 | FI5: MONTH | FK5: 31 | FN5: MONTH | FP5: 32 | FS5: MONTH | FU5: 33 | FX5: MONTH | FZ5: 34 | GC5: MONTH | GE5: 35 | GH5: MONTH | GJ5: 36 | GM5: MONTH | GO5: 37 | GR5: MONTH | GT5: 38 | GW5: MONTH | GY5: 39 | HB5: MONTH | HD5: 40 | HG5: MONTH | HI5: 41 | HL5: MONTH | HN5: 42 | HQ5: MONTH | HS5: 43 | HV5: MONTH | HX5: 44 | IA5: MONTH | IC5: 45 | IF5: MONTH | IH5: 46 | IK5: MONTH | IM5: 47 | IP5: MONTH | IR5: 48 | IU5: MONTH | IW5: 49 | IZ5: MONTH | JB5: 50 | JE5: MONTH | JG5: 51 | JJ5: MONTH | JL5: 52 | JO5: MONTH | JQ5: 53 | JT5: MONTH | JV5: 54 | JY5: MONTH | KA5: 55 | KD5: MONTH | KF5: 56 | KI5: MONTH | KK5: 57 | KN5: MONTH | KP5: 58 | KS5: MONTH | KU5: 59 | KX5: MONTH | KZ5: 60 | LC5: MONTH | LE5: 61 | LH5: MONTH | LJ5: =LE5+1 -> 62 | LM5: MONTH | LO5: =LJ5+1 -> 63 | LR5: MONTH | LT5: =LO5+1 -> 64 | LW5: MONTH | LY5: =LT5+1 -> 65 | MB5: MONTH | MD5: =LY5+1 -> 66 | MG5: MONTH | MI5: =MD5+1 -> 67 | ML5: MONTH | MN5: =MI5+1 -> 68 | MQ5: MONTH | MS5: =MN5+1 -> 69 | MV5: MONTH | MX5: =MS5+1 -> 70 | NA5: MONTH | NC5: =MX5+1 -> 71 | NF5: MONTH | NH5: =NC5+1 -> 72 | NK5: MONTH | NM5: =NH5+1 -> 73 | NP5: MONTH | NR5: =NM5+1 -> 74 | NU5: MONTH | NW5: =NR5+1 -> 75 | NZ5: MONTH | OB5: =NW5+1 -> 76 | OE5: MONTH | OG5: =OB5+1 -> 77 | OJ5: MONTH | OL5: =OG5+1 -> 78 | OO5: MONTH | OQ5: =OL5+1 -> 79 | OT5: MONTH | OV5: =OQ5+1 -> 80 | OY5: MONTH | PA5: =OV5+1 -> 81 | PD5: MONTH | PF5: =PA5+1 -> 82 | PI5: MONTH | PK5: =PF5+1 -> 83 | PN5: MONTH | PP5: =PK5+1 -> 84
O6: =EOMONTH('PROJECT DETAILS'!$C10,Q5-1) -> 2016-03-31 | T6: =EOMONTH('PROJECT DETAILS'!$C10,V5-1) -> 2016-04-30 | Y6: =EOMONTH('PROJECT DETAILS'!$C10,AA5-1) -> 2016-05-31 | AD6: =EOMONTH('PROJECT DETAILS'!$C10,AF5-1) -> 2016-06-30 | AI6: =EOMONTH('PROJECT DETAILS'!$C10,AK5-1) -> 2016-07-31 | AN6: =EOMONTH('PROJECT DETAILS'!$C10,AP5-1) -> 2016-08-31 | AS6: =EOMONTH('PROJECT DETAILS'!$C10,AU5-1) -> 2016-09-30 | AX6: =EOMONTH('PROJECT DETAILS'!$C10,AZ5-1) -> 2016-10-31 | BC6: =EOMONTH('PROJECT DETAILS'!$C10,BE5-1) -> 2016-11-30 | BH6: =EOMONTH('PROJECT DETAILS'!$C10,BJ5-1) -> 2016-12-31 | BM6: =EOMONTH('PROJECT DETAILS'!$C10,BO5-1) -> 2017-01-31 | BR6: =EOMONTH('PROJECT DETAILS'!$C10,BT5-1) -> 2017-02-28 | BW6: =EOMONTH('PROJECT DETAILS'!$C10,BY5-1) -> 2017-03-31 | CB6: =EOMONTH('PROJECT DETAILS'!$C10,CD5-1) -> 2017-04-30 | CG6: =EOMONTH('PROJECT DETAILS'!$C10,CI5-1) -> 2017-05-31 | CL6: =EOMONTH('PROJECT DETAILS'!$C10,CN5-1) -> 2017-06-30 | CQ6: =EOMONTH('PROJECT DETAILS'!$C10,CS5-1) -> 2017-07-31 | CV6: =EOMONTH('PROJECT DETAILS'!$C10,CX5-1) -> 2017-08-31 | DA6: =EOMONTH('PROJECT DETAILS'!$C10,DC5-1) -> 2017-09-30 | DF6: =EOMONTH('PROJECT DETAILS'!$C10,DH5-1) -> 2017-10-31 | DK6: =EOMONTH('PROJECT DETAILS'!$C10,DM5-1) -> 2017-11-30 | DP6: =EOMONTH('PROJECT DETAILS'!$C10,DR5-1) -> 2017-12-31 | DU6: =EOMONTH('PROJECT DETAILS'!$C10,DW5-1) -> 2018-01-31 | DZ6: =EOMONTH('PROJECT DETAILS'!$C10,EB5-1) -> 2018-02-28 | EE6: =EOMONTH('PROJECT DETAILS'!$C10,EG5-1) -> 2018-03-31 | EJ6: =EOMONTH('PROJECT DETAILS'!$C10,EL5-1) -> 2018-04-30 | EO6: =EOMONTH('PROJECT DETAILS'!$C10,EQ5-1) -> 2018-05-31 | ET6: =EOMONTH('PROJECT DETAILS'!$C10,EV5-1) -> 2018-06-30 | EY6: =EOMONTH('PROJECT DETAILS'!$C10,FA5-1) -> 2018-07-31 | FD6: =EOMONTH('PROJECT DETAILS'!$C10,FF5-1) -> 2018-08-31 | FI6: =EOMONTH('PROJECT DETAILS'!$C10,FK5-1) -> 2018-09-30 | FN6: =EOMONTH('PROJECT DETAILS'!$C10,FP5-1) -> 2018-10-31 | FS6: =EOMONTH('PROJECT DETAILS'!$C10,FU5-1) -> 2018-11-30 | FX6: =EOMONTH('PROJECT DETAILS'!$C10,FZ5-1) -> 2018-12-31 | GC6: =EOMONTH('PROJECT DETAILS'!$C10,GE5-1) -> 2019-01-31 | GH6: =EOMONTH('PROJECT DETAILS'!$C10,GJ5-1) -> 2019-02-28 | GM6: =EOMONTH('PROJECT DETAILS'!$C10,GO5-1) -> 2019-03-31 | GR6: =EOMONTH('PROJECT DETAILS'!$C10,GT5-1) -> 2019-04-30 | GW6: =EOMONTH('PROJECT DETAILS'!$C10,GY5-1) -> 2019-05-31 | HB6: =EOMONTH('PROJECT DETAILS'!$C10,HD5-1) -> 2019-06-30 | HG6: =EOMONTH('PROJECT DETAILS'!$C10,HI5-1) -> 2019-07-31 | HL6: =EOMONTH('PROJECT DETAILS'!$C10,HN5-1) -> 2019-08-31 | HQ6: =EOMONTH('PROJECT DETAILS'!$C10,HS5-1) -> 2019-09-30 | HV6: =EOMONTH('PROJECT DETAILS'!$C10,HX5-1) -> 2019-10-31 | IA6: =EOMONTH('PROJECT DETAILS'!$C10,IC5-1) -> 2019-11-30 | IF6: =EOMONTH('PROJECT DETAILS'!$C10,IH5-1) -> 2019-12-31 | IK6: =EOMONTH('PROJECT DETAILS'!$C10,IM5-1) -> 2020-01-31 | IP6: =EOMONTH('PROJECT DETAILS'!$C10,IR5-1) -> 2020-02-29 | IU6: =EOMONTH('PROJECT DETAILS'!$C10,IW5-1) -> 2020-03-31 | IZ6: =EOMONTH('PROJECT DETAILS'!$C10,JB5-1) -> 2020-04-30 | JE6: =EOMONTH('PROJECT DETAILS'!$C10,JG5-1) -> 2020-05-31 | JJ6: =EOMONTH('PROJECT DETAILS'!$C10,JL5-1) -> 2020-06-30 | JO6: =EOMONTH('PROJECT DETAILS'!$C10,JQ5-1) -> 2020-07-31 | JT6: =EOMONTH('PROJECT DETAILS'!$C10,JV5-1) -> 2020-08-31 | JY6: =EOMONTH('PROJECT DETAILS'!$C10,KA5-1) -> 2020-09-30 | KD6: =EOMONTH('PROJECT DETAILS'!$C10,KF5-1) -> 2020-10-31 | KI6: =EOMONTH('PROJECT DETAILS'!$C10,KK5-1) -> 2020-11-30 | KN6: =EOMONTH('PROJECT DETAILS'!$C10,KP5-1) -> 2020-12-31 | KS6: =EOMONTH('PROJECT DETAILS'!$C10,KU5-1) -> 2021-01-31 | KX6: =EOMONTH('PROJECT DETAILS'!$C10,KZ5-1) -> 2021-02-28 | LC6: =EOMONTH('PROJECT DETAILS'!$C10,LE5-1) -> 2021-03-31 | LH6: =EOMONTH('PROJECT DETAILS'!$C10,LJ5-1) -> 2021-04-30 | LM6: =EOMONTH('PROJECT DETAILS'!$C10,LO5-1) -> 2021-05-31 | LR6: =EOMONTH('PROJECT DETAILS'!$C10,LT5-1) -> 2021-06-30 | LW6: =EOMONTH('PROJECT DETAILS'!$C10,LY5-1) -> 2021-07-31 | MB6: =EOMONTH('PROJECT DETAILS'!$C10,MD5-1) -> 2021-08-31 | MG6: =EOMONTH('PROJECT DETAILS'!$C10,MI5-1) -> 2021-09-30 | ML6: =EOMONTH('PROJECT DETAILS'!$C10,MN5-1) -> 2021-10-31 | MQ6: =EOMONTH('PROJECT DETAILS'!$C10,MS5-1) -> 2021-11-30 | MV6: =EOMONTH('PROJECT DETAILS'!$C10,MX5-1) -> 2021-12-31 | NA6: =EOMONTH('PROJECT DETAILS'!$C10,NC5-1) -> 2022-01-31 | NF6: =EOMONTH('PROJECT DETAILS'!$C10,NH5-1) -> 2022-02-28 | NK6: =EOMONTH('PROJECT DETAILS'!$C10,NM5-1) -> 2022-03-31 | NP6: =EOMONTH('PROJECT DETAILS'!$C10,NR5-1) -> 2022-04-30 | NU6: =EOMONTH('PROJECT DETAILS'!$C10,NW5-1) -> 2022-05-31 | NZ6: =EOMONTH('PROJECT DETAILS'!$C10,OB5-1) -> 2022-06-30 | OE6: =EOMONTH('PROJECT DETAILS'!$C10,OG5-1) -> 2022-07-31 | OJ6: =EOMONTH('PROJECT DETAILS'!$C10,OL5-1) -> 2022-08-31 | OO6: =EOMONTH('PROJECT DETAILS'!$C10,OQ5-1) -> 2022-09-30 | OT6: =EOMONTH('PROJECT DETAILS'!$C10,OV5-1) -> 2022-10-31 | OY6: =EOMONTH('PROJECT DETAILS'!$C10,PA5-1) -> 2022-11-30 | PD6: =EOMONTH('PROJECT DETAILS'!$C10,PF5-1) -> 2022-12-31 | PI6: =EOMONTH('PROJECT DETAILS'!$C10,PK5-1) -> 2023-01-31 | PN6: =EOMONTH('PROJECT DETAILS'!$C10,PP5-1) -> 2023-02-28
O7: Quantity | Q7: Value [OMR] | S7: Progress | T7: Quantity | V7: Value [OMR] | X7: Progress | Y7: Quantity | AA7: Value [OMR] | AC7: Progress | AD7: Quantity | AF7: Value [OMR] | AH7: Progress | AI7: Quantity | AK7: Value [OMR] | AM7: Progress | AN7: Quantity | AP7: Value [OMR] | AR7: Progress | AS7: Quantity | AU7: Value [OMR] | AW7: Progress | AX7: Quantity | AZ7: Value [OMR] | BB7: Progress | BC7: Quantity | BE7: Value [OMR] | BG7: Progress | BH7: Quantity | BJ7: Value [OMR] | BL7: Progress | BM7: Quantity | BO7: Value [OMR] | BQ7: Progress | BR7: Quantity | BT7: Value [OMR] | BV7: Progress | BW7: Quantity | BY7: Value [OMR] | CA7: Progress | CB7: Quantity | CD7: Value [OMR] | CF7: Progress | CG7: Quantity | CI7: Value [OMR] | CK7: Progress | CL7: Quantity | CN7: Value [OMR] | CP7: Progress | CQ7: Quantity | CS7: Value [OMR] | CU7: Progress | CV7: Quantity | CX7: Value [OMR] | CZ7: Progress | DA7: Quantity | DC7: Value [OMR] | DE7: Progress | DF7: Quantity | DH7: Value [OMR] | DJ7: Progress | DK7: Quantity | DM7: Value [OMR] | DO7: Progress | DP7: Quantity | DR7: Value [OMR] | DT7: Progress | DU7: Quantity | DW7: Value [OMR] | DY7: Progress | DZ7: Quantity | EB7: Value [OMR] | ED7: Progress | EE7: Quantity | EG7: Value [OMR] | EI7: Progress | EJ7: Quantity | EL7: Value [OMR] | EN7: Progress | EO7: Quantity | EQ7: Value [OMR] | ES7: Progress | ET7: Quantity | EV7: Value [OMR] | EX7: Progress | EY7: Quantity | FA7: Value [OMR] | FC7: Progress | FD7: Quantity | FF7: Value [OMR] | FH7: Progress | FI7: Quantity | FK7: Value [OMR] | FM7: Progress | FN7: Quantity | FP7: Value [OMR] | FR7: Progress | FS7: Quantity | FU7: Value [OMR] | FW7: Progress | FX7: Quantity | FZ7: Value [OMR] | GB7: Progress | GC7: Quantity | GE7: Value [OMR] | GG7: Progress | GH7: Quantity | GJ7: Value [OMR] | GL7: Progress | GM7: Quantity | GO7: Value [OMR] | GQ7: Progress | GR7: Quantity | GT7: Value [OMR] | GV7: Progress | GW7: Quantity | GY7: Value [OMR] | HA7: Progress | HB7: Quantity | HD7: Value [OMR] | HF7: Progress | HG7: Quantity | HI7: Value [OMR] | HK7: Progress | HL7: Quantity | HN7: Value [OMR] | HP7: Progress | HQ7: Quantity | HS7: Value [OMR] | HU7: Progress | HV7: Quantity | HX7: Value [OMR] | HZ7: Progress | IA7: Quantity | IC7: Value [OMR] | IE7: Progress | IF7: Quantity | IH7: Value [OMR] | IJ7: Progress | IK7: Quantity | IM7: Value [OMR] | IO7: Progress | IP7: Quantity | IR7: Value [OMR] | IT7: Progress | IU7: Quantity | IW7: Value [OMR] | IY7: Progress | IZ7: Quantity | JB7: Value [OMR] | JD7: Progress | JE7: Quantity | JG7: Value [OMR] | JI7: Progress | JJ7: Quantity | JL7: Value [OMR] | JN7: Progress | JO7: Quantity | JQ7: Value [OMR] | JS7: Progress | JT7: Quantity | JV7: Value [OMR] | JX7: Progress | JY7: Quantity | KA7: Value [OMR] | KC7: Progress | KD7: Quantity | KF7: Value [OMR] | KH7: Progress | KI7: Quantity | KK7: Value [OMR] | KM7: Progress | KN7: Quantity | KP7: Value [OMR] | KR7: Progress | KS7: Quantity | KU7: Value [OMR] | KW7: Progress | KX7: Quantity | KZ7: Value [OMR] | LB7: Progress | LC7: Quantity | LE7: Value [OMR] | LG7: Progress | LH7: Quantity | LJ7: Value [OMR] | LL7: Progress | LM7: Quantity | LO7: Value [OMR] | LQ7: Progress | LR7: Quantity | LT7: Value [OMR] | LV7: Progress | LW7: Quantity | LY7: Value [OMR] | MA7: Progress | MB7: Quantity | MD7: Value [OMR] | MF7: Progress | MG7: Quantity | MI7: Value [OMR] | MK7: Progress | ML7: Quantity | MN7: Value [OMR] | MP7: Progress | MQ7: Quantity | MS7: Value [OMR] | MU7: Progress | MV7: Quantity | MX7: Value [OMR] | MZ7: Progress | NA7: Quantity | NC7: Value [OMR] | NE7: Progress | NF7: Quantity | NH7: Value [OMR] | NJ7: Progress | NK7: Quantity | NM7: Value [OMR] | NO7: Progress | NP7: Quantity | NR7: Value [OMR] | NT7: Progress | NU7: Quantity | NW7: Value [OMR] | NY7: Progress | NZ7: Quantity | OB7: Value [OMR] | OD7: Progress | OE7: Quantity | OG7: Value [OMR] | OI7: Progress | OJ7: Quantity | OL7: Value [OMR] | ON7: Progress | OO7: Quantity | OQ7: Value [OMR] | OS7: Progress | OT7: Quantity | OV7: Value [OMR] | OX7: Progress | OY7: Quantity | PA7: Value [OMR] | PC7: Progress | PD7: Quantity | PF7: Value [OMR] | PH7: Progress | PI7: Quantity | PK7: Value [OMR] | PM7: Progress | PN7: Quantity | PP7: Value [OMR] | PR7: Progress
Q8: All Years | V8: All Years | AA8: All Years | AF8: All Years | AK8: All Years | AP8: All Years | AU8: All Years | AZ8: All Years | BE8: All Years | BJ8: All Years | BO8: All Years | BT8: All Years | BY8: All Years | CD8: All Years | CI8: All Years | CN8: All Years | CS8: All Years | CX8: All Years | DC8: All Years | DH8: All Years | DM8: All Years | DR8: All Years | DW8: All Years | EB8: All Years | EG8: All Years | EL8: All Years | EQ8: All Years | EV8: All Years | FA8: All Years | FF8: All Years | FK8: All Years | FP8: All Years | FU8: All Years | FZ8: All Years | GE8: All Years | GJ8: All Years | GO8: All Years | GT8: All Years | GY8: All Years | HD8: All Years | HI8: All Years | HN8: All Years | HS8: All Years | HX8: All Years | IC8: All Years | IH8: All Years | IM8: All Years | IR8: All Years | IW8: All Years | JB8: All Years | JG8: All Years | JL8: All Years | JQ8: All Years | JV8: All Years | KA8: All Years | KF8: All Years | KK8: All Years | KP8: All Years | KU8: All Years | KZ8: All Years | LE8: All Years | LJ8: All Years | LO8: All Years | LT8: All Years | LY8: All Years | MD8: All Years | MI8: All Years | MN8: All Years | MS8: All Years | MX8: All Years | NC8: All Years | NH8: All Years | NM8: All Years | NR8: All Years | NW8: All Years | OB8: All Years | OG8: All Years | OL8: All Years | OQ8: All Years | OV8: All Years | PA8: All Years | PF8: All Years | PK8: All Years | PP8: All Years
